{"text_format":"1","workbook":"xlsx","n_sheets":6,"sheets":["School","School list","IMPORTANT - PLEASE READ","FAQs","Working","Lookup"],"not_rendered":{"charts":0,"images":3,"macros":1,"external_links":0,"defined_names":17,"comments":2,"pivot_tables":0},"unopened":[],"bounds":{"document_bytes":16777216,"sheet_cells":100000,"rows_first":2000,"rows_last":500,"rows_between":2000,"halvings":0,"cell_chars":16384,"cell_head_chars":4096},"cells_cut":0,"cells_raw":0,"read":"whole","date_system":"1900"}

{"sheet":"School","index":0,"n_rows":311,"n_cols":38,"rows_kept":311,"cut":false,"hidden":false,"merged":[[3,8,4,10],[2,1,2,4]]}
[]
[" (Nursery Schools only) School No:"]
["School/Setting Name:",{"$f":"IFERROR(VLOOKUP(B2,Schools,4,FALSE),\"\")","v":""}]
[null,null,null,null,null,null,null,null,"2026 Version"]
["Year cohort are entering:",null,null,null,null,null,null,null,null,null,null,null,null,null,null,null,null,null,null,null,null,null,null,null,null,null,null,null,null,null,null,null,null,null,null,"Totals:"]
[null,null,null,null,null,null,null,null,null,null,null,null,null,null,null,null,null,null,null,null,null,null,null,null,null,null,null,null,null,null,null,null,null,null,null,"Intensive",{"$f":"COUNTIF(Table1[Overall rating],\"Intensive*\")","v":0},{"$f":"CONCATENATE(\"(\",COUNTIFS(Table1[Overall rating],\"Intensive*\",Table1[Gender],\"F\"),\" F and \",COUNTIFS(Table1[Overall rating],\"Intensive*\",Table1[Gender],\"M\"),\" M)\")","v":"(0 F and 0 M)"}]
[null,null,null,null,null,null,null,"Intensive Totals:",{"$f":"IF(COUNTA($D$12:$D$311)=0,0,COUNTIF(Table1[Child look after/ previously looked after],\"Intensive\"))","v":0},{"$f":"IF(COUNTA($D$12:$D$311)=0,0,COUNTIF(Table1[Child in need/Child protection/Targeted intervention/Previously known to social care],\"Intensive\"))","v":0},{"$f":"IF(COUNTA($D$12:$D$311)=0,0,COUNTIF(Table1[Special guardianship order],\"Intensive\"))","v":0},{"$f":"IF(COUNTA($D$12:$D$311)=0,0,COUNTIF(Table1[Special eductional need and/or disability],\"Intensive\"))","v":0},{"$f":"IF(COUNTA($D$12:$D$311)=0,0,COUNTIF(Table1[Social, emotional and mental health needs],\"Intensive\"))","v":0},{"$f":"IF(COUNTA($D$12:$D$311)=0,0,COUNTIF(Table1[Speech and language therapies (SALT)],\"Intensive\"))","v":0},{"$f":"IF(COUNTA($D$12:$D$311)=0,0,COUNTIF(Table1[Medical needs],\"Intensive\"))","v":0},{"$f":"IF(COUNTA($D$12:$D$311)=0,0,COUNTIF(Table1[Sensory Needs],\"Intensive\"))","v":0},{"$f":"IF(COUNTA($D$12:$D$311)=0,0,COUNTIF(Table1[Sensory and/or physical development],\"Intensive\"))","v":0},{"$f":"IF(COUNTA($D$12:$D$311)=0,0,COUNTIF(Table1[Bereavement],\"Intensive\"))","v":0},{"$f":"IF(COUNTA($D$12:$D$311)=0,0,COUNTIF(Table1[Parental advocacy, vulnerability or engagment],\"Intensive\"))","v":0},{"$f":"IF(COUNTA($D$12:$D$311)=0,0,COUNTIF(Table1[Shared parental responsibility],\"Intensive\"))","v":0},{"$f":"IF(COUNTA($D$12:$D$311)=0,0,COUNTIF(Table1[Transient family],\"Intensive\"))","v":0},{"$f":"IF(COUNTA($D$12:$D$311)=0,0,COUNTIF(Table1[Changes to home circumstances],\"Intensive\"))","v":0},{"$f":"IF(COUNTA($D$12:$D$311)=0,0,COUNTIF(Table1[Attendance],\"Intensive\"))","v":0},{"$f":"IF(COUNTA($D$12:$D$311)=0,0,COUNTIF(Table1[Exclusions],\"Intensive\"))","v":0},{"$f":"IF(COUNTA($D$12:$D$311)=0,0,COUNTIF(Table1[English as an additional langauge],\"Intensive\"))","v":0},{"$f":"IF(COUNTA($D$12:$D$311)=0,0,COUNTIF(Table1[Delayed or deferred entry],\"Intensive\"))","v":0},{"$f":"IF(COUNTA($D$12:$D$311)=0,0,COUNTIF(Table1[Early years pupil premium],\"Intensive\"))","v":0},{"$f":"IF(COUNTA($D$12:$D$311)=0,0,COUNTIF(Table1[Free education for 2-year-olds],\"Intensive\"))","v":0},{"$f":"IF(COUNTA($D$12:$D$311)=0,0,COUNTIF(Table1[Child born prematurely],\"Intensive\"))","v":0},{"$f":"IF(COUNTA($D$12:$D$311)=0,0,COUNTIF(Table1[Child has been cared for at home],\"Intensive\"))","v":0},{"$f":"IF(COUNTA($D$12:$D$311)=0,0,COUNTIF(Table1[Child vulnerable to underachievement in the prime areas of development],\"Intensive\"))","v":0},{"$f":"IF(COUNTA($D$12:$D$311)=0,0,COUNTIF(Table1[Child vulnerable to underachievement in the specific areas of development],\"Intensive\"))","v":0},{"$f":"IF(COUNTA($D$12:$D$311)=0,0,COUNTIF(Table1[Total Red],\"Intensive\"))","v":0},{"$f":"IF(COUNTA($D$12:$D$311)=0,0,COUNTIF(Table1[Total Amber],\"Intensive\"))","v":0},{"$f":"IF(COUNTA($D$12:$D$311)=0,0,COUNTIF(Table1[Total Yellow],\"Intensive\"))","v":0},"Personalised",{"$f":"COUNTIF(Table1[Overall rating],\"Person*\")","v":0},{"$f":"CONCATENATE(\"(\",COUNTIFS(Table1[Overall rating],\"Person*\",Table1[Gender],\"F\"),\" F and \",COUNTIFS(Table1[Overall rating],\"Person*\",Table1[Gender],\"M\"),\" M)\")","v":"(0 F and 0 M)"}]
[null,null,null,null,null,null,null,"Personalised Totals:",{"$f":"IF(COUNTA($D$12:$D$311)=0,0,COUNTIF(Table1[Child look after/ previously looked after],\"Personalised\"))","v":0},{"$f":"IF(COUNTA($D$12:$D$311)=0,0,COUNTIF(Table1[Child in need/Child protection/Targeted intervention/Previously known to social care],\"Personalised\"))","v":0},{"$f":"IF(COUNTA($D$12:$D$311)=0,0,COUNTIF(Table1[Special guardianship order],\"Personalised\"))","v":0},{"$f":"IF(COUNTA($D$12:$D$311)=0,0,COUNTIF(Table1[Special eductional need and/or disability],\"Personalised\"))","v":0},{"$f":"IF(COUNTA($D$12:$D$311)=0,0,COUNTIF(Table1[Social, emotional and mental health needs],\"Personalised\"))","v":0},{"$f":"IF(COUNTA($D$12:$D$311)=0,0,COUNTIF(Table1[Speech and language therapies (SALT)],\"Personalised\"))","v":0},{"$f":"IF(COUNTA($D$12:$D$311)=0,0,COUNTIF(Table1[Medical needs],\"Personalised\"))","v":0},{"$f":"IF(COUNTA($D$12:$D$311)=0,0,COUNTIF(Table1[Sensory Needs],\"Personalised\"))","v":0},{"$f":"IF(COUNTA($D$12:$D$311)=0,0,COUNTIF(Table1[Sensory and/or physical development],\"Personalised\"))","v":0},{"$f":"IF(COUNTA($D$12:$D$311)=0,0,COUNTIF(Table1[Bereavement],\"Personalised\"))","v":0},{"$f":"IF(COUNTA($D$12:$D$311)=0,0,COUNTIF(Table1[Parental advocacy, vulnerability or engagment],\"Personalised\"))","v":0},{"$f":"IF(COUNTA($D$12:$D$311)=0,0,COUNTIF(Table1[Shared parental responsibility],\"Personalised\"))","v":0},{"$f":"IF(COUNTA($D$12:$D$311)=0,0,COUNTIF(Table1[Transient family],\"Personalised\"))","v":0},{"$f":"IF(COUNTA($D$12:$D$311)=0,0,COUNTIF(Table1[Changes to home circumstances],\"Personalised\"))","v":0},{"$f":"IF(COUNTA($D$12:$D$311)=0,0,COUNTIF(Table1[Attendance],\"Personalised\"))","v":0},{"$f":"IF(COUNTA($D$12:$D$311)=0,0,COUNTIF(Table1[Exclusions],\"Personalised\"))","v":0},{"$f":"IF(COUNTA($D$12:$D$311)=0,0,COUNTIF(Table1[English as an additional langauge],\"Personalised\"))","v":0},{"$f":"IF(COUNTA($D$12:$D$311)=0,0,COUNTIF(Table1[Delayed or deferred entry],\"Personalised\"))","v":0},{"$f":"IF(COUNTA($D$12:$D$311)=0,0,COUNTIF(Table1[Early years pupil premium],\"Personalised\"))","v":0},{"$f":"IF(COUNTA($D$12:$D$311)=0,0,COUNTIF(Table1[Free education for 2-year-olds],\"Personalised\"))","v":0},{"$f":"IF(COUNTA($D$12:$D$311)=0,0,COUNTIF(Table1[Child born prematurely],\"Personalised\"))","v":0},{"$f":"IF(COUNTA($D$12:$D$311)=0,0,COUNTIF(Table1[Child has been cared for at home],\"Personalised\"))","v":0},{"$f":"IF(COUNTA($D$12:$D$311)=0,0,COUNTIF(Table1[Child vulnerable to underachievement in the prime areas of development],\"Personalised\"))","v":0},{"$f":"IF(COUNTA($D$12:$D$311)=0,0,COUNTIF(Table1[Child vulnerable to underachievement in the specific areas of development],\"Personalised\"))","v":0},{"$f":"IF(COUNTA($D$12:$D$311)=0,0,COUNTIF(Table1[Total Red],\"Personalised\"))","v":0},{"$f":"IF(COUNTA($D$12:$D$311)=0,0,COUNTIF(Table1[Total Amber],\"Personalised\"))","v":0},{"$f":"IF(COUNTA($D$12:$D$311)=0,0,COUNTIF(Table1[Total Yellow],\"Personalised\"))","v":0},"Targeted",{"$f":"COUNTIF(Table1[Overall rating],\"Target*\")","v":0},{"$f":"CONCATENATE(\"(\",COUNTIFS(Table1[Overall rating],\"Target*\",Table1[Gender],\"F\"),\" F and \",COUNTIFS(Table1[Overall rating],\"Target*\",Table1[Gender],\"M\"),\" M)\")","v":"(0 F and 0 M)"}]
[null,null,null,null,null,null,null,"Targeted Totals:",{"$f":"IF(COUNTA($D$12:$D$311)=0,0,COUNTIF(Table1[Child look after/ previously looked after],\"Targeted\"))","v":0},{"$f":"IF(COUNTA($D$12:$D$311)=0,0,COUNTIF(Table1[Child in need/Child protection/Targeted intervention/Previously known to social care],\"Targeted\"))","v":0},{"$f":"IF(COUNTA($D$12:$D$311)=0,0,COUNTIF(Table1[Special guardianship order],\"Targeted\"))","v":0},{"$f":"IF(COUNTA($D$12:$D$311)=0,0,COUNTIF(Table1[Special eductional need and/or disability],\"Targeted\"))","v":0},{"$f":"IF(COUNTA($D$12:$D$311)=0,0,COUNTIF(Table1[Social, emotional and mental health needs],\"Targeted\"))","v":0},{"$f":"IF(COUNTA($D$12:$D$311)=0,0,COUNTIF(Table1[Speech and language therapies (SALT)],\"Targeted\"))","v":0},{"$f":"IF(COUNTA($D$12:$D$311)=0,0,COUNTIF(Table1[Medical needs],\"Targeted\"))","v":0},{"$f":"IF(COUNTA($D$12:$D$311)=0,0,COUNTIF(Table1[Sensory Needs],\"Targeted\"))","v":0},{"$f":"IF(COUNTA($D$12:$D$311)=0,0,COUNTIF(Table1[Sensory and/or physical development],\"Targeted\"))","v":0},{"$f":"IF(COUNTA($D$12:$D$311)=0,0,COUNTIF(Table1[Bereavement],\"Targeted\"))","v":0},{"$f":"IF(COUNTA($D$12:$D$311)=0,0,COUNTIF(Table1[Parental advocacy, vulnerability or engagment],\"Targeted\"))","v":0},{"$f":"IF(COUNTA($D$12:$D$311)=0,0,COUNTIF(Table1[Shared parental responsibility],\"Targeted\"))","v":0},{"$f":"IF(COUNTA($D$12:$D$311)=0,0,COUNTIF(Table1[Transient family],\"Targeted\"))","v":0},{"$f":"IF(COUNTA($D$12:$D$311)=0,0,COUNTIF(Table1[Changes to home circumstances],\"Targeted\"))","v":0},{"$f":"IF(COUNTA($D$12:$D$311)=0,0,COUNTIF(Table1[Attendance],\"Targeted\"))","v":0},{"$f":"IF(COUNTA($D$12:$D$311)=0,0,COUNTIF(Table1[Exclusions],\"Targeted\"))","v":0},{"$f":"IF(COUNTA($D$12:$D$311)=0,0,COUNTIF(Table1[English as an additional langauge],\"Targeted\"))","v":0},{"$f":"IF(COUNTA($D$12:$D$311)=0,0,COUNTIF(Table1[Delayed or deferred entry],\"Targeted\"))","v":0},{"$f":"IF(COUNTA($D$12:$D$311)=0,0,COUNTIF(Table1[Early years pupil premium],\"Targeted\"))","v":0},{"$f":"IF(COUNTA($D$12:$D$311)=0,0,COUNTIF(Table1[Free education for 2-year-olds],\"Targeted\"))","v":0},{"$f":"IF(COUNTA($D$12:$D$311)=0,0,COUNTIF(Table1[Child born prematurely],\"Targeted\"))","v":0},{"$f":"IF(COUNTA($D$12:$D$311)=0,0,COUNTIF(Table1[Child has been cared for at home],\"Targeted\"))","v":0},{"$f":"IF(COUNTA($D$12:$D$311)=0,0,COUNTIF(Table1[Child vulnerable to underachievement in the prime areas of development],\"Targeted\"))","v":0},{"$f":"IF(COUNTA($D$12:$D$311)=0,0,COUNTIF(Table1[Child vulnerable to underachievement in the specific areas of development],\"Targeted\"))","v":0},{"$f":"IF(COUNTA($D$12:$D$311)=0,0,COUNTIF(Table1[Total Red],\"Targeted\"))","v":0},{"$f":"IF(COUNTA($D$12:$D$311)=0,0,COUNTIF(Table1[Total Amber],\"Targeted\"))","v":0},{"$f":"IF(COUNTA($D$12:$D$311)=0,0,COUNTIF(Table1[Total Yellow],\"Targeted\"))","v":0},"Universal",{"$f":"COUNTIF(Table1[Overall rating],\"Universal*\")","v":0},{"$f":"CONCATENATE(\"(\",COUNTIFS(Table1[Overall rating],\"Universal*\",Table1[Gender],\"F\"),\" F and \",COUNTIFS(Table1[Overall rating],\"Universal*\",Table1[Gender],\"M\"),\" M)\")","v":"(0 F and 0 M)"}]
[]
["Destination School No","Destination School Name","OOC","Child First Name","Child Surname","Gender","Term of Birth","30-hours of provision","Child look after/ previously looked after","Child in need/Child protection/Targeted intervention/Previously known to social care","Special guardianship order","Special eductional need and/or disability","Social, emotional and mental health needs","Speech and language therapies (SALT)","Medical needs","Sensory Needs","Sensory and/or physical development","Bereavement","Parental advocacy, vulnerability or engagment","Shared parental responsibility","Transient family","Changes to home circumstances","Attendance","Exclusions","English as an additional langauge","Delayed or deferred entry","Early years pupil premium","Free education for 2-year-olds","Child born prematurely","Child has been cared for at home","Child vulnerable to underachievement in the prime areas of development","Child vulnerable to underachievement in the specific areas of development","Total Red","Total Amber","Total Yellow","Score","Overall rating"]
[null,{"$f":"IFERROR(VLOOKUP(Table1[[#This Row],[Destination School No]],SchoolList[],4,FALSE),\"\")","v":""},null,null,null,null,null,null,null,null,null,null,null,null,null,null,null,null,null,null,null,null,null,null,null,null,null,null,null,null,null,null,{"$f":"IF($D12<>\"\",COUNTIF($I12:$AF12,\"Intensive\")*12,\"\")","v":""},{"$f":"IF($D12<>\"\",COUNTIF($I12:$AF12,\"Personalised\")*4,\"\")","v":""},{"$f":"IF($D12<>\"\",COUNTIF($I12:$AF12,\"Targeted\"),\"\")","v":""},{"$f":"IF(ISBLANK(Table1[[#This Row],[Child First Name]]),\"\",SUM(Table1[[#This Row],[Total Red]:[Total Yellow]]))","v":""},{"$f":"IF(ISBLANK(Table1[[#This Row],[Child First Name]]),\"\",IF(Table1[[#This Row],[Score]]<1,\"Universal Need\",IF(Table1[[#This Row],[Score]]<4,\"Targeted Need\",IF(Table1[[#This Row],[Score]]<12,\"Personalised Need\",\"Intensive Need\"))))","v":""}]
[null,{"$f":"IFERROR(VLOOKUP(Table1[[#This Row],[Destination School No]],SchoolList[],4,FALSE),\"\")","v":""},null,null,null,null,null,null,null,null,null,null,null,null,null,null,null,null,null,null,null,null,null,null,null,null,null,null,null,null,null,null,"","","",{"$f":"IF(ISBLANK(Table1[[#This Row],[Child First Name]]),\"\",SUM(Table1[[#This Row],[Total Red]:[Total Yellow]]))","v":""},{"$f":"IF(ISBLANK(Table1[[#This Row],[Child First Name]]),\"\",IF(Table1[[#This Row],[Score]]<1,\"Universal Need\",IF(Table1[[#This Row],[Score]]<4,\"Targeted Need\",IF(Table1[[#This Row],[Score]]<12,\"Personalised Need\",\"Intensive Need\"))))","v":""}]
[null,{"$f":"IFERROR(VLOOKUP(Table1[[#This Row],[Destination School No]],SchoolList[],4,FALSE),\"\")","v":""},null,null,null,null,null,null,null,null,null,null,null,null,null,null,null,null,null,null,null,null,null,null,null,null,null,null,null,null,null,null,"","","",{"$f":"IF(ISBLANK(Table1[[#This Row],[Child First Name]]),\"\",SUM(Table1[[#This Row],[Total Red]:[Total Yellow]]))","v":""},{"$f":"IF(ISBLANK(Table1[[#This Row],[Child First Name]]),\"\",IF(Table1[[#This Row],[Score]]<1,\"Universal Need\",IF(Table1[[#This Row],[Score]]<4,\"Targeted Need\",IF(Table1[[#This Row],[Score]]<12,\"Personalised Need\",\"Intensive Need\"))))","v":""}]
[null,{"$f":"IFERROR(VLOOKUP(Table1[[#This Row],[Destination School No]],SchoolList[],4,FALSE),\"\")","v":""},null,null,null,null,null,null,null,null,null,null,null,null,null,null,null,null,null,null,null,null,null,null,null,null,null,null,null,null,null,null,"","","",{"$f":"IF(ISBLANK(Table1[[#This Row],[Child First Name]]),\"\",SUM(Table1[[#This Row],[Total Red]:[Total Yellow]]))","v":""},{"$f":"IF(ISBLANK(Table1[[#This Row],[Child First Name]]),\"\",IF(Table1[[#This Row],[Score]]<1,\"Universal Need\",IF(Table1[[#This Row],[Score]]<4,\"Targeted Need\",IF(Table1[[#This Row],[Score]]<12,\"Personalised Need\",\"Intensive Need\"))))","v":""}]
[null,{"$f":"IFERROR(VLOOKUP(Table1[[#This Row],[Destination School No]],SchoolList[],4,FALSE),\"\")","v":""},null,null,null,null,null,null,null,null,null,null,null,null,null,null,null,null,null,null,null,null,null,null,null,null,null,null,null,null,null,null,"","","",{"$f":"IF(ISBLANK(Table1[[#This Row],[Child First Name]]),\"\",SUM(Table1[[#This Row],[Total Red]:[Total Yellow]]))","v":""},{"$f":"IF(ISBLANK(Table1[[#This Row],[Child First Name]]),\"\",IF(Table1[[#This Row],[Score]]<1,\"Universal Need\",IF(Table1[[#This Row],[Score]]<4,\"Targeted Need\",IF(Table1[[#This Row],[Score]]<12,\"Personalised Need\",\"Intensive Need\"))))","v":""}]
[null,{"$f":"IFERROR(VLOOKUP(Table1[[#This Row],[Destination School No]],SchoolList[],4,FALSE),\"\")","v":""},null,null,null,null,null,null,null,null,null,null,null,null,null,null,null,null,null,null,null,null,null,null,null,null,null,null,null,null,null,null,"","",{"$f":"IF($D17<>\"\",COUNTIF($I17:$AF17,\"Targeted\"),\"\")","v":""},{"$f":"IF(ISBLANK(Table1[[#This Row],[Child First Name]]),\"\",SUM(Table1[[#This Row],[Total Red]:[Total Yellow]]))","v":""},{"$f":"IF(ISBLANK(Table1[[#This Row],[Child First Name]]),\"\",IF(Table1[[#This Row],[Score]]<1,\"Universal Need\",IF(Table1[[#This Row],[Score]]<4,\"Targeted Need\",IF(Table1[[#This Row],[Score]]<12,\"Personalised Need\",\"Intensive Need\"))))","v":""}]
[null,{"$f":"IFERROR(VLOOKUP(Table1[[#This Row],[Destination School No]],SchoolList[],4,FALSE),\"\")","v":""},null,null,null,null,null,null,null,null,null,null,null,null,null,null,null,null,null,null,null,null,null,null,null,null,null,null,null,null,null,null,"","","",{"$f":"IF(ISBLANK(Table1[[#This Row],[Child First Name]]),\"\",SUM(Table1[[#This Row],[Total Red]:[Total Yellow]]))","v":""},{"$f":"IF(ISBLANK(Table1[[#This Row],[Child First Name]]),\"\",IF(Table1[[#This Row],[Score]]<1,\"Universal Need\",IF(Table1[[#This Row],[Score]]<4,\"Targeted Need\",IF(Table1[[#This Row],[Score]]<12,\"Personalised Need\",\"Intensive Need\"))))","v":""}]
[null,{"$f":"IFERROR(VLOOKUP(Table1[[#This Row],[Destination School No]],SchoolList[],4,FALSE),\"\")","v":""},null,null,null,null,null,null,null,null,null,null,null,null,null,null,null,null,null,null,null,null,null,null,null,null,null,null,null,null,null,null,"","","",{"$f":"IF(ISBLANK(Table1[[#This Row],[Child First Name]]),\"\",SUM(Table1[[#This Row],[Total Red]:[Total Yellow]]))","v":""},{"$f":"IF(ISBLANK(Table1[[#This Row],[Child First Name]]),\"\",IF(Table1[[#This Row],[Score]]<1,\"Universal Need\",IF(Table1[[#This Row],[Score]]<4,\"Targeted Need\",IF(Table1[[#This Row],[Score]]<12,\"Personalised Need\",\"Intensive Need\"))))","v":""}]
[null,{"$f":"IFERROR(VLOOKUP(Table1[[#This Row],[Destination School No]],SchoolList[],4,FALSE),\"\")","v":""},null,null,null,null,null,null,null,null,null,null,null,null,null,null,null,null,null,null,null,null,null,null,null,null,null,null,null,null,null,null,"","","",{"$f":"IF(ISBLANK(Table1[[#This Row],[Child First Name]]),\"\",SUM(Table1[[#This Row],[Total Red]:[Total Yellow]]))","v":""},{"$f":"IF(ISBLANK(Table1[[#This Row],[Child First Name]]),\"\",IF(Table1[[#This Row],[Score]]<1,\"Universal Need\",IF(Table1[[#This Row],[Score]]<4,\"Targeted Need\",IF(Table1[[#This Row],[Score]]<12,\"Personalised Need\",\"Intensive Need\"))))","v":""}]
[null,{"$f":"IFERROR(VLOOKUP(Table1[[#This Row],[Destination School No]],SchoolList[],4,FALSE),\"\")","v":""},null,null,null,null,null,null,null,null,null,null,null,null,null,null,null,null,null,null,null,null,null,null,null,null,null,null,null,null,null,null,"","","",{"$f":"IF(ISBLANK(Table1[[#This Row],[Child First Name]]),\"\",SUM(Table1[[#This Row],[Total Red]:[Total Yellow]]))","v":""},{"$f":"IF(ISBLANK(Table1[[#This Row],[Child First Name]]),\"\",IF(Table1[[#This Row],[Score]]<1,\"Universal Need\",IF(Table1[[#This Row],[Score]]<4,\"Targeted Need\",IF(Table1[[#This Row],[Score]]<12,\"Personalised Need\",\"Intensive Need\"))))","v":""}]
[null,{"$f":"IFERROR(VLOOKUP(Table1[[#This Row],[Destination School No]],SchoolList[],4,FALSE),\"\")","v":""},null,null,null,null,null,null,null,null,null,null,null,null,null,null,null,null,null,null,null,null,null,null,null,null,null,null,null,null,null,null,"","","",{"$f":"IF(ISBLANK(Table1[[#This Row],[Child First Name]]),\"\",SUM(Table1[[#This Row],[Total Red]:[Total Yellow]]))","v":""},{"$f":"IF(ISBLANK(Table1[[#This Row],[Child First Name]]),\"\",IF(Table1[[#This Row],[Score]]<1,\"Universal Need\",IF(Table1[[#This Row],[Score]]<4,\"Targeted Need\",IF(Table1[[#This Row],[Score]]<12,\"Personalised Need\",\"Intensive Need\"))))","v":""}]
[null,{"$f":"IFERROR(VLOOKUP(Table1[[#This Row],[Destination School No]],SchoolList[],4,FALSE),\"\")","v":""},null,null,null,null,null,null,null,null,null,null,null,null,null,null,null,null,null,null,null,null,null,null,null,null,null,null,null,null,null,null,"","","",{"$f":"IF(ISBLANK(Table1[[#This Row],[Child First Name]]),\"\",SUM(Table1[[#This Row],[Total Red]:[Total Yellow]]))","v":""},{"$f":"IF(ISBLANK(Table1[[#This Row],[Child First Name]]),\"\",IF(Table1[[#This Row],[Score]]<1,\"Universal Need\",IF(Table1[[#This Row],[Score]]<4,\"Targeted Need\",IF(Table1[[#This Row],[Score]]<12,\"Personalised Need\",\"Intensive Need\"))))","v":""}]
[null,{"$f":"IFERROR(VLOOKUP(Table1[[#This Row],[Destination School No]],SchoolList[],4,FALSE),\"\")","v":""},null,null,null,null,null,null,null,null,null,null,null,null,null,null,null,null,null,null,null,null,null,null,null,null,null,null,null,null,null,null,"","","",{"$f":"IF(ISBLANK(Table1[[#This Row],[Child First Name]]),\"\",SUM(Table1[[#This Row],[Total Red]:[Total Yellow]]))","v":""},{"$f":"IF(ISBLANK(Table1[[#This Row],[Child First Name]]),\"\",IF(Table1[[#This Row],[Score]]<1,\"Universal Need\",IF(Table1[[#This Row],[Score]]<4,\"Targeted Need\",IF(Table1[[#This Row],[Score]]<12,\"Personalised Need\",\"Intensive Need\"))))","v":""}]
[null,{"$f":"IFERROR(VLOOKUP(Table1[[#This Row],[Destination School No]],SchoolList[],4,FALSE),\"\")","v":""},null,null,null,null,null,null,null,null,null,null,null,null,null,null,null,null,null,null,null,null,null,null,null,null,null,null,null,null,null,null,"","","",{"$f":"IF(ISBLANK(Table1[[#This Row],[Child First Name]]),\"\",SUM(Table1[[#This Row],[Total Red]:[Total Yellow]]))","v":""},{"$f":"IF(ISBLANK(Table1[[#This Row],[Child First Name]]),\"\",IF(Table1[[#This Row],[Score]]<1,\"Universal Need\",IF(Table1[[#This Row],[Score]]<4,\"Targeted Need\",IF(Table1[[#This Row],[Score]]<12,\"Personalised Need\",\"Intensive Need\"))))","v":""}]
[null,{"$f":"IFERROR(VLOOKUP(Table1[[#This Row],[Destination School No]],SchoolList[],4,FALSE),\"\")","v":""},null,null,null,null,null,null,null,null,null,null,null,null,null,null,null,null,null,null,null,null,null,null,null,null,null,null,null,null,null,null,"","","",{"$f":"IF(ISBLANK(Table1[[#This Row],[Child First Name]]),\"\",SUM(Table1[[#This Row],[Total Red]:[Total Yellow]]))","v":""},{"$f":"IF(ISBLANK(Table1[[#This Row],[Child First Name]]),\"\",IF(Table1[[#This Row],[Score]]<1,\"Universal Need\",IF(Table1[[#This Row],[Score]]<4,\"Targeted Need\",IF(Table1[[#This Row],[Score]]<12,\"Personalised Need\",\"Intensive Need\"))))","v":""}]
[null,{"$f":"IFERROR(VLOOKUP(Table1[[#This Row],[Destination School No]],SchoolList[],4,FALSE),\"\")","v":""},null,null,null,null,null,null,null,null,null,null,null,null,null,null,null,null,null,null,null,null,null,null,null,null,null,null,null,null,null,null,"","","",{"$f":"IF(ISBLANK(Table1[[#This Row],[Child First Name]]),\"\",SUM(Table1[[#This Row],[Total Red]:[Total Yellow]]))","v":""},{"$f":"IF(ISBLANK(Table1[[#This Row],[Child First Name]]),\"\",IF(Table1[[#This Row],[Score]]<1,\"Universal Need\",IF(Table1[[#This Row],[Score]]<4,\"Targeted Need\",IF(Table1[[#This Row],[Score]]<12,\"Personalised Need\",\"Intensive Need\"))))","v":""}]
[null,{"$f":"IFERROR(VLOOKUP(Table1[[#This Row],[Destination School No]],SchoolList[],4,FALSE),\"\")","v":""},null,null,null,null,null,null,null,null,null,null,null,null,null,null,null,null,null,null,null,null,null,null,null,null,null,null,null,null,null,null,"","","",{"$f":"IF(ISBLANK(Table1[[#This Row],[Child First Name]]),\"\",SUM(Table1[[#This Row],[Total Red]:[Total Yellow]]))","v":""},{"$f":"IF(ISBLANK(Table1[[#This Row],[Child First Name]]),\"\",IF(Table1[[#This Row],[Score]]<1,\"Universal Need\",IF(Table1[[#This Row],[Score]]<4,\"Targeted Need\",IF(Table1[[#This Row],[Score]]<12,\"Personalised Need\",\"Intensive Need\"))))","v":""}]
[null,{"$f":"IFERROR(VLOOKUP(Table1[[#This Row],[Destination School No]],SchoolList[],4,FALSE),\"\")","v":""},null,null,null,null,null,null,null,null,null,null,null,null,null,null,null,null,null,null,null,null,null,null,null,null,null,null,null,null,null,null,"","","",{"$f":"IF(ISBLANK(Table1[[#This Row],[Child First Name]]),\"\",SUM(Table1[[#This Row],[Total Red]:[Total Yellow]]))","v":""},{"$f":"IF(ISBLANK(Table1[[#This Row],[Child First Name]]),\"\",IF(Table1[[#This Row],[Score]]<1,\"Universal Need\",IF(Table1[[#This Row],[Score]]<4,\"Targeted Need\",IF(Table1[[#This Row],[Score]]<12,\"Personalised Need\",\"Intensive Need\"))))","v":""}]
[null,{"$f":"IFERROR(VLOOKUP(Table1[[#This Row],[Destination School No]],SchoolList[],4,FALSE),\"\")","v":""},null,null,null,null,null,null,null,null,null,null,null,null,null,null,null,null,null,null,null,null,null,null,null,null,null,null,null,null,null,null,"","","",{"$f":"IF(ISBLANK(Table1[[#This Row],[Child First Name]]),\"\",SUM(Table1[[#This Row],[Total Red]:[Total Yellow]]))","v":""},{"$f":"IF(ISBLANK(Table1[[#This Row],[Child First Name]]),\"\",IF(Table1[[#This Row],[Score]]<1,\"Universal Need\",IF(Table1[[#This Row],[Score]]<4,\"Targeted Need\",IF(Table1[[#This Row],[Score]]<12,\"Personalised Need\",\"Intensive Need\"))))","v":""}]
[null,{"$f":"IFERROR(VLOOKUP(Table1[[#This Row],[Destination School No]],SchoolList[],4,FALSE),\"\")","v":""},null,null,null,null,null,null,null,null,null,null,null,null,null,null,null,null,null,null,null,null,null,null,null,null,null,null,null,null,null,null,"","","",{"$f":"IF(ISBLANK(Table1[[#This Row],[Child First Name]]),\"\",SUM(Table1[[#This Row],[Total Red]:[Total Yellow]]))","v":""},{"$f":"IF(ISBLANK(Table1[[#This Row],[Child First Name]]),\"\",IF(Table1[[#This Row],[Score]]<1,\"Universal Need\",IF(Table1[[#This Row],[Score]]<4,\"Targeted Need\",IF(Table1[[#This Row],[Score]]<12,\"Personalised Need\",\"Intensive Need\"))))","v":""}]
[null,{"$f":"IFERROR(VLOOKUP(Table1[[#This Row],[Destination School No]],SchoolList[],4,FALSE),\"\")","v":""},null,null,null,null,null,null,null,null,null,null,null,null,null,null,null,null,null,null,null,null,null,null,null,null,null,null,null,null,null,null,"","","",{"$f":"IF(ISBLANK(Table1[[#This Row],[Child First Name]]),\"\",SUM(Table1[[#This Row],[Total Red]:[Total Yellow]]))","v":""},{"$f":"IF(ISBLANK(Table1[[#This Row],[Child First Name]]),\"\",IF(Table1[[#This Row],[Score]]<1,\"Universal Need\",IF(Table1[[#This Row],[Score]]<4,\"Targeted Need\",IF(Table1[[#This Row],[Score]]<12,\"Personalised Need\",\"Intensive Need\"))))","v":""}]
[null,{"$f":"IFERROR(VLOOKUP(Table1[[#This Row],[Destination School No]],SchoolList[],4,FALSE),\"\")","v":""},null,null,null,null,null,null,null,null,null,null,null,null,null,null,null,null,null,null,null,null,null,null,null,null,null,null,null,null,null,null,"","","",{"$f":"IF(ISBLANK(Table1[[#This Row],[Child First Name]]),\"\",SUM(Table1[[#This Row],[Total Red]:[Total Yellow]]))","v":""},{"$f":"IF(ISBLANK(Table1[[#This Row],[Child First Name]]),\"\",IF(Table1[[#This Row],[Score]]<1,\"Universal Need\",IF(Table1[[#This Row],[Score]]<4,\"Targeted Need\",IF(Table1[[#This Row],[Score]]<12,\"Personalised Need\",\"Intensive Need\"))))","v":""}]
[null,{"$f":"IFERROR(VLOOKUP(Table1[[#This Row],[Destination School No]],SchoolList[],4,FALSE),\"\")","v":""},null,null,null,null,null,null,null,null,null,null,null,null,null,null,null,null,null,null,null,null,null,null,null,null,null,null,null,null,null,null,"","","",{"$f":"IF(ISBLANK(Table1[[#This Row],[Child First Name]]),\"\",SUM(Table1[[#This Row],[Total Red]:[Total Yellow]]))","v":""},{"$f":"IF(ISBLANK(Table1[[#This Row],[Child First Name]]),\"\",IF(Table1[[#This Row],[Score]]<1,\"Universal Need\",IF(Table1[[#This Row],[Score]]<4,\"Targeted Need\",IF(Table1[[#This Row],[Score]]<12,\"Personalised Need\",\"Intensive Need\"))))","v":""}]
[null,{"$f":"IFERROR(VLOOKUP(Table1[[#This Row],[Destination School No]],SchoolList[],4,FALSE),\"\")","v":""},null,null,null,null,null,null,null,null,null,null,null,null,null,null,null,null,null,null,null,null,null,null,null,null,null,null,null,null,null,null,"","","",{"$f":"IF(ISBLANK(Table1[[#This Row],[Child First Name]]),\"\",SUM(Table1[[#This Row],[Total Red]:[Total Yellow]]))","v":""},{"$f":"IF(ISBLANK(Table1[[#This Row],[Child First Name]]),\"\",IF(Table1[[#This Row],[Score]]<1,\"Universal Need\",IF(Table1[[#This Row],[Score]]<4,\"Targeted Need\",IF(Table1[[#This Row],[Score]]<12,\"Personalised Need\",\"Intensive Need\"))))","v":""}]
[null,{"$f":"IFERROR(VLOOKUP(Table1[[#This Row],[Destination School No]],SchoolList[],4,FALSE),\"\")","v":""},null,null,null,null,null,null,null,null,null,null,null,null,null,null,null,null,null,null,null,null,null,null,null,null,null,null,null,null,null,null,"","","",{"$f":"IF(ISBLANK(Table1[[#This Row],[Child First Name]]),\"\",SUM(Table1[[#This Row],[Total Red]:[Total Yellow]]))","v":""},{"$f":"IF(ISBLANK(Table1[[#This Row],[Child First Name]]),\"\",IF(Table1[[#This Row],[Score]]<1,\"Universal Need\",IF(Table1[[#This Row],[Score]]<4,\"Targeted Need\",IF(Table1[[#This Row],[Score]]<12,\"Personalised Need\",\"Intensive Need\"))))","v":""}]
[null,{"$f":"IFERROR(VLOOKUP(Table1[[#This Row],[Destination School No]],SchoolList[],4,FALSE),\"\")","v":""},null,null,null,null,null,null,null,null,null,null,null,null,null,null,null,null,null,null,null,null,null,null,null,null,null,null,null,null,null,null,"","","",{"$f":"IF(ISBLANK(Table1[[#This Row],[Child First Name]]),\"\",SUM(Table1[[#This Row],[Total Red]:[Total Yellow]]))","v":""},{"$f":"IF(ISBLANK(Table1[[#This Row],[Child First Name]]),\"\",IF(Table1[[#This Row],[Score]]<1,\"Universal Need\",IF(Table1[[#This Row],[Score]]<4,\"Targeted Need\",IF(Table1[[#This Row],[Score]]<12,\"Personalised Need\",\"Intensive Need\"))))","v":""}]
[null,{"$f":"IFERROR(VLOOKUP(Table1[[#This Row],[Destination School No]],SchoolList[],4,FALSE),\"\")","v":""},null,null,null,null,null,null,null,null,null,null,null,null,null,null,null,null,null,null,null,null,null,null,null,null,null,null,null,null,null,null,"","","",{"$f":"IF(ISBLANK(Table1[[#This Row],[Child First Name]]),\"\",SUM(Table1[[#This Row],[Total Red]:[Total Yellow]]))","v":""},{"$f":"IF(ISBLANK(Table1[[#This Row],[Child First Name]]),\"\",IF(Table1[[#This Row],[Score]]<1,\"Universal Need\",IF(Table1[[#This Row],[Score]]<4,\"Targeted Need\",IF(Table1[[#This Row],[Score]]<12,\"Personalised Need\",\"Intensive Need\"))))","v":""}]
[null,{"$f":"IFERROR(VLOOKUP(Table1[[#This Row],[Destination School No]],SchoolList[],4,FALSE),\"\")","v":""},null,null,null,null,null,null,null,null,null,null,null,null,null,null,null,null,null,null,null,null,null,null,null,null,null,null,null,null,null,null,"","","",{"$f":"IF(ISBLANK(Table1[[#This Row],[Child First Name]]),\"\",SUM(Table1[[#This Row],[Total Red]:[Total Yellow]]))","v":""},{"$f":"IF(ISBLANK(Table1[[#This Row],[Child First Name]]),\"\",IF(Table1[[#This Row],[Score]]<1,\"Universal Need\",IF(Table1[[#This Row],[Score]]<4,\"Targeted Need\",IF(Table1[[#This Row],[Score]]<12,\"Personalised Need\",\"Intensive Need\"))))","v":""}]
[null,{"$f":"IFERROR(VLOOKUP(Table1[[#This Row],[Destination School No]],SchoolList[],4,FALSE),\"\")","v":""},null,null,null,null,null,null,null,null,null,null,null,null,null,null,null,null,null,null,null,null,null,null,null,null,null,null,null,null,null,null,"","","",{"$f":"IF(ISBLANK(Table1[[#This Row],[Child First Name]]),\"\",SUM(Table1[[#This Row],[Total Red]:[Total Yellow]]))","v":""},{"$f":"IF(ISBLANK(Table1[[#This Row],[Child First Name]]),\"\",IF(Table1[[#This Row],[Score]]<1,\"Universal Need\",IF(Table1[[#This Row],[Score]]<4,\"Targeted Need\",IF(Table1[[#This Row],[Score]]<12,\"Personalised Need\",\"Intensive Need\"))))","v":""}]
[null,{"$f":"IFERROR(VLOOKUP(Table1[[#This Row],[Destination School No]],SchoolList[],4,FALSE),\"\")","v":""},null,null,null,null,null,null,null,null,null,null,null,null,null,null,null,null,null,null,null,null,null,null,null,null,null,null,null,null,null,null,"","","",{"$f":"IF(ISBLANK(Table1[[#This Row],[Child First Name]]),\"\",SUM(Table1[[#This Row],[Total Red]:[Total Yellow]]))","v":""},{"$f":"IF(ISBLANK(Table1[[#This Row],[Child First Name]]),\"\",IF(Table1[[#This Row],[Score]]<1,\"Universal Need\",IF(Table1[[#This Row],[Score]]<4,\"Targeted Need\",IF(Table1[[#This Row],[Score]]<12,\"Personalised Need\",\"Intensive Need\"))))","v":""}]
[null,{"$f":"IFERROR(VLOOKUP(Table1[[#This Row],[Destination School No]],SchoolList[],4,FALSE),\"\")","v":""},null,null,null,null,null,null,null,null,null,null,null,null,null,null,null,null,null,null,null,null,null,null,null,null,null,null,null,null,null,null,"","","",{"$f":"IF(ISBLANK(Table1[[#This Row],[Child First Name]]),\"\",SUM(Table1[[#This Row],[Total Red]:[Total Yellow]]))","v":""},{"$f":"IF(ISBLANK(Table1[[#This Row],[Child First Name]]),\"\",IF(Table1[[#This Row],[Score]]<1,\"Universal Need\",IF(Table1[[#This Row],[Score]]<4,\"Targeted Need\",IF(Table1[[#This Row],[Score]]<12,\"Personalised Need\",\"Intensive Need\"))))","v":""}]
[null,{"$f":"IFERROR(VLOOKUP(Table1[[#This Row],[Destination School No]],SchoolList[],4,FALSE),\"\")","v":""},null,null,null,null,null,null,null,null,null,null,null,null,null,null,null,null,null,null,null,null,null,null,null,null,null,null,null,null,null,null,"","","",{"$f":"IF(ISBLANK(Table1[[#This Row],[Child First Name]]),\"\",SUM(Table1[[#This Row],[Total Red]:[Total Yellow]]))","v":""},{"$f":"IF(ISBLANK(Table1[[#This Row],[Child First Name]]),\"\",IF(Table1[[#This Row],[Score]]<1,\"Universal Need\",IF(Table1[[#This Row],[Score]]<4,\"Targeted Need\",IF(Table1[[#This Row],[Score]]<12,\"Personalised Need\",\"Intensive Need\"))))","v":""}]
[null,{"$f":"IFERROR(VLOOKUP(Table1[[#This Row],[Destination School No]],SchoolList[],4,FALSE),\"\")","v":""},null,null,null,null,null,null,null,null,null,null,null,null,null,null,null,null,null,null,null,null,null,null,null,null,null,null,null,null,null,null,"","","",{"$f":"IF(ISBLANK(Table1[[#This Row],[Child First Name]]),\"\",SUM(Table1[[#This Row],[Total Red]:[Total Yellow]]))","v":""},{"$f":"IF(ISBLANK(Table1[[#This Row],[Child First Name]]),\"\",IF(Table1[[#This Row],[Score]]<1,\"Universal Need\",IF(Table1[[#This Row],[Score]]<4,\"Targeted Need\",IF(Table1[[#This Row],[Score]]<12,\"Personalised Need\",\"Intensive Need\"))))","v":""}]
[null,{"$f":"IFERROR(VLOOKUP(Table1[[#This Row],[Destination School No]],SchoolList[],4,FALSE),\"\")","v":""},null,null,null,null,null,null,null,null,null,null,null,null,null,null,null,null,null,null,null,null,null,null,null,null,null,null,null,null,null,null,"","","",{"$f":"IF(ISBLANK(Table1[[#This Row],[Child First Name]]),\"\",SUM(Table1[[#This Row],[Total Red]:[Total Yellow]]))","v":""},{"$f":"IF(ISBLANK(Table1[[#This Row],[Child First Name]]),\"\",IF(Table1[[#This Row],[Score]]<1,\"Universal Need\",IF(Table1[[#This Row],[Score]]<4,\"Targeted Need\",IF(Table1[[#This Row],[Score]]<12,\"Personalised Need\",\"Intensive Need\"))))","v":""}]
[null,{"$f":"IFERROR(VLOOKUP(Table1[[#This Row],[Destination School No]],SchoolList[],4,FALSE),\"\")","v":""},null,null,null,null,null,null,null,null,null,null,null,null,null,null,null,null,null,null,null,null,null,null,null,null,null,null,null,null,null,null,"","","",{"$f":"IF(ISBLANK(Table1[[#This Row],[Child First Name]]),\"\",SUM(Table1[[#This Row],[Total Red]:[Total Yellow]]))","v":""},{"$f":"IF(ISBLANK(Table1[[#This Row],[Child First Name]]),\"\",IF(Table1[[#This Row],[Score]]<1,\"Universal Need\",IF(Table1[[#This Row],[Score]]<4,\"Targeted Need\",IF(Table1[[#This Row],[Score]]<12,\"Personalised Need\",\"Intensive Need\"))))","v":""}]
[null,{"$f":"IFERROR(VLOOKUP(Table1[[#This Row],[Destination School No]],SchoolList[],4,FALSE),\"\")","v":""},null,null,null,null,null,null,null,null,null,null,null,null,null,null,null,null,null,null,null,null,null,null,null,null,null,null,null,null,null,null,"","","",{"$f":"IF(ISBLANK(Table1[[#This Row],[Child First Name]]),\"\",SUM(Table1[[#This Row],[Total Red]:[Total Yellow]]))","v":""},{"$f":"IF(ISBLANK(Table1[[#This Row],[Child First Name]]),\"\",IF(Table1[[#This Row],[Score]]<1,\"Universal Need\",IF(Table1[[#This Row],[Score]]<4,\"Targeted Need\",IF(Table1[[#This Row],[Score]]<12,\"Personalised Need\",\"Intensive Need\"))))","v":""}]
[null,{"$f":"IFERROR(VLOOKUP(Table1[[#This Row],[Destination School No]],SchoolList[],4,FALSE),\"\")","v":""},null,null,null,null,null,null,null,null,null,null,null,null,null,null,null,null,null,null,null,null,null,null,null,null,null,null,null,null,null,null,"","","",{"$f":"IF(ISBLANK(Table1[[#This Row],[Child First Name]]),\"\",SUM(Table1[[#This Row],[Total Red]:[Total Yellow]]))","v":""},{"$f":"IF(ISBLANK(Table1[[#This Row],[Child First Name]]),\"\",IF(Table1[[#This Row],[Score]]<1,\"Universal Need\",IF(Table1[[#This Row],[Score]]<4,\"Targeted Need\",IF(Table1[[#This Row],[Score]]<12,\"Personalised Need\",\"Intensive Need\"))))","v":""}]
[null,{"$f":"IFERROR(VLOOKUP(Table1[[#This Row],[Destination School No]],SchoolList[],4,FALSE),\"\")","v":""},null,null,null,null,null,null,null,null,null,null,null,null,null,null,null,null,null,null,null,null,null,null,null,null,null,null,null,null,null,null,"","",{"$f":"IF($D49<>\"\",COUNTIF($I49:$AF49,\"Targeted\"),\"\")","v":""},{"$f":"IF(ISBLANK(Table1[[#This Row],[Child First Name]]),\"\",SUM(Table1[[#This Row],[Total Red]:[Total Yellow]]))","v":""},{"$f":"IF(ISBLANK(Table1[[#This Row],[Child First Name]]),\"\",IF(Table1[[#This Row],[Score]]<1,\"Universal Need\",IF(Table1[[#This Row],[Score]]<4,\"Targeted Need\",IF(Table1[[#This Row],[Score]]<12,\"Personalised Need\",\"Intensive Need\"))))","v":""}]
[null,{"$f":"IFERROR(VLOOKUP(Table1[[#This Row],[Destination School No]],SchoolList[],4,FALSE),\"\")","v":""},null,null,null,null,null,null,null,null,null,null,null,null,null,null,null,null,null,null,null,null,null,null,null,null,null,null,null,null,null,null,"","","",{"$f":"IF(ISBLANK(Table1[[#This Row],[Child First Name]]),\"\",SUM(Table1[[#This Row],[Total Red]:[Total Yellow]]))","v":""},{"$f":"IF(ISBLANK(Table1[[#This Row],[Child First Name]]),\"\",IF(Table1[[#This Row],[Score]]<1,\"Universal Need\",IF(Table1[[#This Row],[Score]]<4,\"Targeted Need\",IF(Table1[[#This Row],[Score]]<12,\"Personalised Need\",\"Intensive Need\"))))","v":""}]
[null,{"$f":"IFERROR(VLOOKUP(Table1[[#This Row],[Destination School No]],SchoolList[],4,FALSE),\"\")","v":""},null,null,null,null,null,null,null,null,null,null,null,null,null,null,null,null,null,null,null,null,null,null,null,null,null,null,null,null,null,null,"","","",{"$f":"IF(ISBLANK(Table1[[#This Row],[Child First Name]]),\"\",SUM(Table1[[#This Row],[Total Red]:[Total Yellow]]))","v":""},{"$f":"IF(ISBLANK(Table1[[#This Row],[Child First Name]]),\"\",IF(Table1[[#This Row],[Score]]<1,\"Universal Need\",IF(Table1[[#This Row],[Score]]<4,\"Targeted Need\",IF(Table1[[#This Row],[Score]]<12,\"Personalised Need\",\"Intensive Need\"))))","v":""}]
[null,{"$f":"IFERROR(VLOOKUP(Table1[[#This Row],[Destination School No]],SchoolList[],4,FALSE),\"\")","v":""},null,null,null,null,null,null,null,null,null,null,null,null,null,null,null,null,null,null,null,null,null,null,null,null,null,null,null,null,null,null,"","","",{"$f":"IF(ISBLANK(Table1[[#This Row],[Child First Name]]),\"\",SUM(Table1[[#This Row],[Total Red]:[Total Yellow]]))","v":""},{"$f":"IF(ISBLANK(Table1[[#This Row],[Child First Name]]),\"\",IF(Table1[[#This Row],[Score]]<1,\"Universal Need\",IF(Table1[[#This Row],[Score]]<4,\"Targeted Need\",IF(Table1[[#This Row],[Score]]<12,\"Personalised Need\",\"Intensive Need\"))))","v":""}]
[null,{"$f":"IFERROR(VLOOKUP(Table1[[#This Row],[Destination School No]],SchoolList[],4,FALSE),\"\")","v":""},null,null,null,null,null,null,null,null,null,null,null,null,null,null,null,null,null,null,null,null,null,null,null,null,null,null,null,null,null,null,"","","",{"$f":"IF(ISBLANK(Table1[[#This Row],[Child First Name]]),\"\",SUM(Table1[[#This Row],[Total Red]:[Total Yellow]]))","v":""},{"$f":"IF(ISBLANK(Table1[[#This Row],[Child First Name]]),\"\",IF(Table1[[#This Row],[Score]]<1,\"Universal Need\",IF(Table1[[#This Row],[Score]]<4,\"Targeted Need\",IF(Table1[[#This Row],[Score]]<12,\"Personalised Need\",\"Intensive Need\"))))","v":""}]
[null,{"$f":"IFERROR(VLOOKUP(Table1[[#This Row],[Destination School No]],SchoolList[],4,FALSE),\"\")","v":""},null,null,null,null,null,null,null,null,null,null,null,null,null,null,null,null,null,null,null,null,null,null,null,null,null,null,null,null,null,null,"","","",{"$f":"IF(ISBLANK(Table1[[#This Row],[Child First Name]]),\"\",SUM(Table1[[#This Row],[Total Red]:[Total Yellow]]))","v":""},{"$f":"IF(ISBLANK(Table1[[#This Row],[Child First Name]]),\"\",IF(Table1[[#This Row],[Score]]<1,\"Universal Need\",IF(Table1[[#This Row],[Score]]<4,\"Targeted Need\",IF(Table1[[#This Row],[Score]]<12,\"Personalised Need\",\"Intensive Need\"))))","v":""}]
[null,{"$f":"IFERROR(VLOOKUP(Table1[[#This Row],[Destination School No]],SchoolList[],4,FALSE),\"\")","v":""},null,null,null,null,null,null,null,null,null,null,null,null,null,null,null,null,null,null,null,null,null,null,null,null,null,null,null,null,null,null,"","","",{"$f":"IF(ISBLANK(Table1[[#This Row],[Child First Name]]),\"\",SUM(Table1[[#This Row],[Total Red]:[Total Yellow]]))","v":""},{"$f":"IF(ISBLANK(Table1[[#This Row],[Child First Name]]),\"\",IF(Table1[[#This Row],[Score]]<1,\"Universal Need\",IF(Table1[[#This Row],[Score]]<4,\"Targeted Need\",IF(Table1[[#This Row],[Score]]<12,\"Personalised Need\",\"Intensive Need\"))))","v":""}]
[null,{"$f":"IFERROR(VLOOKUP(Table1[[#This Row],[Destination School No]],SchoolList[],4,FALSE),\"\")","v":""},null,null,null,null,null,null,null,null,null,null,null,null,null,null,null,null,null,null,null,null,null,null,null,null,null,null,null,null,null,null,"","","",{"$f":"IF(ISBLANK(Table1[[#This Row],[Child First Name]]),\"\",SUM(Table1[[#This Row],[Total Red]:[Total Yellow]]))","v":""},{"$f":"IF(ISBLANK(Table1[[#This Row],[Child First Name]]),\"\",IF(Table1[[#This Row],[Score]]<1,\"Universal Need\",IF(Table1[[#This Row],[Score]]<4,\"Targeted Need\",IF(Table1[[#This Row],[Score]]<12,\"Personalised Need\",\"Intensive Need\"))))","v":""}]
[null,{"$f":"IFERROR(VLOOKUP(Table1[[#This Row],[Destination School No]],SchoolList[],4,FALSE),\"\")","v":""},null,null,null,null,null,null,null,null,null,null,null,null,null,null,null,null,null,null,null,null,null,null,null,null,null,null,null,null,null,null,"","","",{"$f":"IF(ISBLANK(Table1[[#This Row],[Child First Name]]),\"\",SUM(Table1[[#This Row],[Total Red]:[Total Yellow]]))","v":""},{"$f":"IF(ISBLANK(Table1[[#This Row],[Child First Name]]),\"\",IF(Table1[[#This Row],[Score]]<1,\"Universal Need\",IF(Table1[[#This Row],[Score]]<4,\"Targeted Need\",IF(Table1[[#This Row],[Score]]<12,\"Personalised Need\",\"Intensive Need\"))))","v":""}]
[null,{"$f":"IFERROR(VLOOKUP(Table1[[#This Row],[Destination School No]],SchoolList[],4,FALSE),\"\")","v":""},null,null,null,null,null,null,null,null,null,null,null,null,null,null,null,null,null,null,null,null,null,null,null,null,null,null,null,null,null,null,"","","",{"$f":"IF(ISBLANK(Table1[[#This Row],[Child First Name]]),\"\",SUM(Table1[[#This Row],[Total Red]:[Total Yellow]]))","v":""},{"$f":"IF(ISBLANK(Table1[[#This Row],[Child First Name]]),\"\",IF(Table1[[#This Row],[Score]]<1,\"Universal Need\",IF(Table1[[#This Row],[Score]]<4,\"Targeted Need\",IF(Table1[[#This Row],[Score]]<12,\"Personalised Need\",\"Intensive Need\"))))","v":""}]
[null,{"$f":"IFERROR(VLOOKUP(Table1[[#This Row],[Destination School No]],SchoolList[],4,FALSE),\"\")","v":""},null,null,null,null,null,null,null,null,null,null,null,null,null,null,null,null,null,null,null,null,null,null,null,null,null,null,null,null,null,null,"","","",{"$f":"IF(ISBLANK(Table1[[#This Row],[Child First Name]]),\"\",SUM(Table1[[#This Row],[Total Red]:[Total Yellow]]))","v":""},{"$f":"IF(ISBLANK(Table1[[#This Row],[Child First Name]]),\"\",IF(Table1[[#This Row],[Score]]<1,\"Universal Need\",IF(Table1[[#This Row],[Score]]<4,\"Targeted Need\",IF(Table1[[#This Row],[Score]]<12,\"Personalised Need\",\"Intensive Need\"))))","v":""}]
[null,{"$f":"IFERROR(VLOOKUP(Table1[[#This Row],[Destination School No]],SchoolList[],4,FALSE),\"\")","v":""},null,null,null,null,null,null,null,null,null,null,null,null,null,null,null,null,null,null,null,null,null,null,null,null,null,null,null,null,null,null,"","","",{"$f":"IF(ISBLANK(Table1[[#This Row],[Child First Name]]),\"\",SUM(Table1[[#This Row],[Total Red]:[Total Yellow]]))","v":""},{"$f":"IF(ISBLANK(Table1[[#This Row],[Child First Name]]),\"\",IF(Table1[[#This Row],[Score]]<1,\"Universal Need\",IF(Table1[[#This Row],[Score]]<4,\"Targeted Need\",IF(Table1[[#This Row],[Score]]<12,\"Personalised Need\",\"Intensive Need\"))))","v":""}]
[null,{"$f":"IFERROR(VLOOKUP(Table1[[#This Row],[Destination School No]],SchoolList[],4,FALSE),\"\")","v":""},null,null,null,null,null,null,null,null,null,null,null,null,null,null,null,null,null,null,null,null,null,null,null,null,null,null,null,null,null,null,"","","",{"$f":"IF(ISBLANK(Table1[[#This Row],[Child First Name]]),\"\",SUM(Table1[[#This Row],[Total Red]:[Total Yellow]]))","v":""},{"$f":"IF(ISBLANK(Table1[[#This Row],[Child First Name]]),\"\",IF(Table1[[#This Row],[Score]]<1,\"Universal Need\",IF(Table1[[#This Row],[Score]]<4,\"Targeted Need\",IF(Table1[[#This Row],[Score]]<12,\"Personalised Need\",\"Intensive Need\"))))","v":""}]
[null,{"$f":"IFERROR(VLOOKUP(Table1[[#This Row],[Destination School No]],SchoolList[],4,FALSE),\"\")","v":""},null,null,null,null,null,null,null,null,null,null,null,null,null,null,null,null,null,null,null,null,null,null,null,null,null,null,null,null,null,null,"","","",{"$f":"IF(ISBLANK(Table1[[#This Row],[Child First Name]]),\"\",SUM(Table1[[#This Row],[Total Red]:[Total Yellow]]))","v":""},{"$f":"IF(ISBLANK(Table1[[#This Row],[Child First Name]]),\"\",IF(Table1[[#This Row],[Score]]<1,\"Universal Need\",IF(Table1[[#This Row],[Score]]<4,\"Targeted Need\",IF(Table1[[#This Row],[Score]]<12,\"Personalised Need\",\"Intensive Need\"))))","v":""}]
[null,{"$f":"IFERROR(VLOOKUP(Table1[[#This Row],[Destination School No]],SchoolList[],4,FALSE),\"\")","v":""},null,null,null,null,null,null,null,null,null,null,null,null,null,null,null,null,null,null,null,null,null,null,null,null,null,null,null,null,null,null,"","","",{"$f":"IF(ISBLANK(Table1[[#This Row],[Child First Name]]),\"\",SUM(Table1[[#This Row],[Total Red]:[Total Yellow]]))","v":""},{"$f":"IF(ISBLANK(Table1[[#This Row],[Child First Name]]),\"\",IF(Table1[[#This Row],[Score]]<1,\"Universal Need\",IF(Table1[[#This Row],[Score]]<4,\"Targeted Need\",IF(Table1[[#This Row],[Score]]<12,\"Personalised Need\",\"Intensive Need\"))))","v":""}]
[null,{"$f":"IFERROR(VLOOKUP(Table1[[#This Row],[Destination School No]],SchoolList[],4,FALSE),\"\")","v":""},null,null,null,null,null,null,null,null,null,null,null,null,null,null,null,null,null,null,null,null,null,null,null,null,null,null,null,null,null,null,"","","",{"$f":"IF(ISBLANK(Table1[[#This Row],[Child First Name]]),\"\",SUM(Table1[[#This Row],[Total Red]:[Total Yellow]]))","v":""},{"$f":"IF(ISBLANK(Table1[[#This Row],[Child First Name]]),\"\",IF(Table1[[#This Row],[Score]]<1,\"Universal Need\",IF(Table1[[#This Row],[Score]]<4,\"Targeted Need\",IF(Table1[[#This Row],[Score]]<12,\"Personalised Need\",\"Intensive Need\"))))","v":""}]
[null,{"$f":"IFERROR(VLOOKUP(Table1[[#This Row],[Destination School No]],SchoolList[],4,FALSE),\"\")","v":""},null,null,null,null,null,null,null,null,null,null,null,null,null,null,null,null,null,null,null,null,null,null,null,null,null,null,null,null,null,null,"","","",{"$f":"IF(ISBLANK(Table1[[#This Row],[Child First Name]]),\"\",SUM(Table1[[#This Row],[Total Red]:[Total Yellow]]))","v":""},{"$f":"IF(ISBLANK(Table1[[#This Row],[Child First Name]]),\"\",IF(Table1[[#This Row],[Score]]<1,\"Universal Need\",IF(Table1[[#This Row],[Score]]<4,\"Targeted Need\",IF(Table1[[#This Row],[Score]]<12,\"Personalised Need\",\"Intensive Need\"))))","v":""}]
[null,{"$f":"IFERROR(VLOOKUP(Table1[[#This Row],[Destination School No]],SchoolList[],4,FALSE),\"\")","v":""},null,null,null,null,null,null,null,null,null,null,null,null,null,null,null,null,null,null,null,null,null,null,null,null,null,null,null,null,null,null,"","","",{"$f":"IF(ISBLANK(Table1[[#This Row],[Child First Name]]),\"\",SUM(Table1[[#This Row],[Total Red]:[Total Yellow]]))","v":""},{"$f":"IF(ISBLANK(Table1[[#This Row],[Child First Name]]),\"\",IF(Table1[[#This Row],[Score]]<1,\"Universal Need\",IF(Table1[[#This Row],[Score]]<4,\"Targeted Need\",IF(Table1[[#This Row],[Score]]<12,\"Personalised Need\",\"Intensive Need\"))))","v":""}]
[null,{"$f":"IFERROR(VLOOKUP(Table1[[#This Row],[Destination School No]],SchoolList[],4,FALSE),\"\")","v":""},null,null,null,null,null,null,null,null,null,null,null,null,null,null,null,null,null,null,null,null,null,null,null,null,null,null,null,null,null,null,"","","",{"$f":"IF(ISBLANK(Table1[[#This Row],[Child First Name]]),\"\",SUM(Table1[[#This Row],[Total Red]:[Total Yellow]]))","v":""},{"$f":"IF(ISBLANK(Table1[[#This Row],[Child First Name]]),\"\",IF(Table1[[#This Row],[Score]]<1,\"Universal Need\",IF(Table1[[#This Row],[Score]]<4,\"Targeted Need\",IF(Table1[[#This Row],[Score]]<12,\"Personalised Need\",\"Intensive Need\"))))","v":""}]
[null,{"$f":"IFERROR(VLOOKUP(Table1[[#This Row],[Destination School No]],SchoolList[],4,FALSE),\"\")","v":""},null,null,null,null,null,null,null,null,null,null,null,null,null,null,null,null,null,null,null,null,null,null,null,null,null,null,null,null,null,null,"","","",{"$f":"IF(ISBLANK(Table1[[#This Row],[Child First Name]]),\"\",SUM(Table1[[#This Row],[Total Red]:[Total Yellow]]))","v":""},{"$f":"IF(ISBLANK(Table1[[#This Row],[Child First Name]]),\"\",IF(Table1[[#This Row],[Score]]<1,\"Universal Need\",IF(Table1[[#This Row],[Score]]<4,\"Targeted Need\",IF(Table1[[#This Row],[Score]]<12,\"Personalised Need\",\"Intensive Need\"))))","v":""}]
[null,{"$f":"IFERROR(VLOOKUP(Table1[[#This Row],[Destination School No]],SchoolList[],4,FALSE),\"\")","v":""},null,null,null,null,null,null,null,null,null,null,null,null,null,null,null,null,null,null,null,null,null,null,null,null,null,null,null,null,null,null,"","","",{"$f":"IF(ISBLANK(Table1[[#This Row],[Child First Name]]),\"\",SUM(Table1[[#This Row],[Total Red]:[Total Yellow]]))","v":""},{"$f":"IF(ISBLANK(Table1[[#This Row],[Child First Name]]),\"\",IF(Table1[[#This Row],[Score]]<1,\"Universal Need\",IF(Table1[[#This Row],[Score]]<4,\"Targeted Need\",IF(Table1[[#This Row],[Score]]<12,\"Personalised Need\",\"Intensive Need\"))))","v":""}]
[null,{"$f":"IFERROR(VLOOKUP(Table1[[#This Row],[Destination School No]],SchoolList[],4,FALSE),\"\")","v":""},null,null,null,null,null,null,null,null,null,null,null,null,null,null,null,null,null,null,null,null,null,null,null,null,null,null,null,null,null,null,"","","",{"$f":"IF(ISBLANK(Table1[[#This Row],[Child First Name]]),\"\",SUM(Table1[[#This Row],[Total Red]:[Total Yellow]]))","v":""},{"$f":"IF(ISBLANK(Table1[[#This Row],[Child First Name]]),\"\",IF(Table1[[#This Row],[Score]]<1,\"Universal Need\",IF(Table1[[#This Row],[Score]]<4,\"Targeted Need\",IF(Table1[[#This Row],[Score]]<12,\"Personalised Need\",\"Intensive Need\"))))","v":""}]
[null,{"$f":"IFERROR(VLOOKUP(Table1[[#This Row],[Destination School No]],SchoolList[],4,FALSE),\"\")","v":""},null,null,null,null,null,null,null,null,null,null,null,null,null,null,null,null,null,null,null,null,null,null,null,null,null,null,null,null,null,null,"","","",{"$f":"IF(ISBLANK(Table1[[#This Row],[Child First Name]]),\"\",SUM(Table1[[#This Row],[Total Red]:[Total Yellow]]))","v":""},{"$f":"IF(ISBLANK(Table1[[#This Row],[Child First Name]]),\"\",IF(Table1[[#This Row],[Score]]<1,\"Universal Need\",IF(Table1[[#This Row],[Score]]<4,\"Targeted Need\",IF(Table1[[#This Row],[Score]]<12,\"Personalised Need\",\"Intensive Need\"))))","v":""}]
[null,{"$f":"IFERROR(VLOOKUP(Table1[[#This Row],[Destination School No]],SchoolList[],4,FALSE),\"\")","v":""},null,null,null,null,null,null,null,null,null,null,null,null,null,null,null,null,null,null,null,null,null,null,null,null,null,null,null,null,null,null,"","","",{"$f":"IF(ISBLANK(Table1[[#This Row],[Child First Name]]),\"\",SUM(Table1[[#This Row],[Total Red]:[Total Yellow]]))","v":""},{"$f":"IF(ISBLANK(Table1[[#This Row],[Child First Name]]),\"\",IF(Table1[[#This Row],[Score]]<1,\"Universal Need\",IF(Table1[[#This Row],[Score]]<4,\"Targeted Need\",IF(Table1[[#This Row],[Score]]<12,\"Personalised Need\",\"Intensive Need\"))))","v":""}]
[null,{"$f":"IFERROR(VLOOKUP(Table1[[#This Row],[Destination School No]],SchoolList[],4,FALSE),\"\")","v":""},null,null,null,null,null,null,null,null,null,null,null,null,null,null,null,null,null,null,null,null,null,null,null,null,null,null,null,null,null,null,"","","",{"$f":"IF(ISBLANK(Table1[[#This Row],[Child First Name]]),\"\",SUM(Table1[[#This Row],[Total Red]:[Total Yellow]]))","v":""},{"$f":"IF(ISBLANK(Table1[[#This Row],[Child First Name]]),\"\",IF(Table1[[#This Row],[Score]]<1,\"Universal Need\",IF(Table1[[#This Row],[Score]]<4,\"Targeted Need\",IF(Table1[[#This Row],[Score]]<12,\"Personalised Need\",\"Intensive Need\"))))","v":""}]
[null,{"$f":"IFERROR(VLOOKUP(Table1[[#This Row],[Destination School No]],SchoolList[],4,FALSE),\"\")","v":""},null,null,null,null,null,null,null,null,null,null,null,null,null,null,null,null,null,null,null,null,null,null,null,null,null,null,null,null,null,null,"","","",{"$f":"IF(ISBLANK(Table1[[#This Row],[Child First Name]]),\"\",SUM(Table1[[#This Row],[Total Red]:[Total Yellow]]))","v":""},{"$f":"IF(ISBLANK(Table1[[#This Row],[Child First Name]]),\"\",IF(Table1[[#This Row],[Score]]<1,\"Universal Need\",IF(Table1[[#This Row],[Score]]<4,\"Targeted Need\",IF(Table1[[#This Row],[Score]]<12,\"Personalised Need\",\"Intensive Need\"))))","v":""}]
[null,{"$f":"IFERROR(VLOOKUP(Table1[[#This Row],[Destination School No]],SchoolList[],4,FALSE),\"\")","v":""},null,null,null,null,null,null,null,null,null,null,null,null,null,null,null,null,null,null,null,null,null,null,null,null,null,null,null,null,null,null,"","","",{"$f":"IF(ISBLANK(Table1[[#This Row],[Child First Name]]),\"\",SUM(Table1[[#This Row],[Total Red]:[Total Yellow]]))","v":""},{"$f":"IF(ISBLANK(Table1[[#This Row],[Child First Name]]),\"\",IF(Table1[[#This Row],[Score]]<1,\"Universal Need\",IF(Table1[[#This Row],[Score]]<4,\"Targeted Need\",IF(Table1[[#This Row],[Score]]<12,\"Personalised Need\",\"Intensive Need\"))))","v":""}]
[null,{"$f":"IFERROR(VLOOKUP(Table1[[#This Row],[Destination School No]],SchoolList[],4,FALSE),\"\")","v":""},null,null,null,null,null,null,null,null,null,null,null,null,null,null,null,null,null,null,null,null,null,null,null,null,null,null,null,null,null,null,{"$f":"IF($D76<>\"\",COUNTIF($I76:$AF76,\"Intensive\")*12,\"\")","v":""},{"$f":"IF($D76<>\"\",COUNTIF($I76:$AF76,\"Personalised\")*4,\"\")","v":""},"",{"$f":"IF(ISBLANK(Table1[[#This Row],[Child First Name]]),\"\",SUM(Table1[[#This Row],[Total Red]:[Total Yellow]]))","v":""},{"$f":"IF(ISBLANK(Table1[[#This Row],[Child First Name]]),\"\",IF(Table1[[#This Row],[Score]]<1,\"Universal Need\",IF(Table1[[#This Row],[Score]]<4,\"Targeted Need\",IF(Table1[[#This Row],[Score]]<12,\"Personalised Need\",\"Intensive Need\"))))","v":""}]
[null,{"$f":"IFERROR(VLOOKUP(Table1[[#This Row],[Destination School No]],SchoolList[],4,FALSE),\"\")","v":""},null,null,null,null,null,null,null,null,null,null,null,null,null,null,null,null,null,null,null,null,null,null,null,null,null,null,null,null,null,null,"","","",{"$f":"IF(ISBLANK(Table1[[#This Row],[Child First Name]]),\"\",SUM(Table1[[#This Row],[Total Red]:[Total Yellow]]))","v":""},{"$f":"IF(ISBLANK(Table1[[#This Row],[Child First Name]]),\"\",IF(Table1[[#This Row],[Score]]<1,\"Universal Need\",IF(Table1[[#This Row],[Score]]<4,\"Targeted Need\",IF(Table1[[#This Row],[Score]]<12,\"Personalised Need\",\"Intensive Need\"))))","v":""}]
[null,{"$f":"IFERROR(VLOOKUP(Table1[[#This Row],[Destination School No]],SchoolList[],4,FALSE),\"\")","v":""},null,null,null,null,null,null,null,null,null,null,null,null,null,null,null,null,null,null,null,null,null,null,null,null,null,null,null,null,null,null,"","","",{"$f":"IF(ISBLANK(Table1[[#This Row],[Child First Name]]),\"\",SUM(Table1[[#This Row],[Total Red]:[Total Yellow]]))","v":""},{"$f":"IF(ISBLANK(Table1[[#This Row],[Child First Name]]),\"\",IF(Table1[[#This Row],[Score]]<1,\"Universal Need\",IF(Table1[[#This Row],[Score]]<4,\"Targeted Need\",IF(Table1[[#This Row],[Score]]<12,\"Personalised Need\",\"Intensive Need\"))))","v":""}]
[null,{"$f":"IFERROR(VLOOKUP(Table1[[#This Row],[Destination School No]],SchoolList[],4,FALSE),\"\")","v":""},null,null,null,null,null,null,null,null,null,null,null,null,null,null,null,null,null,null,null,null,null,null,null,null,null,null,null,null,null,null,"","","",{"$f":"IF(ISBLANK(Table1[[#This Row],[Child First Name]]),\"\",SUM(Table1[[#This Row],[Total Red]:[Total Yellow]]))","v":""},{"$f":"IF(ISBLANK(Table1[[#This Row],[Child First Name]]),\"\",IF(Table1[[#This Row],[Score]]<1,\"Universal Need\",IF(Table1[[#This Row],[Score]]<4,\"Targeted Need\",IF(Table1[[#This Row],[Score]]<12,\"Personalised Need\",\"Intensive Need\"))))","v":""}]
[null,{"$f":"IFERROR(VLOOKUP(Table1[[#This Row],[Destination School No]],SchoolList[],4,FALSE),\"\")","v":""},null,null,null,null,null,null,null,null,null,null,null,null,null,null,null,null,null,null,null,null,null,null,null,null,null,null,null,null,null,null,"","","",{"$f":"IF(ISBLANK(Table1[[#This Row],[Child First Name]]),\"\",SUM(Table1[[#This Row],[Total Red]:[Total Yellow]]))","v":""},{"$f":"IF(ISBLANK(Table1[[#This Row],[Child First Name]]),\"\",IF(Table1[[#This Row],[Score]]<1,\"Universal Need\",IF(Table1[[#This Row],[Score]]<4,\"Targeted Need\",IF(Table1[[#This Row],[Score]]<12,\"Personalised Need\",\"Intensive Need\"))))","v":""}]
[null,{"$f":"IFERROR(VLOOKUP(Table1[[#This Row],[Destination School No]],SchoolList[],4,FALSE),\"\")","v":""},null,null,null,null,null,null,null,null,null,null,null,null,null,null,null,null,null,null,null,null,null,null,null,null,null,null,null,null,null,null,"","",{"$f":"IF($D81<>\"\",COUNTIF($I81:$AF81,\"Targeted\"),\"\")","v":""},{"$f":"IF(ISBLANK(Table1[[#This Row],[Child First Name]]),\"\",SUM(Table1[[#This Row],[Total Red]:[Total Yellow]]))","v":""},{"$f":"IF(ISBLANK(Table1[[#This Row],[Child First Name]]),\"\",IF(Table1[[#This Row],[Score]]<1,\"Universal Need\",IF(Table1[[#This Row],[Score]]<4,\"Targeted Need\",IF(Table1[[#This Row],[Score]]<12,\"Personalised Need\",\"Intensive Need\"))))","v":""}]
[null,{"$f":"IFERROR(VLOOKUP(Table1[[#This Row],[Destination School No]],SchoolList[],4,FALSE),\"\")","v":""},null,null,null,null,null,null,null,null,null,null,null,null,null,null,null,null,null,null,null,null,null,null,null,null,null,null,null,null,null,null,"","","",{"$f":"IF(ISBLANK(Table1[[#This Row],[Child First Name]]),\"\",SUM(Table1[[#This Row],[Total Red]:[Total Yellow]]))","v":""},{"$f":"IF(ISBLANK(Table1[[#This Row],[Child First Name]]),\"\",IF(Table1[[#This Row],[Score]]<1,\"Universal Need\",IF(Table1[[#This Row],[Score]]<4,\"Targeted Need\",IF(Table1[[#This Row],[Score]]<12,\"Personalised Need\",\"Intensive Need\"))))","v":""}]
[null,{"$f":"IFERROR(VLOOKUP(Table1[[#This Row],[Destination School No]],SchoolList[],4,FALSE),\"\")","v":""},null,null,null,null,null,null,null,null,null,null,null,null,null,null,null,null,null,null,null,null,null,null,null,null,null,null,null,null,null,null,"","","",{"$f":"IF(ISBLANK(Table1[[#This Row],[Child First Name]]),\"\",SUM(Table1[[#This Row],[Total Red]:[Total Yellow]]))","v":""},{"$f":"IF(ISBLANK(Table1[[#This Row],[Child First Name]]),\"\",IF(Table1[[#This Row],[Score]]<1,\"Universal Need\",IF(Table1[[#This Row],[Score]]<4,\"Targeted Need\",IF(Table1[[#This Row],[Score]]<12,\"Personalised Need\",\"Intensive Need\"))))","v":""}]
[null,{"$f":"IFERROR(VLOOKUP(Table1[[#This Row],[Destination School No]],SchoolList[],4,FALSE),\"\")","v":""},null,null,null,null,null,null,null,null,null,null,null,null,null,null,null,null,null,null,null,null,null,null,null,null,null,null,null,null,null,null,"","","",{"$f":"IF(ISBLANK(Table1[[#This Row],[Child First Name]]),\"\",SUM(Table1[[#This Row],[Total Red]:[Total Yellow]]))","v":""},{"$f":"IF(ISBLANK(Table1[[#This Row],[Child First Name]]),\"\",IF(Table1[[#This Row],[Score]]<1,\"Universal Need\",IF(Table1[[#This Row],[Score]]<4,\"Targeted Need\",IF(Table1[[#This Row],[Score]]<12,\"Personalised Need\",\"Intensive Need\"))))","v":""}]
[null,{"$f":"IFERROR(VLOOKUP(Table1[[#This Row],[Destination School No]],SchoolList[],4,FALSE),\"\")","v":""},null,null,null,null,null,null,null,null,null,null,null,null,null,null,null,null,null,null,null,null,null,null,null,null,null,null,null,null,null,null,"","","",{"$f":"IF(ISBLANK(Table1[[#This Row],[Child First Name]]),\"\",SUM(Table1[[#This Row],[Total Red]:[Total Yellow]]))","v":""},{"$f":"IF(ISBLANK(Table1[[#This Row],[Child First Name]]),\"\",IF(Table1[[#This Row],[Score]]<1,\"Universal Need\",IF(Table1[[#This Row],[Score]]<4,\"Targeted Need\",IF(Table1[[#This Row],[Score]]<12,\"Personalised Need\",\"Intensive Need\"))))","v":""}]
[null,{"$f":"IFERROR(VLOOKUP(Table1[[#This Row],[Destination School No]],SchoolList[],4,FALSE),\"\")","v":""},null,null,null,null,null,null,null,null,null,null,null,null,null,null,null,null,null,null,null,null,null,null,null,null,null,null,null,null,null,null,"","","",{"$f":"IF(ISBLANK(Table1[[#This Row],[Child First Name]]),\"\",SUM(Table1[[#This Row],[Total Red]:[Total Yellow]]))","v":""},{"$f":"IF(ISBLANK(Table1[[#This Row],[Child First Name]]),\"\",IF(Table1[[#This Row],[Score]]<1,\"Universal Need\",IF(Table1[[#This Row],[Score]]<4,\"Targeted Need\",IF(Table1[[#This Row],[Score]]<12,\"Personalised Need\",\"Intensive Need\"))))","v":""}]
[null,{"$f":"IFERROR(VLOOKUP(Table1[[#This Row],[Destination School No]],SchoolList[],4,FALSE),\"\")","v":""},null,null,null,null,null,null,null,null,null,null,null,null,null,null,null,null,null,null,null,null,null,null,null,null,null,null,null,null,null,null,"","","",{"$f":"IF(ISBLANK(Table1[[#This Row],[Child First Name]]),\"\",SUM(Table1[[#This Row],[Total Red]:[Total Yellow]]))","v":""},{"$f":"IF(ISBLANK(Table1[[#This Row],[Child First Name]]),\"\",IF(Table1[[#This Row],[Score]]<1,\"Universal Need\",IF(Table1[[#This Row],[Score]]<4,\"Targeted Need\",IF(Table1[[#This Row],[Score]]<12,\"Personalised Need\",\"Intensive Need\"))))","v":""}]
[null,{"$f":"IFERROR(VLOOKUP(Table1[[#This Row],[Destination School No]],SchoolList[],4,FALSE),\"\")","v":""},null,null,null,null,null,null,null,null,null,null,null,null,null,null,null,null,null,null,null,null,null,null,null,null,null,null,null,null,null,null,"","","",{"$f":"IF(ISBLANK(Table1[[#This Row],[Child First Name]]),\"\",SUM(Table1[[#This Row],[Total Red]:[Total Yellow]]))","v":""},{"$f":"IF(ISBLANK(Table1[[#This Row],[Child First Name]]),\"\",IF(Table1[[#This Row],[Score]]<1,\"Universal Need\",IF(Table1[[#This Row],[Score]]<4,\"Targeted Need\",IF(Table1[[#This Row],[Score]]<12,\"Personalised Need\",\"Intensive Need\"))))","v":""}]
[null,{"$f":"IFERROR(VLOOKUP(Table1[[#This Row],[Destination School No]],SchoolList[],4,FALSE),\"\")","v":""},null,null,null,null,null,null,null,null,null,null,null,null,null,null,null,null,null,null,null,null,null,null,null,null,null,null,null,null,null,null,"","","",{"$f":"IF(ISBLANK(Table1[[#This Row],[Child First Name]]),\"\",SUM(Table1[[#This Row],[Total Red]:[Total Yellow]]))","v":""},{"$f":"IF(ISBLANK(Table1[[#This Row],[Child First Name]]),\"\",IF(Table1[[#This Row],[Score]]<1,\"Universal Need\",IF(Table1[[#This Row],[Score]]<4,\"Targeted Need\",IF(Table1[[#This Row],[Score]]<12,\"Personalised Need\",\"Intensive Need\"))))","v":""}]
[null,{"$f":"IFERROR(VLOOKUP(Table1[[#This Row],[Destination School No]],SchoolList[],4,FALSE),\"\")","v":""},null,null,null,null,null,null,null,null,null,null,null,null,null,null,null,null,null,null,null,null,null,null,null,null,null,null,null,null,null,null,"","","",{"$f":"IF(ISBLANK(Table1[[#This Row],[Child First Name]]),\"\",SUM(Table1[[#This Row],[Total Red]:[Total Yellow]]))","v":""},{"$f":"IF(ISBLANK(Table1[[#This Row],[Child First Name]]),\"\",IF(Table1[[#This Row],[Score]]<1,\"Universal Need\",IF(Table1[[#This Row],[Score]]<4,\"Targeted Need\",IF(Table1[[#This Row],[Score]]<12,\"Personalised Need\",\"Intensive Need\"))))","v":""}]
[null,{"$f":"IFERROR(VLOOKUP(Table1[[#This Row],[Destination School No]],SchoolList[],4,FALSE),\"\")","v":""},null,null,null,null,null,null,null,null,null,null,null,null,null,null,null,null,null,null,null,null,null,null,null,null,null,null,null,null,null,null,"","","",{"$f":"IF(ISBLANK(Table1[[#This Row],[Child First Name]]),\"\",SUM(Table1[[#This Row],[Total Red]:[Total Yellow]]))","v":""},{"$f":"IF(ISBLANK(Table1[[#This Row],[Child First Name]]),\"\",IF(Table1[[#This Row],[Score]]<1,\"Universal Need\",IF(Table1[[#This Row],[Score]]<4,\"Targeted Need\",IF(Table1[[#This Row],[Score]]<12,\"Personalised Need\",\"Intensive Need\"))))","v":""}]
[null,{"$f":"IFERROR(VLOOKUP(Table1[[#This Row],[Destination School No]],SchoolList[],4,FALSE),\"\")","v":""},null,null,null,null,null,null,null,null,null,null,null,null,null,null,null,null,null,null,null,null,null,null,null,null,null,null,null,null,null,null,"","","",{"$f":"IF(ISBLANK(Table1[[#This Row],[Child First Name]]),\"\",SUM(Table1[[#This Row],[Total Red]:[Total Yellow]]))","v":""},{"$f":"IF(ISBLANK(Table1[[#This Row],[Child First Name]]),\"\",IF(Table1[[#This Row],[Score]]<1,\"Universal Need\",IF(Table1[[#This Row],[Score]]<4,\"Targeted Need\",IF(Table1[[#This Row],[Score]]<12,\"Personalised Need\",\"Intensive Need\"))))","v":""}]
[null,{"$f":"IFERROR(VLOOKUP(Table1[[#This Row],[Destination School No]],SchoolList[],4,FALSE),\"\")","v":""},null,null,null,null,null,null,null,null,null,null,null,null,null,null,null,null,null,null,null,null,null,null,null,null,null,null,null,null,null,null,"","","",{"$f":"IF(ISBLANK(Table1[[#This Row],[Child First Name]]),\"\",SUM(Table1[[#This Row],[Total Red]:[Total Yellow]]))","v":""},{"$f":"IF(ISBLANK(Table1[[#This Row],[Child First Name]]),\"\",IF(Table1[[#This Row],[Score]]<1,\"Universal Need\",IF(Table1[[#This Row],[Score]]<4,\"Targeted Need\",IF(Table1[[#This Row],[Score]]<12,\"Personalised Need\",\"Intensive Need\"))))","v":""}]
[null,{"$f":"IFERROR(VLOOKUP(Table1[[#This Row],[Destination School No]],SchoolList[],4,FALSE),\"\")","v":""},null,null,null,null,null,null,null,null,null,null,null,null,null,null,null,null,null,null,null,null,null,null,null,null,null,null,null,null,null,null,"","","",{"$f":"IF(ISBLANK(Table1[[#This Row],[Child First Name]]),\"\",SUM(Table1[[#This Row],[Total Red]:[Total Yellow]]))","v":""},{"$f":"IF(ISBLANK(Table1[[#This Row],[Child First Name]]),\"\",IF(Table1[[#This Row],[Score]]<1,\"Universal Need\",IF(Table1[[#This Row],[Score]]<4,\"Targeted Need\",IF(Table1[[#This Row],[Score]]<12,\"Personalised Need\",\"Intensive Need\"))))","v":""}]
[null,{"$f":"IFERROR(VLOOKUP(Table1[[#This Row],[Destination School No]],SchoolList[],4,FALSE),\"\")","v":""},null,null,null,null,null,null,null,null,null,null,null,null,null,null,null,null,null,null,null,null,null,null,null,null,null,null,null,null,null,null,"","","",{"$f":"IF(ISBLANK(Table1[[#This Row],[Child First Name]]),\"\",SUM(Table1[[#This Row],[Total Red]:[Total Yellow]]))","v":""},{"$f":"IF(ISBLANK(Table1[[#This Row],[Child First Name]]),\"\",IF(Table1[[#This Row],[Score]]<1,\"Universal Need\",IF(Table1[[#This Row],[Score]]<4,\"Targeted Need\",IF(Table1[[#This Row],[Score]]<12,\"Personalised Need\",\"Intensive Need\"))))","v":""}]
[null,{"$f":"IFERROR(VLOOKUP(Table1[[#This Row],[Destination School No]],SchoolList[],4,FALSE),\"\")","v":""},null,null,null,null,null,null,null,null,null,null,null,null,null,null,null,null,null,null,null,null,null,null,null,null,null,null,null,null,null,null,"","","",{"$f":"IF(ISBLANK(Table1[[#This Row],[Child First Name]]),\"\",SUM(Table1[[#This Row],[Total Red]:[Total Yellow]]))","v":""},{"$f":"IF(ISBLANK(Table1[[#This Row],[Child First Name]]),\"\",IF(Table1[[#This Row],[Score]]<1,\"Universal Need\",IF(Table1[[#This Row],[Score]]<4,\"Targeted Need\",IF(Table1[[#This Row],[Score]]<12,\"Personalised Need\",\"Intensive Need\"))))","v":""}]
[null,{"$f":"IFERROR(VLOOKUP(Table1[[#This Row],[Destination School No]],SchoolList[],4,FALSE),\"\")","v":""},null,null,null,null,null,null,null,null,null,null,null,null,null,null,null,null,null,null,null,null,null,null,null,null,null,null,null,null,null,null,"","","",{"$f":"IF(ISBLANK(Table1[[#This Row],[Child First Name]]),\"\",SUM(Table1[[#This Row],[Total Red]:[Total Yellow]]))","v":""},{"$f":"IF(ISBLANK(Table1[[#This Row],[Child First Name]]),\"\",IF(Table1[[#This Row],[Score]]<1,\"Universal Need\",IF(Table1[[#This Row],[Score]]<4,\"Targeted Need\",IF(Table1[[#This Row],[Score]]<12,\"Personalised Need\",\"Intensive Need\"))))","v":""}]
[null,{"$f":"IFERROR(VLOOKUP(Table1[[#This Row],[Destination School No]],SchoolList[],4,FALSE),\"\")","v":""},null,null,null,null,null,null,null,null,null,null,null,null,null,null,null,null,null,null,null,null,null,null,null,null,null,null,null,null,null,null,"","","",{"$f":"IF(ISBLANK(Table1[[#This Row],[Child First Name]]),\"\",SUM(Table1[[#This Row],[Total Red]:[Total Yellow]]))","v":""},{"$f":"IF(ISBLANK(Table1[[#This Row],[Child First Name]]),\"\",IF(Table1[[#This Row],[Score]]<1,\"Universal Need\",IF(Table1[[#This Row],[Score]]<4,\"Targeted Need\",IF(Table1[[#This Row],[Score]]<12,\"Personalised Need\",\"Intensive Need\"))))","v":""}]
[null,{"$f":"IFERROR(VLOOKUP(Table1[[#This Row],[Destination School No]],SchoolList[],4,FALSE),\"\")","v":""},null,null,null,null,null,null,null,null,null,null,null,null,null,null,null,null,null,null,null,null,null,null,null,null,null,null,null,null,null,null,"","","",{"$f":"IF(ISBLANK(Table1[[#This Row],[Child First Name]]),\"\",SUM(Table1[[#This Row],[Total Red]:[Total Yellow]]))","v":""},{"$f":"IF(ISBLANK(Table1[[#This Row],[Child First Name]]),\"\",IF(Table1[[#This Row],[Score]]<1,\"Universal Need\",IF(Table1[[#This Row],[Score]]<4,\"Targeted Need\",IF(Table1[[#This Row],[Score]]<12,\"Personalised Need\",\"Intensive Need\"))))","v":""}]
[null,{"$f":"IFERROR(VLOOKUP(Table1[[#This Row],[Destination School No]],SchoolList[],4,FALSE),\"\")","v":""},null,null,null,null,null,null,null,null,null,null,null,null,null,null,null,null,null,null,null,null,null,null,null,null,null,null,null,null,null,null,"","","",{"$f":"IF(ISBLANK(Table1[[#This Row],[Child First Name]]),\"\",SUM(Table1[[#This Row],[Total Red]:[Total Yellow]]))","v":""},{"$f":"IF(ISBLANK(Table1[[#This Row],[Child First Name]]),\"\",IF(Table1[[#This Row],[Score]]<1,\"Universal Need\",IF(Table1[[#This Row],[Score]]<4,\"Targeted Need\",IF(Table1[[#This Row],[Score]]<12,\"Personalised Need\",\"Intensive Need\"))))","v":""}]
[null,{"$f":"IFERROR(VLOOKUP(Table1[[#This Row],[Destination School No]],SchoolList[],4,FALSE),\"\")","v":""},null,null,null,null,null,null,null,null,null,null,null,null,null,null,null,null,null,null,null,null,null,null,null,null,null,null,null,null,null,null,"","","",{"$f":"IF(ISBLANK(Table1[[#This Row],[Child First Name]]),\"\",SUM(Table1[[#This Row],[Total Red]:[Total Yellow]]))","v":""},{"$f":"IF(ISBLANK(Table1[[#This Row],[Child First Name]]),\"\",IF(Table1[[#This Row],[Score]]<1,\"Universal Need\",IF(Table1[[#This Row],[Score]]<4,\"Targeted Need\",IF(Table1[[#This Row],[Score]]<12,\"Personalised Need\",\"Intensive Need\"))))","v":""}]
[null,{"$f":"IFERROR(VLOOKUP(Table1[[#This Row],[Destination School No]],SchoolList[],4,FALSE),\"\")","v":""},null,null,null,null,null,null,null,null,null,null,null,null,null,null,null,null,null,null,null,null,null,null,null,null,null,null,null,null,null,null,"","","",{"$f":"IF(ISBLANK(Table1[[#This Row],[Child First Name]]),\"\",SUM(Table1[[#This Row],[Total Red]:[Total Yellow]]))","v":""},{"$f":"IF(ISBLANK(Table1[[#This Row],[Child First Name]]),\"\",IF(Table1[[#This Row],[Score]]<1,\"Universal Need\",IF(Table1[[#This Row],[Score]]<4,\"Targeted Need\",IF(Table1[[#This Row],[Score]]<12,\"Personalised Need\",\"Intensive Need\"))))","v":""}]
[null,{"$f":"IFERROR(VLOOKUP(Table1[[#This Row],[Destination School No]],SchoolList[],4,FALSE),\"\")","v":""},null,null,null,null,null,null,null,null,null,null,null,null,null,null,null,null,null,null,null,null,null,null,null,null,null,null,null,null,null,null,"","","",{"$f":"IF(ISBLANK(Table1[[#This Row],[Child First Name]]),\"\",SUM(Table1[[#This Row],[Total Red]:[Total Yellow]]))","v":""},{"$f":"IF(ISBLANK(Table1[[#This Row],[Child First Name]]),\"\",IF(Table1[[#This Row],[Score]]<1,\"Universal Need\",IF(Table1[[#This Row],[Score]]<4,\"Targeted Need\",IF(Table1[[#This Row],[Score]]<12,\"Personalised Need\",\"Intensive Need\"))))","v":""}]
[null,{"$f":"IFERROR(VLOOKUP(Table1[[#This Row],[Destination School No]],SchoolList[],4,FALSE),\"\")","v":""},null,null,null,null,null,null,null,null,null,null,null,null,null,null,null,null,null,null,null,null,null,null,null,null,null,null,null,null,null,null,"","","",{"$f":"IF(ISBLANK(Table1[[#This Row],[Child First Name]]),\"\",SUM(Table1[[#This Row],[Total Red]:[Total Yellow]]))","v":""},{"$f":"IF(ISBLANK(Table1[[#This Row],[Child First Name]]),\"\",IF(Table1[[#This Row],[Score]]<1,\"Universal Need\",IF(Table1[[#This Row],[Score]]<4,\"Targeted Need\",IF(Table1[[#This Row],[Score]]<12,\"Personalised Need\",\"Intensive Need\"))))","v":""}]
[null,{"$f":"IFERROR(VLOOKUP(Table1[[#This Row],[Destination School No]],SchoolList[],4,FALSE),\"\")","v":""},null,null,null,null,null,null,null,null,null,null,null,null,null,null,null,null,null,null,null,null,null,null,null,null,null,null,null,null,null,null,"","","",{"$f":"IF(ISBLANK(Table1[[#This Row],[Child First Name]]),\"\",SUM(Table1[[#This Row],[Total Red]:[Total Yellow]]))","v":""},{"$f":"IF(ISBLANK(Table1[[#This Row],[Child First Name]]),\"\",IF(Table1[[#This Row],[Score]]<1,\"Universal Need\",IF(Table1[[#This Row],[Score]]<4,\"Targeted Need\",IF(Table1[[#This Row],[Score]]<12,\"Personalised Need\",\"Intensive Need\"))))","v":""}]
[null,{"$f":"IFERROR(VLOOKUP(Table1[[#This Row],[Destination School No]],SchoolList[],4,FALSE),\"\")","v":""},null,null,null,null,null,null,null,null,null,null,null,null,null,null,null,null,null,null,null,null,null,null,null,null,null,null,null,null,null,null,"","","",{"$f":"IF(ISBLANK(Table1[[#This Row],[Child First Name]]),\"\",SUM(Table1[[#This Row],[Total Red]:[Total Yellow]]))","v":""},{"$f":"IF(ISBLANK(Table1[[#This Row],[Child First Name]]),\"\",IF(Table1[[#This Row],[Score]]<1,\"Universal Need\",IF(Table1[[#This Row],[Score]]<4,\"Targeted Need\",IF(Table1[[#This Row],[Score]]<12,\"Personalised Need\",\"Intensive Need\"))))","v":""}]
[null,{"$f":"IFERROR(VLOOKUP(Table1[[#This Row],[Destination School No]],SchoolList[],4,FALSE),\"\")","v":""},null,null,null,null,null,null,null,null,null,null,null,null,null,null,null,null,null,null,null,null,null,null,null,null,null,null,null,null,null,null,"","","",{"$f":"IF(ISBLANK(Table1[[#This Row],[Child First Name]]),\"\",SUM(Table1[[#This Row],[Total Red]:[Total Yellow]]))","v":""},{"$f":"IF(ISBLANK(Table1[[#This Row],[Child First Name]]),\"\",IF(Table1[[#This Row],[Score]]<1,\"Universal Need\",IF(Table1[[#This Row],[Score]]<4,\"Targeted Need\",IF(Table1[[#This Row],[Score]]<12,\"Personalised Need\",\"Intensive Need\"))))","v":""}]
[null,{"$f":"IFERROR(VLOOKUP(Table1[[#This Row],[Destination School No]],SchoolList[],4,FALSE),\"\")","v":""},null,null,null,null,null,null,null,null,null,null,null,null,null,null,null,null,null,null,null,null,null,null,null,null,null,null,null,null,null,null,"","","",{"$f":"IF(ISBLANK(Table1[[#This Row],[Child First Name]]),\"\",SUM(Table1[[#This Row],[Total Red]:[Total Yellow]]))","v":""},{"$f":"IF(ISBLANK(Table1[[#This Row],[Child First Name]]),\"\",IF(Table1[[#This Row],[Score]]<1,\"Universal Need\",IF(Table1[[#This Row],[Score]]<4,\"Targeted Need\",IF(Table1[[#This Row],[Score]]<12,\"Personalised Need\",\"Intensive Need\"))))","v":""}]
[null,{"$f":"IFERROR(VLOOKUP(Table1[[#This Row],[Destination School No]],SchoolList[],4,FALSE),\"\")","v":""},null,null,null,null,null,null,null,null,null,null,null,null,null,null,null,null,null,null,null,null,null,null,null,null,null,null,null,null,null,null,"","","",{"$f":"IF(ISBLANK(Table1[[#This Row],[Child First Name]]),\"\",SUM(Table1[[#This Row],[Total Red]:[Total Yellow]]))","v":""},{"$f":"IF(ISBLANK(Table1[[#This Row],[Child First Name]]),\"\",IF(Table1[[#This Row],[Score]]<1,\"Universal Need\",IF(Table1[[#This Row],[Score]]<4,\"Targeted Need\",IF(Table1[[#This Row],[Score]]<12,\"Personalised Need\",\"Intensive Need\"))))","v":""}]
[null,{"$f":"IFERROR(VLOOKUP(Table1[[#This Row],[Destination School No]],SchoolList[],4,FALSE),\"\")","v":""},null,null,null,null,null,null,null,null,null,null,null,null,null,null,null,null,null,null,null,null,null,null,null,null,null,null,null,null,null,null,"","","",{"$f":"IF(ISBLANK(Table1[[#This Row],[Child First Name]]),\"\",SUM(Table1[[#This Row],[Total Red]:[Total Yellow]]))","v":""},{"$f":"IF(ISBLANK(Table1[[#This Row],[Child First Name]]),\"\",IF(Table1[[#This Row],[Score]]<1,\"Universal Need\",IF(Table1[[#This Row],[Score]]<4,\"Targeted Need\",IF(Table1[[#This Row],[Score]]<12,\"Personalised Need\",\"Intensive Need\"))))","v":""}]
[null,{"$f":"IFERROR(VLOOKUP(Table1[[#This Row],[Destination School No]],SchoolList[],4,FALSE),\"\")","v":""},null,null,null,null,null,null,null,null,null,null,null,null,null,null,null,null,null,null,null,null,null,null,null,null,null,null,null,null,null,null,"","","",{"$f":"IF(ISBLANK(Table1[[#This Row],[Child First Name]]),\"\",SUM(Table1[[#This Row],[Total Red]:[Total Yellow]]))","v":""},{"$f":"IF(ISBLANK(Table1[[#This Row],[Child First Name]]),\"\",IF(Table1[[#This Row],[Score]]<1,\"Universal Need\",IF(Table1[[#This Row],[Score]]<4,\"Targeted Need\",IF(Table1[[#This Row],[Score]]<12,\"Personalised Need\",\"Intensive Need\"))))","v":""}]
[null,{"$f":"IFERROR(VLOOKUP(Table1[[#This Row],[Destination School No]],SchoolList[],4,FALSE),\"\")","v":""},null,null,null,null,null,null,null,null,null,null,null,null,null,null,null,null,null,null,null,null,null,null,null,null,null,null,null,null,null,null,"","","",{"$f":"IF(ISBLANK(Table1[[#This Row],[Child First Name]]),\"\",SUM(Table1[[#This Row],[Total Red]:[Total Yellow]]))","v":""},{"$f":"IF(ISBLANK(Table1[[#This Row],[Child First Name]]),\"\",IF(Table1[[#This Row],[Score]]<1,\"Universal Need\",IF(Table1[[#This Row],[Score]]<4,\"Targeted Need\",IF(Table1[[#This Row],[Score]]<12,\"Personalised Need\",\"Intensive Need\"))))","v":""}]
[null,{"$f":"IFERROR(VLOOKUP(Table1[[#This Row],[Destination School No]],SchoolList[],4,FALSE),\"\")","v":""},null,null,null,null,null,null,null,null,null,null,null,null,null,null,null,null,null,null,null,null,null,null,null,null,null,null,null,null,null,null,"","","",{"$f":"IF(ISBLANK(Table1[[#This Row],[Child First Name]]),\"\",SUM(Table1[[#This Row],[Total Red]:[Total Yellow]]))","v":""},{"$f":"IF(ISBLANK(Table1[[#This Row],[Child First Name]]),\"\",IF(Table1[[#This Row],[Score]]<1,\"Universal Need\",IF(Table1[[#This Row],[Score]]<4,\"Targeted Need\",IF(Table1[[#This Row],[Score]]<12,\"Personalised Need\",\"Intensive Need\"))))","v":""}]
[null,{"$f":"IFERROR(VLOOKUP(Table1[[#This Row],[Destination School No]],SchoolList[],4,FALSE),\"\")","v":""},null,null,null,null,null,null,null,null,null,null,null,null,null,null,null,null,null,null,null,null,null,null,null,null,null,null,null,null,null,null,"","","",{"$f":"IF(ISBLANK(Table1[[#This Row],[Child First Name]]),\"\",SUM(Table1[[#This Row],[Total Red]:[Total Yellow]]))","v":""},{"$f":"IF(ISBLANK(Table1[[#This Row],[Child First Name]]),\"\",IF(Table1[[#This Row],[Score]]<1,\"Universal Need\",IF(Table1[[#This Row],[Score]]<4,\"Targeted Need\",IF(Table1[[#This Row],[Score]]<12,\"Personalised Need\",\"Intensive Need\"))))","v":""}]
[null,{"$f":"IFERROR(VLOOKUP(Table1[[#This Row],[Destination School No]],SchoolList[],4,FALSE),\"\")","v":""},null,null,null,null,null,null,null,null,null,null,null,null,null,null,null,null,null,null,null,null,null,null,null,null,null,null,null,null,null,null,"","","",{"$f":"IF(ISBLANK(Table1[[#This Row],[Child First Name]]),\"\",SUM(Table1[[#This Row],[Total Red]:[Total Yellow]]))","v":""},{"$f":"IF(ISBLANK(Table1[[#This Row],[Child First Name]]),\"\",IF(Table1[[#This Row],[Score]]<1,\"Universal Need\",IF(Table1[[#This Row],[Score]]<4,\"Targeted Need\",IF(Table1[[#This Row],[Score]]<12,\"Personalised Need\",\"Intensive Need\"))))","v":""}]
[null,{"$f":"IFERROR(VLOOKUP(Table1[[#This Row],[Destination School No]],SchoolList[],4,FALSE),\"\")","v":""},null,null,null,null,null,null,null,null,null,null,null,null,null,null,null,null,null,null,null,null,null,null,null,null,null,null,null,null,null,null,"","","",{"$f":"IF(ISBLANK(Table1[[#This Row],[Child First Name]]),\"\",SUM(Table1[[#This Row],[Total Red]:[Total Yellow]]))","v":""},{"$f":"IF(ISBLANK(Table1[[#This Row],[Child First Name]]),\"\",IF(Table1[[#This Row],[Score]]<1,\"Universal Need\",IF(Table1[[#This Row],[Score]]<4,\"Targeted Need\",IF(Table1[[#This Row],[Score]]<12,\"Personalised Need\",\"Intensive Need\"))))","v":""}]
[null,{"$f":"IFERROR(VLOOKUP(Table1[[#This Row],[Destination School No]],SchoolList[],4,FALSE),\"\")","v":""},null,null,null,null,null,null,null,null,null,null,null,null,null,null,null,null,null,null,null,null,null,null,null,null,null,null,null,null,null,null,"","","",{"$f":"IF(ISBLANK(Table1[[#This Row],[Child First Name]]),\"\",SUM(Table1[[#This Row],[Total Red]:[Total Yellow]]))","v":""},{"$f":"IF(ISBLANK(Table1[[#This Row],[Child First Name]]),\"\",IF(Table1[[#This Row],[Score]]<1,\"Universal Need\",IF(Table1[[#This Row],[Score]]<4,\"Targeted Need\",IF(Table1[[#This Row],[Score]]<12,\"Personalised Need\",\"Intensive Need\"))))","v":""}]
[null,{"$f":"IFERROR(VLOOKUP(Table1[[#This Row],[Destination School No]],SchoolList[],4,FALSE),\"\")","v":""},null,null,null,null,null,null,null,null,null,null,null,null,null,null,null,null,null,null,null,null,null,null,null,null,null,null,null,null,null,null,"","","",{"$f":"IF(ISBLANK(Table1[[#This Row],[Child First Name]]),\"\",SUM(Table1[[#This Row],[Total Red]:[Total Yellow]]))","v":""},{"$f":"IF(ISBLANK(Table1[[#This Row],[Child First Name]]),\"\",IF(Table1[[#This Row],[Score]]<1,\"Universal Need\",IF(Table1[[#This Row],[Score]]<4,\"Targeted Need\",IF(Table1[[#This Row],[Score]]<12,\"Personalised Need\",\"Intensive Need\"))))","v":""}]
[null,{"$f":"IFERROR(VLOOKUP(Table1[[#This Row],[Destination School No]],SchoolList[],4,FALSE),\"\")","v":""},null,null,null,null,null,null,null,null,null,null,null,null,null,null,null,null,null,null,null,null,null,null,null,null,null,null,null,null,null,null,"","","",{"$f":"IF(ISBLANK(Table1[[#This Row],[Child First Name]]),\"\",SUM(Table1[[#This Row],[Total Red]:[Total Yellow]]))","v":""},{"$f":"IF(ISBLANK(Table1[[#This Row],[Child First Name]]),\"\",IF(Table1[[#This Row],[Score]]<1,\"Universal Need\",IF(Table1[[#This Row],[Score]]<4,\"Targeted Need\",IF(Table1[[#This Row],[Score]]<12,\"Personalised Need\",\"Intensive Need\"))))","v":""}]
[null,{"$f":"IFERROR(VLOOKUP(Table1[[#This Row],[Destination School No]],SchoolList[],4,FALSE),\"\")","v":""},null,null,null,null,null,null,null,null,null,null,null,null,null,null,null,null,null,null,null,null,null,null,null,null,null,null,null,null,null,null,"","","",{"$f":"IF(ISBLANK(Table1[[#This Row],[Child First Name]]),\"\",SUM(Table1[[#This Row],[Total Red]:[Total Yellow]]))","v":""},{"$f":"IF(ISBLANK(Table1[[#This Row],[Child First Name]]),\"\",IF(Table1[[#This Row],[Score]]<1,\"Universal Need\",IF(Table1[[#This Row],[Score]]<4,\"Targeted Need\",IF(Table1[[#This Row],[Score]]<12,\"Personalised Need\",\"Intensive Need\"))))","v":""}]
[null,{"$f":"IFERROR(VLOOKUP(Table1[[#This Row],[Destination School No]],SchoolList[],4,FALSE),\"\")","v":""},null,null,null,null,null,null,null,null,null,null,null,null,null,null,null,null,null,null,null,null,null,null,null,null,null,null,null,null,null,null,"","","",{"$f":"IF(ISBLANK(Table1[[#This Row],[Child First Name]]),\"\",SUM(Table1[[#This Row],[Total Red]:[Total Yellow]]))","v":""},{"$f":"IF(ISBLANK(Table1[[#This Row],[Child First Name]]),\"\",IF(Table1[[#This Row],[Score]]<1,\"Universal Need\",IF(Table1[[#This Row],[Score]]<4,\"Targeted Need\",IF(Table1[[#This Row],[Score]]<12,\"Personalised Need\",\"Intensive Need\"))))","v":""}]
[null,{"$f":"IFERROR(VLOOKUP(Table1[[#This Row],[Destination School No]],SchoolList[],4,FALSE),\"\")","v":""},null,null,null,null,null,null,null,null,null,null,null,null,null,null,null,null,null,null,null,null,null,null,null,null,null,null,null,null,null,null,"","","",{"$f":"IF(ISBLANK(Table1[[#This Row],[Child First Name]]),\"\",SUM(Table1[[#This Row],[Total Red]:[Total Yellow]]))","v":""},{"$f":"IF(ISBLANK(Table1[[#This Row],[Child First Name]]),\"\",IF(Table1[[#This Row],[Score]]<1,\"Universal Need\",IF(Table1[[#This Row],[Score]]<4,\"Targeted Need\",IF(Table1[[#This Row],[Score]]<12,\"Personalised Need\",\"Intensive Need\"))))","v":""}]
[null,{"$f":"IFERROR(VLOOKUP(Table1[[#This Row],[Destination School No]],SchoolList[],4,FALSE),\"\")","v":""},null,null,null,null,null,null,null,null,null,null,null,null,null,null,null,null,null,null,null,null,null,null,null,null,null,null,null,null,null,null,"","","",{"$f":"IF(ISBLANK(Table1[[#This Row],[Child First Name]]),\"\",SUM(Table1[[#This Row],[Total Red]:[Total Yellow]]))","v":""},{"$f":"IF(ISBLANK(Table1[[#This Row],[Child First Name]]),\"\",IF(Table1[[#This Row],[Score]]<1,\"Universal Need\",IF(Table1[[#This Row],[Score]]<4,\"Targeted Need\",IF(Table1[[#This Row],[Score]]<12,\"Personalised Need\",\"Intensive Need\"))))","v":""}]
[null,{"$f":"IFERROR(VLOOKUP(Table1[[#This Row],[Destination School No]],SchoolList[],4,FALSE),\"\")","v":""},null,null,null,null,null,null,null,null,null,null,null,null,null,null,null,null,null,null,null,null,null,null,null,null,null,null,null,null,null,null,"","","",{"$f":"IF(ISBLANK(Table1[[#This Row],[Child First Name]]),\"\",SUM(Table1[[#This Row],[Total Red]:[Total Yellow]]))","v":""},{"$f":"IF(ISBLANK(Table1[[#This Row],[Child First Name]]),\"\",IF(Table1[[#This Row],[Score]]<1,\"Universal Need\",IF(Table1[[#This Row],[Score]]<4,\"Targeted Need\",IF(Table1[[#This Row],[Score]]<12,\"Personalised Need\",\"Intensive Need\"))))","v":""}]
[null,{"$f":"IFERROR(VLOOKUP(Table1[[#This Row],[Destination School No]],SchoolList[],4,FALSE),\"\")","v":""},null,null,null,null,null,null,null,null,null,null,null,null,null,null,null,null,null,null,null,null,null,null,null,null,null,null,null,null,null,null,"","","",{"$f":"IF(ISBLANK(Table1[[#This Row],[Child First Name]]),\"\",SUM(Table1[[#This Row],[Total Red]:[Total Yellow]]))","v":""},{"$f":"IF(ISBLANK(Table1[[#This Row],[Child First Name]]),\"\",IF(Table1[[#This Row],[Score]]<1,\"Universal Need\",IF(Table1[[#This Row],[Score]]<4,\"Targeted Need\",IF(Table1[[#This Row],[Score]]<12,\"Personalised Need\",\"Intensive Need\"))))","v":""}]
[null,{"$f":"IFERROR(VLOOKUP(Table1[[#This Row],[Destination School No]],SchoolList[],4,FALSE),\"\")","v":""},null,null,null,null,null,null,null,null,null,null,null,null,null,null,null,null,null,null,null,null,null,null,null,null,null,null,null,null,null,null,"","","",{"$f":"IF(ISBLANK(Table1[[#This Row],[Child First Name]]),\"\",SUM(Table1[[#This Row],[Total Red]:[Total Yellow]]))","v":""},{"$f":"IF(ISBLANK(Table1[[#This Row],[Child First Name]]),\"\",IF(Table1[[#This Row],[Score]]<1,\"Universal Need\",IF(Table1[[#This Row],[Score]]<4,\"Targeted Need\",IF(Table1[[#This Row],[Score]]<12,\"Personalised Need\",\"Intensive Need\"))))","v":""}]
[null,{"$f":"IFERROR(VLOOKUP(Table1[[#This Row],[Destination School No]],SchoolList[],4,FALSE),\"\")","v":""},null,null,null,null,null,null,null,null,null,null,null,null,null,null,null,null,null,null,null,null,null,null,null,null,null,null,null,null,null,null,"","","",{"$f":"IF(ISBLANK(Table1[[#This Row],[Child First Name]]),\"\",SUM(Table1[[#This Row],[Total Red]:[Total Yellow]]))","v":""},{"$f":"IF(ISBLANK(Table1[[#This Row],[Child First Name]]),\"\",IF(Table1[[#This Row],[Score]]<1,\"Universal Need\",IF(Table1[[#This Row],[Score]]<4,\"Targeted Need\",IF(Table1[[#This Row],[Score]]<12,\"Personalised Need\",\"Intensive Need\"))))","v":""}]
[null,{"$f":"IFERROR(VLOOKUP(Table1[[#This Row],[Destination School No]],SchoolList[],4,FALSE),\"\")","v":""},null,null,null,null,null,null,null,null,null,null,null,null,null,null,null,null,null,null,null,null,null,null,null,null,null,null,null,null,null,null,"","","",{"$f":"IF(ISBLANK(Table1[[#This Row],[Child First Name]]),\"\",SUM(Table1[[#This Row],[Total Red]:[Total Yellow]]))","v":""},{"$f":"IF(ISBLANK(Table1[[#This Row],[Child First Name]]),\"\",IF(Table1[[#This Row],[Score]]<1,\"Universal Need\",IF(Table1[[#This Row],[Score]]<4,\"Targeted Need\",IF(Table1[[#This Row],[Score]]<12,\"Personalised Need\",\"Intensive Need\"))))","v":""}]
[null,{"$f":"IFERROR(VLOOKUP(Table1[[#This Row],[Destination School No]],SchoolList[],4,FALSE),\"\")","v":""},null,null,null,null,null,null,null,null,null,null,null,null,null,null,null,null,null,null,null,null,null,null,null,null,null,null,null,null,null,null,"","","",{"$f":"IF(ISBLANK(Table1[[#This Row],[Child First Name]]),\"\",SUM(Table1[[#This Row],[Total Red]:[Total Yellow]]))","v":""},{"$f":"IF(ISBLANK(Table1[[#This Row],[Child First Name]]),\"\",IF(Table1[[#This Row],[Score]]<1,\"Universal Need\",IF(Table1[[#This Row],[Score]]<4,\"Targeted Need\",IF(Table1[[#This Row],[Score]]<12,\"Personalised Need\",\"Intensive Need\"))))","v":""}]
[null,{"$f":"IFERROR(VLOOKUP(Table1[[#This Row],[Destination School No]],SchoolList[],4,FALSE),\"\")","v":""},null,null,null,null,null,null,null,null,null,null,null,null,null,null,null,null,null,null,null,null,null,null,null,null,null,null,null,null,null,null,"","","",{"$f":"IF(ISBLANK(Table1[[#This Row],[Child First Name]]),\"\",SUM(Table1[[#This Row],[Total Red]:[Total Yellow]]))","v":""},{"$f":"IF(ISBLANK(Table1[[#This Row],[Child First Name]]),\"\",IF(Table1[[#This Row],[Score]]<1,\"Universal Need\",IF(Table1[[#This Row],[Score]]<4,\"Targeted Need\",IF(Table1[[#This Row],[Score]]<12,\"Personalised Need\",\"Intensive Need\"))))","v":""}]
[null,{"$f":"IFERROR(VLOOKUP(Table1[[#This Row],[Destination School No]],SchoolList[],4,FALSE),\"\")","v":""},null,null,null,null,null,null,null,null,null,null,null,null,null,null,null,null,null,null,null,null,null,null,null,null,null,null,null,null,null,null,"","","",{"$f":"IF(ISBLANK(Table1[[#This Row],[Child First Name]]),\"\",SUM(Table1[[#This Row],[Total Red]:[Total Yellow]]))","v":""},{"$f":"IF(ISBLANK(Table1[[#This Row],[Child First Name]]),\"\",IF(Table1[[#This Row],[Score]]<1,\"Universal Need\",IF(Table1[[#This Row],[Score]]<4,\"Targeted Need\",IF(Table1[[#This Row],[Score]]<12,\"Personalised Need\",\"Intensive Need\"))))","v":""}]
[null,{"$f":"IFERROR(VLOOKUP(Table1[[#This Row],[Destination School No]],SchoolList[],4,FALSE),\"\")","v":""},null,null,null,null,null,null,null,null,null,null,null,null,null,null,null,null,null,null,null,null,null,null,null,null,null,null,null,null,null,null,"","","",{"$f":"IF(ISBLANK(Table1[[#This Row],[Child First Name]]),\"\",SUM(Table1[[#This Row],[Total Red]:[Total Yellow]]))","v":""},{"$f":"IF(ISBLANK(Table1[[#This Row],[Child First Name]]),\"\",IF(Table1[[#This Row],[Score]]<1,\"Universal Need\",IF(Table1[[#This Row],[Score]]<4,\"Targeted Need\",IF(Table1[[#This Row],[Score]]<12,\"Personalised Need\",\"Intensive Need\"))))","v":""}]
[null,{"$f":"IFERROR(VLOOKUP(Table1[[#This Row],[Destination School No]],SchoolList[],4,FALSE),\"\")","v":""},null,null,null,null,null,null,null,null,null,null,null,null,null,null,null,null,null,null,null,null,null,null,null,null,null,null,null,null,null,null,"","","",{"$f":"IF(ISBLANK(Table1[[#This Row],[Child First Name]]),\"\",SUM(Table1[[#This Row],[Total Red]:[Total Yellow]]))","v":""},{"$f":"IF(ISBLANK(Table1[[#This Row],[Child First Name]]),\"\",IF(Table1[[#This Row],[Score]]<1,\"Universal Need\",IF(Table1[[#This Row],[Score]]<4,\"Targeted Need\",IF(Table1[[#This Row],[Score]]<12,\"Personalised Need\",\"Intensive Need\"))))","v":""}]
[null,{"$f":"IFERROR(VLOOKUP(Table1[[#This Row],[Destination School No]],SchoolList[],4,FALSE),\"\")","v":""},null,null,null,null,null,null,null,null,null,null,null,null,null,null,null,null,null,null,null,null,null,null,null,null,null,null,null,null,null,null,"","","",{"$f":"IF(ISBLANK(Table1[[#This Row],[Child First Name]]),\"\",SUM(Table1[[#This Row],[Total Red]:[Total Yellow]]))","v":""},{"$f":"IF(ISBLANK(Table1[[#This Row],[Child First Name]]),\"\",IF(Table1[[#This Row],[Score]]<1,\"Universal Need\",IF(Table1[[#This Row],[Score]]<4,\"Targeted Need\",IF(Table1[[#This Row],[Score]]<12,\"Personalised Need\",\"Intensive Need\"))))","v":""}]
[null,{"$f":"IFERROR(VLOOKUP(Table1[[#This Row],[Destination School No]],SchoolList[],4,FALSE),\"\")","v":""},null,null,null,null,null,null,null,null,null,null,null,null,null,null,null,null,null,null,null,null,null,null,null,null,null,null,null,null,null,null,"","","",{"$f":"IF(ISBLANK(Table1[[#This Row],[Child First Name]]),\"\",SUM(Table1[[#This Row],[Total Red]:[Total Yellow]]))","v":""},{"$f":"IF(ISBLANK(Table1[[#This Row],[Child First Name]]),\"\",IF(Table1[[#This Row],[Score]]<1,\"Universal Need\",IF(Table1[[#This Row],[Score]]<4,\"Targeted Need\",IF(Table1[[#This Row],[Score]]<12,\"Personalised Need\",\"Intensive Need\"))))","v":""}]
[null,{"$f":"IFERROR(VLOOKUP(Table1[[#This Row],[Destination School No]],SchoolList[],4,FALSE),\"\")","v":""},null,null,null,null,null,null,null,null,null,null,null,null,null,null,null,null,null,null,null,null,null,null,null,null,null,null,null,null,null,null,"","","",{"$f":"IF(ISBLANK(Table1[[#This Row],[Child First Name]]),\"\",SUM(Table1[[#This Row],[Total Red]:[Total Yellow]]))","v":""},{"$f":"IF(ISBLANK(Table1[[#This Row],[Child First Name]]),\"\",IF(Table1[[#This Row],[Score]]<1,\"Universal Need\",IF(Table1[[#This Row],[Score]]<4,\"Targeted Need\",IF(Table1[[#This Row],[Score]]<12,\"Personalised Need\",\"Intensive Need\"))))","v":""}]
[null,{"$f":"IFERROR(VLOOKUP(Table1[[#This Row],[Destination School No]],SchoolList[],4,FALSE),\"\")","v":""},null,null,null,null,null,null,null,null,null,null,null,null,null,null,null,null,null,null,null,null,null,null,null,null,null,null,null,null,null,null,"","","",{"$f":"IF(ISBLANK(Table1[[#This Row],[Child First Name]]),\"\",SUM(Table1[[#This Row],[Total Red]:[Total Yellow]]))","v":""},{"$f":"IF(ISBLANK(Table1[[#This Row],[Child First Name]]),\"\",IF(Table1[[#This Row],[Score]]<1,\"Universal Need\",IF(Table1[[#This Row],[Score]]<4,\"Targeted Need\",IF(Table1[[#This Row],[Score]]<12,\"Personalised Need\",\"Intensive Need\"))))","v":""}]
[null,{"$f":"IFERROR(VLOOKUP(Table1[[#This Row],[Destination School No]],SchoolList[],4,FALSE),\"\")","v":""},null,null,null,null,null,null,null,null,null,null,null,null,null,null,null,null,null,null,null,null,null,null,null,null,null,null,null,null,null,null,"","","",{"$f":"IF(ISBLANK(Table1[[#This Row],[Child First Name]]),\"\",SUM(Table1[[#This Row],[Total Red]:[Total Yellow]]))","v":""},{"$f":"IF(ISBLANK(Table1[[#This Row],[Child First Name]]),\"\",IF(Table1[[#This Row],[Score]]<1,\"Universal Need\",IF(Table1[[#This Row],[Score]]<4,\"Targeted Need\",IF(Table1[[#This Row],[Score]]<12,\"Personalised Need\",\"Intensive Need\"))))","v":""}]
[null,{"$f":"IFERROR(VLOOKUP(Table1[[#This Row],[Destination School No]],SchoolList[],4,FALSE),\"\")","v":""},null,null,null,null,null,null,null,null,null,null,null,null,null,null,null,null,null,null,null,null,null,null,null,null,null,null,null,null,null,null,"","","",{"$f":"IF(ISBLANK(Table1[[#This Row],[Child First Name]]),\"\",SUM(Table1[[#This Row],[Total Red]:[Total Yellow]]))","v":""},{"$f":"IF(ISBLANK(Table1[[#This Row],[Child First Name]]),\"\",IF(Table1[[#This Row],[Score]]<1,\"Universal Need\",IF(Table1[[#This Row],[Score]]<4,\"Targeted Need\",IF(Table1[[#This Row],[Score]]<12,\"Personalised Need\",\"Intensive Need\"))))","v":""}]
[null,{"$f":"IFERROR(VLOOKUP(Table1[[#This Row],[Destination School No]],SchoolList[],4,FALSE),\"\")","v":""},null,null,null,null,null,null,null,null,null,null,null,null,null,null,null,null,null,null,null,null,null,null,null,null,null,null,null,null,null,null,{"$f":"IF($D140<>\"\",COUNTIF($I140:$AF140,\"Intensive\")*12,\"\")","v":""},{"$f":"IF($D140<>\"\",COUNTIF($I140:$AF140,\"Personalised\")*4,\"\")","v":""},{"$f":"IF($D140<>\"\",COUNTIF($I140:$AF140,\"Targeted\"),\"\")","v":""},{"$f":"IF(ISBLANK(Table1[[#This Row],[Child First Name]]),\"\",SUM(Table1[[#This Row],[Total Red]:[Total Yellow]]))","v":""},{"$f":"IF(ISBLANK(Table1[[#This Row],[Child First Name]]),\"\",IF(Table1[[#This Row],[Score]]<1,\"Universal Need\",IF(Table1[[#This Row],[Score]]<4,\"Targeted Need\",IF(Table1[[#This Row],[Score]]<12,\"Personalised Need\",\"Intensive Need\"))))","v":""}]
[null,{"$f":"IFERROR(VLOOKUP(Table1[[#This Row],[Destination School No]],SchoolList[],4,FALSE),\"\")","v":""},null,null,null,null,null,null,null,null,null,null,null,null,null,null,null,null,null,null,null,null,null,null,null,null,null,null,null,null,null,null,"","","",{"$f":"IF(ISBLANK(Table1[[#This Row],[Child First Name]]),\"\",SUM(Table1[[#This Row],[Total Red]:[Total Yellow]]))","v":""},{"$f":"IF(ISBLANK(Table1[[#This Row],[Child First Name]]),\"\",IF(Table1[[#This Row],[Score]]<1,\"Universal Need\",IF(Table1[[#This Row],[Score]]<4,\"Targeted Need\",IF(Table1[[#This Row],[Score]]<12,\"Personalised Need\",\"Intensive Need\"))))","v":""}]
[null,{"$f":"IFERROR(VLOOKUP(Table1[[#This Row],[Destination School No]],SchoolList[],4,FALSE),\"\")","v":""},null,null,null,null,null,null,null,null,null,null,null,null,null,null,null,null,null,null,null,null,null,null,null,null,null,null,null,null,null,null,"","","",{"$f":"IF(ISBLANK(Table1[[#This Row],[Child First Name]]),\"\",SUM(Table1[[#This Row],[Total Red]:[Total Yellow]]))","v":""},{"$f":"IF(ISBLANK(Table1[[#This Row],[Child First Name]]),\"\",IF(Table1[[#This Row],[Score]]<1,\"Universal Need\",IF(Table1[[#This Row],[Score]]<4,\"Targeted Need\",IF(Table1[[#This Row],[Score]]<12,\"Personalised Need\",\"Intensive Need\"))))","v":""}]
[null,{"$f":"IFERROR(VLOOKUP(Table1[[#This Row],[Destination School No]],SchoolList[],4,FALSE),\"\")","v":""},null,null,null,null,null,null,null,null,null,null,null,null,null,null,null,null,null,null,null,null,null,null,null,null,null,null,null,null,null,null,"","","",{"$f":"IF(ISBLANK(Table1[[#This Row],[Child First Name]]),\"\",SUM(Table1[[#This Row],[Total Red]:[Total Yellow]]))","v":""},{"$f":"IF(ISBLANK(Table1[[#This Row],[Child First Name]]),\"\",IF(Table1[[#This Row],[Score]]<1,\"Universal Need\",IF(Table1[[#This Row],[Score]]<4,\"Targeted Need\",IF(Table1[[#This Row],[Score]]<12,\"Personalised Need\",\"Intensive Need\"))))","v":""}]
[null,{"$f":"IFERROR(VLOOKUP(Table1[[#This Row],[Destination School No]],SchoolList[],4,FALSE),\"\")","v":""},null,null,null,null,null,null,null,null,null,null,null,null,null,null,null,null,null,null,null,null,null,null,null,null,null,null,null,null,null,null,"","","",{"$f":"IF(ISBLANK(Table1[[#This Row],[Child First Name]]),\"\",SUM(Table1[[#This Row],[Total Red]:[Total Yellow]]))","v":""},{"$f":"IF(ISBLANK(Table1[[#This Row],[Child First Name]]),\"\",IF(Table1[[#This Row],[Score]]<1,\"Universal Need\",IF(Table1[[#This Row],[Score]]<4,\"Targeted Need\",IF(Table1[[#This Row],[Score]]<12,\"Personalised Need\",\"Intensive Need\"))))","v":""}]
[null,{"$f":"IFERROR(VLOOKUP(Table1[[#This Row],[Destination School No]],SchoolList[],4,FALSE),\"\")","v":""},null,null,null,null,null,null,null,null,null,null,null,null,null,null,null,null,null,null,null,null,null,null,null,null,null,null,null,null,null,null,"","","",{"$f":"IF(ISBLANK(Table1[[#This Row],[Child First Name]]),\"\",SUM(Table1[[#This Row],[Total Red]:[Total Yellow]]))","v":""},{"$f":"IF(ISBLANK(Table1[[#This Row],[Child First Name]]),\"\",IF(Table1[[#This Row],[Score]]<1,\"Universal Need\",IF(Table1[[#This Row],[Score]]<4,\"Targeted Need\",IF(Table1[[#This Row],[Score]]<12,\"Personalised Need\",\"Intensive Need\"))))","v":""}]
[null,{"$f":"IFERROR(VLOOKUP(Table1[[#This Row],[Destination School No]],SchoolList[],4,FALSE),\"\")","v":""},null,null,null,null,null,null,null,null,null,null,null,null,null,null,null,null,null,null,null,null,null,null,null,null,null,null,null,null,null,null,"","","",{"$f":"IF(ISBLANK(Table1[[#This Row],[Child First Name]]),\"\",SUM(Table1[[#This Row],[Total Red]:[Total Yellow]]))","v":""},{"$f":"IF(ISBLANK(Table1[[#This Row],[Child First Name]]),\"\",IF(Table1[[#This Row],[Score]]<1,\"Universal Need\",IF(Table1[[#This Row],[Score]]<4,\"Targeted Need\",IF(Table1[[#This Row],[Score]]<12,\"Personalised Need\",\"Intensive Need\"))))","v":""}]
[null,{"$f":"IFERROR(VLOOKUP(Table1[[#This Row],[Destination School No]],SchoolList[],4,FALSE),\"\")","v":""},null,null,null,null,null,null,null,null,null,null,null,null,null,null,null,null,null,null,null,null,null,null,null,null,null,null,null,null,null,null,"","","",{"$f":"IF(ISBLANK(Table1[[#This Row],[Child First Name]]),\"\",SUM(Table1[[#This Row],[Total Red]:[Total Yellow]]))","v":""},{"$f":"IF(ISBLANK(Table1[[#This Row],[Child First Name]]),\"\",IF(Table1[[#This Row],[Score]]<1,\"Universal Need\",IF(Table1[[#This Row],[Score]]<4,\"Targeted Need\",IF(Table1[[#This Row],[Score]]<12,\"Personalised Need\",\"Intensive Need\"))))","v":""}]
[null,{"$f":"IFERROR(VLOOKUP(Table1[[#This Row],[Destination School No]],SchoolList[],4,FALSE),\"\")","v":""},null,null,null,null,null,null,null,null,null,null,null,null,null,null,null,null,null,null,null,null,null,null,null,null,null,null,null,null,null,null,"","","",{"$f":"IF(ISBLANK(Table1[[#This Row],[Child First Name]]),\"\",SUM(Table1[[#This Row],[Total Red]:[Total Yellow]]))","v":""},{"$f":"IF(ISBLANK(Table1[[#This Row],[Child First Name]]),\"\",IF(Table1[[#This Row],[Score]]<1,\"Universal Need\",IF(Table1[[#This Row],[Score]]<4,\"Targeted Need\",IF(Table1[[#This Row],[Score]]<12,\"Personalised Need\",\"Intensive Need\"))))","v":""}]
[null,{"$f":"IFERROR(VLOOKUP(Table1[[#This Row],[Destination School No]],SchoolList[],4,FALSE),\"\")","v":""},null,null,null,null,null,null,null,null,null,null,null,null,null,null,null,null,null,null,null,null,null,null,null,null,null,null,null,null,null,null,"","","",{"$f":"IF(ISBLANK(Table1[[#This Row],[Child First Name]]),\"\",SUM(Table1[[#This Row],[Total Red]:[Total Yellow]]))","v":""},{"$f":"IF(ISBLANK(Table1[[#This Row],[Child First Name]]),\"\",IF(Table1[[#This Row],[Score]]<1,\"Universal Need\",IF(Table1[[#This Row],[Score]]<4,\"Targeted Need\",IF(Table1[[#This Row],[Score]]<12,\"Personalised Need\",\"Intensive Need\"))))","v":""}]
[null,{"$f":"IFERROR(VLOOKUP(Table1[[#This Row],[Destination School No]],SchoolList[],4,FALSE),\"\")","v":""},null,null,null,null,null,null,null,null,null,null,null,null,null,null,null,null,null,null,null,null,null,null,null,null,null,null,null,null,null,null,"","","",{"$f":"IF(ISBLANK(Table1[[#This Row],[Child First Name]]),\"\",SUM(Table1[[#This Row],[Total Red]:[Total Yellow]]))","v":""},{"$f":"IF(ISBLANK(Table1[[#This Row],[Child First Name]]),\"\",IF(Table1[[#This Row],[Score]]<1,\"Universal Need\",IF(Table1[[#This Row],[Score]]<4,\"Targeted Need\",IF(Table1[[#This Row],[Score]]<12,\"Personalised Need\",\"Intensive Need\"))))","v":""}]
[null,{"$f":"IFERROR(VLOOKUP(Table1[[#This Row],[Destination School No]],SchoolList[],4,FALSE),\"\")","v":""},null,null,null,null,null,null,null,null,null,null,null,null,null,null,null,null,null,null,null,null,null,null,null,null,null,null,null,null,null,null,"","","",{"$f":"IF(ISBLANK(Table1[[#This Row],[Child First Name]]),\"\",SUM(Table1[[#This Row],[Total Red]:[Total Yellow]]))","v":""},{"$f":"IF(ISBLANK(Table1[[#This Row],[Child First Name]]),\"\",IF(Table1[[#This Row],[Score]]<1,\"Universal Need\",IF(Table1[[#This Row],[Score]]<4,\"Targeted Need\",IF(Table1[[#This Row],[Score]]<12,\"Personalised Need\",\"Intensive Need\"))))","v":""}]
[null,{"$f":"IFERROR(VLOOKUP(Table1[[#This Row],[Destination School No]],SchoolList[],4,FALSE),\"\")","v":""},null,null,null,null,null,null,null,null,null,null,null,null,null,null,null,null,null,null,null,null,null,null,null,null,null,null,null,null,null,null,"","","",{"$f":"IF(ISBLANK(Table1[[#This Row],[Child First Name]]),\"\",SUM(Table1[[#This Row],[Total Red]:[Total Yellow]]))","v":""},{"$f":"IF(ISBLANK(Table1[[#This Row],[Child First Name]]),\"\",IF(Table1[[#This Row],[Score]]<1,\"Universal Need\",IF(Table1[[#This Row],[Score]]<4,\"Targeted Need\",IF(Table1[[#This Row],[Score]]<12,\"Personalised Need\",\"Intensive Need\"))))","v":""}]
[null,{"$f":"IFERROR(VLOOKUP(Table1[[#This Row],[Destination School No]],SchoolList[],4,FALSE),\"\")","v":""},null,null,null,null,null,null,null,null,null,null,null,null,null,null,null,null,null,null,null,null,null,null,null,null,null,null,null,null,null,null,"","","",{"$f":"IF(ISBLANK(Table1[[#This Row],[Child First Name]]),\"\",SUM(Table1[[#This Row],[Total Red]:[Total Yellow]]))","v":""},{"$f":"IF(ISBLANK(Table1[[#This Row],[Child First Name]]),\"\",IF(Table1[[#This Row],[Score]]<1,\"Universal Need\",IF(Table1[[#This Row],[Score]]<4,\"Targeted Need\",IF(Table1[[#This Row],[Score]]<12,\"Personalised Need\",\"Intensive Need\"))))","v":""}]
[null,{"$f":"IFERROR(VLOOKUP(Table1[[#This Row],[Destination School No]],SchoolList[],4,FALSE),\"\")","v":""},null,null,null,null,null,null,null,null,null,null,null,null,null,null,null,null,null,null,null,null,null,null,null,null,null,null,null,null,null,null,"","","",{"$f":"IF(ISBLANK(Table1[[#This Row],[Child First Name]]),\"\",SUM(Table1[[#This Row],[Total Red]:[Total Yellow]]))","v":""},{"$f":"IF(ISBLANK(Table1[[#This Row],[Child First Name]]),\"\",IF(Table1[[#This Row],[Score]]<1,\"Universal Need\",IF(Table1[[#This Row],[Score]]<4,\"Targeted Need\",IF(Table1[[#This Row],[Score]]<12,\"Personalised Need\",\"Intensive Need\"))))","v":""}]
[null,{"$f":"IFERROR(VLOOKUP(Table1[[#This Row],[Destination School No]],SchoolList[],4,FALSE),\"\")","v":""},null,null,null,null,null,null,null,null,null,null,null,null,null,null,null,null,null,null,null,null,null,null,null,null,null,null,null,null,null,null,"","","",{"$f":"IF(ISBLANK(Table1[[#This Row],[Child First Name]]),\"\",SUM(Table1[[#This Row],[Total Red]:[Total Yellow]]))","v":""},{"$f":"IF(ISBLANK(Table1[[#This Row],[Child First Name]]),\"\",IF(Table1[[#This Row],[Score]]<1,\"Universal Need\",IF(Table1[[#This Row],[Score]]<4,\"Targeted Need\",IF(Table1[[#This Row],[Score]]<12,\"Personalised Need\",\"Intensive Need\"))))","v":""}]
[null,{"$f":"IFERROR(VLOOKUP(Table1[[#This Row],[Destination School No]],SchoolList[],4,FALSE),\"\")","v":""},null,null,null,null,null,null,null,null,null,null,null,null,null,null,null,null,null,null,null,null,null,null,null,null,null,null,null,null,null,null,"","","",{"$f":"IF(ISBLANK(Table1[[#This Row],[Child First Name]]),\"\",SUM(Table1[[#This Row],[Total Red]:[Total Yellow]]))","v":""},{"$f":"IF(ISBLANK(Table1[[#This Row],[Child First Name]]),\"\",IF(Table1[[#This Row],[Score]]<1,\"Universal Need\",IF(Table1[[#This Row],[Score]]<4,\"Targeted Need\",IF(Table1[[#This Row],[Score]]<12,\"Personalised Need\",\"Intensive Need\"))))","v":""}]
[null,{"$f":"IFERROR(VLOOKUP(Table1[[#This Row],[Destination School No]],SchoolList[],4,FALSE),\"\")","v":""},null,null,null,null,null,null,null,null,null,null,null,null,null,null,null,null,null,null,null,null,null,null,null,null,null,null,null,null,null,null,"","","",{"$f":"IF(ISBLANK(Table1[[#This Row],[Child First Name]]),\"\",SUM(Table1[[#This Row],[Total Red]:[Total Yellow]]))","v":""},{"$f":"IF(ISBLANK(Table1[[#This Row],[Child First Name]]),\"\",IF(Table1[[#This Row],[Score]]<1,\"Universal Need\",IF(Table1[[#This Row],[Score]]<4,\"Targeted Need\",IF(Table1[[#This Row],[Score]]<12,\"Personalised Need\",\"Intensive Need\"))))","v":""}]
[null,{"$f":"IFERROR(VLOOKUP(Table1[[#This Row],[Destination School No]],SchoolList[],4,FALSE),\"\")","v":""},null,null,null,null,null,null,null,null,null,null,null,null,null,null,null,null,null,null,null,null,null,null,null,null,null,null,null,null,null,null,"","","",{"$f":"IF(ISBLANK(Table1[[#This Row],[Child First Name]]),\"\",SUM(Table1[[#This Row],[Total Red]:[Total Yellow]]))","v":""},{"$f":"IF(ISBLANK(Table1[[#This Row],[Child First Name]]),\"\",IF(Table1[[#This Row],[Score]]<1,\"Universal Need\",IF(Table1[[#This Row],[Score]]<4,\"Targeted Need\",IF(Table1[[#This Row],[Score]]<12,\"Personalised Need\",\"Intensive Need\"))))","v":""}]
[null,{"$f":"IFERROR(VLOOKUP(Table1[[#This Row],[Destination School No]],SchoolList[],4,FALSE),\"\")","v":""},null,null,null,null,null,null,null,null,null,null,null,null,null,null,null,null,null,null,null,null,null,null,null,null,null,null,null,null,null,null,"","","",{"$f":"IF(ISBLANK(Table1[[#This Row],[Child First Name]]),\"\",SUM(Table1[[#This Row],[Total Red]:[Total Yellow]]))","v":""},{"$f":"IF(ISBLANK(Table1[[#This Row],[Child First Name]]),\"\",IF(Table1[[#This Row],[Score]]<1,\"Universal Need\",IF(Table1[[#This Row],[Score]]<4,\"Targeted Need\",IF(Table1[[#This Row],[Score]]<12,\"Personalised Need\",\"Intensive Need\"))))","v":""}]
[null,{"$f":"IFERROR(VLOOKUP(Table1[[#This Row],[Destination School No]],SchoolList[],4,FALSE),\"\")","v":""},null,null,null,null,null,null,null,null,null,null,null,null,null,null,null,null,null,null,null,null,null,null,null,null,null,null,null,null,null,null,"","","",{"$f":"IF(ISBLANK(Table1[[#This Row],[Child First Name]]),\"\",SUM(Table1[[#This Row],[Total Red]:[Total Yellow]]))","v":""},{"$f":"IF(ISBLANK(Table1[[#This Row],[Child First Name]]),\"\",IF(Table1[[#This Row],[Score]]<1,\"Universal Need\",IF(Table1[[#This Row],[Score]]<4,\"Targeted Need\",IF(Table1[[#This Row],[Score]]<12,\"Personalised Need\",\"Intensive Need\"))))","v":""}]
[null,{"$f":"IFERROR(VLOOKUP(Table1[[#This Row],[Destination School No]],SchoolList[],4,FALSE),\"\")","v":""},null,null,null,null,null,null,null,null,null,null,null,null,null,null,null,null,null,null,null,null,null,null,null,null,null,null,null,null,null,null,"","","",{"$f":"IF(ISBLANK(Table1[[#This Row],[Child First Name]]),\"\",SUM(Table1[[#This Row],[Total Red]:[Total Yellow]]))","v":""},{"$f":"IF(ISBLANK(Table1[[#This Row],[Child First Name]]),\"\",IF(Table1[[#This Row],[Score]]<1,\"Universal Need\",IF(Table1[[#This Row],[Score]]<4,\"Targeted Need\",IF(Table1[[#This Row],[Score]]<12,\"Personalised Need\",\"Intensive Need\"))))","v":""}]
[null,{"$f":"IFERROR(VLOOKUP(Table1[[#This Row],[Destination School No]],SchoolList[],4,FALSE),\"\")","v":""},null,null,null,null,null,null,null,null,null,null,null,null,null,null,null,null,null,null,null,null,null,null,null,null,null,null,null,null,null,null,"","","",{"$f":"IF(ISBLANK(Table1[[#This Row],[Child First Name]]),\"\",SUM(Table1[[#This Row],[Total Red]:[Total Yellow]]))","v":""},{"$f":"IF(ISBLANK(Table1[[#This Row],[Child First Name]]),\"\",IF(Table1[[#This Row],[Score]]<1,\"Universal Need\",IF(Table1[[#This Row],[Score]]<4,\"Targeted Need\",IF(Table1[[#This Row],[Score]]<12,\"Personalised Need\",\"Intensive Need\"))))","v":""}]
[null,{"$f":"IFERROR(VLOOKUP(Table1[[#This Row],[Destination School No]],SchoolList[],4,FALSE),\"\")","v":""},null,null,null,null,null,null,null,null,null,null,null,null,null,null,null,null,null,null,null,null,null,null,null,null,null,null,null,null,null,null,"","","",{"$f":"IF(ISBLANK(Table1[[#This Row],[Child First Name]]),\"\",SUM(Table1[[#This Row],[Total Red]:[Total Yellow]]))","v":""},{"$f":"IF(ISBLANK(Table1[[#This Row],[Child First Name]]),\"\",IF(Table1[[#This Row],[Score]]<1,\"Universal Need\",IF(Table1[[#This Row],[Score]]<4,\"Targeted Need\",IF(Table1[[#This Row],[Score]]<12,\"Personalised Need\",\"Intensive Need\"))))","v":""}]
[null,{"$f":"IFERROR(VLOOKUP(Table1[[#This Row],[Destination School No]],SchoolList[],4,FALSE),\"\")","v":""},null,null,null,null,null,null,null,null,null,null,null,null,null,null,null,null,null,null,null,null,null,null,null,null,null,null,null,null,null,null,"","","",{"$f":"IF(ISBLANK(Table1[[#This Row],[Child First Name]]),\"\",SUM(Table1[[#This Row],[Total Red]:[Total Yellow]]))","v":""},{"$f":"IF(ISBLANK(Table1[[#This Row],[Child First Name]]),\"\",IF(Table1[[#This Row],[Score]]<1,\"Universal Need\",IF(Table1[[#This Row],[Score]]<4,\"Targeted Need\",IF(Table1[[#This Row],[Score]]<12,\"Personalised Need\",\"Intensive Need\"))))","v":""}]
[null,{"$f":"IFERROR(VLOOKUP(Table1[[#This Row],[Destination School No]],SchoolList[],4,FALSE),\"\")","v":""},null,null,null,null,null,null,null,null,null,null,null,null,null,null,null,null,null,null,null,null,null,null,null,null,null,null,null,null,null,null,"","","",{"$f":"IF(ISBLANK(Table1[[#This Row],[Child First Name]]),\"\",SUM(Table1[[#This Row],[Total Red]:[Total Yellow]]))","v":""},{"$f":"IF(ISBLANK(Table1[[#This Row],[Child First Name]]),\"\",IF(Table1[[#This Row],[Score]]<1,\"Universal Need\",IF(Table1[[#This Row],[Score]]<4,\"Targeted Need\",IF(Table1[[#This Row],[Score]]<12,\"Personalised Need\",\"Intensive Need\"))))","v":""}]
[null,{"$f":"IFERROR(VLOOKUP(Table1[[#This Row],[Destination School No]],SchoolList[],4,FALSE),\"\")","v":""},null,null,null,null,null,null,null,null,null,null,null,null,null,null,null,null,null,null,null,null,null,null,null,null,null,null,null,null,null,null,"","","",{"$f":"IF(ISBLANK(Table1[[#This Row],[Child First Name]]),\"\",SUM(Table1[[#This Row],[Total Red]:[Total Yellow]]))","v":""},{"$f":"IF(ISBLANK(Table1[[#This Row],[Child First Name]]),\"\",IF(Table1[[#This Row],[Score]]<1,\"Universal Need\",IF(Table1[[#This Row],[Score]]<4,\"Targeted Need\",IF(Table1[[#This Row],[Score]]<12,\"Personalised Need\",\"Intensive Need\"))))","v":""}]
[null,{"$f":"IFERROR(VLOOKUP(Table1[[#This Row],[Destination School No]],SchoolList[],4,FALSE),\"\")","v":""},null,null,null,null,null,null,null,null,null,null,null,null,null,null,null,null,null,null,null,null,null,null,null,null,null,null,null,null,null,null,"","","",{"$f":"IF(ISBLANK(Table1[[#This Row],[Child First Name]]),\"\",SUM(Table1[[#This Row],[Total Red]:[Total Yellow]]))","v":""},{"$f":"IF(ISBLANK(Table1[[#This Row],[Child First Name]]),\"\",IF(Table1[[#This Row],[Score]]<1,\"Universal Need\",IF(Table1[[#This Row],[Score]]<4,\"Targeted Need\",IF(Table1[[#This Row],[Score]]<12,\"Personalised Need\",\"Intensive Need\"))))","v":""}]
[null,{"$f":"IFERROR(VLOOKUP(Table1[[#This Row],[Destination School No]],SchoolList[],4,FALSE),\"\")","v":""},null,null,null,null,null,null,null,null,null,null,null,null,null,null,null,null,null,null,null,null,null,null,null,null,null,null,null,null,null,null,"","","",{"$f":"IF(ISBLANK(Table1[[#This Row],[Child First Name]]),\"\",SUM(Table1[[#This Row],[Total Red]:[Total Yellow]]))","v":""},{"$f":"IF(ISBLANK(Table1[[#This Row],[Child First Name]]),\"\",IF(Table1[[#This Row],[Score]]<1,\"Universal Need\",IF(Table1[[#This Row],[Score]]<4,\"Targeted Need\",IF(Table1[[#This Row],[Score]]<12,\"Personalised Need\",\"Intensive Need\"))))","v":""}]
[null,{"$f":"IFERROR(VLOOKUP(Table1[[#This Row],[Destination School No]],SchoolList[],4,FALSE),\"\")","v":""},null,null,null,null,null,null,null,null,null,null,null,null,null,null,null,null,null,null,null,null,null,null,null,null,null,null,null,null,null,null,"","","",{"$f":"IF(ISBLANK(Table1[[#This Row],[Child First Name]]),\"\",SUM(Table1[[#This Row],[Total Red]:[Total Yellow]]))","v":""},{"$f":"IF(ISBLANK(Table1[[#This Row],[Child First Name]]),\"\",IF(Table1[[#This Row],[Score]]<1,\"Universal Need\",IF(Table1[[#This Row],[Score]]<4,\"Targeted Need\",IF(Table1[[#This Row],[Score]]<12,\"Personalised Need\",\"Intensive Need\"))))","v":""}]
[null,{"$f":"IFERROR(VLOOKUP(Table1[[#This Row],[Destination School No]],SchoolList[],4,FALSE),\"\")","v":""},null,null,null,null,null,null,null,null,null,null,null,null,null,null,null,null,null,null,null,null,null,null,null,null,null,null,null,null,null,null,"","","",{"$f":"IF(ISBLANK(Table1[[#This Row],[Child First Name]]),\"\",SUM(Table1[[#This Row],[Total Red]:[Total Yellow]]))","v":""},{"$f":"IF(ISBLANK(Table1[[#This Row],[Child First Name]]),\"\",IF(Table1[[#This Row],[Score]]<1,\"Universal Need\",IF(Table1[[#This Row],[Score]]<4,\"Targeted Need\",IF(Table1[[#This Row],[Score]]<12,\"Personalised Need\",\"Intensive Need\"))))","v":""}]
[null,{"$f":"IFERROR(VLOOKUP(Table1[[#This Row],[Destination School No]],SchoolList[],4,FALSE),\"\")","v":""},null,null,null,null,null,null,null,null,null,null,null,null,null,null,null,null,null,null,null,null,null,null,null,null,null,null,null,null,null,null,"","","",{"$f":"IF(ISBLANK(Table1[[#This Row],[Child First Name]]),\"\",SUM(Table1[[#This Row],[Total Red]:[Total Yellow]]))","v":""},{"$f":"IF(ISBLANK(Table1[[#This Row],[Child First Name]]),\"\",IF(Table1[[#This Row],[Score]]<1,\"Universal Need\",IF(Table1[[#This Row],[Score]]<4,\"Targeted Need\",IF(Table1[[#This Row],[Score]]<12,\"Personalised Need\",\"Intensive Need\"))))","v":""}]
[null,{"$f":"IFERROR(VLOOKUP(Table1[[#This Row],[Destination School No]],SchoolList[],4,FALSE),\"\")","v":""},null,null,null,null,null,null,null,null,null,null,null,null,null,null,null,null,null,null,null,null,null,null,null,null,null,null,null,null,null,null,"","",{"$f":"IF($D172<>\"\",COUNTIF($I172:$AF172,\"Targeted\"),\"\")","v":""},{"$f":"IF(ISBLANK(Table1[[#This Row],[Child First Name]]),\"\",SUM(Table1[[#This Row],[Total Red]:[Total Yellow]]))","v":""},{"$f":"IF(ISBLANK(Table1[[#This Row],[Child First Name]]),\"\",IF(Table1[[#This Row],[Score]]<1,\"Universal Need\",IF(Table1[[#This Row],[Score]]<4,\"Targeted Need\",IF(Table1[[#This Row],[Score]]<12,\"Personalised Need\",\"Intensive Need\"))))","v":""}]
[null,{"$f":"IFERROR(VLOOKUP(Table1[[#This Row],[Destination School No]],SchoolList[],4,FALSE),\"\")","v":""},null,null,null,null,null,null,null,null,null,null,null,null,null,null,null,null,null,null,null,null,null,null,null,null,null,null,null,null,null,null,"","","",{"$f":"IF(ISBLANK(Table1[[#This Row],[Child First Name]]),\"\",SUM(Table1[[#This Row],[Total Red]:[Total Yellow]]))","v":""},{"$f":"IF(ISBLANK(Table1[[#This Row],[Child First Name]]),\"\",IF(Table1[[#This Row],[Score]]<1,\"Universal Need\",IF(Table1[[#This Row],[Score]]<4,\"Targeted Need\",IF(Table1[[#This Row],[Score]]<12,\"Personalised Need\",\"Intensive Need\"))))","v":""}]
[null,{"$f":"IFERROR(VLOOKUP(Table1[[#This Row],[Destination School No]],SchoolList[],4,FALSE),\"\")","v":""},null,null,null,null,null,null,null,null,null,null,null,null,null,null,null,null,null,null,null,null,null,null,null,null,null,null,null,null,null,null,"","","",{"$f":"IF(ISBLANK(Table1[[#This Row],[Child First Name]]),\"\",SUM(Table1[[#This Row],[Total Red]:[Total Yellow]]))","v":""},{"$f":"IF(ISBLANK(Table1[[#This Row],[Child First Name]]),\"\",IF(Table1[[#This Row],[Score]]<1,\"Universal Need\",IF(Table1[[#This Row],[Score]]<4,\"Targeted Need\",IF(Table1[[#This Row],[Score]]<12,\"Personalised Need\",\"Intensive Need\"))))","v":""}]
[null,{"$f":"IFERROR(VLOOKUP(Table1[[#This Row],[Destination School No]],SchoolList[],4,FALSE),\"\")","v":""},null,null,null,null,null,null,null,null,null,null,null,null,null,null,null,null,null,null,null,null,null,null,null,null,null,null,null,null,null,null,"","","",{"$f":"IF(ISBLANK(Table1[[#This Row],[Child First Name]]),\"\",SUM(Table1[[#This Row],[Total Red]:[Total Yellow]]))","v":""},{"$f":"IF(ISBLANK(Table1[[#This Row],[Child First Name]]),\"\",IF(Table1[[#This Row],[Score]]<1,\"Universal Need\",IF(Table1[[#This Row],[Score]]<4,\"Targeted Need\",IF(Table1[[#This Row],[Score]]<12,\"Personalised Need\",\"Intensive Need\"))))","v":""}]
[null,{"$f":"IFERROR(VLOOKUP(Table1[[#This Row],[Destination School No]],SchoolList[],4,FALSE),\"\")","v":""},null,null,null,null,null,null,null,null,null,null,null,null,null,null,null,null,null,null,null,null,null,null,null,null,null,null,null,null,null,null,"","",{"$f":"IF($D176<>\"\",COUNTIF($I176:$AF176,\"Targeted\"),\"\")","v":""},{"$f":"IF(ISBLANK(Table1[[#This Row],[Child First Name]]),\"\",SUM(Table1[[#This Row],[Total Red]:[Total Yellow]]))","v":""},{"$f":"IF(ISBLANK(Table1[[#This Row],[Child First Name]]),\"\",IF(Table1[[#This Row],[Score]]<1,\"Universal Need\",IF(Table1[[#This Row],[Score]]<4,\"Targeted Need\",IF(Table1[[#This Row],[Score]]<12,\"Personalised Need\",\"Intensive Need\"))))","v":""}]
[null,{"$f":"IFERROR(VLOOKUP(Table1[[#This Row],[Destination School No]],SchoolList[],4,FALSE),\"\")","v":""},null,null,null,null,null,null,null,null,null,null,null,null,null,null,null,null,null,null,null,null,null,null,null,null,null,null,null,null,null,null,"","","",{"$f":"IF(ISBLANK(Table1[[#This Row],[Child First Name]]),\"\",SUM(Table1[[#This Row],[Total Red]:[Total Yellow]]))","v":""},{"$f":"IF(ISBLANK(Table1[[#This Row],[Child First Name]]),\"\",IF(Table1[[#This Row],[Score]]<1,\"Universal Need\",IF(Table1[[#This Row],[Score]]<4,\"Targeted Need\",IF(Table1[[#This Row],[Score]]<12,\"Personalised Need\",\"Intensive Need\"))))","v":""}]
[null,{"$f":"IFERROR(VLOOKUP(Table1[[#This Row],[Destination School No]],SchoolList[],4,FALSE),\"\")","v":""},null,null,null,null,null,null,null,null,null,null,null,null,null,null,null,null,null,null,null,null,null,null,null,null,null,null,null,null,null,null,"","","",{"$f":"IF(ISBLANK(Table1[[#This Row],[Child First Name]]),\"\",SUM(Table1[[#This Row],[Total Red]:[Total Yellow]]))","v":""},{"$f":"IF(ISBLANK(Table1[[#This Row],[Child First Name]]),\"\",IF(Table1[[#This Row],[Score]]<1,\"Universal Need\",IF(Table1[[#This Row],[Score]]<4,\"Targeted Need\",IF(Table1[[#This Row],[Score]]<12,\"Personalised Need\",\"Intensive Need\"))))","v":""}]
[null,{"$f":"IFERROR(VLOOKUP(Table1[[#This Row],[Destination School No]],SchoolList[],4,FALSE),\"\")","v":""},null,null,null,null,null,null,null,null,null,null,null,null,null,null,null,null,null,null,null,null,null,null,null,null,null,null,null,null,null,null,"","","",{"$f":"IF(ISBLANK(Table1[[#This Row],[Child First Name]]),\"\",SUM(Table1[[#This Row],[Total Red]:[Total Yellow]]))","v":""},{"$f":"IF(ISBLANK(Table1[[#This Row],[Child First Name]]),\"\",IF(Table1[[#This Row],[Score]]<1,\"Universal Need\",IF(Table1[[#This Row],[Score]]<4,\"Targeted Need\",IF(Table1[[#This Row],[Score]]<12,\"Personalised Need\",\"Intensive Need\"))))","v":""}]
[null,{"$f":"IFERROR(VLOOKUP(Table1[[#This Row],[Destination School No]],SchoolList[],4,FALSE),\"\")","v":""},null,null,null,null,null,null,null,null,null,null,null,null,null,null,null,null,null,null,null,null,null,null,null,null,null,null,null,null,null,null,"","","",{"$f":"IF(ISBLANK(Table1[[#This Row],[Child First Name]]),\"\",SUM(Table1[[#This Row],[Total Red]:[Total Yellow]]))","v":""},{"$f":"IF(ISBLANK(Table1[[#This Row],[Child First Name]]),\"\",IF(Table1[[#This Row],[Score]]<1,\"Universal Need\",IF(Table1[[#This Row],[Score]]<4,\"Targeted Need\",IF(Table1[[#This Row],[Score]]<12,\"Personalised Need\",\"Intensive Need\"))))","v":""}]
[null,{"$f":"IFERROR(VLOOKUP(Table1[[#This Row],[Destination School No]],SchoolList[],4,FALSE),\"\")","v":""},null,null,null,null,null,null,null,null,null,null,null,null,null,null,null,null,null,null,null,null,null,null,null,null,null,null,null,null,null,null,"","","",{"$f":"IF(ISBLANK(Table1[[#This Row],[Child First Name]]),\"\",SUM(Table1[[#This Row],[Total Red]:[Total Yellow]]))","v":""},{"$f":"IF(ISBLANK(Table1[[#This Row],[Child First Name]]),\"\",IF(Table1[[#This Row],[Score]]<1,\"Universal Need\",IF(Table1[[#This Row],[Score]]<4,\"Targeted Need\",IF(Table1[[#This Row],[Score]]<12,\"Personalised Need\",\"Intensive Need\"))))","v":""}]
[null,{"$f":"IFERROR(VLOOKUP(Table1[[#This Row],[Destination School No]],SchoolList[],4,FALSE),\"\")","v":""},null,null,null,null,null,null,null,null,null,null,null,null,null,null,null,null,null,null,null,null,null,null,null,null,null,null,null,null,null,null,"","","",{"$f":"IF(ISBLANK(Table1[[#This Row],[Child First Name]]),\"\",SUM(Table1[[#This Row],[Total Red]:[Total Yellow]]))","v":""},{"$f":"IF(ISBLANK(Table1[[#This Row],[Child First Name]]),\"\",IF(Table1[[#This Row],[Score]]<1,\"Universal Need\",IF(Table1[[#This Row],[Score]]<4,\"Targeted Need\",IF(Table1[[#This Row],[Score]]<12,\"Personalised Need\",\"Intensive Need\"))))","v":""}]
[null,{"$f":"IFERROR(VLOOKUP(Table1[[#This Row],[Destination School No]],SchoolList[],4,FALSE),\"\")","v":""},null,null,null,null,null,null,null,null,null,null,null,null,null,null,null,null,null,null,null,null,null,null,null,null,null,null,null,null,null,null,"","","",{"$f":"IF(ISBLANK(Table1[[#This Row],[Child First Name]]),\"\",SUM(Table1[[#This Row],[Total Red]:[Total Yellow]]))","v":""},{"$f":"IF(ISBLANK(Table1[[#This Row],[Child First Name]]),\"\",IF(Table1[[#This Row],[Score]]<1,\"Universal Need\",IF(Table1[[#This Row],[Score]]<4,\"Targeted Need\",IF(Table1[[#This Row],[Score]]<12,\"Personalised Need\",\"Intensive Need\"))))","v":""}]
[null,{"$f":"IFERROR(VLOOKUP(Table1[[#This Row],[Destination School No]],SchoolList[],4,FALSE),\"\")","v":""},null,null,null,null,null,null,null,null,null,null,null,null,null,null,null,null,null,null,null,null,null,null,null,null,null,null,null,null,null,null,"","","",{"$f":"IF(ISBLANK(Table1[[#This Row],[Child First Name]]),\"\",SUM(Table1[[#This Row],[Total Red]:[Total Yellow]]))","v":""},{"$f":"IF(ISBLANK(Table1[[#This Row],[Child First Name]]),\"\",IF(Table1[[#This Row],[Score]]<1,\"Universal Need\",IF(Table1[[#This Row],[Score]]<4,\"Targeted Need\",IF(Table1[[#This Row],[Score]]<12,\"Personalised Need\",\"Intensive Need\"))))","v":""}]
[null,{"$f":"IFERROR(VLOOKUP(Table1[[#This Row],[Destination School No]],SchoolList[],4,FALSE),\"\")","v":""},null,null,null,null,null,null,null,null,null,null,null,null,null,null,null,null,null,null,null,null,null,null,null,null,null,null,null,null,null,null,"","","",{"$f":"IF(ISBLANK(Table1[[#This Row],[Child First Name]]),\"\",SUM(Table1[[#This Row],[Total Red]:[Total Yellow]]))","v":""},{"$f":"IF(ISBLANK(Table1[[#This Row],[Child First Name]]),\"\",IF(Table1[[#This Row],[Score]]<1,\"Universal Need\",IF(Table1[[#This Row],[Score]]<4,\"Targeted Need\",IF(Table1[[#This Row],[Score]]<12,\"Personalised Need\",\"Intensive Need\"))))","v":""}]
[null,{"$f":"IFERROR(VLOOKUP(Table1[[#This Row],[Destination School No]],SchoolList[],4,FALSE),\"\")","v":""},null,null,null,null,null,null,null,null,null,null,null,null,null,null,null,null,null,null,null,null,null,null,null,null,null,null,null,null,null,null,"","","",{"$f":"IF(ISBLANK(Table1[[#This Row],[Child First Name]]),\"\",SUM(Table1[[#This Row],[Total Red]:[Total Yellow]]))","v":""},{"$f":"IF(ISBLANK(Table1[[#This Row],[Child First Name]]),\"\",IF(Table1[[#This Row],[Score]]<1,\"Universal Need\",IF(Table1[[#This Row],[Score]]<4,\"Targeted Need\",IF(Table1[[#This Row],[Score]]<12,\"Personalised Need\",\"Intensive Need\"))))","v":""}]
[null,{"$f":"IFERROR(VLOOKUP(Table1[[#This Row],[Destination School No]],SchoolList[],4,FALSE),\"\")","v":""},null,null,null,null,null,null,null,null,null,null,null,null,null,null,null,null,null,null,null,null,null,null,null,null,null,null,null,null,null,null,"","","",{"$f":"IF(ISBLANK(Table1[[#This Row],[Child First Name]]),\"\",SUM(Table1[[#This Row],[Total Red]:[Total Yellow]]))","v":""},{"$f":"IF(ISBLANK(Table1[[#This Row],[Child First Name]]),\"\",IF(Table1[[#This Row],[Score]]<1,\"Universal Need\",IF(Table1[[#This Row],[Score]]<4,\"Targeted Need\",IF(Table1[[#This Row],[Score]]<12,\"Personalised Need\",\"Intensive Need\"))))","v":""}]
[null,{"$f":"IFERROR(VLOOKUP(Table1[[#This Row],[Destination School No]],SchoolList[],4,FALSE),\"\")","v":""},null,null,null,null,null,null,null,null,null,null,null,null,null,null,null,null,null,null,null,null,null,null,null,null,null,null,null,null,null,null,"","","",{"$f":"IF(ISBLANK(Table1[[#This Row],[Child First Name]]),\"\",SUM(Table1[[#This Row],[Total Red]:[Total Yellow]]))","v":""},{"$f":"IF(ISBLANK(Table1[[#This Row],[Child First Name]]),\"\",IF(Table1[[#This Row],[Score]]<1,\"Universal Need\",IF(Table1[[#This Row],[Score]]<4,\"Targeted Need\",IF(Table1[[#This Row],[Score]]<12,\"Personalised Need\",\"Intensive Need\"))))","v":""}]
[null,{"$f":"IFERROR(VLOOKUP(Table1[[#This Row],[Destination School No]],SchoolList[],4,FALSE),\"\")","v":""},null,null,null,null,null,null,null,null,null,null,null,null,null,null,null,null,null,null,null,null,null,null,null,null,null,null,null,null,null,null,"","","",{"$f":"IF(ISBLANK(Table1[[#This Row],[Child First Name]]),\"\",SUM(Table1[[#This Row],[Total Red]:[Total Yellow]]))","v":""},{"$f":"IF(ISBLANK(Table1[[#This Row],[Child First Name]]),\"\",IF(Table1[[#This Row],[Score]]<1,\"Universal Need\",IF(Table1[[#This Row],[Score]]<4,\"Targeted Need\",IF(Table1[[#This Row],[Score]]<12,\"Personalised Need\",\"Intensive Need\"))))","v":""}]
[null,{"$f":"IFERROR(VLOOKUP(Table1[[#This Row],[Destination School No]],SchoolList[],4,FALSE),\"\")","v":""},null,null,null,null,null,null,null,null,null,null,null,null,null,null,null,null,null,null,null,null,null,null,null,null,null,null,null,null,null,null,"","","",{"$f":"IF(ISBLANK(Table1[[#This Row],[Child First Name]]),\"\",SUM(Table1[[#This Row],[Total Red]:[Total Yellow]]))","v":""},{"$f":"IF(ISBLANK(Table1[[#This Row],[Child First Name]]),\"\",IF(Table1[[#This Row],[Score]]<1,\"Universal Need\",IF(Table1[[#This Row],[Score]]<4,\"Targeted Need\",IF(Table1[[#This Row],[Score]]<12,\"Personalised Need\",\"Intensive Need\"))))","v":""}]
[null,{"$f":"IFERROR(VLOOKUP(Table1[[#This Row],[Destination School No]],SchoolList[],4,FALSE),\"\")","v":""},null,null,null,null,null,null,null,null,null,null,null,null,null,null,null,null,null,null,null,null,null,null,null,null,null,null,null,null,null,null,"","","",{"$f":"IF(ISBLANK(Table1[[#This Row],[Child First Name]]),\"\",SUM(Table1[[#This Row],[Total Red]:[Total Yellow]]))","v":""},{"$f":"IF(ISBLANK(Table1[[#This Row],[Child First Name]]),\"\",IF(Table1[[#This Row],[Score]]<1,\"Universal Need\",IF(Table1[[#This Row],[Score]]<4,\"Targeted Need\",IF(Table1[[#This Row],[Score]]<12,\"Personalised Need\",\"Intensive Need\"))))","v":""}]
[null,{"$f":"IFERROR(VLOOKUP(Table1[[#This Row],[Destination School No]],SchoolList[],4,FALSE),\"\")","v":""},null,null,null,null,null,null,null,null,null,null,null,null,null,null,null,null,null,null,null,null,null,null,null,null,null,null,null,null,null,null,"","","",{"$f":"IF(ISBLANK(Table1[[#This Row],[Child First Name]]),\"\",SUM(Table1[[#This Row],[Total Red]:[Total Yellow]]))","v":""},{"$f":"IF(ISBLANK(Table1[[#This Row],[Child First Name]]),\"\",IF(Table1[[#This Row],[Score]]<1,\"Universal Need\",IF(Table1[[#This Row],[Score]]<4,\"Targeted Need\",IF(Table1[[#This Row],[Score]]<12,\"Personalised Need\",\"Intensive Need\"))))","v":""}]
[null,{"$f":"IFERROR(VLOOKUP(Table1[[#This Row],[Destination School No]],SchoolList[],4,FALSE),\"\")","v":""},null,null,null,null,null,null,null,null,null,null,null,null,null,null,null,null,null,null,null,null,null,null,null,null,null,null,null,null,null,null,"","","",{"$f":"IF(ISBLANK(Table1[[#This Row],[Child First Name]]),\"\",SUM(Table1[[#This Row],[Total Red]:[Total Yellow]]))","v":""},{"$f":"IF(ISBLANK(Table1[[#This Row],[Child First Name]]),\"\",IF(Table1[[#This Row],[Score]]<1,\"Universal Need\",IF(Table1[[#This Row],[Score]]<4,\"Targeted Need\",IF(Table1[[#This Row],[Score]]<12,\"Personalised Need\",\"Intensive Need\"))))","v":""}]
[null,{"$f":"IFERROR(VLOOKUP(Table1[[#This Row],[Destination School No]],SchoolList[],4,FALSE),\"\")","v":""},null,null,null,null,null,null,null,null,null,null,null,null,null,null,null,null,null,null,null,null,null,null,null,null,null,null,null,null,null,null,"","","",{"$f":"IF(ISBLANK(Table1[[#This Row],[Child First Name]]),\"\",SUM(Table1[[#This Row],[Total Red]:[Total Yellow]]))","v":""},{"$f":"IF(ISBLANK(Table1[[#This Row],[Child First Name]]),\"\",IF(Table1[[#This Row],[Score]]<1,\"Universal Need\",IF(Table1[[#This Row],[Score]]<4,\"Targeted Need\",IF(Table1[[#This Row],[Score]]<12,\"Personalised Need\",\"Intensive Need\"))))","v":""}]
[null,{"$f":"IFERROR(VLOOKUP(Table1[[#This Row],[Destination School No]],SchoolList[],4,FALSE),\"\")","v":""},null,null,null,null,null,null,null,null,null,null,null,null,null,null,null,null,null,null,null,null,null,null,null,null,null,null,null,null,null,null,"","","",{"$f":"IF(ISBLANK(Table1[[#This Row],[Child First Name]]),\"\",SUM(Table1[[#This Row],[Total Red]:[Total Yellow]]))","v":""},{"$f":"IF(ISBLANK(Table1[[#This Row],[Child First Name]]),\"\",IF(Table1[[#This Row],[Score]]<1,\"Universal Need\",IF(Table1[[#This Row],[Score]]<4,\"Targeted Need\",IF(Table1[[#This Row],[Score]]<12,\"Personalised Need\",\"Intensive Need\"))))","v":""}]
[null,{"$f":"IFERROR(VLOOKUP(Table1[[#This Row],[Destination School No]],SchoolList[],4,FALSE),\"\")","v":""},null,null,null,null,null,null,null,null,null,null,null,null,null,null,null,null,null,null,null,null,null,null,null,null,null,null,null,null,null,null,"","","",{"$f":"IF(ISBLANK(Table1[[#This Row],[Child First Name]]),\"\",SUM(Table1[[#This Row],[Total Red]:[Total Yellow]]))","v":""},{"$f":"IF(ISBLANK(Table1[[#This Row],[Child First Name]]),\"\",IF(Table1[[#This Row],[Score]]<1,\"Universal Need\",IF(Table1[[#This Row],[Score]]<4,\"Targeted Need\",IF(Table1[[#This Row],[Score]]<12,\"Personalised Need\",\"Intensive Need\"))))","v":""}]
[null,{"$f":"IFERROR(VLOOKUP(Table1[[#This Row],[Destination School No]],SchoolList[],4,FALSE),\"\")","v":""},null,null,null,null,null,null,null,null,null,null,null,null,null,null,null,null,null,null,null,null,null,null,null,null,null,null,null,null,null,null,"","","",{"$f":"IF(ISBLANK(Table1[[#This Row],[Child First Name]]),\"\",SUM(Table1[[#This Row],[Total Red]:[Total Yellow]]))","v":""},{"$f":"IF(ISBLANK(Table1[[#This Row],[Child First Name]]),\"\",IF(Table1[[#This Row],[Score]]<1,\"Universal Need\",IF(Table1[[#This Row],[Score]]<4,\"Targeted Need\",IF(Table1[[#This Row],[Score]]<12,\"Personalised Need\",\"Intensive Need\"))))","v":""}]
[null,{"$f":"IFERROR(VLOOKUP(Table1[[#This Row],[Destination School No]],SchoolList[],4,FALSE),\"\")","v":""},null,null,null,null,null,null,null,null,null,null,null,null,null,null,null,null,null,null,null,null,null,null,null,null,null,null,null,null,null,null,"","","",{"$f":"IF(ISBLANK(Table1[[#This Row],[Child First Name]]),\"\",SUM(Table1[[#This Row],[Total Red]:[Total Yellow]]))","v":""},{"$f":"IF(ISBLANK(Table1[[#This Row],[Child First Name]]),\"\",IF(Table1[[#This Row],[Score]]<1,\"Universal Need\",IF(Table1[[#This Row],[Score]]<4,\"Targeted Need\",IF(Table1[[#This Row],[Score]]<12,\"Personalised Need\",\"Intensive Need\"))))","v":""}]
[null,{"$f":"IFERROR(VLOOKUP(Table1[[#This Row],[Destination School No]],SchoolList[],4,FALSE),\"\")","v":""},null,null,null,null,null,null,null,null,null,null,null,null,null,null,null,null,null,null,null,null,null,null,null,null,null,null,null,null,null,null,"","","",{"$f":"IF(ISBLANK(Table1[[#This Row],[Child First Name]]),\"\",SUM(Table1[[#This Row],[Total Red]:[Total Yellow]]))","v":""},{"$f":"IF(ISBLANK(Table1[[#This Row],[Child First Name]]),\"\",IF(Table1[[#This Row],[Score]]<1,\"Universal Need\",IF(Table1[[#This Row],[Score]]<4,\"Targeted Need\",IF(Table1[[#This Row],[Score]]<12,\"Personalised Need\",\"Intensive Need\"))))","v":""}]
[null,{"$f":"IFERROR(VLOOKUP(Table1[[#This Row],[Destination School No]],SchoolList[],4,FALSE),\"\")","v":""},null,null,null,null,null,null,null,null,null,null,null,null,null,null,null,null,null,null,null,null,null,null,null,null,null,null,null,null,null,null,"","","",{"$f":"IF(ISBLANK(Table1[[#This Row],[Child First Name]]),\"\",SUM(Table1[[#This Row],[Total Red]:[Total Yellow]]))","v":""},{"$f":"IF(ISBLANK(Table1[[#This Row],[Child First Name]]),\"\",IF(Table1[[#This Row],[Score]]<1,\"Universal Need\",IF(Table1[[#This Row],[Score]]<4,\"Targeted Need\",IF(Table1[[#This Row],[Score]]<12,\"Personalised Need\",\"Intensive Need\"))))","v":""}]
[null,{"$f":"IFERROR(VLOOKUP(Table1[[#This Row],[Destination School No]],SchoolList[],4,FALSE),\"\")","v":""},null,null,null,null,null,null,null,null,null,null,null,null,null,null,null,null,null,null,null,null,null,null,null,null,null,null,null,null,null,null,"","","",{"$f":"IF(ISBLANK(Table1[[#This Row],[Child First Name]]),\"\",SUM(Table1[[#This Row],[Total Red]:[Total Yellow]]))","v":""},{"$f":"IF(ISBLANK(Table1[[#This Row],[Child First Name]]),\"\",IF(Table1[[#This Row],[Score]]<1,\"Universal Need\",IF(Table1[[#This Row],[Score]]<4,\"Targeted Need\",IF(Table1[[#This Row],[Score]]<12,\"Personalised Need\",\"Intensive Need\"))))","v":""}]
[null,{"$f":"IFERROR(VLOOKUP(Table1[[#This Row],[Destination School No]],SchoolList[],4,FALSE),\"\")","v":""},null,null,null,null,null,null,null,null,null,null,null,null,null,null,null,null,null,null,null,null,null,null,null,null,null,null,null,null,null,null,"","","",{"$f":"IF(ISBLANK(Table1[[#This Row],[Child First Name]]),\"\",SUM(Table1[[#This Row],[Total Red]:[Total Yellow]]))","v":""},{"$f":"IF(ISBLANK(Table1[[#This Row],[Child First Name]]),\"\",IF(Table1[[#This Row],[Score]]<1,\"Universal Need\",IF(Table1[[#This Row],[Score]]<4,\"Targeted Need\",IF(Table1[[#This Row],[Score]]<12,\"Personalised Need\",\"Intensive Need\"))))","v":""}]
[null,{"$f":"IFERROR(VLOOKUP(Table1[[#This Row],[Destination School No]],SchoolList[],4,FALSE),\"\")","v":""},null,null,null,null,null,null,null,null,null,null,null,null,null,null,null,null,null,null,null,null,null,null,null,null,null,null,null,null,null,null,"","","",{"$f":"IF(ISBLANK(Table1[[#This Row],[Child First Name]]),\"\",SUM(Table1[[#This Row],[Total Red]:[Total Yellow]]))","v":""},{"$f":"IF(ISBLANK(Table1[[#This Row],[Child First Name]]),\"\",IF(Table1[[#This Row],[Score]]<1,\"Universal Need\",IF(Table1[[#This Row],[Score]]<4,\"Targeted Need\",IF(Table1[[#This Row],[Score]]<12,\"Personalised Need\",\"Intensive Need\"))))","v":""}]
[null,{"$f":"IFERROR(VLOOKUP(Table1[[#This Row],[Destination School No]],SchoolList[],4,FALSE),\"\")","v":""},null,null,null,null,null,null,null,null,null,null,null,null,null,null,null,null,null,null,null,null,null,null,null,null,null,null,null,null,null,null,{"$f":"IF($D204<>\"\",COUNTIF($I204:$AF204,\"Intensive\")*12,\"\")","v":""},{"$f":"IF($D204<>\"\",COUNTIF($I204:$AF204,\"Personalised\")*4,\"\")","v":""},"",{"$f":"IF(ISBLANK(Table1[[#This Row],[Child First Name]]),\"\",SUM(Table1[[#This Row],[Total Red]:[Total Yellow]]))","v":""},{"$f":"IF(ISBLANK(Table1[[#This Row],[Child First Name]]),\"\",IF(Table1[[#This Row],[Score]]<1,\"Universal Need\",IF(Table1[[#This Row],[Score]]<4,\"Targeted Need\",IF(Table1[[#This Row],[Score]]<12,\"Personalised Need\",\"Intensive Need\"))))","v":""}]
[null,{"$f":"IFERROR(VLOOKUP(Table1[[#This Row],[Destination School No]],SchoolList[],4,FALSE),\"\")","v":""},null,null,null,null,null,null,null,null,null,null,null,null,null,null,null,null,null,null,null,null,null,null,null,null,null,null,null,null,null,null,"","","",{"$f":"IF(ISBLANK(Table1[[#This Row],[Child First Name]]),\"\",SUM(Table1[[#This Row],[Total Red]:[Total Yellow]]))","v":""},{"$f":"IF(ISBLANK(Table1[[#This Row],[Child First Name]]),\"\",IF(Table1[[#This Row],[Score]]<1,\"Universal Need\",IF(Table1[[#This Row],[Score]]<4,\"Targeted Need\",IF(Table1[[#This Row],[Score]]<12,\"Personalised Need\",\"Intensive Need\"))))","v":""}]
[null,{"$f":"IFERROR(VLOOKUP(Table1[[#This Row],[Destination School No]],SchoolList[],4,FALSE),\"\")","v":""},null,null,null,null,null,null,null,null,null,null,null,null,null,null,null,null,null,null,null,null,null,null,null,null,null,null,null,null,null,null,"","","",{"$f":"IF(ISBLANK(Table1[[#This Row],[Child First Name]]),\"\",SUM(Table1[[#This Row],[Total Red]:[Total Yellow]]))","v":""},{"$f":"IF(ISBLANK(Table1[[#This Row],[Child First Name]]),\"\",IF(Table1[[#This Row],[Score]]<1,\"Universal Need\",IF(Table1[[#This Row],[Score]]<4,\"Targeted Need\",IF(Table1[[#This Row],[Score]]<12,\"Personalised Need\",\"Intensive Need\"))))","v":""}]
[null,{"$f":"IFERROR(VLOOKUP(Table1[[#This Row],[Destination School No]],SchoolList[],4,FALSE),\"\")","v":""},null,null,null,null,null,null,null,null,null,null,null,null,null,null,null,null,null,null,null,null,null,null,null,null,null,null,null,null,null,null,"","","",{"$f":"IF(ISBLANK(Table1[[#This Row],[Child First Name]]),\"\",SUM(Table1[[#This Row],[Total Red]:[Total Yellow]]))","v":""},{"$f":"IF(ISBLANK(Table1[[#This Row],[Child First Name]]),\"\",IF(Table1[[#This Row],[Score]]<1,\"Universal Need\",IF(Table1[[#This Row],[Score]]<4,\"Targeted Need\",IF(Table1[[#This Row],[Score]]<12,\"Personalised Need\",\"Intensive Need\"))))","v":""}]
[null,{"$f":"IFERROR(VLOOKUP(Table1[[#This Row],[Destination School No]],SchoolList[],4,FALSE),\"\")","v":""},null,null,null,null,null,null,null,null,null,null,null,null,null,null,null,null,null,null,null,null,null,null,null,null,null,null,null,null,null,null,"","","",{"$f":"IF(ISBLANK(Table1[[#This Row],[Child First Name]]),\"\",SUM(Table1[[#This Row],[Total Red]:[Total Yellow]]))","v":""},{"$f":"IF(ISBLANK(Table1[[#This Row],[Child First Name]]),\"\",IF(Table1[[#This Row],[Score]]<1,\"Universal Need\",IF(Table1[[#This Row],[Score]]<4,\"Targeted Need\",IF(Table1[[#This Row],[Score]]<12,\"Personalised Need\",\"Intensive Need\"))))","v":""}]
[null,{"$f":"IFERROR(VLOOKUP(Table1[[#This Row],[Destination School No]],SchoolList[],4,FALSE),\"\")","v":""},null,null,null,null,null,null,null,null,null,null,null,null,null,null,null,null,null,null,null,null,null,null,null,null,null,null,null,null,null,null,"","","",{"$f":"IF(ISBLANK(Table1[[#This Row],[Child First Name]]),\"\",SUM(Table1[[#This Row],[Total Red]:[Total Yellow]]))","v":""},{"$f":"IF(ISBLANK(Table1[[#This Row],[Child First Name]]),\"\",IF(Table1[[#This Row],[Score]]<1,\"Universal Need\",IF(Table1[[#This Row],[Score]]<4,\"Targeted Need\",IF(Table1[[#This Row],[Score]]<12,\"Personalised Need\",\"Intensive Need\"))))","v":""}]
[null,{"$f":"IFERROR(VLOOKUP(Table1[[#This Row],[Destination School No]],SchoolList[],4,FALSE),\"\")","v":""},null,null,null,null,null,null,null,null,null,null,null,null,null,null,null,null,null,null,null,null,null,null,null,null,null,null,null,null,null,null,"","",{"$f":"IF($D210<>\"\",COUNTIF($I210:$AF210,\"Targeted\"),\"\")","v":""},{"$f":"IF(ISBLANK(Table1[[#This Row],[Child First Name]]),\"\",SUM(Table1[[#This Row],[Total Red]:[Total Yellow]]))","v":""},{"$f":"IF(ISBLANK(Table1[[#This Row],[Child First Name]]),\"\",IF(Table1[[#This Row],[Score]]<1,\"Universal Need\",IF(Table1[[#This Row],[Score]]<4,\"Targeted Need\",IF(Table1[[#This Row],[Score]]<12,\"Personalised Need\",\"Intensive Need\"))))","v":""}]
[null,{"$f":"IFERROR(VLOOKUP(Table1[[#This Row],[Destination School No]],SchoolList[],4,FALSE),\"\")","v":""},null,null,null,null,null,null,null,null,null,null,null,null,null,null,null,null,null,null,null,null,null,null,null,null,null,null,null,null,null,null,"","","",{"$f":"IF(ISBLANK(Table1[[#This Row],[Child First Name]]),\"\",SUM(Table1[[#This Row],[Total Red]:[Total Yellow]]))","v":""},{"$f":"IF(ISBLANK(Table1[[#This Row],[Child First Name]]),\"\",IF(Table1[[#This Row],[Score]]<1,\"Universal Need\",IF(Table1[[#This Row],[Score]]<4,\"Targeted Need\",IF(Table1[[#This Row],[Score]]<12,\"Personalised Need\",\"Intensive Need\"))))","v":""}]
[null,{"$f":"IFERROR(VLOOKUP(Table1[[#This Row],[Destination School No]],SchoolList[],4,FALSE),\"\")","v":""},null,null,null,null,null,null,null,null,null,null,null,null,null,null,null,null,null,null,null,null,null,null,null,null,null,null,null,null,null,null,"","","",{"$f":"IF(ISBLANK(Table1[[#This Row],[Child First Name]]),\"\",SUM(Table1[[#This Row],[Total Red]:[Total Yellow]]))","v":""},{"$f":"IF(ISBLANK(Table1[[#This Row],[Child First Name]]),\"\",IF(Table1[[#This Row],[Score]]<1,\"Universal Need\",IF(Table1[[#This Row],[Score]]<4,\"Targeted Need\",IF(Table1[[#This Row],[Score]]<12,\"Personalised Need\",\"Intensive Need\"))))","v":""}]
[null,{"$f":"IFERROR(VLOOKUP(Table1[[#This Row],[Destination School No]],SchoolList[],4,FALSE),\"\")","v":""},null,null,null,null,null,null,null,null,null,null,null,null,null,null,null,null,null,null,null,null,null,null,null,null,null,null,null,null,null,null,"","","",{"$f":"IF(ISBLANK(Table1[[#This Row],[Child First Name]]),\"\",SUM(Table1[[#This Row],[Total Red]:[Total Yellow]]))","v":""},{"$f":"IF(ISBLANK(Table1[[#This Row],[Child First Name]]),\"\",IF(Table1[[#This Row],[Score]]<1,\"Universal Need\",IF(Table1[[#This Row],[Score]]<4,\"Targeted Need\",IF(Table1[[#This Row],[Score]]<12,\"Personalised Need\",\"Intensive Need\"))))","v":""}]
[null,{"$f":"IFERROR(VLOOKUP(Table1[[#This Row],[Destination School No]],SchoolList[],4,FALSE),\"\")","v":""},null,null,null,null,null,null,null,null,null,null,null,null,null,null,null,null,null,null,null,null,null,null,null,null,null,null,null,null,null,null,"","","",{"$f":"IF(ISBLANK(Table1[[#This Row],[Child First Name]]),\"\",SUM(Table1[[#This Row],[Total Red]:[Total Yellow]]))","v":""},{"$f":"IF(ISBLANK(Table1[[#This Row],[Child First Name]]),\"\",IF(Table1[[#This Row],[Score]]<1,\"Universal Need\",IF(Table1[[#This Row],[Score]]<4,\"Targeted Need\",IF(Table1[[#This Row],[Score]]<12,\"Personalised Need\",\"Intensive Need\"))))","v":""}]
[null,{"$f":"IFERROR(VLOOKUP(Table1[[#This Row],[Destination School No]],SchoolList[],4,FALSE),\"\")","v":""},null,null,null,null,null,null,null,null,null,null,null,null,null,null,null,null,null,null,null,null,null,null,null,null,null,null,null,null,null,null,"","","",{"$f":"IF(ISBLANK(Table1[[#This Row],[Child First Name]]),\"\",SUM(Table1[[#This Row],[Total Red]:[Total Yellow]]))","v":""},{"$f":"IF(ISBLANK(Table1[[#This Row],[Child First Name]]),\"\",IF(Table1[[#This Row],[Score]]<1,\"Universal Need\",IF(Table1[[#This Row],[Score]]<4,\"Targeted Need\",IF(Table1[[#This Row],[Score]]<12,\"Personalised Need\",\"Intensive Need\"))))","v":""}]
[null,{"$f":"IFERROR(VLOOKUP(Table1[[#This Row],[Destination School No]],SchoolList[],4,FALSE),\"\")","v":""},null,null,null,null,null,null,null,null,null,null,null,null,null,null,null,null,null,null,null,null,null,null,null,null,null,null,null,null,null,null,"","","",{"$f":"IF(ISBLANK(Table1[[#This Row],[Child First Name]]),\"\",SUM(Table1[[#This Row],[Total Red]:[Total Yellow]]))","v":""},{"$f":"IF(ISBLANK(Table1[[#This Row],[Child First Name]]),\"\",IF(Table1[[#This Row],[Score]]<1,\"Universal Need\",IF(Table1[[#This Row],[Score]]<4,\"Targeted Need\",IF(Table1[[#This Row],[Score]]<12,\"Personalised Need\",\"Intensive Need\"))))","v":""}]
[null,{"$f":"IFERROR(VLOOKUP(Table1[[#This Row],[Destination School No]],SchoolList[],4,FALSE),\"\")","v":""},null,null,null,null,null,null,null,null,null,null,null,null,null,null,null,null,null,null,null,null,null,null,null,null,null,null,null,null,null,null,"","","",{"$f":"IF(ISBLANK(Table1[[#This Row],[Child First Name]]),\"\",SUM(Table1[[#This Row],[Total Red]:[Total Yellow]]))","v":""},{"$f":"IF(ISBLANK(Table1[[#This Row],[Child First Name]]),\"\",IF(Table1[[#This Row],[Score]]<1,\"Universal Need\",IF(Table1[[#This Row],[Score]]<4,\"Targeted Need\",IF(Table1[[#This Row],[Score]]<12,\"Personalised Need\",\"Intensive Need\"))))","v":""}]
[null,{"$f":"IFERROR(VLOOKUP(Table1[[#This Row],[Destination School No]],SchoolList[],4,FALSE),\"\")","v":""},null,null,null,null,null,null,null,null,null,null,null,null,null,null,null,null,null,null,null,null,null,null,null,null,null,null,null,null,null,null,"","","",{"$f":"IF(ISBLANK(Table1[[#This Row],[Child First Name]]),\"\",SUM(Table1[[#This Row],[Total Red]:[Total Yellow]]))","v":""},{"$f":"IF(ISBLANK(Table1[[#This Row],[Child First Name]]),\"\",IF(Table1[[#This Row],[Score]]<1,\"Universal Need\",IF(Table1[[#This Row],[Score]]<4,\"Targeted Need\",IF(Table1[[#This Row],[Score]]<12,\"Personalised Need\",\"Intensive Need\"))))","v":""}]
[null,{"$f":"IFERROR(VLOOKUP(Table1[[#This Row],[Destination School No]],SchoolList[],4,FALSE),\"\")","v":""},null,null,null,null,null,null,null,null,null,null,null,null,null,null,null,null,null,null,null,null,null,null,null,null,null,null,null,null,null,null,"","","",{"$f":"IF(ISBLANK(Table1[[#This Row],[Child First Name]]),\"\",SUM(Table1[[#This Row],[Total Red]:[Total Yellow]]))","v":""},{"$f":"IF(ISBLANK(Table1[[#This Row],[Child First Name]]),\"\",IF(Table1[[#This Row],[Score]]<1,\"Universal Need\",IF(Table1[[#This Row],[Score]]<4,\"Targeted Need\",IF(Table1[[#This Row],[Score]]<12,\"Personalised Need\",\"Intensive Need\"))))","v":""}]
[null,{"$f":"IFERROR(VLOOKUP(Table1[[#This Row],[Destination School No]],SchoolList[],4,FALSE),\"\")","v":""},null,null,null,null,null,null,null,null,null,null,null,null,null,null,null,null,null,null,null,null,null,null,null,null,null,null,null,null,null,null,"","","",{"$f":"IF(ISBLANK(Table1[[#This Row],[Child First Name]]),\"\",SUM(Table1[[#This Row],[Total Red]:[Total Yellow]]))","v":""},{"$f":"IF(ISBLANK(Table1[[#This Row],[Child First Name]]),\"\",IF(Table1[[#This Row],[Score]]<1,\"Universal Need\",IF(Table1[[#This Row],[Score]]<4,\"Targeted Need\",IF(Table1[[#This Row],[Score]]<12,\"Personalised Need\",\"Intensive Need\"))))","v":""}]
[null,{"$f":"IFERROR(VLOOKUP(Table1[[#This Row],[Destination School No]],SchoolList[],4,FALSE),\"\")","v":""},null,null,null,null,null,null,null,null,null,null,null,null,null,null,null,null,null,null,null,null,null,null,null,null,null,null,null,null,null,null,"","","",{"$f":"IF(ISBLANK(Table1[[#This Row],[Child First Name]]),\"\",SUM(Table1[[#This Row],[Total Red]:[Total Yellow]]))","v":""},{"$f":"IF(ISBLANK(Table1[[#This Row],[Child First Name]]),\"\",IF(Table1[[#This Row],[Score]]<1,\"Universal Need\",IF(Table1[[#This Row],[Score]]<4,\"Targeted Need\",IF(Table1[[#This Row],[Score]]<12,\"Personalised Need\",\"Intensive Need\"))))","v":""}]
[null,{"$f":"IFERROR(VLOOKUP(Table1[[#This Row],[Destination School No]],SchoolList[],4,FALSE),\"\")","v":""},null,null,null,null,null,null,null,null,null,null,null,null,null,null,null,null,null,null,null,null,null,null,null,null,null,null,null,null,null,null,"","","",{"$f":"IF(ISBLANK(Table1[[#This Row],[Child First Name]]),\"\",SUM(Table1[[#This Row],[Total Red]:[Total Yellow]]))","v":""},{"$f":"IF(ISBLANK(Table1[[#This Row],[Child First Name]]),\"\",IF(Table1[[#This Row],[Score]]<1,\"Universal Need\",IF(Table1[[#This Row],[Score]]<4,\"Targeted Need\",IF(Table1[[#This Row],[Score]]<12,\"Personalised Need\",\"Intensive Need\"))))","v":""}]
[null,{"$f":"IFERROR(VLOOKUP(Table1[[#This Row],[Destination School No]],SchoolList[],4,FALSE),\"\")","v":""},null,null,null,null,null,null,null,null,null,null,null,null,null,null,null,null,null,null,null,null,null,null,null,null,null,null,null,null,null,null,"","","",{"$f":"IF(ISBLANK(Table1[[#This Row],[Child First Name]]),\"\",SUM(Table1[[#This Row],[Total Red]:[Total Yellow]]))","v":""},{"$f":"IF(ISBLANK(Table1[[#This Row],[Child First Name]]),\"\",IF(Table1[[#This Row],[Score]]<1,\"Universal Need\",IF(Table1[[#This Row],[Score]]<4,\"Targeted Need\",IF(Table1[[#This Row],[Score]]<12,\"Personalised Need\",\"Intensive Need\"))))","v":""}]
[null,{"$f":"IFERROR(VLOOKUP(Table1[[#This Row],[Destination School No]],SchoolList[],4,FALSE),\"\")","v":""},null,null,null,null,null,null,null,null,null,null,null,null,null,null,null,null,null,null,null,null,null,null,null,null,null,null,null,null,null,null,"","","",{"$f":"IF(ISBLANK(Table1[[#This Row],[Child First Name]]),\"\",SUM(Table1[[#This Row],[Total Red]:[Total Yellow]]))","v":""},{"$f":"IF(ISBLANK(Table1[[#This Row],[Child First Name]]),\"\",IF(Table1[[#This Row],[Score]]<1,\"Universal Need\",IF(Table1[[#This Row],[Score]]<4,\"Targeted Need\",IF(Table1[[#This Row],[Score]]<12,\"Personalised Need\",\"Intensive Need\"))))","v":""}]
[null,{"$f":"IFERROR(VLOOKUP(Table1[[#This Row],[Destination School No]],SchoolList[],4,FALSE),\"\")","v":""},null,null,null,null,null,null,null,null,null,null,null,null,null,null,null,null,null,null,null,null,null,null,null,null,null,null,null,null,null,null,"","","",{"$f":"IF(ISBLANK(Table1[[#This Row],[Child First Name]]),\"\",SUM(Table1[[#This Row],[Total Red]:[Total Yellow]]))","v":""},{"$f":"IF(ISBLANK(Table1[[#This Row],[Child First Name]]),\"\",IF(Table1[[#This Row],[Score]]<1,\"Universal Need\",IF(Table1[[#This Row],[Score]]<4,\"Targeted Need\",IF(Table1[[#This Row],[Score]]<12,\"Personalised Need\",\"Intensive Need\"))))","v":""}]
[null,{"$f":"IFERROR(VLOOKUP(Table1[[#This Row],[Destination School No]],SchoolList[],4,FALSE),\"\")","v":""},null,null,null,null,null,null,null,null,null,null,null,null,null,null,null,null,null,null,null,null,null,null,null,null,null,null,null,null,null,null,"","","",{"$f":"IF(ISBLANK(Table1[[#This Row],[Child First Name]]),\"\",SUM(Table1[[#This Row],[Total Red]:[Total Yellow]]))","v":""},{"$f":"IF(ISBLANK(Table1[[#This Row],[Child First Name]]),\"\",IF(Table1[[#This Row],[Score]]<1,\"Universal Need\",IF(Table1[[#This Row],[Score]]<4,\"Targeted Need\",IF(Table1[[#This Row],[Score]]<12,\"Personalised Need\",\"Intensive Need\"))))","v":""}]
[null,{"$f":"IFERROR(VLOOKUP(Table1[[#This Row],[Destination School No]],SchoolList[],4,FALSE),\"\")","v":""},null,null,null,null,null,null,null,null,null,null,null,null,null,null,null,null,null,null,null,null,null,null,null,null,null,null,null,null,null,null,"","","",{"$f":"IF(ISBLANK(Table1[[#This Row],[Child First Name]]),\"\",SUM(Table1[[#This Row],[Total Red]:[Total Yellow]]))","v":""},{"$f":"IF(ISBLANK(Table1[[#This Row],[Child First Name]]),\"\",IF(Table1[[#This Row],[Score]]<1,\"Universal Need\",IF(Table1[[#This Row],[Score]]<4,\"Targeted Need\",IF(Table1[[#This Row],[Score]]<12,\"Personalised Need\",\"Intensive Need\"))))","v":""}]
[null,{"$f":"IFERROR(VLOOKUP(Table1[[#This Row],[Destination School No]],SchoolList[],4,FALSE),\"\")","v":""},null,null,null,null,null,null,null,null,null,null,null,null,null,null,null,null,null,null,null,null,null,null,null,null,null,null,null,null,null,null,"","","",{"$f":"IF(ISBLANK(Table1[[#This Row],[Child First Name]]),\"\",SUM(Table1[[#This Row],[Total Red]:[Total Yellow]]))","v":""},{"$f":"IF(ISBLANK(Table1[[#This Row],[Child First Name]]),\"\",IF(Table1[[#This Row],[Score]]<1,\"Universal Need\",IF(Table1[[#This Row],[Score]]<4,\"Targeted Need\",IF(Table1[[#This Row],[Score]]<12,\"Personalised Need\",\"Intensive Need\"))))","v":""}]
[null,{"$f":"IFERROR(VLOOKUP(Table1[[#This Row],[Destination School No]],SchoolList[],4,FALSE),\"\")","v":""},null,null,null,null,null,null,null,null,null,null,null,null,null,null,null,null,null,null,null,null,null,null,null,null,null,null,null,null,null,null,"","","",{"$f":"IF(ISBLANK(Table1[[#This Row],[Child First Name]]),\"\",SUM(Table1[[#This Row],[Total Red]:[Total Yellow]]))","v":""},{"$f":"IF(ISBLANK(Table1[[#This Row],[Child First Name]]),\"\",IF(Table1[[#This Row],[Score]]<1,\"Universal Need\",IF(Table1[[#This Row],[Score]]<4,\"Targeted Need\",IF(Table1[[#This Row],[Score]]<12,\"Personalised Need\",\"Intensive Need\"))))","v":""}]
[null,{"$f":"IFERROR(VLOOKUP(Table1[[#This Row],[Destination School No]],SchoolList[],4,FALSE),\"\")","v":""},null,null,null,null,null,null,null,null,null,null,null,null,null,null,null,null,null,null,null,null,null,null,null,null,null,null,null,null,null,null,"","","",{"$f":"IF(ISBLANK(Table1[[#This Row],[Child First Name]]),\"\",SUM(Table1[[#This Row],[Total Red]:[Total Yellow]]))","v":""},{"$f":"IF(ISBLANK(Table1[[#This Row],[Child First Name]]),\"\",IF(Table1[[#This Row],[Score]]<1,\"Universal Need\",IF(Table1[[#This Row],[Score]]<4,\"Targeted Need\",IF(Table1[[#This Row],[Score]]<12,\"Personalised Need\",\"Intensive Need\"))))","v":""}]
[null,{"$f":"IFERROR(VLOOKUP(Table1[[#This Row],[Destination School No]],SchoolList[],4,FALSE),\"\")","v":""},null,null,null,null,null,null,null,null,null,null,null,null,null,null,null,null,null,null,null,null,null,null,null,null,null,null,null,null,null,null,"","","",{"$f":"IF(ISBLANK(Table1[[#This Row],[Child First Name]]),\"\",SUM(Table1[[#This Row],[Total Red]:[Total Yellow]]))","v":""},{"$f":"IF(ISBLANK(Table1[[#This Row],[Child First Name]]),\"\",IF(Table1[[#This Row],[Score]]<1,\"Universal Need\",IF(Table1[[#This Row],[Score]]<4,\"Targeted Need\",IF(Table1[[#This Row],[Score]]<12,\"Personalised Need\",\"Intensive Need\"))))","v":""}]
[null,{"$f":"IFERROR(VLOOKUP(Table1[[#This Row],[Destination School No]],SchoolList[],4,FALSE),\"\")","v":""},null,null,null,null,null,null,null,null,null,null,null,null,null,null,null,null,null,null,null,null,null,null,null,null,null,null,null,null,null,null,"","","",{"$f":"IF(ISBLANK(Table1[[#This Row],[Child First Name]]),\"\",SUM(Table1[[#This Row],[Total Red]:[Total Yellow]]))","v":""},{"$f":"IF(ISBLANK(Table1[[#This Row],[Child First Name]]),\"\",IF(Table1[[#This Row],[Score]]<1,\"Universal Need\",IF(Table1[[#This Row],[Score]]<4,\"Targeted Need\",IF(Table1[[#This Row],[Score]]<12,\"Personalised Need\",\"Intensive Need\"))))","v":""}]
[null,{"$f":"IFERROR(VLOOKUP(Table1[[#This Row],[Destination School No]],SchoolList[],4,FALSE),\"\")","v":""},null,null,null,null,null,null,null,null,null,null,null,null,null,null,null,null,null,null,null,null,null,null,null,null,null,null,null,null,null,null,"","","",{"$f":"IF(ISBLANK(Table1[[#This Row],[Child First Name]]),\"\",SUM(Table1[[#This Row],[Total Red]:[Total Yellow]]))","v":""},{"$f":"IF(ISBLANK(Table1[[#This Row],[Child First Name]]),\"\",IF(Table1[[#This Row],[Score]]<1,\"Universal Need\",IF(Table1[[#This Row],[Score]]<4,\"Targeted Need\",IF(Table1[[#This Row],[Score]]<12,\"Personalised Need\",\"Intensive Need\"))))","v":""}]
[null,{"$f":"IFERROR(VLOOKUP(Table1[[#This Row],[Destination School No]],SchoolList[],4,FALSE),\"\")","v":""},null,null,null,null,null,null,null,null,null,null,null,null,null,null,null,null,null,null,null,null,null,null,null,null,null,null,null,null,null,null,"","","",{"$f":"IF(ISBLANK(Table1[[#This Row],[Child First Name]]),\"\",SUM(Table1[[#This Row],[Total Red]:[Total Yellow]]))","v":""},{"$f":"IF(ISBLANK(Table1[[#This Row],[Child First Name]]),\"\",IF(Table1[[#This Row],[Score]]<1,\"Universal Need\",IF(Table1[[#This Row],[Score]]<4,\"Targeted Need\",IF(Table1[[#This Row],[Score]]<12,\"Personalised Need\",\"Intensive Need\"))))","v":""}]
[null,{"$f":"IFERROR(VLOOKUP(Table1[[#This Row],[Destination School No]],SchoolList[],4,FALSE),\"\")","v":""},null,null,null,null,null,null,null,null,null,null,null,null,null,null,null,null,null,null,null,null,null,null,null,null,null,null,null,null,null,null,"","","",{"$f":"IF(ISBLANK(Table1[[#This Row],[Child First Name]]),\"\",SUM(Table1[[#This Row],[Total Red]:[Total Yellow]]))","v":""},{"$f":"IF(ISBLANK(Table1[[#This Row],[Child First Name]]),\"\",IF(Table1[[#This Row],[Score]]<1,\"Universal Need\",IF(Table1[[#This Row],[Score]]<4,\"Targeted Need\",IF(Table1[[#This Row],[Score]]<12,\"Personalised Need\",\"Intensive Need\"))))","v":""}]
[null,{"$f":"IFERROR(VLOOKUP(Table1[[#This Row],[Destination School No]],SchoolList[],4,FALSE),\"\")","v":""},null,null,null,null,null,null,null,null,null,null,null,null,null,null,null,null,null,null,null,null,null,null,null,null,null,null,null,null,null,null,"","","",{"$f":"IF(ISBLANK(Table1[[#This Row],[Child First Name]]),\"\",SUM(Table1[[#This Row],[Total Red]:[Total Yellow]]))","v":""},{"$f":"IF(ISBLANK(Table1[[#This Row],[Child First Name]]),\"\",IF(Table1[[#This Row],[Score]]<1,\"Universal Need\",IF(Table1[[#This Row],[Score]]<4,\"Targeted Need\",IF(Table1[[#This Row],[Score]]<12,\"Personalised Need\",\"Intensive Need\"))))","v":""}]
[null,{"$f":"IFERROR(VLOOKUP(Table1[[#This Row],[Destination School No]],SchoolList[],4,FALSE),\"\")","v":""},null,null,null,null,null,null,null,null,null,null,null,null,null,null,null,null,null,null,null,null,null,null,null,null,null,null,null,null,null,null,"","","",{"$f":"IF(ISBLANK(Table1[[#This Row],[Child First Name]]),\"\",SUM(Table1[[#This Row],[Total Red]:[Total Yellow]]))","v":""},{"$f":"IF(ISBLANK(Table1[[#This Row],[Child First Name]]),\"\",IF(Table1[[#This Row],[Score]]<1,\"Universal Need\",IF(Table1[[#This Row],[Score]]<4,\"Targeted Need\",IF(Table1[[#This Row],[Score]]<12,\"Personalised Need\",\"Intensive Need\"))))","v":""}]
[null,{"$f":"IFERROR(VLOOKUP(Table1[[#This Row],[Destination School No]],SchoolList[],4,FALSE),\"\")","v":""},null,null,null,null,null,null,null,null,null,null,null,null,null,null,null,null,null,null,null,null,null,null,null,null,null,null,null,null,null,null,"","","",{"$f":"IF(ISBLANK(Table1[[#This Row],[Child First Name]]),\"\",SUM(Table1[[#This Row],[Total Red]:[Total Yellow]]))","v":""},{"$f":"IF(ISBLANK(Table1[[#This Row],[Child First Name]]),\"\",IF(Table1[[#This Row],[Score]]<1,\"Universal Need\",IF(Table1[[#This Row],[Score]]<4,\"Targeted Need\",IF(Table1[[#This Row],[Score]]<12,\"Personalised Need\",\"Intensive Need\"))))","v":""}]
[null,{"$f":"IFERROR(VLOOKUP(Table1[[#This Row],[Destination School No]],SchoolList[],4,FALSE),\"\")","v":""},null,null,null,null,null,null,null,null,null,null,null,null,null,null,null,null,null,null,null,null,null,null,null,null,null,null,null,null,null,null,"","","",{"$f":"IF(ISBLANK(Table1[[#This Row],[Child First Name]]),\"\",SUM(Table1[[#This Row],[Total Red]:[Total Yellow]]))","v":""},{"$f":"IF(ISBLANK(Table1[[#This Row],[Child First Name]]),\"\",IF(Table1[[#This Row],[Score]]<1,\"Universal Need\",IF(Table1[[#This Row],[Score]]<4,\"Targeted Need\",IF(Table1[[#This Row],[Score]]<12,\"Personalised Need\",\"Intensive Need\"))))","v":""}]
[null,{"$f":"IFERROR(VLOOKUP(Table1[[#This Row],[Destination School No]],SchoolList[],4,FALSE),\"\")","v":""},null,null,null,null,null,null,null,null,null,null,null,null,null,null,null,null,null,null,null,null,null,null,null,null,null,null,null,null,null,null,"","","",{"$f":"IF(ISBLANK(Table1[[#This Row],[Child First Name]]),\"\",SUM(Table1[[#This Row],[Total Red]:[Total Yellow]]))","v":""},{"$f":"IF(ISBLANK(Table1[[#This Row],[Child First Name]]),\"\",IF(Table1[[#This Row],[Score]]<1,\"Universal Need\",IF(Table1[[#This Row],[Score]]<4,\"Targeted Need\",IF(Table1[[#This Row],[Score]]<12,\"Personalised Need\",\"Intensive Need\"))))","v":""}]
[null,{"$f":"IFERROR(VLOOKUP(Table1[[#This Row],[Destination School No]],SchoolList[],4,FALSE),\"\")","v":""},null,null,null,null,null,null,null,null,null,null,null,null,null,null,null,null,null,null,null,null,null,null,null,null,null,null,null,null,null,null,"","","",{"$f":"IF(ISBLANK(Table1[[#This Row],[Child First Name]]),\"\",SUM(Table1[[#This Row],[Total Red]:[Total Yellow]]))","v":""},{"$f":"IF(ISBLANK(Table1[[#This Row],[Child First Name]]),\"\",IF(Table1[[#This Row],[Score]]<1,\"Universal Need\",IF(Table1[[#This Row],[Score]]<4,\"Targeted Need\",IF(Table1[[#This Row],[Score]]<12,\"Personalised Need\",\"Intensive Need\"))))","v":""}]
[null,{"$f":"IFERROR(VLOOKUP(Table1[[#This Row],[Destination School No]],SchoolList[],4,FALSE),\"\")","v":""},null,null,null,null,null,null,null,null,null,null,null,null,null,null,null,null,null,null,null,null,null,null,null,null,null,null,null,null,null,null,"","","",{"$f":"IF(ISBLANK(Table1[[#This Row],[Child First Name]]),\"\",SUM(Table1[[#This Row],[Total Red]:[Total Yellow]]))","v":""},{"$f":"IF(ISBLANK(Table1[[#This Row],[Child First Name]]),\"\",IF(Table1[[#This Row],[Score]]<1,\"Universal Need\",IF(Table1[[#This Row],[Score]]<4,\"Targeted Need\",IF(Table1[[#This Row],[Score]]<12,\"Personalised Need\",\"Intensive Need\"))))","v":""}]
[null,{"$f":"IFERROR(VLOOKUP(Table1[[#This Row],[Destination School No]],SchoolList[],4,FALSE),\"\")","v":""},null,null,null,null,null,null,null,null,null,null,null,null,null,null,null,null,null,null,null,null,null,null,null,null,null,null,null,null,null,null,"","","",{"$f":"IF(ISBLANK(Table1[[#This Row],[Child First Name]]),\"\",SUM(Table1[[#This Row],[Total Red]:[Total Yellow]]))","v":""},{"$f":"IF(ISBLANK(Table1[[#This Row],[Child First Name]]),\"\",IF(Table1[[#This Row],[Score]]<1,\"Universal Need\",IF(Table1[[#This Row],[Score]]<4,\"Targeted Need\",IF(Table1[[#This Row],[Score]]<12,\"Personalised Need\",\"Intensive Need\"))))","v":""}]
[null,{"$f":"IFERROR(VLOOKUP(Table1[[#This Row],[Destination School No]],SchoolList[],4,FALSE),\"\")","v":""},null,null,null,null,null,null,null,null,null,null,null,null,null,null,null,null,null,null,null,null,null,null,null,null,null,null,null,null,null,null,"","","",{"$f":"IF(ISBLANK(Table1[[#This Row],[Child First Name]]),\"\",SUM(Table1[[#This Row],[Total Red]:[Total Yellow]]))","v":""},{"$f":"IF(ISBLANK(Table1[[#This Row],[Child First Name]]),\"\",IF(Table1[[#This Row],[Score]]<1,\"Universal Need\",IF(Table1[[#This Row],[Score]]<4,\"Targeted Need\",IF(Table1[[#This Row],[Score]]<12,\"Personalised Need\",\"Intensive Need\"))))","v":""}]
[null,{"$f":"IFERROR(VLOOKUP(Table1[[#This Row],[Destination School No]],SchoolList[],4,FALSE),\"\")","v":""},null,null,null,null,null,null,null,null,null,null,null,null,null,null,null,null,null,null,null,null,null,null,null,null,null,null,null,null,null,null,"","","",{"$f":"IF(ISBLANK(Table1[[#This Row],[Child First Name]]),\"\",SUM(Table1[[#This Row],[Total Red]:[Total Yellow]]))","v":""},{"$f":"IF(ISBLANK(Table1[[#This Row],[Child First Name]]),\"\",IF(Table1[[#This Row],[Score]]<1,\"Universal Need\",IF(Table1[[#This Row],[Score]]<4,\"Targeted Need\",IF(Table1[[#This Row],[Score]]<12,\"Personalised Need\",\"Intensive Need\"))))","v":""}]
[null,{"$f":"IFERROR(VLOOKUP(Table1[[#This Row],[Destination School No]],SchoolList[],4,FALSE),\"\")","v":""},null,null,null,null,null,null,null,null,null,null,null,null,null,null,null,null,null,null,null,null,null,null,null,null,null,null,null,null,null,null,"","","",{"$f":"IF(ISBLANK(Table1[[#This Row],[Child First Name]]),\"\",SUM(Table1[[#This Row],[Total Red]:[Total Yellow]]))","v":""},{"$f":"IF(ISBLANK(Table1[[#This Row],[Child First Name]]),\"\",IF(Table1[[#This Row],[Score]]<1,\"Universal Need\",IF(Table1[[#This Row],[Score]]<4,\"Targeted Need\",IF(Table1[[#This Row],[Score]]<12,\"Personalised Need\",\"Intensive Need\"))))","v":""}]
[null,{"$f":"IFERROR(VLOOKUP(Table1[[#This Row],[Destination School No]],SchoolList[],4,FALSE),\"\")","v":""},null,null,null,null,null,null,null,null,null,null,null,null,null,null,null,null,null,null,null,null,null,null,null,null,null,null,null,null,null,null,"","","",{"$f":"IF(ISBLANK(Table1[[#This Row],[Child First Name]]),\"\",SUM(Table1[[#This Row],[Total Red]:[Total Yellow]]))","v":""},{"$f":"IF(ISBLANK(Table1[[#This Row],[Child First Name]]),\"\",IF(Table1[[#This Row],[Score]]<1,\"Universal Need\",IF(Table1[[#This Row],[Score]]<4,\"Targeted Need\",IF(Table1[[#This Row],[Score]]<12,\"Personalised Need\",\"Intensive Need\"))))","v":""}]
[null,{"$f":"IFERROR(VLOOKUP(Table1[[#This Row],[Destination School No]],SchoolList[],4,FALSE),\"\")","v":""},null,null,null,null,null,null,null,null,null,null,null,null,null,null,null,null,null,null,null,null,null,null,null,null,null,null,null,null,null,null,"","","",{"$f":"IF(ISBLANK(Table1[[#This Row],[Child First Name]]),\"\",SUM(Table1[[#This Row],[Total Red]:[Total Yellow]]))","v":""},{"$f":"IF(ISBLANK(Table1[[#This Row],[Child First Name]]),\"\",IF(Table1[[#This Row],[Score]]<1,\"Universal Need\",IF(Table1[[#This Row],[Score]]<4,\"Targeted Need\",IF(Table1[[#This Row],[Score]]<12,\"Personalised Need\",\"Intensive Need\"))))","v":""}]
[null,{"$f":"IFERROR(VLOOKUP(Table1[[#This Row],[Destination School No]],SchoolList[],4,FALSE),\"\")","v":""},null,null,null,null,null,null,null,null,null,null,null,null,null,null,null,null,null,null,null,null,null,null,null,null,null,null,null,null,null,null,"","","",{"$f":"IF(ISBLANK(Table1[[#This Row],[Child First Name]]),\"\",SUM(Table1[[#This Row],[Total Red]:[Total Yellow]]))","v":""},{"$f":"IF(ISBLANK(Table1[[#This Row],[Child First Name]]),\"\",IF(Table1[[#This Row],[Score]]<1,\"Universal Need\",IF(Table1[[#This Row],[Score]]<4,\"Targeted Need\",IF(Table1[[#This Row],[Score]]<12,\"Personalised Need\",\"Intensive Need\"))))","v":""}]
[null,{"$f":"IFERROR(VLOOKUP(Table1[[#This Row],[Destination School No]],SchoolList[],4,FALSE),\"\")","v":""},null,null,null,null,null,null,null,null,null,null,null,null,null,null,null,null,null,null,null,null,null,null,null,null,null,null,null,null,null,null,"","","",{"$f":"IF(ISBLANK(Table1[[#This Row],[Child First Name]]),\"\",SUM(Table1[[#This Row],[Total Red]:[Total Yellow]]))","v":""},{"$f":"IF(ISBLANK(Table1[[#This Row],[Child First Name]]),\"\",IF(Table1[[#This Row],[Score]]<1,\"Universal Need\",IF(Table1[[#This Row],[Score]]<4,\"Targeted Need\",IF(Table1[[#This Row],[Score]]<12,\"Personalised Need\",\"Intensive Need\"))))","v":""}]
[null,{"$f":"IFERROR(VLOOKUP(Table1[[#This Row],[Destination School No]],SchoolList[],4,FALSE),\"\")","v":""},null,null,null,null,null,null,null,null,null,null,null,null,null,null,null,null,null,null,null,null,null,null,null,null,null,null,null,null,null,null,"","","",{"$f":"IF(ISBLANK(Table1[[#This Row],[Child First Name]]),\"\",SUM(Table1[[#This Row],[Total Red]:[Total Yellow]]))","v":""},{"$f":"IF(ISBLANK(Table1[[#This Row],[Child First Name]]),\"\",IF(Table1[[#This Row],[Score]]<1,\"Universal Need\",IF(Table1[[#This Row],[Score]]<4,\"Targeted Need\",IF(Table1[[#This Row],[Score]]<12,\"Personalised Need\",\"Intensive Need\"))))","v":""}]
[null,{"$f":"IFERROR(VLOOKUP(Table1[[#This Row],[Destination School No]],SchoolList[],4,FALSE),\"\")","v":""},null,null,null,null,null,null,null,null,null,null,null,null,null,null,null,null,null,null,null,null,null,null,null,null,null,null,null,null,null,null,"","","",{"$f":"IF(ISBLANK(Table1[[#This Row],[Child First Name]]),\"\",SUM(Table1[[#This Row],[Total Red]:[Total Yellow]]))","v":""},{"$f":"IF(ISBLANK(Table1[[#This Row],[Child First Name]]),\"\",IF(Table1[[#This Row],[Score]]<1,\"Universal Need\",IF(Table1[[#This Row],[Score]]<4,\"Targeted Need\",IF(Table1[[#This Row],[Score]]<12,\"Personalised Need\",\"Intensive Need\"))))","v":""}]
[null,{"$f":"IFERROR(VLOOKUP(Table1[[#This Row],[Destination School No]],SchoolList[],4,FALSE),\"\")","v":""},null,null,null,null,null,null,null,null,null,null,null,null,null,null,null,null,null,null,null,null,null,null,null,null,null,null,null,null,null,null,"","","",{"$f":"IF(ISBLANK(Table1[[#This Row],[Child First Name]]),\"\",SUM(Table1[[#This Row],[Total Red]:[Total Yellow]]))","v":""},{"$f":"IF(ISBLANK(Table1[[#This Row],[Child First Name]]),\"\",IF(Table1[[#This Row],[Score]]<1,\"Universal Need\",IF(Table1[[#This Row],[Score]]<4,\"Targeted Need\",IF(Table1[[#This Row],[Score]]<12,\"Personalised Need\",\"Intensive Need\"))))","v":""}]
[null,{"$f":"IFERROR(VLOOKUP(Table1[[#This Row],[Destination School No]],SchoolList[],4,FALSE),\"\")","v":""},null,null,null,null,null,null,null,null,null,null,null,null,null,null,null,null,null,null,null,null,null,null,null,null,null,null,null,null,null,null,"","","",{"$f":"IF(ISBLANK(Table1[[#This Row],[Child First Name]]),\"\",SUM(Table1[[#This Row],[Total Red]:[Total Yellow]]))","v":""},{"$f":"IF(ISBLANK(Table1[[#This Row],[Child First Name]]),\"\",IF(Table1[[#This Row],[Score]]<1,\"Universal Need\",IF(Table1[[#This Row],[Score]]<4,\"Targeted Need\",IF(Table1[[#This Row],[Score]]<12,\"Personalised Need\",\"Intensive Need\"))))","v":""}]
[null,{"$f":"IFERROR(VLOOKUP(Table1[[#This Row],[Destination School No]],SchoolList[],4,FALSE),\"\")","v":""},null,null,null,null,null,null,null,null,null,null,null,null,null,null,null,null,null,null,null,null,null,null,null,null,null,null,null,null,null,null,"","",{"$f":"IF($D255<>\"\",COUNTIF($I255:$AF255,\"Targeted\"),\"\")","v":""},{"$f":"IF(ISBLANK(Table1[[#This Row],[Child First Name]]),\"\",SUM(Table1[[#This Row],[Total Red]:[Total Yellow]]))","v":""},{"$f":"IF(ISBLANK(Table1[[#This Row],[Child First Name]]),\"\",IF(Table1[[#This Row],[Score]]<1,\"Universal Need\",IF(Table1[[#This Row],[Score]]<4,\"Targeted Need\",IF(Table1[[#This Row],[Score]]<12,\"Personalised Need\",\"Intensive Need\"))))","v":""}]
[null,{"$f":"IFERROR(VLOOKUP(Table1[[#This Row],[Destination School No]],SchoolList[],4,FALSE),\"\")","v":""},null,null,null,null,null,null,null,null,null,null,null,null,null,null,null,null,null,null,null,null,null,null,null,null,null,null,null,null,null,null,"","","",{"$f":"IF(ISBLANK(Table1[[#This Row],[Child First Name]]),\"\",SUM(Table1[[#This Row],[Total Red]:[Total Yellow]]))","v":""},{"$f":"IF(ISBLANK(Table1[[#This Row],[Child First Name]]),\"\",IF(Table1[[#This Row],[Score]]<1,\"Universal Need\",IF(Table1[[#This Row],[Score]]<4,\"Targeted Need\",IF(Table1[[#This Row],[Score]]<12,\"Personalised Need\",\"Intensive Need\"))))","v":""}]
[null,{"$f":"IFERROR(VLOOKUP(Table1[[#This Row],[Destination School No]],SchoolList[],4,FALSE),\"\")","v":""},null,null,null,null,null,null,null,null,null,null,null,null,null,null,null,null,null,null,null,null,null,null,null,null,null,null,null,null,null,null,"","",{"$f":"IF($D257<>\"\",COUNTIF($I257:$AF257,\"Targeted\"),\"\")","v":""},{"$f":"IF(ISBLANK(Table1[[#This Row],[Child First Name]]),\"\",SUM(Table1[[#This Row],[Total Red]:[Total Yellow]]))","v":""},{"$f":"IF(ISBLANK(Table1[[#This Row],[Child First Name]]),\"\",IF(Table1[[#This Row],[Score]]<1,\"Universal Need\",IF(Table1[[#This Row],[Score]]<4,\"Targeted Need\",IF(Table1[[#This Row],[Score]]<12,\"Personalised Need\",\"Intensive Need\"))))","v":""}]
[null,{"$f":"IFERROR(VLOOKUP(Table1[[#This Row],[Destination School No]],SchoolList[],4,FALSE),\"\")","v":""},null,null,null,null,null,null,null,null,null,null,null,null,null,null,null,null,null,null,null,null,null,null,null,null,null,null,null,null,null,null,"","","",{"$f":"IF(ISBLANK(Table1[[#This Row],[Child First Name]]),\"\",SUM(Table1[[#This Row],[Total Red]:[Total Yellow]]))","v":""},{"$f":"IF(ISBLANK(Table1[[#This Row],[Child First Name]]),\"\",IF(Table1[[#This Row],[Score]]<1,\"Universal Need\",IF(Table1[[#This Row],[Score]]<4,\"Targeted Need\",IF(Table1[[#This Row],[Score]]<12,\"Personalised Need\",\"Intensive Need\"))))","v":""}]
[null,{"$f":"IFERROR(VLOOKUP(Table1[[#This Row],[Destination School No]],SchoolList[],4,FALSE),\"\")","v":""},null,null,null,null,null,null,null,null,null,null,null,null,null,null,null,null,null,null,null,null,null,null,null,null,null,null,null,null,null,null,"","","",{"$f":"IF(ISBLANK(Table1[[#This Row],[Child First Name]]),\"\",SUM(Table1[[#This Row],[Total Red]:[Total Yellow]]))","v":""},{"$f":"IF(ISBLANK(Table1[[#This Row],[Child First Name]]),\"\",IF(Table1[[#This Row],[Score]]<1,\"Universal Need\",IF(Table1[[#This Row],[Score]]<4,\"Targeted Need\",IF(Table1[[#This Row],[Score]]<12,\"Personalised Need\",\"Intensive Need\"))))","v":""}]
[null,{"$f":"IFERROR(VLOOKUP(Table1[[#This Row],[Destination School No]],SchoolList[],4,FALSE),\"\")","v":""},null,null,null,null,null,null,null,null,null,null,null,null,null,null,null,null,null,null,null,null,null,null,null,null,null,null,null,null,null,null,"","","",{"$f":"IF(ISBLANK(Table1[[#This Row],[Child First Name]]),\"\",SUM(Table1[[#This Row],[Total Red]:[Total Yellow]]))","v":""},{"$f":"IF(ISBLANK(Table1[[#This Row],[Child First Name]]),\"\",IF(Table1[[#This Row],[Score]]<1,\"Universal Need\",IF(Table1[[#This Row],[Score]]<4,\"Targeted Need\",IF(Table1[[#This Row],[Score]]<12,\"Personalised Need\",\"Intensive Need\"))))","v":""}]
[null,{"$f":"IFERROR(VLOOKUP(Table1[[#This Row],[Destination School No]],SchoolList[],4,FALSE),\"\")","v":""},null,null,null,null,null,null,null,null,null,null,null,null,null,null,null,null,null,null,null,null,null,null,null,null,null,null,null,null,null,null,"","","",{"$f":"IF(ISBLANK(Table1[[#This Row],[Child First Name]]),\"\",SUM(Table1[[#This Row],[Total Red]:[Total Yellow]]))","v":""},{"$f":"IF(ISBLANK(Table1[[#This Row],[Child First Name]]),\"\",IF(Table1[[#This Row],[Score]]<1,\"Universal Need\",IF(Table1[[#This Row],[Score]]<4,\"Targeted Need\",IF(Table1[[#This Row],[Score]]<12,\"Personalised Need\",\"Intensive Need\"))))","v":""}]
[null,{"$f":"IFERROR(VLOOKUP(Table1[[#This Row],[Destination School No]],SchoolList[],4,FALSE),\"\")","v":""},null,null,null,null,null,null,null,null,null,null,null,null,null,null,null,null,null,null,null,null,null,null,null,null,null,null,null,null,null,null,"","","",{"$f":"IF(ISBLANK(Table1[[#This Row],[Child First Name]]),\"\",SUM(Table1[[#This Row],[Total Red]:[Total Yellow]]))","v":""},{"$f":"IF(ISBLANK(Table1[[#This Row],[Child First Name]]),\"\",IF(Table1[[#This Row],[Score]]<1,\"Universal Need\",IF(Table1[[#This Row],[Score]]<4,\"Targeted Need\",IF(Table1[[#This Row],[Score]]<12,\"Personalised Need\",\"Intensive Need\"))))","v":""}]
[null,{"$f":"IFERROR(VLOOKUP(Table1[[#This Row],[Destination School No]],SchoolList[],4,FALSE),\"\")","v":""},null,null,null,null,null,null,null,null,null,null,null,null,null,null,null,null,null,null,null,null,null,null,null,null,null,null,null,null,null,null,"","","",{"$f":"IF(ISBLANK(Table1[[#This Row],[Child First Name]]),\"\",SUM(Table1[[#This Row],[Total Red]:[Total Yellow]]))","v":""},{"$f":"IF(ISBLANK(Table1[[#This Row],[Child First Name]]),\"\",IF(Table1[[#This Row],[Score]]<1,\"Universal Need\",IF(Table1[[#This Row],[Score]]<4,\"Targeted Need\",IF(Table1[[#This Row],[Score]]<12,\"Personalised Need\",\"Intensive Need\"))))","v":""}]
[null,{"$f":"IFERROR(VLOOKUP(Table1[[#This Row],[Destination School No]],SchoolList[],4,FALSE),\"\")","v":""},null,null,null,null,null,null,null,null,null,null,null,null,null,null,null,null,null,null,null,null,null,null,null,null,null,null,null,null,null,null,"","","",{"$f":"IF(ISBLANK(Table1[[#This Row],[Child First Name]]),\"\",SUM(Table1[[#This Row],[Total Red]:[Total Yellow]]))","v":""},{"$f":"IF(ISBLANK(Table1[[#This Row],[Child First Name]]),\"\",IF(Table1[[#This Row],[Score]]<1,\"Universal Need\",IF(Table1[[#This Row],[Score]]<4,\"Targeted Need\",IF(Table1[[#This Row],[Score]]<12,\"Personalised Need\",\"Intensive Need\"))))","v":""}]
[null,{"$f":"IFERROR(VLOOKUP(Table1[[#This Row],[Destination School No]],SchoolList[],4,FALSE),\"\")","v":""},null,null,null,null,null,null,null,null,null,null,null,null,null,null,null,null,null,null,null,null,null,null,null,null,null,null,null,null,null,null,"","","",{"$f":"IF(ISBLANK(Table1[[#This Row],[Child First Name]]),\"\",SUM(Table1[[#This Row],[Total Red]:[Total Yellow]]))","v":""},{"$f":"IF(ISBLANK(Table1[[#This Row],[Child First Name]]),\"\",IF(Table1[[#This Row],[Score]]<1,\"Universal Need\",IF(Table1[[#This Row],[Score]]<4,\"Targeted Need\",IF(Table1[[#This Row],[Score]]<12,\"Personalised Need\",\"Intensive Need\"))))","v":""}]
[null,{"$f":"IFERROR(VLOOKUP(Table1[[#This Row],[Destination School No]],SchoolList[],4,FALSE),\"\")","v":""},null,null,null,null,null,null,null,null,null,null,null,null,null,null,null,null,null,null,null,null,null,null,null,null,null,null,null,null,null,null,"","","",{"$f":"IF(ISBLANK(Table1[[#This Row],[Child First Name]]),\"\",SUM(Table1[[#This Row],[Total Red]:[Total Yellow]]))","v":""},{"$f":"IF(ISBLANK(Table1[[#This Row],[Child First Name]]),\"\",IF(Table1[[#This Row],[Score]]<1,\"Universal Need\",IF(Table1[[#This Row],[Score]]<4,\"Targeted Need\",IF(Table1[[#This Row],[Score]]<12,\"Personalised Need\",\"Intensive Need\"))))","v":""}]
[null,{"$f":"IFERROR(VLOOKUP(Table1[[#This Row],[Destination School No]],SchoolList[],4,FALSE),\"\")","v":""},null,null,null,null,null,null,null,null,null,null,null,null,null,null,null,null,null,null,null,null,null,null,null,null,null,null,null,null,null,null,"","","",{"$f":"IF(ISBLANK(Table1[[#This Row],[Child First Name]]),\"\",SUM(Table1[[#This Row],[Total Red]:[Total Yellow]]))","v":""},{"$f":"IF(ISBLANK(Table1[[#This Row],[Child First Name]]),\"\",IF(Table1[[#This Row],[Score]]<1,\"Universal Need\",IF(Table1[[#This Row],[Score]]<4,\"Targeted Need\",IF(Table1[[#This Row],[Score]]<12,\"Personalised Need\",\"Intensive Need\"))))","v":""}]
[null,{"$f":"IFERROR(VLOOKUP(Table1[[#This Row],[Destination School No]],SchoolList[],4,FALSE),\"\")","v":""},null,null,null,null,null,null,null,null,null,null,null,null,null,null,null,null,null,null,null,null,null,null,null,null,null,null,null,null,null,null,{"$f":"IF($D268<>\"\",COUNTIF($I268:$AF268,\"Intensive\")*12,\"\")","v":""},{"$f":"IF($D268<>\"\",COUNTIF($I268:$AF268,\"Personalised\")*4,\"\")","v":""},"",{"$f":"IF(ISBLANK(Table1[[#This Row],[Child First Name]]),\"\",SUM(Table1[[#This Row],[Total Red]:[Total Yellow]]))","v":""},{"$f":"IF(ISBLANK(Table1[[#This Row],[Child First Name]]),\"\",IF(Table1[[#This Row],[Score]]<1,\"Universal Need\",IF(Table1[[#This Row],[Score]]<4,\"Targeted Need\",IF(Table1[[#This Row],[Score]]<12,\"Personalised Need\",\"Intensive Need\"))))","v":""}]
[null,{"$f":"IFERROR(VLOOKUP(Table1[[#This Row],[Destination School No]],SchoolList[],4,FALSE),\"\")","v":""},null,null,null,null,null,null,null,null,null,null,null,null,null,null,null,null,null,null,null,null,null,null,null,null,null,null,null,null,null,null,"","","",{"$f":"IF(ISBLANK(Table1[[#This Row],[Child First Name]]),\"\",SUM(Table1[[#This Row],[Total Red]:[Total Yellow]]))","v":""},{"$f":"IF(ISBLANK(Table1[[#This Row],[Child First Name]]),\"\",IF(Table1[[#This Row],[Score]]<1,\"Universal Need\",IF(Table1[[#This Row],[Score]]<4,\"Targeted Need\",IF(Table1[[#This Row],[Score]]<12,\"Personalised Need\",\"Intensive Need\"))))","v":""}]
[null,{"$f":"IFERROR(VLOOKUP(Table1[[#This Row],[Destination School No]],SchoolList[],4,FALSE),\"\")","v":""},null,null,null,null,null,null,null,null,null,null,null,null,null,null,null,null,null,null,null,null,null,null,null,null,null,null,null,null,null,null,"","","",{"$f":"IF(ISBLANK(Table1[[#This Row],[Child First Name]]),\"\",SUM(Table1[[#This Row],[Total Red]:[Total Yellow]]))","v":""},{"$f":"IF(ISBLANK(Table1[[#This Row],[Child First Name]]),\"\",IF(Table1[[#This Row],[Score]]<1,\"Universal Need\",IF(Table1[[#This Row],[Score]]<4,\"Targeted Need\",IF(Table1[[#This Row],[Score]]<12,\"Personalised Need\",\"Intensive Need\"))))","v":""}]
[null,{"$f":"IFERROR(VLOOKUP(Table1[[#This Row],[Destination School No]],SchoolList[],4,FALSE),\"\")","v":""},null,null,null,null,null,null,null,null,null,null,null,null,null,null,null,null,null,null,null,null,null,null,null,null,null,null,null,null,null,null,"","","",{"$f":"IF(ISBLANK(Table1[[#This Row],[Child First Name]]),\"\",SUM(Table1[[#This Row],[Total Red]:[Total Yellow]]))","v":""},{"$f":"IF(ISBLANK(Table1[[#This Row],[Child First Name]]),\"\",IF(Table1[[#This Row],[Score]]<1,\"Universal Need\",IF(Table1[[#This Row],[Score]]<4,\"Targeted Need\",IF(Table1[[#This Row],[Score]]<12,\"Personalised Need\",\"Intensive Need\"))))","v":""}]
[null,{"$f":"IFERROR(VLOOKUP(Table1[[#This Row],[Destination School No]],SchoolList[],4,FALSE),\"\")","v":""},null,null,null,null,null,null,null,null,null,null,null,null,null,null,null,null,null,null,null,null,null,null,null,null,null,null,null,null,null,null,"","","",{"$f":"IF(ISBLANK(Table1[[#This Row],[Child First Name]]),\"\",SUM(Table1[[#This Row],[Total Red]:[Total Yellow]]))","v":""},{"$f":"IF(ISBLANK(Table1[[#This Row],[Child First Name]]),\"\",IF(Table1[[#This Row],[Score]]<1,\"Universal Need\",IF(Table1[[#This Row],[Score]]<4,\"Targeted Need\",IF(Table1[[#This Row],[Score]]<12,\"Personalised Need\",\"Intensive Need\"))))","v":""}]
[null,{"$f":"IFERROR(VLOOKUP(Table1[[#This Row],[Destination School No]],SchoolList[],4,FALSE),\"\")","v":""},null,null,null,null,null,null,null,null,null,null,null,null,null,null,null,null,null,null,null,null,null,null,null,null,null,null,null,null,null,null,"","","",{"$f":"IF(ISBLANK(Table1[[#This Row],[Child First Name]]),\"\",SUM(Table1[[#This Row],[Total Red]:[Total Yellow]]))","v":""},{"$f":"IF(ISBLANK(Table1[[#This Row],[Child First Name]]),\"\",IF(Table1[[#This Row],[Score]]<1,\"Universal Need\",IF(Table1[[#This Row],[Score]]<4,\"Targeted Need\",IF(Table1[[#This Row],[Score]]<12,\"Personalised Need\",\"Intensive Need\"))))","v":""}]
[null,{"$f":"IFERROR(VLOOKUP(Table1[[#This Row],[Destination School No]],SchoolList[],4,FALSE),\"\")","v":""},null,null,null,null,null,null,null,null,null,null,null,null,null,null,null,null,null,null,null,null,null,null,null,null,null,null,null,null,null,null,"","","",{"$f":"IF(ISBLANK(Table1[[#This Row],[Child First Name]]),\"\",SUM(Table1[[#This Row],[Total Red]:[Total Yellow]]))","v":""},{"$f":"IF(ISBLANK(Table1[[#This Row],[Child First Name]]),\"\",IF(Table1[[#This Row],[Score]]<1,\"Universal Need\",IF(Table1[[#This Row],[Score]]<4,\"Targeted Need\",IF(Table1[[#This Row],[Score]]<12,\"Personalised Need\",\"Intensive Need\"))))","v":""}]
[null,{"$f":"IFERROR(VLOOKUP(Table1[[#This Row],[Destination School No]],SchoolList[],4,FALSE),\"\")","v":""},null,null,null,null,null,null,null,null,null,null,null,null,null,null,null,null,null,null,null,null,null,null,null,null,null,null,null,null,null,null,"","","",{"$f":"IF(ISBLANK(Table1[[#This Row],[Child First Name]]),\"\",SUM(Table1[[#This Row],[Total Red]:[Total Yellow]]))","v":""},{"$f":"IF(ISBLANK(Table1[[#This Row],[Child First Name]]),\"\",IF(Table1[[#This Row],[Score]]<1,\"Universal Need\",IF(Table1[[#This Row],[Score]]<4,\"Targeted Need\",IF(Table1[[#This Row],[Score]]<12,\"Personalised Need\",\"Intensive Need\"))))","v":""}]
[null,{"$f":"IFERROR(VLOOKUP(Table1[[#This Row],[Destination School No]],SchoolList[],4,FALSE),\"\")","v":""},null,null,null,null,null,null,null,null,null,null,null,null,null,null,null,null,null,null,null,null,null,null,null,null,null,null,null,null,null,null,"","","",{"$f":"IF(ISBLANK(Table1[[#This Row],[Child First Name]]),\"\",SUM(Table1[[#This Row],[Total Red]:[Total Yellow]]))","v":""},{"$f":"IF(ISBLANK(Table1[[#This Row],[Child First Name]]),\"\",IF(Table1[[#This Row],[Score]]<1,\"Universal Need\",IF(Table1[[#This Row],[Score]]<4,\"Targeted Need\",IF(Table1[[#This Row],[Score]]<12,\"Personalised Need\",\"Intensive Need\"))))","v":""}]
[null,{"$f":"IFERROR(VLOOKUP(Table1[[#This Row],[Destination School No]],SchoolList[],4,FALSE),\"\")","v":""},null,null,null,null,null,null,null,null,null,null,null,null,null,null,null,null,null,null,null,null,null,null,null,null,null,null,null,null,null,null,"","","",{"$f":"IF(ISBLANK(Table1[[#This Row],[Child First Name]]),\"\",SUM(Table1[[#This Row],[Total Red]:[Total Yellow]]))","v":""},{"$f":"IF(ISBLANK(Table1[[#This Row],[Child First Name]]),\"\",IF(Table1[[#This Row],[Score]]<1,\"Universal Need\",IF(Table1[[#This Row],[Score]]<4,\"Targeted Need\",IF(Table1[[#This Row],[Score]]<12,\"Personalised Need\",\"Intensive Need\"))))","v":""}]
[null,{"$f":"IFERROR(VLOOKUP(Table1[[#This Row],[Destination School No]],SchoolList[],4,FALSE),\"\")","v":""},null,null,null,null,null,null,null,null,null,null,null,null,null,null,null,null,null,null,null,null,null,null,null,null,null,null,null,null,null,null,"","",{"$f":"IF($D278<>\"\",COUNTIF($I278:$AF278,\"Targeted\"),\"\")","v":""},{"$f":"IF(ISBLANK(Table1[[#This Row],[Child First Name]]),\"\",SUM(Table1[[#This Row],[Total Red]:[Total Yellow]]))","v":""},{"$f":"IF(ISBLANK(Table1[[#This Row],[Child First Name]]),\"\",IF(Table1[[#This Row],[Score]]<1,\"Universal Need\",IF(Table1[[#This Row],[Score]]<4,\"Targeted Need\",IF(Table1[[#This Row],[Score]]<12,\"Personalised Need\",\"Intensive Need\"))))","v":""}]
[null,{"$f":"IFERROR(VLOOKUP(Table1[[#This Row],[Destination School No]],SchoolList[],4,FALSE),\"\")","v":""},null,null,null,null,null,null,null,null,null,null,null,null,null,null,null,null,null,null,null,null,null,null,null,null,null,null,null,null,null,null,"","","",{"$f":"IF(ISBLANK(Table1[[#This Row],[Child First Name]]),\"\",SUM(Table1[[#This Row],[Total Red]:[Total Yellow]]))","v":""},{"$f":"IF(ISBLANK(Table1[[#This Row],[Child First Name]]),\"\",IF(Table1[[#This Row],[Score]]<1,\"Universal Need\",IF(Table1[[#This Row],[Score]]<4,\"Targeted Need\",IF(Table1[[#This Row],[Score]]<12,\"Personalised Need\",\"Intensive Need\"))))","v":""}]
[null,{"$f":"IFERROR(VLOOKUP(Table1[[#This Row],[Destination School No]],SchoolList[],4,FALSE),\"\")","v":""},null,null,null,null,null,null,null,null,null,null,null,null,null,null,null,null,null,null,null,null,null,null,null,null,null,null,null,null,null,null,"","","",{"$f":"IF(ISBLANK(Table1[[#This Row],[Child First Name]]),\"\",SUM(Table1[[#This Row],[Total Red]:[Total Yellow]]))","v":""},{"$f":"IF(ISBLANK(Table1[[#This Row],[Child First Name]]),\"\",IF(Table1[[#This Row],[Score]]<1,\"Universal Need\",IF(Table1[[#This Row],[Score]]<4,\"Targeted Need\",IF(Table1[[#This Row],[Score]]<12,\"Personalised Need\",\"Intensive Need\"))))","v":""}]
[null,{"$f":"IFERROR(VLOOKUP(Table1[[#This Row],[Destination School No]],SchoolList[],4,FALSE),\"\")","v":""},null,null,null,null,null,null,null,null,null,null,null,null,null,null,null,null,null,null,null,null,null,null,null,null,null,null,null,null,null,null,"","","",{"$f":"IF(ISBLANK(Table1[[#This Row],[Child First Name]]),\"\",SUM(Table1[[#This Row],[Total Red]:[Total Yellow]]))","v":""},{"$f":"IF(ISBLANK(Table1[[#This Row],[Child First Name]]),\"\",IF(Table1[[#This Row],[Score]]<1,\"Universal Need\",IF(Table1[[#This Row],[Score]]<4,\"Targeted Need\",IF(Table1[[#This Row],[Score]]<12,\"Personalised Need\",\"Intensive Need\"))))","v":""}]
[null,{"$f":"IFERROR(VLOOKUP(Table1[[#This Row],[Destination School No]],SchoolList[],4,FALSE),\"\")","v":""},null,null,null,null,null,null,null,null,null,null,null,null,null,null,null,null,null,null,null,null,null,null,null,null,null,null,null,null,null,null,"","","",{"$f":"IF(ISBLANK(Table1[[#This Row],[Child First Name]]),\"\",SUM(Table1[[#This Row],[Total Red]:[Total Yellow]]))","v":""},{"$f":"IF(ISBLANK(Table1[[#This Row],[Child First Name]]),\"\",IF(Table1[[#This Row],[Score]]<1,\"Universal Need\",IF(Table1[[#This Row],[Score]]<4,\"Targeted Need\",IF(Table1[[#This Row],[Score]]<12,\"Personalised Need\",\"Intensive Need\"))))","v":""}]
[null,{"$f":"IFERROR(VLOOKUP(Table1[[#This Row],[Destination School No]],SchoolList[],4,FALSE),\"\")","v":""},null,null,null,null,null,null,null,null,null,null,null,null,null,null,null,null,null,null,null,null,null,null,null,null,null,null,null,null,null,null,"","","",{"$f":"IF(ISBLANK(Table1[[#This Row],[Child First Name]]),\"\",SUM(Table1[[#This Row],[Total Red]:[Total Yellow]]))","v":""},{"$f":"IF(ISBLANK(Table1[[#This Row],[Child First Name]]),\"\",IF(Table1[[#This Row],[Score]]<1,\"Universal Need\",IF(Table1[[#This Row],[Score]]<4,\"Targeted Need\",IF(Table1[[#This Row],[Score]]<12,\"Personalised Need\",\"Intensive Need\"))))","v":""}]
[null,{"$f":"IFERROR(VLOOKUP(Table1[[#This Row],[Destination School No]],SchoolList[],4,FALSE),\"\")","v":""},null,null,null,null,null,null,null,null,null,null,null,null,null,null,null,null,null,null,null,null,null,null,null,null,null,null,null,null,null,null,"","","",{"$f":"IF(ISBLANK(Table1[[#This Row],[Child First Name]]),\"\",SUM(Table1[[#This Row],[Total Red]:[Total Yellow]]))","v":""},{"$f":"IF(ISBLANK(Table1[[#This Row],[Child First Name]]),\"\",IF(Table1[[#This Row],[Score]]<1,\"Universal Need\",IF(Table1[[#This Row],[Score]]<4,\"Targeted Need\",IF(Table1[[#This Row],[Score]]<12,\"Personalised Need\",\"Intensive Need\"))))","v":""}]
[null,{"$f":"IFERROR(VLOOKUP(Table1[[#This Row],[Destination School No]],SchoolList[],4,FALSE),\"\")","v":""},null,null,null,null,null,null,null,null,null,null,null,null,null,null,null,null,null,null,null,null,null,null,null,null,null,null,null,null,null,null,"","","",{"$f":"IF(ISBLANK(Table1[[#This Row],[Child First Name]]),\"\",SUM(Table1[[#This Row],[Total Red]:[Total Yellow]]))","v":""},{"$f":"IF(ISBLANK(Table1[[#This Row],[Child First Name]]),\"\",IF(Table1[[#This Row],[Score]]<1,\"Universal Need\",IF(Table1[[#This Row],[Score]]<4,\"Targeted Need\",IF(Table1[[#This Row],[Score]]<12,\"Personalised Need\",\"Intensive Need\"))))","v":""}]
[null,{"$f":"IFERROR(VLOOKUP(Table1[[#This Row],[Destination School No]],SchoolList[],4,FALSE),\"\")","v":""},null,null,null,null,null,null,null,null,null,null,null,null,null,null,null,null,null,null,null,null,null,null,null,null,null,null,null,null,null,null,"","","",{"$f":"IF(ISBLANK(Table1[[#This Row],[Child First Name]]),\"\",SUM(Table1[[#This Row],[Total Red]:[Total Yellow]]))","v":""},{"$f":"IF(ISBLANK(Table1[[#This Row],[Child First Name]]),\"\",IF(Table1[[#This Row],[Score]]<1,\"Universal Need\",IF(Table1[[#This Row],[Score]]<4,\"Targeted Need\",IF(Table1[[#This Row],[Score]]<12,\"Personalised Need\",\"Intensive Need\"))))","v":""}]
[null,{"$f":"IFERROR(VLOOKUP(Table1[[#This Row],[Destination School No]],SchoolList[],4,FALSE),\"\")","v":""},null,null,null,null,null,null,null,null,null,null,null,null,null,null,null,null,null,null,null,null,null,null,null,null,null,null,null,null,null,null,"","","",{"$f":"IF(ISBLANK(Table1[[#This Row],[Child First Name]]),\"\",SUM(Table1[[#This Row],[Total Red]:[Total Yellow]]))","v":""},{"$f":"IF(ISBLANK(Table1[[#This Row],[Child First Name]]),\"\",IF(Table1[[#This Row],[Score]]<1,\"Universal Need\",IF(Table1[[#This Row],[Score]]<4,\"Targeted Need\",IF(Table1[[#This Row],[Score]]<12,\"Personalised Need\",\"Intensive Need\"))))","v":""}]
[null,{"$f":"IFERROR(VLOOKUP(Table1[[#This Row],[Destination School No]],SchoolList[],4,FALSE),\"\")","v":""},null,null,null,null,null,null,null,null,null,null,null,null,null,null,null,null,null,null,null,null,null,null,null,null,null,null,null,null,null,null,"","","",{"$f":"IF(ISBLANK(Table1[[#This Row],[Child First Name]]),\"\",SUM(Table1[[#This Row],[Total Red]:[Total Yellow]]))","v":""},{"$f":"IF(ISBLANK(Table1[[#This Row],[Child First Name]]),\"\",IF(Table1[[#This Row],[Score]]<1,\"Universal Need\",IF(Table1[[#This Row],[Score]]<4,\"Targeted Need\",IF(Table1[[#This Row],[Score]]<12,\"Personalised Need\",\"Intensive Need\"))))","v":""}]
[null,{"$f":"IFERROR(VLOOKUP(Table1[[#This Row],[Destination School No]],SchoolList[],4,FALSE),\"\")","v":""},null,null,null,null,null,null,null,null,null,null,null,null,null,null,null,null,null,null,null,null,null,null,null,null,null,null,null,null,null,null,"","","",{"$f":"IF(ISBLANK(Table1[[#This Row],[Child First Name]]),\"\",SUM(Table1[[#This Row],[Total Red]:[Total Yellow]]))","v":""},{"$f":"IF(ISBLANK(Table1[[#This Row],[Child First Name]]),\"\",IF(Table1[[#This Row],[Score]]<1,\"Universal Need\",IF(Table1[[#This Row],[Score]]<4,\"Targeted Need\",IF(Table1[[#This Row],[Score]]<12,\"Personalised Need\",\"Intensive Need\"))))","v":""}]
[null,{"$f":"IFERROR(VLOOKUP(Table1[[#This Row],[Destination School No]],SchoolList[],4,FALSE),\"\")","v":""},null,null,null,null,null,null,null,null,null,null,null,null,null,null,null,null,null,null,null,null,null,null,null,null,null,null,null,null,null,null,"","","",{"$f":"IF(ISBLANK(Table1[[#This Row],[Child First Name]]),\"\",SUM(Table1[[#This Row],[Total Red]:[Total Yellow]]))","v":""},{"$f":"IF(ISBLANK(Table1[[#This Row],[Child First Name]]),\"\",IF(Table1[[#This Row],[Score]]<1,\"Universal Need\",IF(Table1[[#This Row],[Score]]<4,\"Targeted Need\",IF(Table1[[#This Row],[Score]]<12,\"Personalised Need\",\"Intensive Need\"))))","v":""}]
[null,{"$f":"IFERROR(VLOOKUP(Table1[[#This Row],[Destination School No]],SchoolList[],4,FALSE),\"\")","v":""},null,null,null,null,null,null,null,null,null,null,null,null,null,null,null,null,null,null,null,null,null,null,null,null,null,null,null,null,null,null,"","","",{"$f":"IF(ISBLANK(Table1[[#This Row],[Child First Name]]),\"\",SUM(Table1[[#This Row],[Total Red]:[Total Yellow]]))","v":""},{"$f":"IF(ISBLANK(Table1[[#This Row],[Child First Name]]),\"\",IF(Table1[[#This Row],[Score]]<1,\"Universal Need\",IF(Table1[[#This Row],[Score]]<4,\"Targeted Need\",IF(Table1[[#This Row],[Score]]<12,\"Personalised Need\",\"Intensive Need\"))))","v":""}]
[null,{"$f":"IFERROR(VLOOKUP(Table1[[#This Row],[Destination School No]],SchoolList[],4,FALSE),\"\")","v":""},null,null,null,null,null,null,null,null,null,null,null,null,null,null,null,null,null,null,null,null,null,null,null,null,null,null,null,null,null,null,"","",{"$f":"IF($D292<>\"\",COUNTIF($I292:$AF292,\"Targeted\"),\"\")","v":""},{"$f":"IF(ISBLANK(Table1[[#This Row],[Child First Name]]),\"\",SUM(Table1[[#This Row],[Total Red]:[Total Yellow]]))","v":""},{"$f":"IF(ISBLANK(Table1[[#This Row],[Child First Name]]),\"\",IF(Table1[[#This Row],[Score]]<1,\"Universal Need\",IF(Table1[[#This Row],[Score]]<4,\"Targeted Need\",IF(Table1[[#This Row],[Score]]<12,\"Personalised Need\",\"Intensive Need\"))))","v":""}]
[null,{"$f":"IFERROR(VLOOKUP(Table1[[#This Row],[Destination School No]],SchoolList[],4,FALSE),\"\")","v":""},null,null,null,null,null,null,null,null,null,null,null,null,null,null,null,null,null,null,null,null,null,null,null,null,null,null,null,null,null,null,"","","",{"$f":"IF(ISBLANK(Table1[[#This Row],[Child First Name]]),\"\",SUM(Table1[[#This Row],[Total Red]:[Total Yellow]]))","v":""},{"$f":"IF(ISBLANK(Table1[[#This Row],[Child First Name]]),\"\",IF(Table1[[#This Row],[Score]]<1,\"Universal Need\",IF(Table1[[#This Row],[Score]]<4,\"Targeted Need\",IF(Table1[[#This Row],[Score]]<12,\"Personalised Need\",\"Intensive Need\"))))","v":""}]
[null,{"$f":"IFERROR(VLOOKUP(Table1[[#This Row],[Destination School No]],SchoolList[],4,FALSE),\"\")","v":""},null,null,null,null,null,null,null,null,null,null,null,null,null,null,null,null,null,null,null,null,null,null,null,null,null,null,null,null,null,null,"","","",{"$f":"IF(ISBLANK(Table1[[#This Row],[Child First Name]]),\"\",SUM(Table1[[#This Row],[Total Red]:[Total Yellow]]))","v":""},{"$f":"IF(ISBLANK(Table1[[#This Row],[Child First Name]]),\"\",IF(Table1[[#This Row],[Score]]<1,\"Universal Need\",IF(Table1[[#This Row],[Score]]<4,\"Targeted Need\",IF(Table1[[#This Row],[Score]]<12,\"Personalised Need\",\"Intensive Need\"))))","v":""}]
[null,{"$f":"IFERROR(VLOOKUP(Table1[[#This Row],[Destination School No]],SchoolList[],4,FALSE),\"\")","v":""},null,null,null,null,null,null,null,null,null,null,null,null,null,null,null,null,null,null,null,null,null,null,null,null,null,null,null,null,null,null,"","","",{"$f":"IF(ISBLANK(Table1[[#This Row],[Child First Name]]),\"\",SUM(Table1[[#This Row],[Total Red]:[Total Yellow]]))","v":""},{"$f":"IF(ISBLANK(Table1[[#This Row],[Child First Name]]),\"\",IF(Table1[[#This Row],[Score]]<1,\"Universal Need\",IF(Table1[[#This Row],[Score]]<4,\"Targeted Need\",IF(Table1[[#This Row],[Score]]<12,\"Personalised Need\",\"Intensive Need\"))))","v":""}]
[null,{"$f":"IFERROR(VLOOKUP(Table1[[#This Row],[Destination School No]],SchoolList[],4,FALSE),\"\")","v":""},null,null,null,null,null,null,null,null,null,null,null,null,null,null,null,null,null,null,null,null,null,null,null,null,null,null,null,null,null,null,"","","",{"$f":"IF(ISBLANK(Table1[[#This Row],[Child First Name]]),\"\",SUM(Table1[[#This Row],[Total Red]:[Total Yellow]]))","v":""},{"$f":"IF(ISBLANK(Table1[[#This Row],[Child First Name]]),\"\",IF(Table1[[#This Row],[Score]]<1,\"Universal Need\",IF(Table1[[#This Row],[Score]]<4,\"Targeted Need\",IF(Table1[[#This Row],[Score]]<12,\"Personalised Need\",\"Intensive Need\"))))","v":""}]
[null,{"$f":"IFERROR(VLOOKUP(Table1[[#This Row],[Destination School No]],SchoolList[],4,FALSE),\"\")","v":""},null,null,null,null,null,null,null,null,null,null,null,null,null,null,null,null,null,null,null,null,null,null,null,null,null,null,null,null,null,null,"","","",{"$f":"IF(ISBLANK(Table1[[#This Row],[Child First Name]]),\"\",SUM(Table1[[#This Row],[Total Red]:[Total Yellow]]))","v":""},{"$f":"IF(ISBLANK(Table1[[#This Row],[Child First Name]]),\"\",IF(Table1[[#This Row],[Score]]<1,\"Universal Need\",IF(Table1[[#This Row],[Score]]<4,\"Targeted Need\",IF(Table1[[#This Row],[Score]]<12,\"Personalised Need\",\"Intensive Need\"))))","v":""}]
[null,{"$f":"IFERROR(VLOOKUP(Table1[[#This Row],[Destination School No]],SchoolList[],4,FALSE),\"\")","v":""},null,null,null,null,null,null,null,null,null,null,null,null,null,null,null,null,null,null,null,null,null,null,null,null,null,null,null,null,null,null,"","","",{"$f":"IF(ISBLANK(Table1[[#This Row],[Child First Name]]),\"\",SUM(Table1[[#This Row],[Total Red]:[Total Yellow]]))","v":""},{"$f":"IF(ISBLANK(Table1[[#This Row],[Child First Name]]),\"\",IF(Table1[[#This Row],[Score]]<1,\"Universal Need\",IF(Table1[[#This Row],[Score]]<4,\"Targeted Need\",IF(Table1[[#This Row],[Score]]<12,\"Personalised Need\",\"Intensive Need\"))))","v":""}]
[null,{"$f":"IFERROR(VLOOKUP(Table1[[#This Row],[Destination School No]],SchoolList[],4,FALSE),\"\")","v":""},null,null,null,null,null,null,null,null,null,null,null,null,null,null,null,null,null,null,null,null,null,null,null,null,null,null,null,null,null,null,"","","",{"$f":"IF(ISBLANK(Table1[[#This Row],[Child First Name]]),\"\",SUM(Table1[[#This Row],[Total Red]:[Total Yellow]]))","v":""},{"$f":"IF(ISBLANK(Table1[[#This Row],[Child First Name]]),\"\",IF(Table1[[#This Row],[Score]]<1,\"Universal Need\",IF(Table1[[#This Row],[Score]]<4,\"Targeted Need\",IF(Table1[[#This Row],[Score]]<12,\"Personalised Need\",\"Intensive Need\"))))","v":""}]
[null,{"$f":"IFERROR(VLOOKUP(Table1[[#This Row],[Destination School No]],SchoolList[],4,FALSE),\"\")","v":""},null,null,null,null,null,null,null,null,null,null,null,null,null,null,null,null,null,null,null,null,null,null,null,null,null,null,null,null,null,null,"","","",{"$f":"IF(ISBLANK(Table1[[#This Row],[Child First Name]]),\"\",SUM(Table1[[#This Row],[Total Red]:[Total Yellow]]))","v":""},{"$f":"IF(ISBLANK(Table1[[#This Row],[Child First Name]]),\"\",IF(Table1[[#This Row],[Score]]<1,\"Universal Need\",IF(Table1[[#This Row],[Score]]<4,\"Targeted Need\",IF(Table1[[#This Row],[Score]]<12,\"Personalised Need\",\"Intensive Need\"))))","v":""}]
[null,{"$f":"IFERROR(VLOOKUP(Table1[[#This Row],[Destination School No]],SchoolList[],4,FALSE),\"\")","v":""},null,null,null,null,null,null,null,null,null,null,null,null,null,null,null,null,null,null,null,null,null,null,null,null,null,null,null,null,null,null,"","","",{"$f":"IF(ISBLANK(Table1[[#This Row],[Child First Name]]),\"\",SUM(Table1[[#This Row],[Total Red]:[Total Yellow]]))","v":""},{"$f":"IF(ISBLANK(Table1[[#This Row],[Child First Name]]),\"\",IF(Table1[[#This Row],[Score]]<1,\"Universal Need\",IF(Table1[[#This Row],[Score]]<4,\"Targeted Need\",IF(Table1[[#This Row],[Score]]<12,\"Personalised Need\",\"Intensive Need\"))))","v":""}]
[null,{"$f":"IFERROR(VLOOKUP(Table1[[#This Row],[Destination School No]],SchoolList[],4,FALSE),\"\")","v":""},null,null,null,null,null,null,null,null,null,null,null,null,null,null,null,null,null,null,null,null,null,null,null,null,null,null,null,null,null,null,"","",{"$f":"IF($D302<>\"\",COUNTIF($I302:$AF302,\"Targeted\"),\"\")","v":""},{"$f":"IF(ISBLANK(Table1[[#This Row],[Child First Name]]),\"\",SUM(Table1[[#This Row],[Total Red]:[Total Yellow]]))","v":""},{"$f":"IF(ISBLANK(Table1[[#This Row],[Child First Name]]),\"\",IF(Table1[[#This Row],[Score]]<1,\"Universal Need\",IF(Table1[[#This Row],[Score]]<4,\"Targeted Need\",IF(Table1[[#This Row],[Score]]<12,\"Personalised Need\",\"Intensive Need\"))))","v":""}]
[null,{"$f":"IFERROR(VLOOKUP(Table1[[#This Row],[Destination School No]],SchoolList[],4,FALSE),\"\")","v":""},null,null,null,null,null,null,null,null,null,null,null,null,null,null,null,null,null,null,null,null,null,null,null,null,null,null,null,null,null,null,"","","",{"$f":"IF(ISBLANK(Table1[[#This Row],[Child First Name]]),\"\",SUM(Table1[[#This Row],[Total Red]:[Total Yellow]]))","v":""},{"$f":"IF(ISBLANK(Table1[[#This Row],[Child First Name]]),\"\",IF(Table1[[#This Row],[Score]]<1,\"Universal Need\",IF(Table1[[#This Row],[Score]]<4,\"Targeted Need\",IF(Table1[[#This Row],[Score]]<12,\"Personalised Need\",\"Intensive Need\"))))","v":""}]
[null,{"$f":"IFERROR(VLOOKUP(Table1[[#This Row],[Destination School No]],SchoolList[],4,FALSE),\"\")","v":""},null,null,null,null,null,null,null,null,null,null,null,null,null,null,null,null,null,null,null,null,null,null,null,null,null,null,null,null,null,null,"","",{"$f":"IF($D304<>\"\",COUNTIF($I304:$AF304,\"Targeted\"),\"\")","v":""},{"$f":"IF(ISBLANK(Table1[[#This Row],[Child First Name]]),\"\",SUM(Table1[[#This Row],[Total Red]:[Total Yellow]]))","v":""},{"$f":"IF(ISBLANK(Table1[[#This Row],[Child First Name]]),\"\",IF(Table1[[#This Row],[Score]]<1,\"Universal Need\",IF(Table1[[#This Row],[Score]]<4,\"Targeted Need\",IF(Table1[[#This Row],[Score]]<12,\"Personalised Need\",\"Intensive Need\"))))","v":""}]
[null,{"$f":"IFERROR(VLOOKUP(Table1[[#This Row],[Destination School No]],SchoolList[],4,FALSE),\"\")","v":""},null,null,null,null,null,null,null,null,null,null,null,null,null,null,null,null,null,null,null,null,null,null,null,null,null,null,null,null,null,null,"","","",{"$f":"IF(ISBLANK(Table1[[#This Row],[Child First Name]]),\"\",SUM(Table1[[#This Row],[Total Red]:[Total Yellow]]))","v":""},{"$f":"IF(ISBLANK(Table1[[#This Row],[Child First Name]]),\"\",IF(Table1[[#This Row],[Score]]<1,\"Universal Need\",IF(Table1[[#This Row],[Score]]<4,\"Targeted Need\",IF(Table1[[#This Row],[Score]]<12,\"Personalised Need\",\"Intensive Need\"))))","v":""}]
[null,{"$f":"IFERROR(VLOOKUP(Table1[[#This Row],[Destination School No]],SchoolList[],4,FALSE),\"\")","v":""},null,null,null,null,null,null,null,null,null,null,null,null,null,null,null,null,null,null,null,null,null,null,null,null,null,null,null,null,null,null,"","",{"$f":"IF($D306<>\"\",COUNTIF($I306:$AF306,\"Targeted\"),\"\")","v":""},{"$f":"IF(ISBLANK(Table1[[#This Row],[Child First Name]]),\"\",SUM(Table1[[#This Row],[Total Red]:[Total Yellow]]))","v":""},{"$f":"IF(ISBLANK(Table1[[#This Row],[Child First Name]]),\"\",IF(Table1[[#This Row],[Score]]<1,\"Universal Need\",IF(Table1[[#This Row],[Score]]<4,\"Targeted Need\",IF(Table1[[#This Row],[Score]]<12,\"Personalised Need\",\"Intensive Need\"))))","v":""}]
[null,{"$f":"IFERROR(VLOOKUP(Table1[[#This Row],[Destination School No]],SchoolList[],4,FALSE),\"\")","v":""},null,null,null,null,null,null,null,null,null,null,null,null,null,null,null,null,null,null,null,null,null,null,null,null,null,null,null,null,null,null,"","","",{"$f":"IF(ISBLANK(Table1[[#This Row],[Child First Name]]),\"\",SUM(Table1[[#This Row],[Total Red]:[Total Yellow]]))","v":""},{"$f":"IF(ISBLANK(Table1[[#This Row],[Child First Name]]),\"\",IF(Table1[[#This Row],[Score]]<1,\"Universal Need\",IF(Table1[[#This Row],[Score]]<4,\"Targeted Need\",IF(Table1[[#This Row],[Score]]<12,\"Personalised Need\",\"Intensive Need\"))))","v":""}]
[null,{"$f":"IFERROR(VLOOKUP(Table1[[#This Row],[Destination School No]],SchoolList[],4,FALSE),\"\")","v":""},null,null,null,null,null,null,null,null,null,null,null,null,null,null,null,null,null,null,null,null,null,null,null,null,null,null,null,null,null,null,"","",{"$f":"IF($D308<>\"\",COUNTIF($I308:$AF308,\"Targeted\"),\"\")","v":""},{"$f":"IF(ISBLANK(Table1[[#This Row],[Child First Name]]),\"\",SUM(Table1[[#This Row],[Total Red]:[Total Yellow]]))","v":""},{"$f":"IF(ISBLANK(Table1[[#This Row],[Child First Name]]),\"\",IF(Table1[[#This Row],[Score]]<1,\"Universal Need\",IF(Table1[[#This Row],[Score]]<4,\"Targeted Need\",IF(Table1[[#This Row],[Score]]<12,\"Personalised Need\",\"Intensive Need\"))))","v":""}]
[null,{"$f":"IFERROR(VLOOKUP(Table1[[#This Row],[Destination School No]],SchoolList[],4,FALSE),\"\")","v":""},null,null,null,null,null,null,null,null,null,null,null,null,null,null,null,null,null,null,null,null,null,null,null,null,null,null,null,null,null,null,"","","",{"$f":"IF(ISBLANK(Table1[[#This Row],[Child First Name]]),\"\",SUM(Table1[[#This Row],[Total Red]:[Total Yellow]]))","v":""},{"$f":"IF(ISBLANK(Table1[[#This Row],[Child First Name]]),\"\",IF(Table1[[#This Row],[Score]]<1,\"Universal Need\",IF(Table1[[#This Row],[Score]]<4,\"Targeted Need\",IF(Table1[[#This Row],[Score]]<12,\"Personalised Need\",\"Intensive Need\"))))","v":""}]
[null,{"$f":"IFERROR(VLOOKUP(Table1[[#This Row],[Destination School No]],SchoolList[],4,FALSE),\"\")","v":""},null,null,null,null,null,null,null,null,null,null,null,null,null,null,null,null,null,null,null,null,null,null,null,null,null,null,null,null,null,null,"","","",{"$f":"IF(ISBLANK(Table1[[#This Row],[Child First Name]]),\"\",SUM(Table1[[#This Row],[Total Red]:[Total Yellow]]))","v":""},{"$f":"IF(ISBLANK(Table1[[#This Row],[Child First Name]]),\"\",IF(Table1[[#This Row],[Score]]<1,\"Universal Need\",IF(Table1[[#This Row],[Score]]<4,\"Targeted Need\",IF(Table1[[#This Row],[Score]]<12,\"Personalised Need\",\"Intensive Need\"))))","v":""}]
[null,{"$f":"IFERROR(VLOOKUP(Table1[[#This Row],[Destination School No]],SchoolList[],4,FALSE),\"\")","v":""},null,null,null,null,null,null,null,null,null,null,null,null,null,null,null,null,null,null,null,null,null,null,null,null,null,null,null,null,null,null,"","","",{"$f":"IF(ISBLANK(Table1[[#This Row],[Child First Name]]),\"\",SUM(Table1[[#This Row],[Total Red]:[Total Yellow]]))","v":""},{"$f":"IF(ISBLANK(Table1[[#This Row],[Child First Name]]),\"\",IF(Table1[[#This Row],[Score]]<1,\"Universal Need\",IF(Table1[[#This Row],[Score]]<4,\"Targeted Need\",IF(Table1[[#This Row],[Score]]<12,\"Personalised Need\",\"Intensive Need\"))))","v":""}]

{"sheet":"School list","index":1,"n_rows":401,"n_cols":6,"rows_kept":401,"cut":false,"hidden":false,"merged":[]}
["School No","LA","DfE No","School Name","District","Post Code"]
[3,919,3004,"St Mary's Infants' School","North Herts","SG7 6HY"]
[4,919,3413,"St John Roman Catholic Primary School","North Herts","SG7 6TT"]
[5,919,2994,"Hartsfield Junior Mixed and Infant School","North Herts","SG7 6PB"]
[7,919,2029,"Garden City Academy","North Herts","SG6 2JZ"]
[8,919,2442,"Stonehill School","North Herts","SG6 4SZ"]
[9,919,1000,"Weston Way Nursery School","North Herts","SG7 6HD"]
[14,919,2416,"Lordship Farm Primary School","North Herts","SG6 3UF"]
[16,919,2300,"Pixmore Junior School","North Herts","SG6 1RS"]
[17,919,2069,"Hillshott Infant School and Nursery","North Herts","SG6 1QE"]
[20,919,2165,"Icknield Infant and Nursery School","North Herts","SG6 4UN"]
[21,919,2068,"The Grange Academy","North Herts","SG6 4PY"]
[22,919,2228,"Northfields Infants and Nursery School","North Herts","SG6 4PT"]
[23,919,3350,"Norton St Nicholas CofE (VA) Primary School","North Herts","SG6 1AG"]
[26,919,3400,"St Thomas More Roman Catholic Primary School","North Herts","SG6 3QB"]
[35,919,2428,"Samuel Lucas Junior Mixed and Infant School","North Herts","SG5 2JQ"]
[37,919,2055,"Highbury Infant School and Nursery","North Herts","SG4 9AG"]
[40,919,2056,"Strathmore Infant and Nursery School","North Herts","SG5 1XR"]
[41,919,3385,"St Andrew's Church of England Voluntary Aided Primary School, Hitchin","North Herts","SG4 9RD"]
[42,919,2229,"Purwell Primary School","North Herts","SG4 0PU"]
[43,919,2026,"Oughton Primary & Nursery School","North Herts","SG5 2NZ"]
[45,919,3399,"Our Lady Catholic Primary School","North Herts","SG5 1XT"]
[47,919,2392,"William Ransom Primary School","North Herts","SG4 9QB"]
[48,919,2415,"Mary Exton Primary School","North Herts","SG4 0QA"]
[49,919,1010,"York Road Nursery School","North Herts","SG5 1XA"]
[51,919,2002,"Ashwell Primary School","North Herts","SG7 5QL"]
[52,919,3308,"Barkway VA Church of England First School","North Herts","SG8 8EF"]
[53,919,3006,"Barley Church of England Voluntary Controlled First School","North Herts","SG8 8JW"]
[54,919,3013,"Codicote Church of England Primary School","North Herts","SG4 8YL"]
[58,919,3030,"Ickleford Primary School","North Herts","SG5 3TG"]
[59,919,3348,"St Ippolyts Church of England Aided Primary School","North Herts","SG4 7PB"]
[60,919,2062,"Kimpton Primary School","North Herts","SG4 8RB"]
[61,919,2064,"Breachwood Green Junior Mixed and Infant School","North Herts","SG4 8NP"]
[63,919,3357,"Offley Endowed Primary School and Nursery","North Herts","SG5 3AT"]
[64,919,3358,"Cockernhoe Endowed CofE Primary School","North Herts","LU2 8PY"]
[65,919,2077,"Pirton School","North Herts","SG5 3PS"]
[66,919,3034,"Preston Primary School","North Herts","SG4 7UJ"]
[67,919,2078,"Reed First School","North Herts","SG8 8AB"]
[68,919,2101,"St Paul's Walden Primary School","North Herts","SG4 8HX"]
[69,919,2105,"Sandon Junior Mixed and Infant School","North Herts","SG9 0QS"]
[70,919,2111,"Therfield First School","North Herts","SG8 9PP"]
[71,919,3047,"Weston Primary School","North Herts","SG4 7AG"]
[72,919,2146,"Wymondley Junior Mixed and Infant School","North Herts","SG4 7HN"]
[79,919,4140,"King James Academy Royston","North Herts","SG8 7JH"]
[82,919,2331,"Icknield Walk First School","North Herts","SG8 7EZ"]
[83,919,2085,"Tannery Drift School","North Herts","SG8 5DE"]
[84,919,5200,"St Mary Roman Catholic Primary School","North Herts","SG8 7DB"]
[85,919,2417,"Studlands Rise First School","North Herts","SG8 9HB"]
[87,919,2089,"Roman Way Academy","North Herts","SG8 5EQ"]
[120,919,3369,"St Nicholas CofE (VA) Primary School and Nursery","Stevenage","SG2 0PZ"]
[122,919,2109,"Letchmore Infants' and Nursery School","Stevenage","SG1 3PS"]
[123,919,2110,"Fairlands Primary School","Stevenage","SG1 3JA"]
[125,919,2169,"Broom Barns Primary School","Stevenage","SG1 1UE"]
[127,919,2188,"Bedwell Primary School","Stevenage","SG1 1NJ"]
[129,919,2024,"Roebuck Academy","Stevenage","SG2 8RG"]
[132,919,2198,"Peartree Spring Primary School","Stevenage","SG2 9GG"]
[135,919,2005,"Featherstone Wood Primary School","Stevenage","SG2 9PP"]
[137,919,3983,"Longmeadow Primary School","Stevenage","SG2 8LT"]
[138,919,2235,"Camps Hill Primary School","Stevenage","SG2 0LT"]
[140,919,3977,"Saint Vincent de Paul Catholic Primary School","Stevenage","SG1 1NJ"]
[141,919,2008,"Lodge Farm Primary School","Stevenage","SG2 0HP"]
[146,919,3984,"Shephalbury Park Primary School","Stevenage","SG2 8AX"]
[149,919,3397,"St Margaret Clitherow Roman Catholic Primary School","Stevenage","SG2 8QJ"]
[150,919,2312,"Moss Bury Primary School and Nursery","Stevenage","SG1 5PA"]
[154,919,2353,"Trotts Hill Primary and Nursery School","Stevenage","SG1 5JD"]
[157,919,2365,"Round Diamond Primary School","North Herts","SG1 6NH"]
[158,919,2113,"Martins Wood Primary School","Stevenage","SG1 5RT"]
[159,919,2381,"Giles Junior School","Stevenage","SG1 4JQ"]
[160,919,2394,"The Giles Infant and Nursery School","Stevenage","SG1 4JQ"]
[161,919,2405,"Woolenwick Junior School","Stevenage","SG1 2NU"]
[162,919,2465,"The Leys Primary and Nursery School","Stevenage","SG1 4QZ"]
[164,919,2406,"Woolenwick Infant and Nursery School","Stevenage","SG1 2NU"]
[165,919,2148,"Ashtree Primary Academy","Stevenage","SG2 9JQ"]
[184,919,1022,"Peartree Way Nursery School","Stevenage","SG2 9EA"]
[190,919,2119,"Avanti Brook Primary School","East Herts","CM23 2Uw"]
[192,919,3306,"Ardeley St Lawrence Church of England Voluntary Aided Primary School","East Herts","SG2 7AJ"]
[193,919,3307,"Aston St Mary's Church of England Aided Primary School","East Herts","SG2 7HA"]
[194,919,3009,"Benington Church of England Primary School","East Herts","SG2 7LP"]
[195,919,3329,"All Saints Church of England Voluntary Aided Primary School, Datchworth","East Herts","SG3 6RE"]
[196,919,3018,"Graveley Primary School","North Herts","SG4 7LJ"]
[197,919,2066,"Knebworth Primary and Nursery School","North Herts","SG3 6AA"]
[198,919,2114,"Walkern Primary School","East Herts","SG2 7NS"]
[199,919,2097,"Avanti Meadows Primary School","East Herts","CM23 1FQ"]
[200,919,2080,"Manor Fields Primary School","East Herts","CM23 4LE"]
[206,919,2009,"Northgate Primary School","East Herts","CM23 2RL"]
[207,919,3318,"St Joseph's Catholic Primary School","East Herts","CM23 2NL"]
[208,919,3319,"St Michael's Church of England Primary School","East Herts","CM23 3SN"]
[209,919,3979,"Windhill21","East Herts","CM23 2NE"]
[211,919,2242,"Thorley Hill Primary School","East Herts","CM23 3NH"]
[212,919,3393,"All Saints Church of England Primary School and Nursery, Bishop's Stortford","East Herts","CM23 5BE"]
[215,919,2327,"Thorn Grove Primary School","East Herts","CM23 5LD"]
[216,919,2387,"Hillmead Primary School","East Herts","CM23 4PW"]
[219,919,2443,"Richard Whittington Primary School","East Herts","CM23 3NP"]
[221,919,2380,"Mandeville Primary School","East Herts","CM21 0BL"]
[222,919,2107,"Fawbert and Barnard Infants' School","East Herts","CM21 9AT"]
[223,919,3038,"Spellbrook CofE Primary School","East Herts","CM23 4BA"]
[224,919,2333,"Reedings Junior School","East Herts","CM21 9DD"]
[227,919,3986,"Summercroft Primary School","East Herts","CM23 5BJ"]
[229,919,3303,"Albury Church of England Voluntary Aided Primary School","East Herts","SG11 2JQ"]
[230,919,2386,"Millfield First and Nursery School","East Herts","SG9 9DT"]
[231,919,2011,"Jenyns First School and Nursery","East Herts","SG11 2QJ"]
[232,919,3011,"Layston Church of England First School","East Herts","SG9 9EU"]
[234,919,3026,"High Wych Church of England Primary School","East Herts","CM21 0JB"]
[235,919,3347,"Hormead Church of England (VA) First School","East Herts","SG9 0NR"]
[236,919,3353,"St Andrew's CofE Primary School and Nursery","East Herts","SG10 6DL"]
[237,919,3016,"Furneux Pelham Church of England School","East Herts","SG9 0LH"]
[239,919,2073,"Little Hadham Primary School","East Herts","SG11 2DX"]
[240,919,2223,"Anstey First School","East Herts","SG9 0BY"]
[241,919,2121,"Buntingford First School","East Herts","SG9 9HZ"]
[246,919,4067,"Simon Balle All-Through School","East Herts","SG13 8AJ"]
[249,919,2050,"Abel Smith School","East Herts","SG13 8AE"]
[252,919,2462,"Bengeo Primary School","East Herts","SG14 3DX"]
[254,919,3025,"Hertford St Andrew CofE Primary School","East Herts","SG14 2EP"]
[255,919,3341,"St Joseph's Catholic Primary School","East Herts","SG14 2BU"]
[256,919,2464,"Morgans Primary School & Nursery","East Herts","SG13 8DR"]
[258,919,2304,"Hollybush Primary School","East Herts","SG14 2DF"]
[259,919,2362,"Mill Mead Primary Academy","East Herts","SG14 3AA"]
[261,919,2414,"Wheatcroft Primary School","East Herts","SG13 7HQ"]
[262,919,3007,"Bayford Church of England Voluntary Controlled Primary School","East Herts","SG13 8PX"]
[266,919,5203,"Hertingfordbury Cowper Primary School","East Herts","SG14 2LR"]
[267,919,2072,"Hertford Heath Primary and Nursery School","East Herts","SG13 7QW"]
[268,919,3368,"Stapleford Primary School","East Herts","SG14 3NB"]
[270,919,2139,"Watton-at-Stone Primary and Nursery School","East Herts","SG14 3SG"]
[271,919,3370,"Tewin Cowper Church of England Voluntary Aided Primary School","East Herts","AL6 0JU"]
[281,919,3029,"Wormley Primary School","Broxbourne","EN10 6QA"]
[282,919,3344,"Broxbourne CofE Primary School","Broxbourne","EN10 7AY"]
[285,919,3978,"St Catherine's Hoddesdon CofE Primary School","Broxbourne","EN11 8HT"]
[287,919,3345,"St Augustine's Catholic Primary School","Broxbourne","EN11 8DP"]
[288,919,2314,"High Leigh Primary School","Broxbourne","EN11 8GF"]
[289,919,3408,"St Cross Catholic Primary School","Broxbourne","EN11 8BN"]
[290,919,2452,"Sheredes Primary School","Broxbourne","EN11 8LL"]
[294,919,2384,"The Cranbourne Primary School","Broxbourne","EN11 9PP"]
[297,919,2429,"Roselands Primary School","Broxbourne","EN11 9AR"]
[298,919,2144,"Forres Primary Academy","Broxbourne","EN11 0RW"]
[299,919,1011,"Rye Park Nursery School","Broxbourne","EN11 0LN"]
[305,919,3394,"Christ Church CofE (VA) Primary School and Nursery, Ware","East Herts","SG12 7BT"]
[306,919,3042,"St Mary's Voluntary Controlled Church of England Junior School","East Herts","SG12 0RL"]
[307,919,3043,"St Catherine's Church of England Primary School","East Herts","SG12 0AW"]
[310,919,2316,"Priors Wood Primary School","East Herts","SG12 7HZ"]
[311,919,2397,"Kingshill Infant School","East Herts","SG12 0RL"]
[312,919,3424,"Sacred Heart Catholic Primary School","East Herts","SG12 9HY"]
[313,919,2088,"Larkspur Academy","East Herts","SG12 7LP"]
[316,919,3334,"St John the Baptist Voluntary Aided Church of England Primary School","East Herts","SG12 9SE"]
[318,919,2061,"Hunsdon Junior Mixed and Infant School","East Herts","SG12 8NT"]
[319,919,3032,"Little Munden Church of England Voluntary Controlled Primary School","East Herts","SG12 0NR"]
[320,919,3366,"Puller Memorial, Church of England, Voluntary Aided Primary School","East Herts","SG11 1AZ"]
[321,919,3367,"St Thomas of Canterbury Roman Catholic Primary School","East Herts","SG11 1RZ"]
[322,919,3039,"Roger De Clare First CofE School","East Herts","SG11 1TF"]
[323,919,3040,"St Andrew's Church of England Voluntary Controlled Primary School","East Herts","SG12 8BZ"]
[324,919,3041,"Thundridge Church of England Primary School","East Herts","SG12 0SY"]
[326,919,2145,"Widford School","East Herts","SG12 8RE"]
[348,919,2063,"Churchfield CofE Academy","Broxbourne","EN8 0LU"]
[350,919,2017,"Four Swannes Primary School","Broxbourne","EN8 7HH"]
[351,919,3327,"St Joseph's Catholic Primary School","Broxbourne","EN8 7EN"]
[352,919,3326,"Holy Trinity Church of England Primary School","Broxbourne","EN8 8LU"]
[353,919,2151,"Hurst Drive Primary School","Broxbourne","EN8 8DH"]
[354,919,2997,"Millbrook School","Broxbourne","EN8 9BX"]
[355,919,2263,"Goffs Oak Primary & Nursery School","Broxbourne","EN7 5NS"]
[358,919,2016,"Holdbrook Primary School and Nursery","Broxbourne","EN8 7QG"]
[359,919,3053,"Dewhurst St Mary CofE Primary School","Broxbourne","EN8 9ND"]
[360,919,2468,"Burleigh Primary School","Broxbourne","EN8 9DP"]
[361,919,2001,"Flamstead End School","Broxbourne","EN7 6AG"]
[363,919,2467,"Bonneygrove Primary School","Broxbourne","EN7 5ED"]
[366,919,2317,"Brookland Infant and Nursery School","Broxbourne","EN8 0RX"]
[367,919,2289,"Downfield Primary School","Broxbourne","EN8 8SS"]
[373,919,3423,"St Paul's Catholic Primary School","Broxbourne","EN7 6LR"]
[374,919,2401,"Woodside Primary School","Broxbourne","EN7 5JS"]
[375,919,2411,"Longlands Primary School and Nursery","Broxbourne","EN10 6AG"]
[377,919,2424,"Fairfields Primary School and Nursery","Broxbourne","EN7 6JG"]
[378,919,2138,"Oakview Primary School","Broxbourne","EN7 6LB"]
[398,919,1002,"Arlesdene Nursery School and Pre-School","Broxbourne","EN8 9DW"]
[399,919,1003,"Greenfield Nursery School","Broxbourne","EN8 8DH"]
[411,919,2028,"Alban City School","St Albans","AL1 3RR"]
[412,919,4003,"Samuel Ryder Academy","St Albans","AL1 5AR"]
[413,919,3421,"St Alban & St Stephen Catholic Primary School & Nursery","St Albans","AL1 5EG"]
[416,919,2100,"Bernards Heath Junior School","St Albans","AL3 5HP"]
[417,919,2090,"Bernards Heath Infant and Nursery School","St Albans","AL1 4AP"]
[418,919,2091,"Camp Primary and Nursery School","St Albans","AL1 5PG"]
[420,919,2093,"Fleetville Junior School","St Albans","AL1 4LW"]
[421,919,2094,"Fleetville Infant and Nursery School","St Albans","AL1 4LX"]
[422,919,2095,"Garden Fields Junior Mixed and Infant School","St Albans","AL3 5RL"]
[423,919,2098,"Aboyne Lodge Junior Mixed and Infant School","St Albans","AL3 5NL"]
[424,919,3364,"Park Street Church of England Voluntary Aided Primary School","St Albans","AL2 2LX"]
[425,919,3363,"St Michael's Church of England Voluntary Aided Primary School, St Albans","St Albans","AL3 4SJ"]
[426,919,2096,"St Peter's School","St Albans","AL1 1HL"]
[427,919,3361,"The Abbey Church of England Voluntary Aided Primary School, St Albans","St Albans","AL1 1DQ"]
[429,919,2099,"Mandeville Primary School","St Albans","AL1 2LE"]
[431,919,2168,"Margaret Wix Primary School","St Albans","AL3 6EL"]
[433,919,3389,"St Adrian Roman Catholic Primary School","St Albans","AL1 2PB"]
[434,919,2227,"Oakwood Primary School","St Albans","AL4 0XA"]
[435,919,2219,"Windermere Primary School","St Albans","AL1 5QP"]
[437,919,2332,"Cunningham Hill Infant School","St Albans","AL1 5QJ"]
[438,919,2364,"Maple Primary School","St Albans","AL1 3SW"]
[439,919,1028,"Muriel Green Nursery School","St Albans","AL3 5JB"]
[440,919,2393,"Prae Wood Primary School","St Albans","AL3 4HZ"]
[451,919,2253,"Redbourn Primary School","St Albans","AL3 7EX"]
[452,919,2103,"London Colney Primary School & Nursery","St Albans","AL2 1JG"]
[453,919,2166,"Bowmansgreen Primary School","St Albans","AL2 1PH"]
[454,919,2102,"Colney Heath Junior Mixed Infant and Nursery School","St Albans","AL4 0NP"]
[455,919,3992,"Killigrew Primary and Nursery School","St Albans","AL2 3HD"]
[457,919,2444,"Mount Pleasant Lane Primary School","St Albans","AL2 3XA"]
[458,919,2106,"Sandridge School","St Albans","AL4 9EB"]
[459,919,3379,"St Helen's Church of England Primary School","St Albans","AL4 8AN"]
[462,919,2258,"Skyswood Primary & Nursery School","St Albans","AL4 9RS"]
[464,919,2311,"Wheatfields Infants' and Nursery School","St Albans","AL4 9NT"]
[465,919,3403,"St John Fisher Roman Catholic Primary School","St Albans","AL4 9RW"]
[466,919,2252,"How Wood Primary and Nursery School","St Albans","AL2 2HU"]
[467,919,3416,"Saint Bernadette Voluntary Catholic Primary Academy","St Albans","AL2 1NL"]
[470,919,2086,"Beech Hyde Primary School and Nursery","St Albans","AL4 8TP"]
[484,919,2412,"The Lea Primary School and Nursery","St Albans","AL5 4LE"]
[485,919,2034,"Manland Primary School","St Albans","AL5 4QW"]
[486,919,3336,"St Nicholas CofE VA Primary School","St Albans","AL5 2TP"]
[487,919,2437,"High Beeches Primary School","St Albans","AL5 5SD"]
[488,919,2033,"Sauncey Wood Primary School","St Albans","AL5 5HL"]
[490,919,2203,"Roundwood Primary School","St Albans","AL5 3AD"]
[491,919,2299,"The Grove Junior School","St Albans","AL5 1QB"]
[492,919,2336,"The Grove Infant and Nursery School","St Albans","AL5 1QD"]
[493,919,2457,"Wood End School","St Albans","AL5 3EF"]
[494,919,3401,"St Dominic Catholic Primary School","St Albans","AL5 1PF"]
[496,919,2390,"Crabtree Infants' School","St Albans","EN2 0SP"]
[499,919,1006,"Batford Nursery School","St Albans","AL5 5BQ"]
[501,919,2060,"Harpenden Academy","St Albans","AL5 4EL"]
[503,919,3419,"Welwyn St Mary's Church of England Voluntary Aided Primary School","Welwyn Hatfield","AL6 9DJ"]
[504,919,3376,"St John's CofE Primary School","Welwyn Hatfield","AL6 0BX"]
[505,919,3378,"St Michael's Woolmer Green CofE VA Primary School","Welwyn Hatfield","SG3 6JP"]
[506,919,2302,"Oaklands Primary School","Welwyn Hatfield","AL6 0PX"]
[509,919,1018,"Tenterfield Nursery School","Welwyn Hatfield","AL6 9JF"]
[520,919,2143,"Holwell Primary School","Welwyn Hatfield","AL7 3RP"]
[521,919,2454,"Applecroft School","Welwyn Hatfield","AL8 6JZ"]
[523,919,2140,"Peartree Primary School","Welwyn Hatfield","AL7 3XW"]
[524,919,2142,"Templewood Primary School","Welwyn Hatfield","AL8 7SD"]
[525,919,2027,"Swallow Dell Primary and Nursery School","Welwyn Hatfield","AL7 3JP"]
[527,919,3382,"Our Lady Catholic Primary School","Welwyn Hatfield","SG5 1XT"]
[529,919,2996,"Commonswood Primary & Nursery School","Welwyn Hatfield","AL7 4RU"]
[532,919,2237,"Harwood Hill Junior Mixed Infant and Nursery School","Welwyn Hatfield","AL8 7AG"]
[535,919,2283,"Homerswood Primary and Nursery School","Welwyn Hatfield","AL8 7RF"]
[536,919,2296,"Waterside Academy","Welwyn Hatfield","AL7 1NZ"]
[539,919,3404,"The Holy Family Catholic Primary School","Welwyn Hatfield","AL7 1PG"]
[540,919,2356,"Panshanger Primary School","Welwyn Hatfield","AL7 1QY"]
[542,919,2081,"Springmead Primary School","Welwyn Hatfield","AL7 2HB"]
[544,919,2118,"Watchlytes Primary School","Welwyn Hatfield","AL7 2AZ"]
[545,919,2136,"Creswick Academy","Welwyn Hatfield","AL7 4FL"]
[549,919,1019,"Ludwick Nursery School","Welwyn Hatfield","AL7 3RP"]
[560,919,3015,"Essendon CofE (VC) Primary School","Welwyn Hatfield","AL9 6HD"]
[561,919,3339,"St John's Voluntary Aided Church of England Primary School, Lemsford","Welwyn Hatfield","AL8 7TR"]
[562,919,3020,"Ponsbourne St Mary's Church of England Primary School","Welwyn Hatfield","SG13 8RA"]
[564,919,5209,"Northaw Church of England Primary School","Welwyn Hatfield","EN6 4PB"]
[565,919,3976,"St Maryâ€™s Church of England Voluntary Aided Primary School, Welham Green","Welwyn Hatfield","AL9 7NE"]
[567,919,5207,"Little Heath Primary School","Welwyn Hatfield","EN6 1JW"]
[568,919,5205,"Cuffley School","Welwyn Hatfield","EN6 4HN"]
[570,919,3406,"Countess Anne Church of England School","Welwyn Hatfield","AL10 8AX"]
[571,919,2039,"Green Lanes Primary School","Welwyn Hatfield","AL10 9JY"]
[574,919,5210,"Brookmans Park Primary School","Welwyn Hatfield","AL9 7QY"]
[575,919,2007,"Birchwood Avenue Primary School","Welwyn Hatfield","AL10 0PS"]
[577,919,2391,"The Ryde School","Welwyn Hatfield","AL9 5DR"]
[579,919,2225,"Howe Dell Primary School","Welwyn Hatfield","AL10 9AH"]
[582,919,3388,"St Philip Howard Catholic Primary School","Welwyn Hatfield","AL10 8NN"]
[585,919,3989,"Oak View Primary and Nursery School","Welwyn Hatfield","AL10 8NW"]
[586,919,2004,"Hatfield Community Free School","Welwyn Hatfield","AL10 8ES"]
[587,919,2112,"De Havilland Primary School","Welwyn Hatfield","AL10 8TQ"]
[599,919,1008,"Birchwood Nursery School","Welwyn Hatfield","AL10 0PD"]
[600,919,2054,"Yavneh Primary School","Hertsmere","WD6 1HL"]
[606,919,5213,"Clore Shalom School","Hertsmere","WD7 9BL"]
[610,919,3333,"St Nicholas Elstree Church of England VA Primary School","Hertsmere","WD6 3EW"]
[611,919,2108,"Shenley Primary School","Hertsmere","WD7 9DX"]
[613,919,2154,"Summerswood Primary School","Hertsmere","WD6 2DW"]
[614,919,2224,"Monksmead School","Hertsmere","WD6 1HL"]
[615,919,2030,"Cowley Hill School","Hertsmere","WD6 5DP"]
[616,919,2153,"Woodlands Primary School","Hertsmere","WD6 5JF"]
[617,919,2155,"Kenilworth Primary School","Hertsmere","WD6 1QL"]
[618,919,2156,"Meryfield Primary School","Hertsmere","WD6 4PA"]
[620,919,2181,"Saffron Green Primary School","Hertsmere","WD6 2PP"]
[621,919,5202,"Parkside Community Primary School","Hertsmere","WD6 4EP"]
[623,919,3384,"St Teresa Catholic Primary School","Hertsmere","WD6 5HL"]
[654,919,5204,"St Giles' CofE Primary School","Hertsmere","EN6 3PE"]
[655,919,2980,"Cranborne Primary School","Hertsmere","EN6 2BA"]
[657,919,2985,"Oakmere Primary School","Hertsmere","EN6 5NP"]
[661,919,2982,"Ladbrooke Junior Mixed and Infant School","Hertsmere","EN6 1QB"]
[662,919,3975,"Pope Paul Catholic Primary School","Hertsmere","EN6 2ES"]
[663,919,5206,"The Wroxham School","Hertsmere","EN6 3DJ"]
[675,919,3012,"Ashfield Junior School","Hertsmere","WD23 1SR"]
[676,919,2014,"Merry Hill Infant School and Nursery","Hertsmere","WD23 1ST"]
[678,919,2012,"Bushey Heath Primary School","Hertsmere","WD23 1SP"]
[679,919,2013,"Highwood Primary School","Hertsmere","WD23 2AW"]
[680,919,5208,"Little Reddings Primary School","Hertsmere","WD23 3PR"]
[682,919,3415,"Sacred Heart Catholic Primary School and Nursery","Hertsmere","WD23 1SU"]
[683,919,2360,"Bournehall Primary School","Hertsmere","WD23 3FE"]
[684,919,2372,"Hartsbourne Primary School","Hertsmere","WD23 1SJ"]
[686,919,2019,"Chorleywood Primary School","Three Rivers","WD3 5HR"]
[687,919,5201,"Christ Church Chorleywood CofE School","Three Rivers","WD3 5SG"]
[689,919,2025,"The Russell School","Three Rivers","WD3 5RR"]
[694,919,2082,"Harvey Road Primary School","Three Rivers","WD3 3BN"]
[695,919,2079,"Yorke Mead Primary School","Three Rivers","WD3 3PX"]
[696,919,2083,"Little Green Junior School","Three Rivers","WD3 3NJ"]
[697,919,2084,"Malvern Way Infant and Nursery School","Three Rivers","WD3 3QQ"]
[698,919,3359,"St Mary's Church of England Primary School, Rickmansworth","Three Rivers","WD3 1NY"]
[699,919,2022,"Shepherd Primary","Three Rivers","WD3 8JJ"]
[702,919,3360,"St Peter's Church of England Voluntary Aided Primary School","Three Rivers","WD3 8HD"]
[703,919,2266,"Eastbury Farm Primary School","Three Rivers","HA6 3DG"]
[705,919,3398,"St John Catholic Primary School","Three Rivers","WD3 7HG"]
[706,919,2308,"Maple Cross Junior Mixed Infant and Nursery School","Three Rivers","WD3 9SS"]
[707,919,2348,"Arnett Hills Junior Mixed and Infant School","Three Rivers","WD3 4BT"]
[708,919,2379,"Rickmansworth Park Junior Mixed and Infant School","Three Rivers","WD3 1HU"]
[713,919,2433,"Coates Way JMI and Nursery School","Watford","WD25 9NW"]
[714,919,2049,"Lanchester Primary School","Watford","WD17 3HD"]
[715,919,2043,"Ascot Road Primary School","Watford","WD18 8AD"]
[720,919,2432,"Cherry Tree Primary School","Watford","WD24 6ST"]
[721,919,2385,"Bromet Primary School","Watford","WD19 4SG"]
[722,919,2398,"Laurance Haines School","Watford","WD18 0DD"]
[724,919,3428,"St Anthony's Catholic Primary School","Watford","WD18 6BW"]
[725,919,2116,"Central Primary School","Watford","WD17 2LX"]
[729,919,2122,"Chater Infant School","Watford","WD18 7RD"]
[730,919,2123,"Field Junior School","Watford","WD18 0AZ"]
[731,919,2124,"Watford Field School (Infant & Nursery)","Watford","WD18 0WF"]
[735,919,2130,"Knutsford Primary Academy","Watford","WD24 7ER"]
[736,919,2117,"Bushey and Oxhey Infant School","Watford","WD23 2QH"]
[738,919,2126,"Parkgate Infants' and Nursery School","Watford","WD24 7RL"]
[740,919,2407,"Leavesden JMI School","Watford","WD25 7QZ"]
[742,919,2354,"Cassiobury Infant and Nursery School","Watford","WD17 3PE"]
[743,919,2115,"The Orchard Primary School","Watford","WD24 5JW"]
[747,919,3985,"Holy Rood Catholic Primary School","Watford","WD17 4FS"]
[748,919,5211,"St Catherine of Siena Catholic Primary School","Three Rivers","WD25 7HP"]
[749,919,2349,"Willow Tree Primary School","Watford","WD18 6LL"]
[752,919,3981,"Alban Wood Primary School and Nursery","Watford","WD25 7NX"]
[753,919,2020,"Beechfield School","Watford","WD24 5TY"]
[754,919,2051,"Watford St John's Church of England Primary School","Watford","WD17 1JJ"]
[755,919,2395,"Kingsway Infants' School","Watford","WD25 0ES"]
[756,919,2389,"Nascot Wood Junior School","Watford","WD17 4YS"]
[758,919,2035,"The Grove Academy","Watford","WD25 9RH"]
[759,919,1016,"Kingswood Nursery School","Watford","WD25 0DX"]
[761,919,2991,"Nascot Wood Infant and Nursery School","Watford","WD17 4YT"]
[768,919,2178,"Woodhall Primary School","Three Rivers","WD19 6QX"]
[770,919,2137,"Oxhey Wood Primary School","Three Rivers","WD19 7SL"]
[772,919,2135,"Warren Dell Primary School","Three Rivers","WD19 7UZ"]
[773,919,2177,"Greenfields Primary School","Three Rivers","WD19 6QH"]
[774,919,2131,"St Meryl School","Three Rivers","WD19 5BT"]
[775,919,3383,"St Joseph Catholic Primary School","Three Rivers","WD19 7DW"]
[776,919,2000,"Abbots Langley School","Three Rivers","WD5 0BQ"]
[778,919,2071,"Bedmond Academy","Three Rivers","WD5 0RD"]
[779,919,3301,"St Paul's Church of England Primary School, Langleybury","Three Rivers","WD4 8RJ"]
[780,919,2147,"Tanners Wood Junior Mixed and Infant School","Three Rivers","WD5 0LG"]
[784,919,5212,"Fair Field Junior School","Hertsmere","WD7 8LU"]
[785,919,3003,"St John's Church of England Infant and Nursery School","Hertsmere","WD7 8DD"]
[787,919,3037,"Sarratt Church of England Primary School","Three Rivers","WD3 6AS"]
[788,919,3410,"Divine Saviour Roman Catholic Primary School","Three Rivers","WD5 0HW"]
[789,919,2378,"Newberries Primary School","Hertsmere","WD7 7EL"]
[791,919,2092,"Hertsmere Jewish Primary School","Hertsmere","WD7 7LQ"]
[799,919,1017,"Oxhey Nursery School (Main)","Watford","WD19 4RL"]
[805,919,2042,"Jupiter Primary School","Dacorum","HP2 5NT"]
[821,919,2152,"Oakleaf Primary School","Dacorum","HP1 2JU"]
[824,919,3302,"Nash Mills Church of England Primary School","Dacorum","HP3 9XB"]
[825,919,2040,"George Street Primary School","Dacorum","HP2 5HJ"]
[826,919,2041,"Boxmoor Primary School","Dacorum","HP1 1PF"]
[828,919,2044,"Two Waters Primary School","Dacorum","HP3 0AU"]
[829,919,2045,"Tudor Primary School","Dacorum","HP3 9ER"]
[830,919,3991,"Broadfield Academy","Dacorum","HP2 4BX"]
[832,919,2466,"Belswains Primary School","Dacorum","HP3 9QJ"]
[833,919,2047,"South Hill Primary School","Dacorum","HP1 1TT"]
[835,919,2184,"Hobletts Manor Infants' School","Dacorum","HP2 5JS"]
[836,919,2469,"Hobbs Hill Wood Primary School","Dacorum","HP3 8ER"]
[838,919,2210,"Chambersbury Primary School","Dacorum","HP3 8JH"]
[843,919,3386,"St Cuthbert Mayne Voluntary Catholic Junior Academy","Dacorum","HP1 3EA"]
[844,919,2243,"Micklem Primary School","Dacorum","HP1 2QH"]
[846,919,2251,"The Reddings Primary School","Dacorum","HP3 8DX"]
[853,919,3054,"Leverstock Green Church of England Primary School","Dacorum","HP2 4SA"]
[854,919,3391,"Saint Albert the Great Catholic Primary School","Dacorum","HP3 8DW"]
[855,919,2274,"Gade Valley Primary School","Dacorum","HP1 3DT"]
[857,919,2293,"Pixies Hill Primary School","Dacorum","HP1 2BY"]
[859,919,3990,"Galley Hill Primary School and Nursery","Dacorum","HP1 3JY"]
[860,919,3409,"St Rose's Catholic Infants School","Dacorum","HP1 1QW"]
[861,919,2422,"Lime Walk Primary School","Dacorum","HP3 9LN"]
[862,919,2337,"Hammond Academy","Dacorum","HP2 5TD"]
[863,919,3988,"Yewtree Primary School","Dacorum","HP2 5QR"]
[864,919,3987,"Maple Grove Primary School","Dacorum","HP2 7BG"]
[867,919,2426,"Aycliffe Drive Primary School","Dacorum","HP2 6LJ"]
[869,919,2995,"Holtsmere End Infant and Nursery School","Dacorum","HP2 7JZ"]
[872,919,2448,"Brockswood Primary School","Dacorum","HP2 7QH"]
[899,919,1009,"Heath Lane Nursery School","Dacorum","HP1 1TT"]
[903,919,2003,"Bovingdon Primary Academy","Dacorum","HP3 0HL"]
[904,919,3335,"Great Gaddesden Church of England Primary School","Dacorum","HP1 3BT"]
[905,919,2032,"Gaddesden Row JMI School","Dacorum","HP2 6HG"]
[907,919,2074,"Markyate Village School and Nursery","Dacorum","AL3 8PT"]
[908,919,2031,"Flamstead Village School","Dacorum","AL3 8DL"]
[909,919,3349,"St Paul's Church of England Voluntary Aided Primary School, Chipperfield","Dacorum","WD4 9BS"]
[910,919,2338,"Kings Langley Primary School","Dacorum","WD4 8DQ"]
[916,919,3315,"St Mary's CofE Primary School, Northchurch","Dacorum","HP4 3QZ"]
[917,919,3314,"Victoria Church of England Infant and Nursery School","Dacorum","HP4 3HA"]
[918,919,2288,"Westfield Primary School and Nursery","Dacorum","HP4 3PJ"]
[919,919,2301,"Swing Gate Infant School and Nursery","Dacorum","HP4 2LJ"]
[920,919,3402,"St Thomas More Roman Catholic Voluntary Aided Primary School","Dacorum","HP4 3LF"]
[921,919,2326,"Greenway Primary and Nursery School","Dacorum","HP4 3NH"]
[923,919,4144,"Bridgewater Primary School","Dacorum","HP4 1ES"]
[925,919,3000,"Aldbury Church of England Primary and Nursery School","Dacorum","HP23 5RT"]
[926,919,3049,"Potten End CofE Primary School","Dacorum","HP4 2QY"]
[927,919,3373,"Long Marston VA Church of England Primary School","Dacorum","HP23 4QS"]
[929,919,3380,"St Bartholomew's Church of England Voluntary Aided Primary School, Wigginton","Dacorum","HP23 6EP"]
[930,919,3352,"Little Gaddesden Church of England Voluntary Aided Primary School","Dacorum","HP4 1NX"]
[938,919,2436,"Grove Road Primary School","Dacorum","HP23 5PD"]
[939,919,2322,"Goldfield Infants' and Nursery School","Dacorum","HP23 4EE"]
[940,919,2343,"Dundale Primary School and Nursery","Dacorum","HP23 5DJ"]
[999,919,1234,"High Ridge","Dacorum"]

{"sheet":"IMPORTANT - PLEASE READ","index":2,"n_rows":34,"n_cols":3,"rows_kept":34,"cut":false,"hidden":false,"merged":[[0,0,0,3]]}
["HOW TO USE THIS TOOL"]
[1,null,"Practitioners identify which provision the child is moving on to."]
[null,null,"First check if you have been able to successfully Enable Macros/Enable Content. If not, you MUST Create a separate TLNT spreadsheet for each individual setting/school – not individual children."]
[2,null,"Add the names of all the children moving to that school nursery or reception class."]
[3,null,"Add the 3-digit number of the Destination School next to each child in the Destination School No column. This will populate the Destination School Name next to the child’s name."]
[4,null,"Identify any potential barriers to learning by completing the (TLNT) spreadsheet."]
[5,null,"Select either or enter Intensive, Personalised or Targeted as appropriate and leave blank any statement that does not apply to the child.  This should be completed by the end of April."]
[6,null,"Totals will appear above the column headings for each area of need, plus scores and ratings for each individual child will appear at the end of each row."]
[7,null,"Each statement has been allocated a number of points, corresponding to the potential barrier to learning:"]
[null,"-","If a child has a combined score of 12+ this indicates an intensive level of need"]
[null,"-","If a child has a combined score of 4-11 this indicates a personalised level of need"]
[null,"-","If a child has combined score 1-3 this indicates a targeted level of need"]
[null,"-","If a child has a score of 0 this indicates a universal level of need"]
[8,null,"Children may meet the criteria in different parts of the TLNT rating. "]
[9,null,"Send the spreadsheet securely to the nursery/reception provision by end of April:"]
[null,"-","password protecting the file"]
[null,"-","establishing a named email address to send to at the receiving school"]
[null,"-","communicating the password to the school by a separate method (different email message, by phone etc)"]
[10,null,"Ensuring the Enable Macros/Enable Content has been pressed, click the button to create files to send to nursery/reception provisions."]
[null,null,"If your Macros are not abled proceed to step 15 for ALL TLNT spreadsheets you have for each individual setting/school."]
[11,null,"You will be presented with a dialog window request a password to protect the spreadsheets Excel will generate."]
[12,null,"Enter a suitable password ensuring that it meets the security requirements"]
[13,null,"Click OK on the dialog and Excel will start creating spreadsheets for all the different Destination Schools you have listed against your children in the School list spreadsheet"]
[14,null,"Once successfully completed, you will see a short confirmation message and Excel will open the folder (or web page if you are using cloud storage) where the spreadsheets to send have been saved."]
[null,null,"Proceed to step 20."]
[15,null,"To protect the spreadsheet, ensure that you have saved it with a suitable name, e.g. your setting name plus the cohort year (nursery or reception) and the date."]
[null,null,"Please note that these instructions relate only to Excel 365 for Windows.  If you are using other software then the menu options or buttons may be different."]
[16,null,"Click on the File tab in Excel.  Under Info, click on the drop-down arrow for Protect Workbook and choose Encrypt with Password."]
[17,null,"You will be prompted to enter a password – IMPORTANT, if you forget the password, you will NOT be able to open the file again."]
[18,null,"Click OK, and you will be prompted to enter the password again.  The Protect Workbook button will now appear with a message confirming that a password is needed to open the file."]
[19,null,"Click Save.  If you wish, you can test the password, by closing the file then opening it again."]
[20,null,"If the school or parent/carer advises you that the children will no longer be going to that school, then you will need to send their details to the new school and also inform the previously named school."]
[]
[null,null," "]

{"sheet":"FAQs","index":3,"n_rows":10,"n_cols":1,"rows_kept":10,"cut":false,"hidden":false,"merged":[[3,0,3,12]]}
["Please check the answers to these frequently asked questions before contacting us for support"]
[]
["I am using a Chromebook /a Macbook / Google Docs, can I still use the spreadsheet tool?"]
["You should still be able to enter data into the spreadsheet."]
[]
["I’ve put all my children into one spreadsheet, how can I split them into separate files for each destination school?"]
["If you have macros enabled, you should follow the instructions on the IMPORTANT - PLEASE READ sheet from step 10 to have Excel sort and create your data into separate files."]
["If not, the easiest way to do this is to sort the spreadsheet by the first column.  Click on the drop-down arrow on the heading for Destination School and choose Sort A to Z. "]
["Save the spreadsheet then press F12 or go to File > Save as and save a copy (perhaps include the destination school in the name and you MUST password protect the file)."]
["Delete all the rows apart from those for the required school then save and close.  Reopen the master and repeat the steps again for each school in turn."]

{"sheet":"Working","index":4,"n_rows":311,"n_cols":38,"rows_kept":311,"cut":false,"hidden":true,"merged":[[3,8,4,10]]}
[]
[" (Nursery Schools only) School No:"]
["School/Setting Name:"]
[null,null,null,null,null,null,null,null,"2026 Version"]
["Year cohort are entering:",null,null,null,null,null,null,null,null,null,null,null,null,null,null,null,null,null,null,null,null,null,null,null,null,null,null,null,null,null,null,null,null,null,null,"Totals:"]
[null,null,null,null,null,null,null,null,null,null,null,null,null,null,null,null,null,null,null,null,null,null,null,null,null,null,null,null,null,null,null,null,null,null,null,"Intensive",{"$f":"COUNTIF(SettingTable[Overall rating],\"Intensive*\")","v":0},{"$f":"CONCATENATE(\"(\",COUNTIFS(SettingTable[Overall rating],\"Intensive*\",SettingTable[Gender],\"F\"),\" F and \",COUNTIFS(SettingTable[Overall rating],\"Intensive*\",SettingTable[Gender],\"M\"),\" M)\")","v":"(0 F and 0 M)"}]
[null,null,null,null,null,null,null,"Intensive Totals:",{"$f":"IF(COUNTA($D$12:$D$311)=0,0,COUNTIF(SettingTable[Child look after/ previously looked after],\"Intensive\"))","v":0},{"$f":"IF(COUNTA($D$12:$D$311)=0,0,COUNTIF(SettingTable[Child in need/Child protection/Targeted intervention/Previously known to social care],\"Intensive\"))","v":0},{"$f":"IF(COUNTA($D$12:$D$311)=0,0,COUNTIF(SettingTable[Special guardianship order],\"Intensive\"))","v":0},{"$f":"IF(COUNTA($D$12:$D$311)=0,0,COUNTIF(SettingTable[Special eductional need and/or disability],\"Intensive\"))","v":0},{"$f":"IF(COUNTA($D$12:$D$311)=0,0,COUNTIF(SettingTable[Social, emotional and mental health needs],\"Intensive\"))","v":0},{"$f":"IF(COUNTA($D$12:$D$311)=0,0,COUNTIF(SettingTable[Speech and language therapies (SALT)],\"Intensive\"))","v":0},{"$f":"IF(COUNTA($D$12:$D$311)=0,0,COUNTIF(SettingTable[Medical needs],\"Intensive\"))","v":0},{"$f":"IF(COUNTA($D$12:$D$311)=0,0,COUNTIF(SettingTable[Sensory Needs],\"Intensive\"))","v":0},{"$f":"IF(COUNTA($D$12:$D$311)=0,0,COUNTIF(SettingTable[Sensory and/or physical development],\"Intensive\"))","v":0},{"$f":"IF(COUNTA($D$12:$D$311)=0,0,COUNTIF(SettingTable[Bereavement],\"Intensive\"))","v":0},{"$f":"IF(COUNTA($D$12:$D$311)=0,0,COUNTIF(SettingTable[Parental advocacy, vulnerability or engagment],\"Intensive\"))","v":0},{"$f":"IF(COUNTA($D$12:$D$311)=0,0,COUNTIF(SettingTable[Shared parental responsibility],\"Intensive\"))","v":0},{"$f":"IF(COUNTA($D$12:$D$311)=0,0,COUNTIF(SettingTable[Transient family],\"Intensive\"))","v":0},{"$f":"IF(COUNTA($D$12:$D$311)=0,0,COUNTIF(SettingTable[Changes to home circumstances],\"Intensive\"))","v":0},{"$f":"IF(COUNTA($D$12:$D$311)=0,0,COUNTIF(SettingTable[Attendance],\"Intensive\"))","v":0},{"$f":"IF(COUNTA($D$12:$D$311)=0,0,COUNTIF(SettingTable[Exclusions],\"Intensive\"))","v":0},{"$f":"IF(COUNTA($D$12:$D$311)=0,0,COUNTIF(SettingTable[English as an additional langauge],\"Intensive\"))","v":0},{"$f":"IF(COUNTA($D$12:$D$311)=0,0,COUNTIF(SettingTable[Delayed or deferred entry],\"Intensive\"))","v":0},{"$f":"IF(COUNTA($D$12:$D$311)=0,0,COUNTIF(SettingTable[Early years pupil premium],\"Intensive\"))","v":0},{"$f":"IF(COUNTA($D$12:$D$311)=0,0,COUNTIF(SettingTable[Free education for 2-year-olds],\"Intensive\"))","v":0},{"$f":"IF(COUNTA($D$12:$D$311)=0,0,COUNTIF(SettingTable[Child born prematurely],\"Intensive\"))","v":0},{"$f":"IF(COUNTA($D$12:$D$311)=0,0,COUNTIF(SettingTable[Child has been cared for at home],\"Intensive\"))","v":0},{"$f":"IF(COUNTA($D$12:$D$311)=0,0,COUNTIF(SettingTable[Child vulnerable to underachievement in the prime areas of development],\"Intensive\"))","v":0},{"$f":"IF(COUNTA($D$12:$D$311)=0,0,COUNTIF(SettingTable[Child vulnerable to underachievement in the specific areas of development],\"Intensive\"))","v":0},{"$f":"IF(COUNTA($D$12:$D$311)=0,0,COUNTIF(SettingTable[Total Red],\"Intensive\"))","v":0},{"$f":"IF(COUNTA($D$12:$D$311)=0,0,COUNTIF(SettingTable[Total Amber],\"Intensive\"))","v":0},{"$f":"IF(COUNTA($D$12:$D$311)=0,0,COUNTIF(SettingTable[Total Yellow],\"Intensive\"))","v":0},"Personalised",{"$f":"COUNTIF(SettingTable[Overall rating],\"Person*\")","v":0},{"$f":"CONCATENATE(\"(\",COUNTIFS(SettingTable[Overall rating],\"Person*\",SettingTable[Gender],\"F\"),\" F and \",COUNTIFS(SettingTable[Overall rating],\"Person*\",SettingTable[Gender],\"M\"),\" M)\")","v":"(0 F and 0 M)"}]
[null,null,null,null,null,null,null,"Personalised Totals:",{"$f":"IF(COUNTA($D$12:$D$311)=0,0,COUNTIF(SettingTable[Child look after/ previously looked after],\"Personalised\"))","v":0},{"$f":"IF(COUNTA($D$12:$D$311)=0,0,COUNTIF(SettingTable[Child in need/Child protection/Targeted intervention/Previously known to social care],\"Personalised\"))","v":0},{"$f":"IF(COUNTA($D$12:$D$311)=0,0,COUNTIF(SettingTable[Special guardianship order],\"Personalised\"))","v":0},{"$f":"IF(COUNTA($D$12:$D$311)=0,0,COUNTIF(SettingTable[Special eductional need and/or disability],\"Personalised\"))","v":0},{"$f":"IF(COUNTA($D$12:$D$311)=0,0,COUNTIF(SettingTable[Social, emotional and mental health needs],\"Personalised\"))","v":0},{"$f":"IF(COUNTA($D$12:$D$311)=0,0,COUNTIF(SettingTable[Speech and language therapies (SALT)],\"Personalised\"))","v":0},{"$f":"IF(COUNTA($D$12:$D$311)=0,0,COUNTIF(SettingTable[Medical needs],\"Personalised\"))","v":0},{"$f":"IF(COUNTA($D$12:$D$311)=0,0,COUNTIF(SettingTable[Sensory Needs],\"Personalised\"))","v":0},{"$f":"IF(COUNTA($D$12:$D$311)=0,0,COUNTIF(SettingTable[Sensory and/or physical development],\"Personalised\"))","v":0},{"$f":"IF(COUNTA($D$12:$D$311)=0,0,COUNTIF(SettingTable[Bereavement],\"Personalised\"))","v":0},{"$f":"IF(COUNTA($D$12:$D$311)=0,0,COUNTIF(SettingTable[Parental advocacy, vulnerability or engagment],\"Personalised\"))","v":0},{"$f":"IF(COUNTA($D$12:$D$311)=0,0,COUNTIF(SettingTable[Shared parental responsibility],\"Personalised\"))","v":0},{"$f":"IF(COUNTA($D$12:$D$311)=0,0,COUNTIF(SettingTable[Transient family],\"Personalised\"))","v":0},{"$f":"IF(COUNTA($D$12:$D$311)=0,0,COUNTIF(SettingTable[Changes to home circumstances],\"Personalised\"))","v":0},{"$f":"IF(COUNTA($D$12:$D$311)=0,0,COUNTIF(SettingTable[Attendance],\"Personalised\"))","v":0},{"$f":"IF(COUNTA($D$12:$D$311)=0,0,COUNTIF(SettingTable[Exclusions],\"Personalised\"))","v":0},{"$f":"IF(COUNTA($D$12:$D$311)=0,0,COUNTIF(SettingTable[English as an additional langauge],\"Personalised\"))","v":0},{"$f":"IF(COUNTA($D$12:$D$311)=0,0,COUNTIF(SettingTable[Delayed or deferred entry],\"Personalised\"))","v":0},{"$f":"IF(COUNTA($D$12:$D$311)=0,0,COUNTIF(SettingTable[Early years pupil premium],\"Personalised\"))","v":0},{"$f":"IF(COUNTA($D$12:$D$311)=0,0,COUNTIF(SettingTable[Free education for 2-year-olds],\"Personalised\"))","v":0},{"$f":"IF(COUNTA($D$12:$D$311)=0,0,COUNTIF(SettingTable[Child born prematurely],\"Personalised\"))","v":0},{"$f":"IF(COUNTA($D$12:$D$311)=0,0,COUNTIF(SettingTable[Child has been cared for at home],\"Personalised\"))","v":0},{"$f":"IF(COUNTA($D$12:$D$311)=0,0,COUNTIF(SettingTable[Child vulnerable to underachievement in the prime areas of development],\"Personalised\"))","v":0},{"$f":"IF(COUNTA($D$12:$D$311)=0,0,COUNTIF(SettingTable[Child vulnerable to underachievement in the specific areas of development],\"Personalised\"))","v":0},{"$f":"IF(COUNTA($D$12:$D$311)=0,0,COUNTIF(SettingTable[Total Red],\"Personalised\"))","v":0},{"$f":"IF(COUNTA($D$12:$D$311)=0,0,COUNTIF(SettingTable[Total Amber],\"Personalised\"))","v":0},{"$f":"IF(COUNTA($D$12:$D$311)=0,0,COUNTIF(SettingTable[Total Yellow],\"Personalised\"))","v":0},"Targeted",{"$f":"COUNTIF(SettingTable[Overall rating],\"Target*\")","v":0},{"$f":"CONCATENATE(\"(\",COUNTIFS(SettingTable[Overall rating],\"Target*\",SettingTable[Gender],\"F\"),\" F and \",COUNTIFS(SettingTable[Overall rating],\"Target*\",SettingTable[Gender],\"M\"),\" M)\")","v":"(0 F and 0 M)"}]
[null,null,null,null,null,null,null,"Targeted Totals:",{"$f":"IF(COUNTA($D$12:$D$311)=0,0,COUNTIF(SettingTable[Child look after/ previously looked after],\"Targeted\"))","v":0},{"$f":"IF(COUNTA($D$12:$D$311)=0,0,COUNTIF(SettingTable[Child in need/Child protection/Targeted intervention/Previously known to social care],\"Targeted\"))","v":0},{"$f":"IF(COUNTA($D$12:$D$311)=0,0,COUNTIF(SettingTable[Special guardianship order],\"Targeted\"))","v":0},{"$f":"IF(COUNTA($D$12:$D$311)=0,0,COUNTIF(SettingTable[Special eductional need and/or disability],\"Targeted\"))","v":0},{"$f":"IF(COUNTA($D$12:$D$311)=0,0,COUNTIF(SettingTable[Social, emotional and mental health needs],\"Targeted\"))","v":0},{"$f":"IF(COUNTA($D$12:$D$311)=0,0,COUNTIF(SettingTable[Speech and language therapies (SALT)],\"Targeted\"))","v":0},{"$f":"IF(COUNTA($D$12:$D$311)=0,0,COUNTIF(SettingTable[Medical needs],\"Targeted\"))","v":0},{"$f":"IF(COUNTA($D$12:$D$311)=0,0,COUNTIF(SettingTable[Sensory Needs],\"Targeted\"))","v":0},{"$f":"IF(COUNTA($D$12:$D$311)=0,0,COUNTIF(SettingTable[Sensory and/or physical development],\"Targeted\"))","v":0},{"$f":"IF(COUNTA($D$12:$D$311)=0,0,COUNTIF(SettingTable[Bereavement],\"Targeted\"))","v":0},{"$f":"IF(COUNTA($D$12:$D$311)=0,0,COUNTIF(SettingTable[Parental advocacy, vulnerability or engagment],\"Targeted\"))","v":0},{"$f":"IF(COUNTA($D$12:$D$311)=0,0,COUNTIF(SettingTable[Shared parental responsibility],\"Targeted\"))","v":0},{"$f":"IF(COUNTA($D$12:$D$311)=0,0,COUNTIF(SettingTable[Transient family],\"Targeted\"))","v":0},{"$f":"IF(COUNTA($D$12:$D$311)=0,0,COUNTIF(SettingTable[Changes to home circumstances],\"Targeted\"))","v":0},{"$f":"IF(COUNTA($D$12:$D$311)=0,0,COUNTIF(SettingTable[Attendance],\"Targeted\"))","v":0},{"$f":"IF(COUNTA($D$12:$D$311)=0,0,COUNTIF(SettingTable[Exclusions],\"Targeted\"))","v":0},{"$f":"IF(COUNTA($D$12:$D$311)=0,0,COUNTIF(SettingTable[English as an additional langauge],\"Targeted\"))","v":0},{"$f":"IF(COUNTA($D$12:$D$311)=0,0,COUNTIF(SettingTable[Delayed or deferred entry],\"Targeted\"))","v":0},{"$f":"IF(COUNTA($D$12:$D$311)=0,0,COUNTIF(SettingTable[Early years pupil premium],\"Targeted\"))","v":0},{"$f":"IF(COUNTA($D$12:$D$311)=0,0,COUNTIF(SettingTable[Free education for 2-year-olds],\"Targeted\"))","v":0},{"$f":"IF(COUNTA($D$12:$D$311)=0,0,COUNTIF(SettingTable[Child born prematurely],\"Targeted\"))","v":0},{"$f":"IF(COUNTA($D$12:$D$311)=0,0,COUNTIF(SettingTable[Child has been cared for at home],\"Targeted\"))","v":0},{"$f":"IF(COUNTA($D$12:$D$311)=0,0,COUNTIF(SettingTable[Child vulnerable to underachievement in the prime areas of development],\"Targeted\"))","v":0},{"$f":"IF(COUNTA($D$12:$D$311)=0,0,COUNTIF(SettingTable[Child vulnerable to underachievement in the specific areas of development],\"Targeted\"))","v":0},{"$f":"IF(COUNTA($D$12:$D$311)=0,0,COUNTIF(SettingTable[Total Red],\"Targeted\"))","v":0},{"$f":"IF(COUNTA($D$12:$D$311)=0,0,COUNTIF(SettingTable[Total Amber],\"Targeted\"))","v":0},{"$f":"IF(COUNTA($D$12:$D$311)=0,0,COUNTIF(SettingTable[Total Yellow],\"Targeted\"))","v":0},"Universal",{"$f":"COUNTIF(SettingTable[Overall rating],\"Universal*\")","v":0},{"$f":"CONCATENATE(\"(\",COUNTIFS(SettingTable[Overall rating],\"Universal*\",SettingTable[Gender],\"F\"),\" F and \",COUNTIFS(SettingTable[Overall rating],\"Universal*\",SettingTable[Gender],\"M\"),\" M)\")","v":"(0 F and 0 M)"}]
[]
["Destination School No","Destination School Name","OCC","Child First Name","Child Surname","Gender","Term of Birth","30-hours of provision","Child look after/ previously looked after","Child in need/Child protection/Targeted intervention/Previously known to social care","Special guardianship order","Special eductional need and/or disability","Social, emotional and mental health needs","Speech and language therapies (SALT)","Medical needs","Sensory Needs","Sensory and/or physical development","Bereavement","Parental advocacy, vulnerability or engagment","Shared parental responsibility","Transient family","Changes to home circumstances","Attendance","Exclusions","English as an additional langauge","Delayed or deferred entry","Early years pupil premium","Free education for 2-year-olds","Child born prematurely","Child has been cared for at home","Child vulnerable to underachievement in the prime areas of development","Child vulnerable to underachievement in the specific areas of development","Total Red","Total Amber","Total Yellow","Score","Overall rating"]
[null,null,null,null,null,null,null,null,null,null,null,null,null,null,null,null,null,null,null,null,null,null,null,null,null,null,null,null,null,null,null,null,{"$f":"IF($D12<>\"\",COUNTIF($I12:$AF12,\"Intensive\")*12,\"\")","v":""},{"$f":"IF($D12<>\"\",COUNTIF($I12:$AF12,\"Personalised\")*4,\"\")","v":""},{"$f":"IF($D12<>\"\",COUNTIF($I12:$AF12,\"Targeted\"),\"\")","v":""},{"$f":"IF(ISBLANK(SettingTable[[#This Row],[Child First Name]]),\"\",SUM(SettingTable[[#This Row],[Total Red]:[Total Yellow]]))","v":""},{"$f":"IF(ISBLANK(SettingTable[[#This Row],[Child First Name]]),\"\",IF(SettingTable[[#This Row],[Score]]<1,\"Universal Need\",IF(SettingTable[[#This Row],[Score]]<4,\"Targeted Need\",IF(SettingTable[[#This Row],[Score]]<12,\"Personalised Need\",\"Intensive Need\"))))","v":""}]
[null,null,null,null,null,null,null,null,null,null,null,null,null,null,null,null,null,null,null,null,null,null,null,null,null,null,null,null,null,null,null,null,"","","",{"$f":"IF(ISBLANK(SettingTable[[#This Row],[Child First Name]]),\"\",SUM(SettingTable[[#This Row],[Total Red]:[Total Yellow]]))","v":""},{"$f":"IF(ISBLANK(SettingTable[[#This Row],[Child First Name]]),\"\",IF(SettingTable[[#This Row],[Score]]<1,\"Universal Need\",IF(SettingTable[[#This Row],[Score]]<4,\"Targeted Need\",IF(SettingTable[[#This Row],[Score]]<12,\"Personalised Need\",\"Intensive Need\"))))","v":""}]
[null,null,null,null,null,null,null,null,null,null,null,null,null,null,null,null,null,null,null,null,null,null,null,null,null,null,null,null,null,null,null,null,"","","",{"$f":"IF(ISBLANK(SettingTable[[#This Row],[Child First Name]]),\"\",SUM(SettingTable[[#This Row],[Total Red]:[Total Yellow]]))","v":""},{"$f":"IF(ISBLANK(SettingTable[[#This Row],[Child First Name]]),\"\",IF(SettingTable[[#This Row],[Score]]<1,\"Universal Need\",IF(SettingTable[[#This Row],[Score]]<4,\"Targeted Need\",IF(SettingTable[[#This Row],[Score]]<12,\"Personalised Need\",\"Intensive Need\"))))","v":""}]
[null,null,null,null,null,null,null,null,null,null,null,null,null,null,null,null,null,null,null,null,null,null,null,null,null,null,null,null,null,null,null,null,"","","",{"$f":"IF(ISBLANK(SettingTable[[#This Row],[Child First Name]]),\"\",SUM(SettingTable[[#This Row],[Total Red]:[Total Yellow]]))","v":""},{"$f":"IF(ISBLANK(SettingTable[[#This Row],[Child First Name]]),\"\",IF(SettingTable[[#This Row],[Score]]<1,\"Universal Need\",IF(SettingTable[[#This Row],[Score]]<4,\"Targeted Need\",IF(SettingTable[[#This Row],[Score]]<12,\"Personalised Need\",\"Intensive Need\"))))","v":""}]
[null,null,null,null,null,null,null,null,null,null,null,null,null,null,null,null,null,null,null,null,null,null,null,null,null,null,null,null,null,null,null,null,"","","",{"$f":"IF(ISBLANK(SettingTable[[#This Row],[Child First Name]]),\"\",SUM(SettingTable[[#This Row],[Total Red]:[Total Yellow]]))","v":""},{"$f":"IF(ISBLANK(SettingTable[[#This Row],[Child First Name]]),\"\",IF(SettingTable[[#This Row],[Score]]<1,\"Universal Need\",IF(SettingTable[[#This Row],[Score]]<4,\"Targeted Need\",IF(SettingTable[[#This Row],[Score]]<12,\"Personalised Need\",\"Intensive Need\"))))","v":""}]
[null,null,null,null,null,null,null,null,null,null,null,null,null,null,null,null,null,null,null,null,null,null,null,null,null,null,null,null,null,null,null,null,"","","",{"$f":"IF(ISBLANK(SettingTable[[#This Row],[Child First Name]]),\"\",SUM(SettingTable[[#This Row],[Total Red]:[Total Yellow]]))","v":""},{"$f":"IF(ISBLANK(SettingTable[[#This Row],[Child First Name]]),\"\",IF(SettingTable[[#This Row],[Score]]<1,\"Universal Need\",IF(SettingTable[[#This Row],[Score]]<4,\"Targeted Need\",IF(SettingTable[[#This Row],[Score]]<12,\"Personalised Need\",\"Intensive Need\"))))","v":""}]
[null,null,null,null,null,null,null,null,null,null,null,null,null,null,null,null,null,null,null,null,null,null,null,null,null,null,null,null,null,null,null,null,"","","",{"$f":"IF(ISBLANK(SettingTable[[#This Row],[Child First Name]]),\"\",SUM(SettingTable[[#This Row],[Total Red]:[Total Yellow]]))","v":""},{"$f":"IF(ISBLANK(SettingTable[[#This Row],[Child First Name]]),\"\",IF(SettingTable[[#This Row],[Score]]<1,\"Universal Need\",IF(SettingTable[[#This Row],[Score]]<4,\"Targeted Need\",IF(SettingTable[[#This Row],[Score]]<12,\"Personalised Need\",\"Intensive Need\"))))","v":""}]
[null,null,null,null,null,null,null,null,null,null,null,null,null,null,null,null,null,null,null,null,null,null,null,null,null,null,null,null,null,null,null,null,"","","",{"$f":"IF(ISBLANK(SettingTable[[#This Row],[Child First Name]]),\"\",SUM(SettingTable[[#This Row],[Total Red]:[Total Yellow]]))","v":""},{"$f":"IF(ISBLANK(SettingTable[[#This Row],[Child First Name]]),\"\",IF(SettingTable[[#This Row],[Score]]<1,\"Universal Need\",IF(SettingTable[[#This Row],[Score]]<4,\"Targeted Need\",IF(SettingTable[[#This Row],[Score]]<12,\"Personalised Need\",\"Intensive Need\"))))","v":""}]
[null,null,null,null,null,null,null,null,null,null,null,null,null,null,null,null,null,null,null,null,null,null,null,null,null,null,null,null,null,null,null,null,"","","",{"$f":"IF(ISBLANK(SettingTable[[#This Row],[Child First Name]]),\"\",SUM(SettingTable[[#This Row],[Total Red]:[Total Yellow]]))","v":""},{"$f":"IF(ISBLANK(SettingTable[[#This Row],[Child First Name]]),\"\",IF(SettingTable[[#This Row],[Score]]<1,\"Universal Need\",IF(SettingTable[[#This Row],[Score]]<4,\"Targeted Need\",IF(SettingTable[[#This Row],[Score]]<12,\"Personalised Need\",\"Intensive Need\"))))","v":""}]
[null,null,null,null,null,null,null,null,null,null,null,null,null,null,null,null,null,null,null,null,null,null,null,null,null,null,null,null,null,null,null,null,"","","",{"$f":"IF(ISBLANK(SettingTable[[#This Row],[Child First Name]]),\"\",SUM(SettingTable[[#This Row],[Total Red]:[Total Yellow]]))","v":""},{"$f":"IF(ISBLANK(SettingTable[[#This Row],[Child First Name]]),\"\",IF(SettingTable[[#This Row],[Score]]<1,\"Universal Need\",IF(SettingTable[[#This Row],[Score]]<4,\"Targeted Need\",IF(SettingTable[[#This Row],[Score]]<12,\"Personalised Need\",\"Intensive Need\"))))","v":""}]
[null,null,null,null,null,null,null,null,null,null,null,null,null,null,null,null,null,null,null,null,null,null,null,null,null,null,null,null,null,null,null,null,"","","",{"$f":"IF(ISBLANK(SettingTable[[#This Row],[Child First Name]]),\"\",SUM(SettingTable[[#This Row],[Total Red]:[Total Yellow]]))","v":""},{"$f":"IF(ISBLANK(SettingTable[[#This Row],[Child First Name]]),\"\",IF(SettingTable[[#This Row],[Score]]<1,\"Universal Need\",IF(SettingTable[[#This Row],[Score]]<4,\"Targeted Need\",IF(SettingTable[[#This Row],[Score]]<12,\"Personalised Need\",\"Intensive Need\"))))","v":""}]
[null,null,null,null,null,null,null,null,null,null,null,null,null,null,null,null,null,null,null,null,null,null,null,null,null,null,null,null,null,null,null,null,"","","",{"$f":"IF(ISBLANK(SettingTable[[#This Row],[Child First Name]]),\"\",SUM(SettingTable[[#This Row],[Total Red]:[Total Yellow]]))","v":""},{"$f":"IF(ISBLANK(SettingTable[[#This Row],[Child First Name]]),\"\",IF(SettingTable[[#This Row],[Score]]<1,\"Universal Need\",IF(SettingTable[[#This Row],[Score]]<4,\"Targeted Need\",IF(SettingTable[[#This Row],[Score]]<12,\"Personalised Need\",\"Intensive Need\"))))","v":""}]
[null,null,null,null,null,null,null,null,null,null,null,null,null,null,null,null,null,null,null,null,null,null,null,null,null,null,null,null,null,null,null,null,"","","",{"$f":"IF(ISBLANK(SettingTable[[#This Row],[Child First Name]]),\"\",SUM(SettingTable[[#This Row],[Total Red]:[Total Yellow]]))","v":""},{"$f":"IF(ISBLANK(SettingTable[[#This Row],[Child First Name]]),\"\",IF(SettingTable[[#This Row],[Score]]<1,\"Universal Need\",IF(SettingTable[[#This Row],[Score]]<4,\"Targeted Need\",IF(SettingTable[[#This Row],[Score]]<12,\"Personalised Need\",\"Intensive Need\"))))","v":""}]
[null,null,null,null,null,null,null,null,null,null,null,null,null,null,null,null,null,null,null,null,null,null,null,null,null,null,null,null,null,null,null,null,"","","",{"$f":"IF(ISBLANK(SettingTable[[#This Row],[Child First Name]]),\"\",SUM(SettingTable[[#This Row],[Total Red]:[Total Yellow]]))","v":""},{"$f":"IF(ISBLANK(SettingTable[[#This Row],[Child First Name]]),\"\",IF(SettingTable[[#This Row],[Score]]<1,\"Universal Need\",IF(SettingTable[[#This Row],[Score]]<4,\"Targeted Need\",IF(SettingTable[[#This Row],[Score]]<12,\"Personalised Need\",\"Intensive Need\"))))","v":""}]
[null,null,null,null,null,null,null,null,null,null,null,null,null,null,null,null,null,null,null,null,null,null,null,null,null,null,null,null,null,null,null,null,"","","",{"$f":"IF(ISBLANK(SettingTable[[#This Row],[Child First Name]]),\"\",SUM(SettingTable[[#This Row],[Total Red]:[Total Yellow]]))","v":""},{"$f":"IF(ISBLANK(SettingTable[[#This Row],[Child First Name]]),\"\",IF(SettingTable[[#This Row],[Score]]<1,\"Universal Need\",IF(SettingTable[[#This Row],[Score]]<4,\"Targeted Need\",IF(SettingTable[[#This Row],[Score]]<12,\"Personalised Need\",\"Intensive Need\"))))","v":""}]
[null,null,null,null,null,null,null,null,null,null,null,null,null,null,null,null,null,null,null,null,null,null,null,null,null,null,null,null,null,null,null,null,"","","",{"$f":"IF(ISBLANK(SettingTable[[#This Row],[Child First Name]]),\"\",SUM(SettingTable[[#This Row],[Total Red]:[Total Yellow]]))","v":""},{"$f":"IF(ISBLANK(SettingTable[[#This Row],[Child First Name]]),\"\",IF(SettingTable[[#This Row],[Score]]<1,\"Universal Need\",IF(SettingTable[[#This Row],[Score]]<4,\"Targeted Need\",IF(SettingTable[[#This Row],[Score]]<12,\"Personalised Need\",\"Intensive Need\"))))","v":""}]
[null,null,null,null,null,null,null,null,null,null,null,null,null,null,null,null,null,null,null,null,null,null,null,null,null,null,null,null,null,null,null,null,"","","",{"$f":"IF(ISBLANK(SettingTable[[#This Row],[Child First Name]]),\"\",SUM(SettingTable[[#This Row],[Total Red]:[Total Yellow]]))","v":""},{"$f":"IF(ISBLANK(SettingTable[[#This Row],[Child First Name]]),\"\",IF(SettingTable[[#This Row],[Score]]<1,\"Universal Need\",IF(SettingTable[[#This Row],[Score]]<4,\"Targeted Need\",IF(SettingTable[[#This Row],[Score]]<12,\"Personalised Need\",\"Intensive Need\"))))","v":""}]
[null,null,null,null,null,null,null,null,null,null,null,null,null,null,null,null,null,null,null,null,null,null,null,null,null,null,null,null,null,null,null,null,"","","",{"$f":"IF(ISBLANK(SettingTable[[#This Row],[Child First Name]]),\"\",SUM(SettingTable[[#This Row],[Total Red]:[Total Yellow]]))","v":""},{"$f":"IF(ISBLANK(SettingTable[[#This Row],[Child First Name]]),\"\",IF(SettingTable[[#This Row],[Score]]<1,\"Universal Need\",IF(SettingTable[[#This Row],[Score]]<4,\"Targeted Need\",IF(SettingTable[[#This Row],[Score]]<12,\"Personalised Need\",\"Intensive Need\"))))","v":""}]
[null,null,null,null,null,null,null,null,null,null,null,null,null,null,null,null,null,null,null,null,null,null,null,null,null,null,null,null,null,null,null,null,"","","",{"$f":"IF(ISBLANK(SettingTable[[#This Row],[Child First Name]]),\"\",SUM(SettingTable[[#This Row],[Total Red]:[Total Yellow]]))","v":""},{"$f":"IF(ISBLANK(SettingTable[[#This Row],[Child First Name]]),\"\",IF(SettingTable[[#This Row],[Score]]<1,\"Universal Need\",IF(SettingTable[[#This Row],[Score]]<4,\"Targeted Need\",IF(SettingTable[[#This Row],[Score]]<12,\"Personalised Need\",\"Intensive Need\"))))","v":""}]
[null,null,null,null,null,null,null,null,null,null,null,null,null,null,null,null,null,null,null,null,null,null,null,null,null,null,null,null,null,null,null,null,"","","",{"$f":"IF(ISBLANK(SettingTable[[#This Row],[Child First Name]]),\"\",SUM(SettingTable[[#This Row],[Total Red]:[Total Yellow]]))","v":""},{"$f":"IF(ISBLANK(SettingTable[[#This Row],[Child First Name]]),\"\",IF(SettingTable[[#This Row],[Score]]<1,\"Universal Need\",IF(SettingTable[[#This Row],[Score]]<4,\"Targeted Need\",IF(SettingTable[[#This Row],[Score]]<12,\"Personalised Need\",\"Intensive Need\"))))","v":""}]
[null,null,null,null,null,null,null,null,null,null,null,null,null,null,null,null,null,null,null,null,null,null,null,null,null,null,null,null,null,null,null,null,"","","",{"$f":"IF(ISBLANK(SettingTable[[#This Row],[Child First Name]]),\"\",SUM(SettingTable[[#This Row],[Total Red]:[Total Yellow]]))","v":""},{"$f":"IF(ISBLANK(SettingTable[[#This Row],[Child First Name]]),\"\",IF(SettingTable[[#This Row],[Score]]<1,\"Universal Need\",IF(SettingTable[[#This Row],[Score]]<4,\"Targeted Need\",IF(SettingTable[[#This Row],[Score]]<12,\"Personalised Need\",\"Intensive Need\"))))","v":""}]
[null,null,null,null,null,null,null,null,null,null,null,null,null,null,null,null,null,null,null,null,null,null,null,null,null,null,null,null,null,null,null,null,"","","",{"$f":"IF(ISBLANK(SettingTable[[#This Row],[Child First Name]]),\"\",SUM(SettingTable[[#This Row],[Total Red]:[Total Yellow]]))","v":""},{"$f":"IF(ISBLANK(SettingTable[[#This Row],[Child First Name]]),\"\",IF(SettingTable[[#This Row],[Score]]<1,\"Universal Need\",IF(SettingTable[[#This Row],[Score]]<4,\"Targeted Need\",IF(SettingTable[[#This Row],[Score]]<12,\"Personalised Need\",\"Intensive Need\"))))","v":""}]
[null,null,null,null,null,null,null,null,null,null,null,null,null,null,null,null,null,null,null,null,null,null,null,null,null,null,null,null,null,null,null,null,"","","",{"$f":"IF(ISBLANK(SettingTable[[#This Row],[Child First Name]]),\"\",SUM(SettingTable[[#This Row],[Total Red]:[Total Yellow]]))","v":""},{"$f":"IF(ISBLANK(SettingTable[[#This Row],[Child First Name]]),\"\",IF(SettingTable[[#This Row],[Score]]<1,\"Universal Need\",IF(SettingTable[[#This Row],[Score]]<4,\"Targeted Need\",IF(SettingTable[[#This Row],[Score]]<12,\"Personalised Need\",\"Intensive Need\"))))","v":""}]
[null,null,null,null,null,null,null,null,null,null,null,null,null,null,null,null,null,null,null,null,null,null,null,null,null,null,null,null,null,null,null,null,"","","",{"$f":"IF(ISBLANK(SettingTable[[#This Row],[Child First Name]]),\"\",SUM(SettingTable[[#This Row],[Total Red]:[Total Yellow]]))","v":""},{"$f":"IF(ISBLANK(SettingTable[[#This Row],[Child First Name]]),\"\",IF(SettingTable[[#This Row],[Score]]<1,\"Universal Need\",IF(SettingTable[[#This Row],[Score]]<4,\"Targeted Need\",IF(SettingTable[[#This Row],[Score]]<12,\"Personalised Need\",\"Intensive Need\"))))","v":""}]
[null,null,null,null,null,null,null,null,null,null,null,null,null,null,null,null,null,null,null,null,null,null,null,null,null,null,null,null,null,null,null,null,"","","",{"$f":"IF(ISBLANK(SettingTable[[#This Row],[Child First Name]]),\"\",SUM(SettingTable[[#This Row],[Total Red]:[Total Yellow]]))","v":""},{"$f":"IF(ISBLANK(SettingTable[[#This Row],[Child First Name]]),\"\",IF(SettingTable[[#This Row],[Score]]<1,\"Universal Need\",IF(SettingTable[[#This Row],[Score]]<4,\"Targeted Need\",IF(SettingTable[[#This Row],[Score]]<12,\"Personalised Need\",\"Intensive Need\"))))","v":""}]
[null,null,null,null,null,null,null,null,null,null,null,null,null,null,null,null,null,null,null,null,null,null,null,null,null,null,null,null,null,null,null,null,"","","",{"$f":"IF(ISBLANK(SettingTable[[#This Row],[Child First Name]]),\"\",SUM(SettingTable[[#This Row],[Total Red]:[Total Yellow]]))","v":""},{"$f":"IF(ISBLANK(SettingTable[[#This Row],[Child First Name]]),\"\",IF(SettingTable[[#This Row],[Score]]<1,\"Universal Need\",IF(SettingTable[[#This Row],[Score]]<4,\"Targeted Need\",IF(SettingTable[[#This Row],[Score]]<12,\"Personalised Need\",\"Intensive Need\"))))","v":""}]
[null,null,null,null,null,null,null,null,null,null,null,null,null,null,null,null,null,null,null,null,null,null,null,null,null,null,null,null,null,null,null,null,"","","",{"$f":"IF(ISBLANK(SettingTable[[#This Row],[Child First Name]]),\"\",SUM(SettingTable[[#This Row],[Total Red]:[Total Yellow]]))","v":""},{"$f":"IF(ISBLANK(SettingTable[[#This Row],[Child First Name]]),\"\",IF(SettingTable[[#This Row],[Score]]<1,\"Universal Need\",IF(SettingTable[[#This Row],[Score]]<4,\"Targeted Need\",IF(SettingTable[[#This Row],[Score]]<12,\"Personalised Need\",\"Intensive Need\"))))","v":""}]
[null,null,null,null,null,null,null,null,null,null,null,null,null,null,null,null,null,null,null,null,null,null,null,null,null,null,null,null,null,null,null,null,"","","",{"$f":"IF(ISBLANK(SettingTable[[#This Row],[Child First Name]]),\"\",SUM(SettingTable[[#This Row],[Total Red]:[Total Yellow]]))","v":""},{"$f":"IF(ISBLANK(SettingTable[[#This Row],[Child First Name]]),\"\",IF(SettingTable[[#This Row],[Score]]<1,\"Universal Need\",IF(SettingTable[[#This Row],[Score]]<4,\"Targeted Need\",IF(SettingTable[[#This Row],[Score]]<12,\"Personalised Need\",\"Intensive Need\"))))","v":""}]
[null,null,null,null,null,null,null,null,null,null,null,null,null,null,null,null,null,null,null,null,null,null,null,null,null,null,null,null,null,null,null,null,"","","",{"$f":"IF(ISBLANK(SettingTable[[#This Row],[Child First Name]]),\"\",SUM(SettingTable[[#This Row],[Total Red]:[Total Yellow]]))","v":""},{"$f":"IF(ISBLANK(SettingTable[[#This Row],[Child First Name]]),\"\",IF(SettingTable[[#This Row],[Score]]<1,\"Universal Need\",IF(SettingTable[[#This Row],[Score]]<4,\"Targeted Need\",IF(SettingTable[[#This Row],[Score]]<12,\"Personalised Need\",\"Intensive Need\"))))","v":""}]
[null,null,null,null,null,null,null,null,null,null,null,null,null,null,null,null,null,null,null,null,null,null,null,null,null,null,null,null,null,null,null,null,"","","",{"$f":"IF(ISBLANK(SettingTable[[#This Row],[Child First Name]]),\"\",SUM(SettingTable[[#This Row],[Total Red]:[Total Yellow]]))","v":""},{"$f":"IF(ISBLANK(SettingTable[[#This Row],[Child First Name]]),\"\",IF(SettingTable[[#This Row],[Score]]<1,\"Universal Need\",IF(SettingTable[[#This Row],[Score]]<4,\"Targeted Need\",IF(SettingTable[[#This Row],[Score]]<12,\"Personalised Need\",\"Intensive Need\"))))","v":""}]
[null,null,null,null,null,null,null,null,null,null,null,null,null,null,null,null,null,null,null,null,null,null,null,null,null,null,null,null,null,null,null,null,"","","",{"$f":"IF(ISBLANK(SettingTable[[#This Row],[Child First Name]]),\"\",SUM(SettingTable[[#This Row],[Total Red]:[Total Yellow]]))","v":""},{"$f":"IF(ISBLANK(SettingTable[[#This Row],[Child First Name]]),\"\",IF(SettingTable[[#This Row],[Score]]<1,\"Universal Need\",IF(SettingTable[[#This Row],[Score]]<4,\"Targeted Need\",IF(SettingTable[[#This Row],[Score]]<12,\"Personalised Need\",\"Intensive Need\"))))","v":""}]
[null,null,null,null,null,null,null,null,null,null,null,null,null,null,null,null,null,null,null,null,null,null,null,null,null,null,null,null,null,null,null,null,"","","",{"$f":"IF(ISBLANK(SettingTable[[#This Row],[Child First Name]]),\"\",SUM(SettingTable[[#This Row],[Total Red]:[Total Yellow]]))","v":""},{"$f":"IF(ISBLANK(SettingTable[[#This Row],[Child First Name]]),\"\",IF(SettingTable[[#This Row],[Score]]<1,\"Universal Need\",IF(SettingTable[[#This Row],[Score]]<4,\"Targeted Need\",IF(SettingTable[[#This Row],[Score]]<12,\"Personalised Need\",\"Intensive Need\"))))","v":""}]
[null,null,null,null,null,null,null,null,null,null,null,null,null,null,null,null,null,null,null,null,null,null,null,null,null,null,null,null,null,null,null,null,"","","",{"$f":"IF(ISBLANK(SettingTable[[#This Row],[Child First Name]]),\"\",SUM(SettingTable[[#This Row],[Total Red]:[Total Yellow]]))","v":""},{"$f":"IF(ISBLANK(SettingTable[[#This Row],[Child First Name]]),\"\",IF(SettingTable[[#This Row],[Score]]<1,\"Universal Need\",IF(SettingTable[[#This Row],[Score]]<4,\"Targeted Need\",IF(SettingTable[[#This Row],[Score]]<12,\"Personalised Need\",\"Intensive Need\"))))","v":""}]
[null,null,null,null,null,null,null,null,null,null,null,null,null,null,null,null,null,null,null,null,null,null,null,null,null,null,null,null,null,null,null,null,"","","",{"$f":"IF(ISBLANK(SettingTable[[#This Row],[Child First Name]]),\"\",SUM(SettingTable[[#This Row],[Total Red]:[Total Yellow]]))","v":""},{"$f":"IF(ISBLANK(SettingTable[[#This Row],[Child First Name]]),\"\",IF(SettingTable[[#This Row],[Score]]<1,\"Universal Need\",IF(SettingTable[[#This Row],[Score]]<4,\"Targeted Need\",IF(SettingTable[[#This Row],[Score]]<12,\"Personalised Need\",\"Intensive Need\"))))","v":""}]
[null,null,null,null,null,null,null,null,null,null,null,null,null,null,null,null,null,null,null,null,null,null,null,null,null,null,null,null,null,null,null,null,"","","",{"$f":"IF(ISBLANK(SettingTable[[#This Row],[Child First Name]]),\"\",SUM(SettingTable[[#This Row],[Total Red]:[Total Yellow]]))","v":""},{"$f":"IF(ISBLANK(SettingTable[[#This Row],[Child First Name]]),\"\",IF(SettingTable[[#This Row],[Score]]<1,\"Universal Need\",IF(SettingTable[[#This Row],[Score]]<4,\"Targeted Need\",IF(SettingTable[[#This Row],[Score]]<12,\"Personalised Need\",\"Intensive Need\"))))","v":""}]
[null,null,null,null,null,null,null,null,null,null,null,null,null,null,null,null,null,null,null,null,null,null,null,null,null,null,null,null,null,null,null,null,"","","",{"$f":"IF(ISBLANK(SettingTable[[#This Row],[Child First Name]]),\"\",SUM(SettingTable[[#This Row],[Total Red]:[Total Yellow]]))","v":""},{"$f":"IF(ISBLANK(SettingTable[[#This Row],[Child First Name]]),\"\",IF(SettingTable[[#This Row],[Score]]<1,\"Universal Need\",IF(SettingTable[[#This Row],[Score]]<4,\"Targeted Need\",IF(SettingTable[[#This Row],[Score]]<12,\"Personalised Need\",\"Intensive Need\"))))","v":""}]
[null,null,null,null,null,null,null,null,null,null,null,null,null,null,null,null,null,null,null,null,null,null,null,null,null,null,null,null,null,null,null,null,"","","",{"$f":"IF(ISBLANK(SettingTable[[#This Row],[Child First Name]]),\"\",SUM(SettingTable[[#This Row],[Total Red]:[Total Yellow]]))","v":""},{"$f":"IF(ISBLANK(SettingTable[[#This Row],[Child First Name]]),\"\",IF(SettingTable[[#This Row],[Score]]<1,\"Universal Need\",IF(SettingTable[[#This Row],[Score]]<4,\"Targeted Need\",IF(SettingTable[[#This Row],[Score]]<12,\"Personalised Need\",\"Intensive Need\"))))","v":""}]
[null,null,null,null,null,null,null,null,null,null,null,null,null,null,null,null,null,null,null,null,null,null,null,null,null,null,null,null,null,null,null,null,"","","",{"$f":"IF(ISBLANK(SettingTable[[#This Row],[Child First Name]]),\"\",SUM(SettingTable[[#This Row],[Total Red]:[Total Yellow]]))","v":""},{"$f":"IF(ISBLANK(SettingTable[[#This Row],[Child First Name]]),\"\",IF(SettingTable[[#This Row],[Score]]<1,\"Universal Need\",IF(SettingTable[[#This Row],[Score]]<4,\"Targeted Need\",IF(SettingTable[[#This Row],[Score]]<12,\"Personalised Need\",\"Intensive Need\"))))","v":""}]
[null,null,null,null,null,null,null,null,null,null,null,null,null,null,null,null,null,null,null,null,null,null,null,null,null,null,null,null,null,null,null,null,"","","",{"$f":"IF(ISBLANK(SettingTable[[#This Row],[Child First Name]]),\"\",SUM(SettingTable[[#This Row],[Total Red]:[Total Yellow]]))","v":""},{"$f":"IF(ISBLANK(SettingTable[[#This Row],[Child First Name]]),\"\",IF(SettingTable[[#This Row],[Score]]<1,\"Universal Need\",IF(SettingTable[[#This Row],[Score]]<4,\"Targeted Need\",IF(SettingTable[[#This Row],[Score]]<12,\"Personalised Need\",\"Intensive Need\"))))","v":""}]
[null,null,null,null,null,null,null,null,null,null,null,null,null,null,null,null,null,null,null,null,null,null,null,null,null,null,null,null,null,null,null,null,"","","",{"$f":"IF(ISBLANK(SettingTable[[#This Row],[Child First Name]]),\"\",SUM(SettingTable[[#This Row],[Total Red]:[Total Yellow]]))","v":""},{"$f":"IF(ISBLANK(SettingTable[[#This Row],[Child First Name]]),\"\",IF(SettingTable[[#This Row],[Score]]<1,\"Universal Need\",IF(SettingTable[[#This Row],[Score]]<4,\"Targeted Need\",IF(SettingTable[[#This Row],[Score]]<12,\"Personalised Need\",\"Intensive Need\"))))","v":""}]
[null,null,null,null,null,null,null,null,null,null,null,null,null,null,null,null,null,null,null,null,null,null,null,null,null,null,null,null,null,null,null,null,"","","",{"$f":"IF(ISBLANK(SettingTable[[#This Row],[Child First Name]]),\"\",SUM(SettingTable[[#This Row],[Total Red]:[Total Yellow]]))","v":""},{"$f":"IF(ISBLANK(SettingTable[[#This Row],[Child First Name]]),\"\",IF(SettingTable[[#This Row],[Score]]<1,\"Universal Need\",IF(SettingTable[[#This Row],[Score]]<4,\"Targeted Need\",IF(SettingTable[[#This Row],[Score]]<12,\"Personalised Need\",\"Intensive Need\"))))","v":""}]
[null,null,null,null,null,null,null,null,null,null,null,null,null,null,null,null,null,null,null,null,null,null,null,null,null,null,null,null,null,null,null,null,"","","",{"$f":"IF(ISBLANK(SettingTable[[#This Row],[Child First Name]]),\"\",SUM(SettingTable[[#This Row],[Total Red]:[Total Yellow]]))","v":""},{"$f":"IF(ISBLANK(SettingTable[[#This Row],[Child First Name]]),\"\",IF(SettingTable[[#This Row],[Score]]<1,\"Universal Need\",IF(SettingTable[[#This Row],[Score]]<4,\"Targeted Need\",IF(SettingTable[[#This Row],[Score]]<12,\"Personalised Need\",\"Intensive Need\"))))","v":""}]
[null,null,null,null,null,null,null,null,null,null,null,null,null,null,null,null,null,null,null,null,null,null,null,null,null,null,null,null,null,null,null,null,"","","",{"$f":"IF(ISBLANK(SettingTable[[#This Row],[Child First Name]]),\"\",SUM(SettingTable[[#This Row],[Total Red]:[Total Yellow]]))","v":""},{"$f":"IF(ISBLANK(SettingTable[[#This Row],[Child First Name]]),\"\",IF(SettingTable[[#This Row],[Score]]<1,\"Universal Need\",IF(SettingTable[[#This Row],[Score]]<4,\"Targeted Need\",IF(SettingTable[[#This Row],[Score]]<12,\"Personalised Need\",\"Intensive Need\"))))","v":""}]
[null,null,null,null,null,null,null,null,null,null,null,null,null,null,null,null,null,null,null,null,null,null,null,null,null,null,null,null,null,null,null,null,"","","",{"$f":"IF(ISBLANK(SettingTable[[#This Row],[Child First Name]]),\"\",SUM(SettingTable[[#This Row],[Total Red]:[Total Yellow]]))","v":""},{"$f":"IF(ISBLANK(SettingTable[[#This Row],[Child First Name]]),\"\",IF(SettingTable[[#This Row],[Score]]<1,\"Universal Need\",IF(SettingTable[[#This Row],[Score]]<4,\"Targeted Need\",IF(SettingTable[[#This Row],[Score]]<12,\"Personalised Need\",\"Intensive Need\"))))","v":""}]
[null,null,null,null,null,null,null,null,null,null,null,null,null,null,null,null,null,null,null,null,null,null,null,null,null,null,null,null,null,null,null,null,"","","",{"$f":"IF(ISBLANK(SettingTable[[#This Row],[Child First Name]]),\"\",SUM(SettingTable[[#This Row],[Total Red]:[Total Yellow]]))","v":""},{"$f":"IF(ISBLANK(SettingTable[[#This Row],[Child First Name]]),\"\",IF(SettingTable[[#This Row],[Score]]<1,\"Universal Need\",IF(SettingTable[[#This Row],[Score]]<4,\"Targeted Need\",IF(SettingTable[[#This Row],[Score]]<12,\"Personalised Need\",\"Intensive Need\"))))","v":""}]
[null,null,null,null,null,null,null,null,null,null,null,null,null,null,null,null,null,null,null,null,null,null,null,null,null,null,null,null,null,null,null,null,"","","",{"$f":"IF(ISBLANK(SettingTable[[#This Row],[Child First Name]]),\"\",SUM(SettingTable[[#This Row],[Total Red]:[Total Yellow]]))","v":""},{"$f":"IF(ISBLANK(SettingTable[[#This Row],[Child First Name]]),\"\",IF(SettingTable[[#This Row],[Score]]<1,\"Universal Need\",IF(SettingTable[[#This Row],[Score]]<4,\"Targeted Need\",IF(SettingTable[[#This Row],[Score]]<12,\"Personalised Need\",\"Intensive Need\"))))","v":""}]
[null,null,null,null,null,null,null,null,null,null,null,null,null,null,null,null,null,null,null,null,null,null,null,null,null,null,null,null,null,null,null,null,"","","",{"$f":"IF(ISBLANK(SettingTable[[#This Row],[Child First Name]]),\"\",SUM(SettingTable[[#This Row],[Total Red]:[Total Yellow]]))","v":""},{"$f":"IF(ISBLANK(SettingTable[[#This Row],[Child First Name]]),\"\",IF(SettingTable[[#This Row],[Score]]<1,\"Universal Need\",IF(SettingTable[[#This Row],[Score]]<4,\"Targeted Need\",IF(SettingTable[[#This Row],[Score]]<12,\"Personalised Need\",\"Intensive Need\"))))","v":""}]
[null,null,null,null,null,null,null,null,null,null,null,null,null,null,null,null,null,null,null,null,null,null,null,null,null,null,null,null,null,null,null,null,"","","",{"$f":"IF(ISBLANK(SettingTable[[#This Row],[Child First Name]]),\"\",SUM(SettingTable[[#This Row],[Total Red]:[Total Yellow]]))","v":""},{"$f":"IF(ISBLANK(SettingTable[[#This Row],[Child First Name]]),\"\",IF(SettingTable[[#This Row],[Score]]<1,\"Universal Need\",IF(SettingTable[[#This Row],[Score]]<4,\"Targeted Need\",IF(SettingTable[[#This Row],[Score]]<12,\"Personalised Need\",\"Intensive Need\"))))","v":""}]
[null,null,null,null,null,null,null,null,null,null,null,null,null,null,null,null,null,null,null,null,null,null,null,null,null,null,null,null,null,null,null,null,"","","",{"$f":"IF(ISBLANK(SettingTable[[#This Row],[Child First Name]]),\"\",SUM(SettingTable[[#This Row],[Total Red]:[Total Yellow]]))","v":""},{"$f":"IF(ISBLANK(SettingTable[[#This Row],[Child First Name]]),\"\",IF(SettingTable[[#This Row],[Score]]<1,\"Universal Need\",IF(SettingTable[[#This Row],[Score]]<4,\"Targeted Need\",IF(SettingTable[[#This Row],[Score]]<12,\"Personalised Need\",\"Intensive Need\"))))","v":""}]
[null,null,null,null,null,null,null,null,null,null,null,null,null,null,null,null,null,null,null,null,null,null,null,null,null,null,null,null,null,null,null,null,"","","",{"$f":"IF(ISBLANK(SettingTable[[#This Row],[Child First Name]]),\"\",SUM(SettingTable[[#This Row],[Total Red]:[Total Yellow]]))","v":""},{"$f":"IF(ISBLANK(SettingTable[[#This Row],[Child First Name]]),\"\",IF(SettingTable[[#This Row],[Score]]<1,\"Universal Need\",IF(SettingTable[[#This Row],[Score]]<4,\"Targeted Need\",IF(SettingTable[[#This Row],[Score]]<12,\"Personalised Need\",\"Intensive Need\"))))","v":""}]
[null,null,null,null,null,null,null,null,null,null,null,null,null,null,null,null,null,null,null,null,null,null,null,null,null,null,null,null,null,null,null,null,"","","",{"$f":"IF(ISBLANK(SettingTable[[#This Row],[Child First Name]]),\"\",SUM(SettingTable[[#This Row],[Total Red]:[Total Yellow]]))","v":""},{"$f":"IF(ISBLANK(SettingTable[[#This Row],[Child First Name]]),\"\",IF(SettingTable[[#This Row],[Score]]<1,\"Universal Need\",IF(SettingTable[[#This Row],[Score]]<4,\"Targeted Need\",IF(SettingTable[[#This Row],[Score]]<12,\"Personalised Need\",\"Intensive Need\"))))","v":""}]
[null,null,null,null,null,null,null,null,null,null,null,null,null,null,null,null,null,null,null,null,null,null,null,null,null,null,null,null,null,null,null,null,"","","",{"$f":"IF(ISBLANK(SettingTable[[#This Row],[Child First Name]]),\"\",SUM(SettingTable[[#This Row],[Total Red]:[Total Yellow]]))","v":""},{"$f":"IF(ISBLANK(SettingTable[[#This Row],[Child First Name]]),\"\",IF(SettingTable[[#This Row],[Score]]<1,\"Universal Need\",IF(SettingTable[[#This Row],[Score]]<4,\"Targeted Need\",IF(SettingTable[[#This Row],[Score]]<12,\"Personalised Need\",\"Intensive Need\"))))","v":""}]
[null,null,null,null,null,null,null,null,null,null,null,null,null,null,null,null,null,null,null,null,null,null,null,null,null,null,null,null,null,null,null,null,"","","",{"$f":"IF(ISBLANK(SettingTable[[#This Row],[Child First Name]]),\"\",SUM(SettingTable[[#This Row],[Total Red]:[Total Yellow]]))","v":""},{"$f":"IF(ISBLANK(SettingTable[[#This Row],[Child First Name]]),\"\",IF(SettingTable[[#This Row],[Score]]<1,\"Universal Need\",IF(SettingTable[[#This Row],[Score]]<4,\"Targeted Need\",IF(SettingTable[[#This Row],[Score]]<12,\"Personalised Need\",\"Intensive Need\"))))","v":""}]
[null,null,null,null,null,null,null,null,null,null,null,null,null,null,null,null,null,null,null,null,null,null,null,null,null,null,null,null,null,null,null,null,"","","",{"$f":"IF(ISBLANK(SettingTable[[#This Row],[Child First Name]]),\"\",SUM(SettingTable[[#This Row],[Total Red]:[Total Yellow]]))","v":""},{"$f":"IF(ISBLANK(SettingTable[[#This Row],[Child First Name]]),\"\",IF(SettingTable[[#This Row],[Score]]<1,\"Universal Need\",IF(SettingTable[[#This Row],[Score]]<4,\"Targeted Need\",IF(SettingTable[[#This Row],[Score]]<12,\"Personalised Need\",\"Intensive Need\"))))","v":""}]
[null,null,null,null,null,null,null,null,null,null,null,null,null,null,null,null,null,null,null,null,null,null,null,null,null,null,null,null,null,null,null,null,"","","",{"$f":"IF(ISBLANK(SettingTable[[#This Row],[Child First Name]]),\"\",SUM(SettingTable[[#This Row],[Total Red]:[Total Yellow]]))","v":""},{"$f":"IF(ISBLANK(SettingTable[[#This Row],[Child First Name]]),\"\",IF(SettingTable[[#This Row],[Score]]<1,\"Universal Need\",IF(SettingTable[[#This Row],[Score]]<4,\"Targeted Need\",IF(SettingTable[[#This Row],[Score]]<12,\"Personalised Need\",\"Intensive Need\"))))","v":""}]
[null,null,null,null,null,null,null,null,null,null,null,null,null,null,null,null,null,null,null,null,null,null,null,null,null,null,null,null,null,null,null,null,"","","",{"$f":"IF(ISBLANK(SettingTable[[#This Row],[Child First Name]]),\"\",SUM(SettingTable[[#This Row],[Total Red]:[Total Yellow]]))","v":""},{"$f":"IF(ISBLANK(SettingTable[[#This Row],[Child First Name]]),\"\",IF(SettingTable[[#This Row],[Score]]<1,\"Universal Need\",IF(SettingTable[[#This Row],[Score]]<4,\"Targeted Need\",IF(SettingTable[[#This Row],[Score]]<12,\"Personalised Need\",\"Intensive Need\"))))","v":""}]
[null,null,null,null,null,null,null,null,null,null,null,null,null,null,null,null,null,null,null,null,null,null,null,null,null,null,null,null,null,null,null,null,"","","",{"$f":"IF(ISBLANK(SettingTable[[#This Row],[Child First Name]]),\"\",SUM(SettingTable[[#This Row],[Total Red]:[Total Yellow]]))","v":""},{"$f":"IF(ISBLANK(SettingTable[[#This Row],[Child First Name]]),\"\",IF(SettingTable[[#This Row],[Score]]<1,\"Universal Need\",IF(SettingTable[[#This Row],[Score]]<4,\"Targeted Need\",IF(SettingTable[[#This Row],[Score]]<12,\"Personalised Need\",\"Intensive Need\"))))","v":""}]
[null,null,null,null,null,null,null,null,null,null,null,null,null,null,null,null,null,null,null,null,null,null,null,null,null,null,null,null,null,null,null,null,"","","",{"$f":"IF(ISBLANK(SettingTable[[#This Row],[Child First Name]]),\"\",SUM(SettingTable[[#This Row],[Total Red]:[Total Yellow]]))","v":""},{"$f":"IF(ISBLANK(SettingTable[[#This Row],[Child First Name]]),\"\",IF(SettingTable[[#This Row],[Score]]<1,\"Universal Need\",IF(SettingTable[[#This Row],[Score]]<4,\"Targeted Need\",IF(SettingTable[[#This Row],[Score]]<12,\"Personalised Need\",\"Intensive Need\"))))","v":""}]
[null,null,null,null,null,null,null,null,null,null,null,null,null,null,null,null,null,null,null,null,null,null,null,null,null,null,null,null,null,null,null,null,"","","",{"$f":"IF(ISBLANK(SettingTable[[#This Row],[Child First Name]]),\"\",SUM(SettingTable[[#This Row],[Total Red]:[Total Yellow]]))","v":""},{"$f":"IF(ISBLANK(SettingTable[[#This Row],[Child First Name]]),\"\",IF(SettingTable[[#This Row],[Score]]<1,\"Universal Need\",IF(SettingTable[[#This Row],[Score]]<4,\"Targeted Need\",IF(SettingTable[[#This Row],[Score]]<12,\"Personalised Need\",\"Intensive Need\"))))","v":""}]
[null,null,null,null,null,null,null,null,null,null,null,null,null,null,null,null,null,null,null,null,null,null,null,null,null,null,null,null,null,null,null,null,"","","",{"$f":"IF(ISBLANK(SettingTable[[#This Row],[Child First Name]]),\"\",SUM(SettingTable[[#This Row],[Total Red]:[Total Yellow]]))","v":""},{"$f":"IF(ISBLANK(SettingTable[[#This Row],[Child First Name]]),\"\",IF(SettingTable[[#This Row],[Score]]<1,\"Universal Need\",IF(SettingTable[[#This Row],[Score]]<4,\"Targeted Need\",IF(SettingTable[[#This Row],[Score]]<12,\"Personalised Need\",\"Intensive Need\"))))","v":""}]
[null,null,null,null,null,null,null,null,null,null,null,null,null,null,null,null,null,null,null,null,null,null,null,null,null,null,null,null,null,null,null,null,"","","",{"$f":"IF(ISBLANK(SettingTable[[#This Row],[Child First Name]]),\"\",SUM(SettingTable[[#This Row],[Total Red]:[Total Yellow]]))","v":""},{"$f":"IF(ISBLANK(SettingTable[[#This Row],[Child First Name]]),\"\",IF(SettingTable[[#This Row],[Score]]<1,\"Universal Need\",IF(SettingTable[[#This Row],[Score]]<4,\"Targeted Need\",IF(SettingTable[[#This Row],[Score]]<12,\"Personalised Need\",\"Intensive Need\"))))","v":""}]
[null,null,null,null,null,null,null,null,null,null,null,null,null,null,null,null,null,null,null,null,null,null,null,null,null,null,null,null,null,null,null,null,"","","",{"$f":"IF(ISBLANK(SettingTable[[#This Row],[Child First Name]]),\"\",SUM(SettingTable[[#This Row],[Total Red]:[Total Yellow]]))","v":""},{"$f":"IF(ISBLANK(SettingTable[[#This Row],[Child First Name]]),\"\",IF(SettingTable[[#This Row],[Score]]<1,\"Universal Need\",IF(SettingTable[[#This Row],[Score]]<4,\"Targeted Need\",IF(SettingTable[[#This Row],[Score]]<12,\"Personalised Need\",\"Intensive Need\"))))","v":""}]
[null,null,null,null,null,null,null,null,null,null,null,null,null,null,null,null,null,null,null,null,null,null,null,null,null,null,null,null,null,null,null,null,"","","",{"$f":"IF(ISBLANK(SettingTable[[#This Row],[Child First Name]]),\"\",SUM(SettingTable[[#This Row],[Total Red]:[Total Yellow]]))","v":""},{"$f":"IF(ISBLANK(SettingTable[[#This Row],[Child First Name]]),\"\",IF(SettingTable[[#This Row],[Score]]<1,\"Universal Need\",IF(SettingTable[[#This Row],[Score]]<4,\"Targeted Need\",IF(SettingTable[[#This Row],[Score]]<12,\"Personalised Need\",\"Intensive Need\"))))","v":""}]
[null,null,null,null,null,null,null,null,null,null,null,null,null,null,null,null,null,null,null,null,null,null,null,null,null,null,null,null,null,null,null,null,"","","",{"$f":"IF(ISBLANK(SettingTable[[#This Row],[Child First Name]]),\"\",SUM(SettingTable[[#This Row],[Total Red]:[Total Yellow]]))","v":""},{"$f":"IF(ISBLANK(SettingTable[[#This Row],[Child First Name]]),\"\",IF(SettingTable[[#This Row],[Score]]<1,\"Universal Need\",IF(SettingTable[[#This Row],[Score]]<4,\"Targeted Need\",IF(SettingTable[[#This Row],[Score]]<12,\"Personalised Need\",\"Intensive Need\"))))","v":""}]
[null,null,null,null,null,null,null,null,null,null,null,null,null,null,null,null,null,null,null,null,null,null,null,null,null,null,null,null,null,null,null,null,{"$f":"IF($D76<>\"\",COUNTIF($I76:$AF76,\"Intensive\")*12,\"\")","v":""},{"$f":"IF($D76<>\"\",COUNTIF($I76:$AF76,\"Personalised\")*4,\"\")","v":""},{"$f":"IF($D76<>\"\",COUNTIF($I76:$AF76,\"Targeted\"),\"\")","v":""},{"$f":"IF(ISBLANK(SettingTable[[#This Row],[Child First Name]]),\"\",SUM(SettingTable[[#This Row],[Total Red]:[Total Yellow]]))","v":""},{"$f":"IF(ISBLANK(SettingTable[[#This Row],[Child First Name]]),\"\",IF(SettingTable[[#This Row],[Score]]<1,\"Universal Need\",IF(SettingTable[[#This Row],[Score]]<4,\"Targeted Need\",IF(SettingTable[[#This Row],[Score]]<12,\"Personalised Need\",\"Intensive Need\"))))","v":""}]
[null,null,null,null,null,null,null,null,null,null,null,null,null,null,null,null,null,null,null,null,null,null,null,null,null,null,null,null,null,null,null,null,"","","",{"$f":"IF(ISBLANK(SettingTable[[#This Row],[Child First Name]]),\"\",SUM(SettingTable[[#This Row],[Total Red]:[Total Yellow]]))","v":""},{"$f":"IF(ISBLANK(SettingTable[[#This Row],[Child First Name]]),\"\",IF(SettingTable[[#This Row],[Score]]<1,\"Universal Need\",IF(SettingTable[[#This Row],[Score]]<4,\"Targeted Need\",IF(SettingTable[[#This Row],[Score]]<12,\"Personalised Need\",\"Intensive Need\"))))","v":""}]
[null,null,null,null,null,null,null,null,null,null,null,null,null,null,null,null,null,null,null,null,null,null,null,null,null,null,null,null,null,null,null,null,"","","",{"$f":"IF(ISBLANK(SettingTable[[#This Row],[Child First Name]]),\"\",SUM(SettingTable[[#This Row],[Total Red]:[Total Yellow]]))","v":""},{"$f":"IF(ISBLANK(SettingTable[[#This Row],[Child First Name]]),\"\",IF(SettingTable[[#This Row],[Score]]<1,\"Universal Need\",IF(SettingTable[[#This Row],[Score]]<4,\"Targeted Need\",IF(SettingTable[[#This Row],[Score]]<12,\"Personalised Need\",\"Intensive Need\"))))","v":""}]
[null,null,null,null,null,null,null,null,null,null,null,null,null,null,null,null,null,null,null,null,null,null,null,null,null,null,null,null,null,null,null,null,"","","",{"$f":"IF(ISBLANK(SettingTable[[#This Row],[Child First Name]]),\"\",SUM(SettingTable[[#This Row],[Total Red]:[Total Yellow]]))","v":""},{"$f":"IF(ISBLANK(SettingTable[[#This Row],[Child First Name]]),\"\",IF(SettingTable[[#This Row],[Score]]<1,\"Universal Need\",IF(SettingTable[[#This Row],[Score]]<4,\"Targeted Need\",IF(SettingTable[[#This Row],[Score]]<12,\"Personalised Need\",\"Intensive Need\"))))","v":""}]
[null,null,null,null,null,null,null,null,null,null,null,null,null,null,null,null,null,null,null,null,null,null,null,null,null,null,null,null,null,null,null,null,"","","",{"$f":"IF(ISBLANK(SettingTable[[#This Row],[Child First Name]]),\"\",SUM(SettingTable[[#This Row],[Total Red]:[Total Yellow]]))","v":""},{"$f":"IF(ISBLANK(SettingTable[[#This Row],[Child First Name]]),\"\",IF(SettingTable[[#This Row],[Score]]<1,\"Universal Need\",IF(SettingTable[[#This Row],[Score]]<4,\"Targeted Need\",IF(SettingTable[[#This Row],[Score]]<12,\"Personalised Need\",\"Intensive Need\"))))","v":""}]
[null,null,null,null,null,null,null,null,null,null,null,null,null,null,null,null,null,null,null,null,null,null,null,null,null,null,null,null,null,null,null,null,"","","",{"$f":"IF(ISBLANK(SettingTable[[#This Row],[Child First Name]]),\"\",SUM(SettingTable[[#This Row],[Total Red]:[Total Yellow]]))","v":""},{"$f":"IF(ISBLANK(SettingTable[[#This Row],[Child First Name]]),\"\",IF(SettingTable[[#This Row],[Score]]<1,\"Universal Need\",IF(SettingTable[[#This Row],[Score]]<4,\"Targeted Need\",IF(SettingTable[[#This Row],[Score]]<12,\"Personalised Need\",\"Intensive Need\"))))","v":""}]
[null,null,null,null,null,null,null,null,null,null,null,null,null,null,null,null,null,null,null,null,null,null,null,null,null,null,null,null,null,null,null,null,"","","",{"$f":"IF(ISBLANK(SettingTable[[#This Row],[Child First Name]]),\"\",SUM(SettingTable[[#This Row],[Total Red]:[Total Yellow]]))","v":""},{"$f":"IF(ISBLANK(SettingTable[[#This Row],[Child First Name]]),\"\",IF(SettingTable[[#This Row],[Score]]<1,\"Universal Need\",IF(SettingTable[[#This Row],[Score]]<4,\"Targeted Need\",IF(SettingTable[[#This Row],[Score]]<12,\"Personalised Need\",\"Intensive Need\"))))","v":""}]
[null,null,null,null,null,null,null,null,null,null,null,null,null,null,null,null,null,null,null,null,null,null,null,null,null,null,null,null,null,null,null,null,"","","",{"$f":"IF(ISBLANK(SettingTable[[#This Row],[Child First Name]]),\"\",SUM(SettingTable[[#This Row],[Total Red]:[Total Yellow]]))","v":""},{"$f":"IF(ISBLANK(SettingTable[[#This Row],[Child First Name]]),\"\",IF(SettingTable[[#This Row],[Score]]<1,\"Universal Need\",IF(SettingTable[[#This Row],[Score]]<4,\"Targeted Need\",IF(SettingTable[[#This Row],[Score]]<12,\"Personalised Need\",\"Intensive Need\"))))","v":""}]
[null,null,null,null,null,null,null,null,null,null,null,null,null,null,null,null,null,null,null,null,null,null,null,null,null,null,null,null,null,null,null,null,"","","",{"$f":"IF(ISBLANK(SettingTable[[#This Row],[Child First Name]]),\"\",SUM(SettingTable[[#This Row],[Total Red]:[Total Yellow]]))","v":""},{"$f":"IF(ISBLANK(SettingTable[[#This Row],[Child First Name]]),\"\",IF(SettingTable[[#This Row],[Score]]<1,\"Universal Need\",IF(SettingTable[[#This Row],[Score]]<4,\"Targeted Need\",IF(SettingTable[[#This Row],[Score]]<12,\"Personalised Need\",\"Intensive Need\"))))","v":""}]
[null,null,null,null,null,null,null,null,null,null,null,null,null,null,null,null,null,null,null,null,null,null,null,null,null,null,null,null,null,null,null,null,"","","",{"$f":"IF(ISBLANK(SettingTable[[#This Row],[Child First Name]]),\"\",SUM(SettingTable[[#This Row],[Total Red]:[Total Yellow]]))","v":""},{"$f":"IF(ISBLANK(SettingTable[[#This Row],[Child First Name]]),\"\",IF(SettingTable[[#This Row],[Score]]<1,\"Universal Need\",IF(SettingTable[[#This Row],[Score]]<4,\"Targeted Need\",IF(SettingTable[[#This Row],[Score]]<12,\"Personalised Need\",\"Intensive Need\"))))","v":""}]
[null,null,null,null,null,null,null,null,null,null,null,null,null,null,null,null,null,null,null,null,null,null,null,null,null,null,null,null,null,null,null,null,"","","",{"$f":"IF(ISBLANK(SettingTable[[#This Row],[Child First Name]]),\"\",SUM(SettingTable[[#This Row],[Total Red]:[Total Yellow]]))","v":""},{"$f":"IF(ISBLANK(SettingTable[[#This Row],[Child First Name]]),\"\",IF(SettingTable[[#This Row],[Score]]<1,\"Universal Need\",IF(SettingTable[[#This Row],[Score]]<4,\"Targeted Need\",IF(SettingTable[[#This Row],[Score]]<12,\"Personalised Need\",\"Intensive Need\"))))","v":""}]
[null,null,null,null,null,null,null,null,null,null,null,null,null,null,null,null,null,null,null,null,null,null,null,null,null,null,null,null,null,null,null,null,"","","",{"$f":"IF(ISBLANK(SettingTable[[#This Row],[Child First Name]]),\"\",SUM(SettingTable[[#This Row],[Total Red]:[Total Yellow]]))","v":""},{"$f":"IF(ISBLANK(SettingTable[[#This Row],[Child First Name]]),\"\",IF(SettingTable[[#This Row],[Score]]<1,\"Universal Need\",IF(SettingTable[[#This Row],[Score]]<4,\"Targeted Need\",IF(SettingTable[[#This Row],[Score]]<12,\"Personalised Need\",\"Intensive Need\"))))","v":""}]
[null,null,null,null,null,null,null,null,null,null,null,null,null,null,null,null,null,null,null,null,null,null,null,null,null,null,null,null,null,null,null,null,"","","",{"$f":"IF(ISBLANK(SettingTable[[#This Row],[Child First Name]]),\"\",SUM(SettingTable[[#This Row],[Total Red]:[Total Yellow]]))","v":""},{"$f":"IF(ISBLANK(SettingTable[[#This Row],[Child First Name]]),\"\",IF(SettingTable[[#This Row],[Score]]<1,\"Universal Need\",IF(SettingTable[[#This Row],[Score]]<4,\"Targeted Need\",IF(SettingTable[[#This Row],[Score]]<12,\"Personalised Need\",\"Intensive Need\"))))","v":""}]
[null,null,null,null,null,null,null,null,null,null,null,null,null,null,null,null,null,null,null,null,null,null,null,null,null,null,null,null,null,null,null,null,"","","",{"$f":"IF(ISBLANK(SettingTable[[#This Row],[Child First Name]]),\"\",SUM(SettingTable[[#This Row],[Total Red]:[Total Yellow]]))","v":""},{"$f":"IF(ISBLANK(SettingTable[[#This Row],[Child First Name]]),\"\",IF(SettingTable[[#This Row],[Score]]<1,\"Universal Need\",IF(SettingTable[[#This Row],[Score]]<4,\"Targeted Need\",IF(SettingTable[[#This Row],[Score]]<12,\"Personalised Need\",\"Intensive Need\"))))","v":""}]
[null,null,null,null,null,null,null,null,null,null,null,null,null,null,null,null,null,null,null,null,null,null,null,null,null,null,null,null,null,null,null,null,"","","",{"$f":"IF(ISBLANK(SettingTable[[#This Row],[Child First Name]]),\"\",SUM(SettingTable[[#This Row],[Total Red]:[Total Yellow]]))","v":""},{"$f":"IF(ISBLANK(SettingTable[[#This Row],[Child First Name]]),\"\",IF(SettingTable[[#This Row],[Score]]<1,\"Universal Need\",IF(SettingTable[[#This Row],[Score]]<4,\"Targeted Need\",IF(SettingTable[[#This Row],[Score]]<12,\"Personalised Need\",\"Intensive Need\"))))","v":""}]
[null,null,null,null,null,null,null,null,null,null,null,null,null,null,null,null,null,null,null,null,null,null,null,null,null,null,null,null,null,null,null,null,"","","",{"$f":"IF(ISBLANK(SettingTable[[#This Row],[Child First Name]]),\"\",SUM(SettingTable[[#This Row],[Total Red]:[Total Yellow]]))","v":""},{"$f":"IF(ISBLANK(SettingTable[[#This Row],[Child First Name]]),\"\",IF(SettingTable[[#This Row],[Score]]<1,\"Universal Need\",IF(SettingTable[[#This Row],[Score]]<4,\"Targeted Need\",IF(SettingTable[[#This Row],[Score]]<12,\"Personalised Need\",\"Intensive Need\"))))","v":""}]
[null,null,null,null,null,null,null,null,null,null,null,null,null,null,null,null,null,null,null,null,null,null,null,null,null,null,null,null,null,null,null,null,"","","",{"$f":"IF(ISBLANK(SettingTable[[#This Row],[Child First Name]]),\"\",SUM(SettingTable[[#This Row],[Total Red]:[Total Yellow]]))","v":""},{"$f":"IF(ISBLANK(SettingTable[[#This Row],[Child First Name]]),\"\",IF(SettingTable[[#This Row],[Score]]<1,\"Universal Need\",IF(SettingTable[[#This Row],[Score]]<4,\"Targeted Need\",IF(SettingTable[[#This Row],[Score]]<12,\"Personalised Need\",\"Intensive Need\"))))","v":""}]
[null,null,null,null,null,null,null,null,null,null,null,null,null,null,null,null,null,null,null,null,null,null,null,null,null,null,null,null,null,null,null,null,"","","",{"$f":"IF(ISBLANK(SettingTable[[#This Row],[Child First Name]]),\"\",SUM(SettingTable[[#This Row],[Total Red]:[Total Yellow]]))","v":""},{"$f":"IF(ISBLANK(SettingTable[[#This Row],[Child First Name]]),\"\",IF(SettingTable[[#This Row],[Score]]<1,\"Universal Need\",IF(SettingTable[[#This Row],[Score]]<4,\"Targeted Need\",IF(SettingTable[[#This Row],[Score]]<12,\"Personalised Need\",\"Intensive Need\"))))","v":""}]
[null,null,null,null,null,null,null,null,null,null,null,null,null,null,null,null,null,null,null,null,null,null,null,null,null,null,null,null,null,null,null,null,"","","",{"$f":"IF(ISBLANK(SettingTable[[#This Row],[Child First Name]]),\"\",SUM(SettingTable[[#This Row],[Total Red]:[Total Yellow]]))","v":""},{"$f":"IF(ISBLANK(SettingTable[[#This Row],[Child First Name]]),\"\",IF(SettingTable[[#This Row],[Score]]<1,\"Universal Need\",IF(SettingTable[[#This Row],[Score]]<4,\"Targeted Need\",IF(SettingTable[[#This Row],[Score]]<12,\"Personalised Need\",\"Intensive Need\"))))","v":""}]
[null,null,null,null,null,null,null,null,null,null,null,null,null,null,null,null,null,null,null,null,null,null,null,null,null,null,null,null,null,null,null,null,"","","",{"$f":"IF(ISBLANK(SettingTable[[#This Row],[Child First Name]]),\"\",SUM(SettingTable[[#This Row],[Total Red]:[Total Yellow]]))","v":""},{"$f":"IF(ISBLANK(SettingTable[[#This Row],[Child First Name]]),\"\",IF(SettingTable[[#This Row],[Score]]<1,\"Universal Need\",IF(SettingTable[[#This Row],[Score]]<4,\"Targeted Need\",IF(SettingTable[[#This Row],[Score]]<12,\"Personalised Need\",\"Intensive Need\"))))","v":""}]
[null,null,null,null,null,null,null,null,null,null,null,null,null,null,null,null,null,null,null,null,null,null,null,null,null,null,null,null,null,null,null,null,"","","",{"$f":"IF(ISBLANK(SettingTable[[#This Row],[Child First Name]]),\"\",SUM(SettingTable[[#This Row],[Total Red]:[Total Yellow]]))","v":""},{"$f":"IF(ISBLANK(SettingTable[[#This Row],[Child First Name]]),\"\",IF(SettingTable[[#This Row],[Score]]<1,\"Universal Need\",IF(SettingTable[[#This Row],[Score]]<4,\"Targeted Need\",IF(SettingTable[[#This Row],[Score]]<12,\"Personalised Need\",\"Intensive Need\"))))","v":""}]
[null,null,null,null,null,null,null,null,null,null,null,null,null,null,null,null,null,null,null,null,null,null,null,null,null,null,null,null,null,null,null,null,"","","",{"$f":"IF(ISBLANK(SettingTable[[#This Row],[Child First Name]]),\"\",SUM(SettingTable[[#This Row],[Total Red]:[Total Yellow]]))","v":""},{"$f":"IF(ISBLANK(SettingTable[[#This Row],[Child First Name]]),\"\",IF(SettingTable[[#This Row],[Score]]<1,\"Universal Need\",IF(SettingTable[[#This Row],[Score]]<4,\"Targeted Need\",IF(SettingTable[[#This Row],[Score]]<12,\"Personalised Need\",\"Intensive Need\"))))","v":""}]
[null,null,null,null,null,null,null,null,null,null,null,null,null,null,null,null,null,null,null,null,null,null,null,null,null,null,null,null,null,null,null,null,"","","",{"$f":"IF(ISBLANK(SettingTable[[#This Row],[Child First Name]]),\"\",SUM(SettingTable[[#This Row],[Total Red]:[Total Yellow]]))","v":""},{"$f":"IF(ISBLANK(SettingTable[[#This Row],[Child First Name]]),\"\",IF(SettingTable[[#This Row],[Score]]<1,\"Universal Need\",IF(SettingTable[[#This Row],[Score]]<4,\"Targeted Need\",IF(SettingTable[[#This Row],[Score]]<12,\"Personalised Need\",\"Intensive Need\"))))","v":""}]
[null,null,null,null,null,null,null,null,null,null,null,null,null,null,null,null,null,null,null,null,null,null,null,null,null,null,null,null,null,null,null,null,"","","",{"$f":"IF(ISBLANK(SettingTable[[#This Row],[Child First Name]]),\"\",SUM(SettingTable[[#This Row],[Total Red]:[Total Yellow]]))","v":""},{"$f":"IF(ISBLANK(SettingTable[[#This Row],[Child First Name]]),\"\",IF(SettingTable[[#This Row],[Score]]<1,\"Universal Need\",IF(SettingTable[[#This Row],[Score]]<4,\"Targeted Need\",IF(SettingTable[[#This Row],[Score]]<12,\"Personalised Need\",\"Intensive Need\"))))","v":""}]
[null,null,null,null,null,null,null,null,null,null,null,null,null,null,null,null,null,null,null,null,null,null,null,null,null,null,null,null,null,null,null,null,"","","",{"$f":"IF(ISBLANK(SettingTable[[#This Row],[Child First Name]]),\"\",SUM(SettingTable[[#This Row],[Total Red]:[Total Yellow]]))","v":""},{"$f":"IF(ISBLANK(SettingTable[[#This Row],[Child First Name]]),\"\",IF(SettingTable[[#This Row],[Score]]<1,\"Universal Need\",IF(SettingTable[[#This Row],[Score]]<4,\"Targeted Need\",IF(SettingTable[[#This Row],[Score]]<12,\"Personalised Need\",\"Intensive Need\"))))","v":""}]
[null,null,null,null,null,null,null,null,null,null,null,null,null,null,null,null,null,null,null,null,null,null,null,null,null,null,null,null,null,null,null,null,"","","",{"$f":"IF(ISBLANK(SettingTable[[#This Row],[Child First Name]]),\"\",SUM(SettingTable[[#This Row],[Total Red]:[Total Yellow]]))","v":""},{"$f":"IF(ISBLANK(SettingTable[[#This Row],[Child First Name]]),\"\",IF(SettingTable[[#This Row],[Score]]<1,\"Universal Need\",IF(SettingTable[[#This Row],[Score]]<4,\"Targeted Need\",IF(SettingTable[[#This Row],[Score]]<12,\"Personalised Need\",\"Intensive Need\"))))","v":""}]
[null,null,null,null,null,null,null,null,null,null,null,null,null,null,null,null,null,null,null,null,null,null,null,null,null,null,null,null,null,null,null,null,"","","",{"$f":"IF(ISBLANK(SettingTable[[#This Row],[Child First Name]]),\"\",SUM(SettingTable[[#This Row],[Total Red]:[Total Yellow]]))","v":""},{"$f":"IF(ISBLANK(SettingTable[[#This Row],[Child First Name]]),\"\",IF(SettingTable[[#This Row],[Score]]<1,\"Universal Need\",IF(SettingTable[[#This Row],[Score]]<4,\"Targeted Need\",IF(SettingTable[[#This Row],[Score]]<12,\"Personalised Need\",\"Intensive Need\"))))","v":""}]
[null,null,null,null,null,null,null,null,null,null,null,null,null,null,null,null,null,null,null,null,null,null,null,null,null,null,null,null,null,null,null,null,"","","",{"$f":"IF(ISBLANK(SettingTable[[#This Row],[Child First Name]]),\"\",SUM(SettingTable[[#This Row],[Total Red]:[Total Yellow]]))","v":""},{"$f":"IF(ISBLANK(SettingTable[[#This Row],[Child First Name]]),\"\",IF(SettingTable[[#This Row],[Score]]<1,\"Universal Need\",IF(SettingTable[[#This Row],[Score]]<4,\"Targeted Need\",IF(SettingTable[[#This Row],[Score]]<12,\"Personalised Need\",\"Intensive Need\"))))","v":""}]
[null,null,null,null,null,null,null,null,null,null,null,null,null,null,null,null,null,null,null,null,null,null,null,null,null,null,null,null,null,null,null,null,"","","",{"$f":"IF(ISBLANK(SettingTable[[#This Row],[Child First Name]]),\"\",SUM(SettingTable[[#This Row],[Total Red]:[Total Yellow]]))","v":""},{"$f":"IF(ISBLANK(SettingTable[[#This Row],[Child First Name]]),\"\",IF(SettingTable[[#This Row],[Score]]<1,\"Universal Need\",IF(SettingTable[[#This Row],[Score]]<4,\"Targeted Need\",IF(SettingTable[[#This Row],[Score]]<12,\"Personalised Need\",\"Intensive Need\"))))","v":""}]
[null,null,null,null,null,null,null,null,null,null,null,null,null,null,null,null,null,null,null,null,null,null,null,null,null,null,null,null,null,null,null,null,"","","",{"$f":"IF(ISBLANK(SettingTable[[#This Row],[Child First Name]]),\"\",SUM(SettingTable[[#This Row],[Total Red]:[Total Yellow]]))","v":""},{"$f":"IF(ISBLANK(SettingTable[[#This Row],[Child First Name]]),\"\",IF(SettingTable[[#This Row],[Score]]<1,\"Universal Need\",IF(SettingTable[[#This Row],[Score]]<4,\"Targeted Need\",IF(SettingTable[[#This Row],[Score]]<12,\"Personalised Need\",\"Intensive Need\"))))","v":""}]
[null,null,null,null,null,null,null,null,null,null,null,null,null,null,null,null,null,null,null,null,null,null,null,null,null,null,null,null,null,null,null,null,"","","",{"$f":"IF(ISBLANK(SettingTable[[#This Row],[Child First Name]]),\"\",SUM(SettingTable[[#This Row],[Total Red]:[Total Yellow]]))","v":""},{"$f":"IF(ISBLANK(SettingTable[[#This Row],[Child First Name]]),\"\",IF(SettingTable[[#This Row],[Score]]<1,\"Universal Need\",IF(SettingTable[[#This Row],[Score]]<4,\"Targeted Need\",IF(SettingTable[[#This Row],[Score]]<12,\"Personalised Need\",\"Intensive Need\"))))","v":""}]
[null,null,null,null,null,null,null,null,null,null,null,null,null,null,null,null,null,null,null,null,null,null,null,null,null,null,null,null,null,null,null,null,"","","",{"$f":"IF(ISBLANK(SettingTable[[#This Row],[Child First Name]]),\"\",SUM(SettingTable[[#This Row],[Total Red]:[Total Yellow]]))","v":""},{"$f":"IF(ISBLANK(SettingTable[[#This Row],[Child First Name]]),\"\",IF(SettingTable[[#This Row],[Score]]<1,\"Universal Need\",IF(SettingTable[[#This Row],[Score]]<4,\"Targeted Need\",IF(SettingTable[[#This Row],[Score]]<12,\"Personalised Need\",\"Intensive Need\"))))","v":""}]
[null,null,null,null,null,null,null,null,null,null,null,null,null,null,null,null,null,null,null,null,null,null,null,null,null,null,null,null,null,null,null,null,"","","",{"$f":"IF(ISBLANK(SettingTable[[#This Row],[Child First Name]]),\"\",SUM(SettingTable[[#This Row],[Total Red]:[Total Yellow]]))","v":""},{"$f":"IF(ISBLANK(SettingTable[[#This Row],[Child First Name]]),\"\",IF(SettingTable[[#This Row],[Score]]<1,\"Universal Need\",IF(SettingTable[[#This Row],[Score]]<4,\"Targeted Need\",IF(SettingTable[[#This Row],[Score]]<12,\"Personalised Need\",\"Intensive Need\"))))","v":""}]
[null,null,null,null,null,null,null,null,null,null,null,null,null,null,null,null,null,null,null,null,null,null,null,null,null,null,null,null,null,null,null,null,"","","",{"$f":"IF(ISBLANK(SettingTable[[#This Row],[Child First Name]]),\"\",SUM(SettingTable[[#This Row],[Total Red]:[Total Yellow]]))","v":""},{"$f":"IF(ISBLANK(SettingTable[[#This Row],[Child First Name]]),\"\",IF(SettingTable[[#This Row],[Score]]<1,\"Universal Need\",IF(SettingTable[[#This Row],[Score]]<4,\"Targeted Need\",IF(SettingTable[[#This Row],[Score]]<12,\"Personalised Need\",\"Intensive Need\"))))","v":""}]
[null,null,null,null,null,null,null,null,null,null,null,null,null,null,null,null,null,null,null,null,null,null,null,null,null,null,null,null,null,null,null,null,"","","",{"$f":"IF(ISBLANK(SettingTable[[#This Row],[Child First Name]]),\"\",SUM(SettingTable[[#This Row],[Total Red]:[Total Yellow]]))","v":""},{"$f":"IF(ISBLANK(SettingTable[[#This Row],[Child First Name]]),\"\",IF(SettingTable[[#This Row],[Score]]<1,\"Universal Need\",IF(SettingTable[[#This Row],[Score]]<4,\"Targeted Need\",IF(SettingTable[[#This Row],[Score]]<12,\"Personalised Need\",\"Intensive Need\"))))","v":""}]
[null,null,null,null,null,null,null,null,null,null,null,null,null,null,null,null,null,null,null,null,null,null,null,null,null,null,null,null,null,null,null,null,"","","",{"$f":"IF(ISBLANK(SettingTable[[#This Row],[Child First Name]]),\"\",SUM(SettingTable[[#This Row],[Total Red]:[Total Yellow]]))","v":""},{"$f":"IF(ISBLANK(SettingTable[[#This Row],[Child First Name]]),\"\",IF(SettingTable[[#This Row],[Score]]<1,\"Universal Need\",IF(SettingTable[[#This Row],[Score]]<4,\"Targeted Need\",IF(SettingTable[[#This Row],[Score]]<12,\"Personalised Need\",\"Intensive Need\"))))","v":""}]
[null,null,null,null,null,null,null,null,null,null,null,null,null,null,null,null,null,null,null,null,null,null,null,null,null,null,null,null,null,null,null,null,"","","",{"$f":"IF(ISBLANK(SettingTable[[#This Row],[Child First Name]]),\"\",SUM(SettingTable[[#This Row],[Total Red]:[Total Yellow]]))","v":""},{"$f":"IF(ISBLANK(SettingTable[[#This Row],[Child First Name]]),\"\",IF(SettingTable[[#This Row],[Score]]<1,\"Universal Need\",IF(SettingTable[[#This Row],[Score]]<4,\"Targeted Need\",IF(SettingTable[[#This Row],[Score]]<12,\"Personalised Need\",\"Intensive Need\"))))","v":""}]
[null,null,null,null,null,null,null,null,null,null,null,null,null,null,null,null,null,null,null,null,null,null,null,null,null,null,null,null,null,null,null,null,"","","",{"$f":"IF(ISBLANK(SettingTable[[#This Row],[Child First Name]]),\"\",SUM(SettingTable[[#This Row],[Total Red]:[Total Yellow]]))","v":""},{"$f":"IF(ISBLANK(SettingTable[[#This Row],[Child First Name]]),\"\",IF(SettingTable[[#This Row],[Score]]<1,\"Universal Need\",IF(SettingTable[[#This Row],[Score]]<4,\"Targeted Need\",IF(SettingTable[[#This Row],[Score]]<12,\"Personalised Need\",\"Intensive Need\"))))","v":""}]
[null,null,null,null,null,null,null,null,null,null,null,null,null,null,null,null,null,null,null,null,null,null,null,null,null,null,null,null,null,null,null,null,"","","",{"$f":"IF(ISBLANK(SettingTable[[#This Row],[Child First Name]]),\"\",SUM(SettingTable[[#This Row],[Total Red]:[Total Yellow]]))","v":""},{"$f":"IF(ISBLANK(SettingTable[[#This Row],[Child First Name]]),\"\",IF(SettingTable[[#This Row],[Score]]<1,\"Universal Need\",IF(SettingTable[[#This Row],[Score]]<4,\"Targeted Need\",IF(SettingTable[[#This Row],[Score]]<12,\"Personalised Need\",\"Intensive Need\"))))","v":""}]
[null,null,null,null,null,null,null,null,null,null,null,null,null,null,null,null,null,null,null,null,null,null,null,null,null,null,null,null,null,null,null,null,"","","",{"$f":"IF(ISBLANK(SettingTable[[#This Row],[Child First Name]]),\"\",SUM(SettingTable[[#This Row],[Total Red]:[Total Yellow]]))","v":""},{"$f":"IF(ISBLANK(SettingTable[[#This Row],[Child First Name]]),\"\",IF(SettingTable[[#This Row],[Score]]<1,\"Universal Need\",IF(SettingTable[[#This Row],[Score]]<4,\"Targeted Need\",IF(SettingTable[[#This Row],[Score]]<12,\"Personalised Need\",\"Intensive Need\"))))","v":""}]
[null,null,null,null,null,null,null,null,null,null,null,null,null,null,null,null,null,null,null,null,null,null,null,null,null,null,null,null,null,null,null,null,"","","",{"$f":"IF(ISBLANK(SettingTable[[#This Row],[Child First Name]]),\"\",SUM(SettingTable[[#This Row],[Total Red]:[Total Yellow]]))","v":""},{"$f":"IF(ISBLANK(SettingTable[[#This Row],[Child First Name]]),\"\",IF(SettingTable[[#This Row],[Score]]<1,\"Universal Need\",IF(SettingTable[[#This Row],[Score]]<4,\"Targeted Need\",IF(SettingTable[[#This Row],[Score]]<12,\"Personalised Need\",\"Intensive Need\"))))","v":""}]
[null,null,null,null,null,null,null,null,null,null,null,null,null,null,null,null,null,null,null,null,null,null,null,null,null,null,null,null,null,null,null,null,"","","",{"$f":"IF(ISBLANK(SettingTable[[#This Row],[Child First Name]]),\"\",SUM(SettingTable[[#This Row],[Total Red]:[Total Yellow]]))","v":""},{"$f":"IF(ISBLANK(SettingTable[[#This Row],[Child First Name]]),\"\",IF(SettingTable[[#This Row],[Score]]<1,\"Universal Need\",IF(SettingTable[[#This Row],[Score]]<4,\"Targeted Need\",IF(SettingTable[[#This Row],[Score]]<12,\"Personalised Need\",\"Intensive Need\"))))","v":""}]
[null,null,null,null,null,null,null,null,null,null,null,null,null,null,null,null,null,null,null,null,null,null,null,null,null,null,null,null,null,null,null,null,"","","",{"$f":"IF(ISBLANK(SettingTable[[#This Row],[Child First Name]]),\"\",SUM(SettingTable[[#This Row],[Total Red]:[Total Yellow]]))","v":""},{"$f":"IF(ISBLANK(SettingTable[[#This Row],[Child First Name]]),\"\",IF(SettingTable[[#This Row],[Score]]<1,\"Universal Need\",IF(SettingTable[[#This Row],[Score]]<4,\"Targeted Need\",IF(SettingTable[[#This Row],[Score]]<12,\"Personalised Need\",\"Intensive Need\"))))","v":""}]
[null,null,null,null,null,null,null,null,null,null,null,null,null,null,null,null,null,null,null,null,null,null,null,null,null,null,null,null,null,null,null,null,"","","",{"$f":"IF(ISBLANK(SettingTable[[#This Row],[Child First Name]]),\"\",SUM(SettingTable[[#This Row],[Total Red]:[Total Yellow]]))","v":""},{"$f":"IF(ISBLANK(SettingTable[[#This Row],[Child First Name]]),\"\",IF(SettingTable[[#This Row],[Score]]<1,\"Universal Need\",IF(SettingTable[[#This Row],[Score]]<4,\"Targeted Need\",IF(SettingTable[[#This Row],[Score]]<12,\"Personalised Need\",\"Intensive Need\"))))","v":""}]
[null,null,null,null,null,null,null,null,null,null,null,null,null,null,null,null,null,null,null,null,null,null,null,null,null,null,null,null,null,null,null,null,"","","",{"$f":"IF(ISBLANK(SettingTable[[#This Row],[Child First Name]]),\"\",SUM(SettingTable[[#This Row],[Total Red]:[Total Yellow]]))","v":""},{"$f":"IF(ISBLANK(SettingTable[[#This Row],[Child First Name]]),\"\",IF(SettingTable[[#This Row],[Score]]<1,\"Universal Need\",IF(SettingTable[[#This Row],[Score]]<4,\"Targeted Need\",IF(SettingTable[[#This Row],[Score]]<12,\"Personalised Need\",\"Intensive Need\"))))","v":""}]
[null,null,null,null,null,null,null,null,null,null,null,null,null,null,null,null,null,null,null,null,null,null,null,null,null,null,null,null,null,null,null,null,"","","",{"$f":"IF(ISBLANK(SettingTable[[#This Row],[Child First Name]]),\"\",SUM(SettingTable[[#This Row],[Total Red]:[Total Yellow]]))","v":""},{"$f":"IF(ISBLANK(SettingTable[[#This Row],[Child First Name]]),\"\",IF(SettingTable[[#This Row],[Score]]<1,\"Universal Need\",IF(SettingTable[[#This Row],[Score]]<4,\"Targeted Need\",IF(SettingTable[[#This Row],[Score]]<12,\"Personalised Need\",\"Intensive Need\"))))","v":""}]
[null,null,null,null,null,null,null,null,null,null,null,null,null,null,null,null,null,null,null,null,null,null,null,null,null,null,null,null,null,null,null,null,"","","",{"$f":"IF(ISBLANK(SettingTable[[#This Row],[Child First Name]]),\"\",SUM(SettingTable[[#This Row],[Total Red]:[Total Yellow]]))","v":""},{"$f":"IF(ISBLANK(SettingTable[[#This Row],[Child First Name]]),\"\",IF(SettingTable[[#This Row],[Score]]<1,\"Universal Need\",IF(SettingTable[[#This Row],[Score]]<4,\"Targeted Need\",IF(SettingTable[[#This Row],[Score]]<12,\"Personalised Need\",\"Intensive Need\"))))","v":""}]
[null,null,null,null,null,null,null,null,null,null,null,null,null,null,null,null,null,null,null,null,null,null,null,null,null,null,null,null,null,null,null,null,"","","",{"$f":"IF(ISBLANK(SettingTable[[#This Row],[Child First Name]]),\"\",SUM(SettingTable[[#This Row],[Total Red]:[Total Yellow]]))","v":""},{"$f":"IF(ISBLANK(SettingTable[[#This Row],[Child First Name]]),\"\",IF(SettingTable[[#This Row],[Score]]<1,\"Universal Need\",IF(SettingTable[[#This Row],[Score]]<4,\"Targeted Need\",IF(SettingTable[[#This Row],[Score]]<12,\"Personalised Need\",\"Intensive Need\"))))","v":""}]
[null,null,null,null,null,null,null,null,null,null,null,null,null,null,null,null,null,null,null,null,null,null,null,null,null,null,null,null,null,null,null,null,"","","",{"$f":"IF(ISBLANK(SettingTable[[#This Row],[Child First Name]]),\"\",SUM(SettingTable[[#This Row],[Total Red]:[Total Yellow]]))","v":""},{"$f":"IF(ISBLANK(SettingTable[[#This Row],[Child First Name]]),\"\",IF(SettingTable[[#This Row],[Score]]<1,\"Universal Need\",IF(SettingTable[[#This Row],[Score]]<4,\"Targeted Need\",IF(SettingTable[[#This Row],[Score]]<12,\"Personalised Need\",\"Intensive Need\"))))","v":""}]
[null,null,null,null,null,null,null,null,null,null,null,null,null,null,null,null,null,null,null,null,null,null,null,null,null,null,null,null,null,null,null,null,"","","",{"$f":"IF(ISBLANK(SettingTable[[#This Row],[Child First Name]]),\"\",SUM(SettingTable[[#This Row],[Total Red]:[Total Yellow]]))","v":""},{"$f":"IF(ISBLANK(SettingTable[[#This Row],[Child First Name]]),\"\",IF(SettingTable[[#This Row],[Score]]<1,\"Universal Need\",IF(SettingTable[[#This Row],[Score]]<4,\"Targeted Need\",IF(SettingTable[[#This Row],[Score]]<12,\"Personalised Need\",\"Intensive Need\"))))","v":""}]
[null,null,null,null,null,null,null,null,null,null,null,null,null,null,null,null,null,null,null,null,null,null,null,null,null,null,null,null,null,null,null,null,"","","",{"$f":"IF(ISBLANK(SettingTable[[#This Row],[Child First Name]]),\"\",SUM(SettingTable[[#This Row],[Total Red]:[Total Yellow]]))","v":""},{"$f":"IF(ISBLANK(SettingTable[[#This Row],[Child First Name]]),\"\",IF(SettingTable[[#This Row],[Score]]<1,\"Universal Need\",IF(SettingTable[[#This Row],[Score]]<4,\"Targeted Need\",IF(SettingTable[[#This Row],[Score]]<12,\"Personalised Need\",\"Intensive Need\"))))","v":""}]
[null,null,null,null,null,null,null,null,null,null,null,null,null,null,null,null,null,null,null,null,null,null,null,null,null,null,null,null,null,null,null,null,"","","",{"$f":"IF(ISBLANK(SettingTable[[#This Row],[Child First Name]]),\"\",SUM(SettingTable[[#This Row],[Total Red]:[Total Yellow]]))","v":""},{"$f":"IF(ISBLANK(SettingTable[[#This Row],[Child First Name]]),\"\",IF(SettingTable[[#This Row],[Score]]<1,\"Universal Need\",IF(SettingTable[[#This Row],[Score]]<4,\"Targeted Need\",IF(SettingTable[[#This Row],[Score]]<12,\"Personalised Need\",\"Intensive Need\"))))","v":""}]
[null,null,null,null,null,null,null,null,null,null,null,null,null,null,null,null,null,null,null,null,null,null,null,null,null,null,null,null,null,null,null,null,"","","",{"$f":"IF(ISBLANK(SettingTable[[#This Row],[Child First Name]]),\"\",SUM(SettingTable[[#This Row],[Total Red]:[Total Yellow]]))","v":""},{"$f":"IF(ISBLANK(SettingTable[[#This Row],[Child First Name]]),\"\",IF(SettingTable[[#This Row],[Score]]<1,\"Universal Need\",IF(SettingTable[[#This Row],[Score]]<4,\"Targeted Need\",IF(SettingTable[[#This Row],[Score]]<12,\"Personalised Need\",\"Intensive Need\"))))","v":""}]
[null,null,null,null,null,null,null,null,null,null,null,null,null,null,null,null,null,null,null,null,null,null,null,null,null,null,null,null,null,null,null,null,"","","",{"$f":"IF(ISBLANK(SettingTable[[#This Row],[Child First Name]]),\"\",SUM(SettingTable[[#This Row],[Total Red]:[Total Yellow]]))","v":""},{"$f":"IF(ISBLANK(SettingTable[[#This Row],[Child First Name]]),\"\",IF(SettingTable[[#This Row],[Score]]<1,\"Universal Need\",IF(SettingTable[[#This Row],[Score]]<4,\"Targeted Need\",IF(SettingTable[[#This Row],[Score]]<12,\"Personalised Need\",\"Intensive Need\"))))","v":""}]
[null,null,null,null,null,null,null,null,null,null,null,null,null,null,null,null,null,null,null,null,null,null,null,null,null,null,null,null,null,null,null,null,"","","",{"$f":"IF(ISBLANK(SettingTable[[#This Row],[Child First Name]]),\"\",SUM(SettingTable[[#This Row],[Total Red]:[Total Yellow]]))","v":""},{"$f":"IF(ISBLANK(SettingTable[[#This Row],[Child First Name]]),\"\",IF(SettingTable[[#This Row],[Score]]<1,\"Universal Need\",IF(SettingTable[[#This Row],[Score]]<4,\"Targeted Need\",IF(SettingTable[[#This Row],[Score]]<12,\"Personalised Need\",\"Intensive Need\"))))","v":""}]
[null,null,null,null,null,null,null,null,null,null,null,null,null,null,null,null,null,null,null,null,null,null,null,null,null,null,null,null,null,null,null,null,"","","",{"$f":"IF(ISBLANK(SettingTable[[#This Row],[Child First Name]]),\"\",SUM(SettingTable[[#This Row],[Total Red]:[Total Yellow]]))","v":""},{"$f":"IF(ISBLANK(SettingTable[[#This Row],[Child First Name]]),\"\",IF(SettingTable[[#This Row],[Score]]<1,\"Universal Need\",IF(SettingTable[[#This Row],[Score]]<4,\"Targeted Need\",IF(SettingTable[[#This Row],[Score]]<12,\"Personalised Need\",\"Intensive Need\"))))","v":""}]
[null,null,null,null,null,null,null,null,null,null,null,null,null,null,null,null,null,null,null,null,null,null,null,null,null,null,null,null,null,null,null,null,"","","",{"$f":"IF(ISBLANK(SettingTable[[#This Row],[Child First Name]]),\"\",SUM(SettingTable[[#This Row],[Total Red]:[Total Yellow]]))","v":""},{"$f":"IF(ISBLANK(SettingTable[[#This Row],[Child First Name]]),\"\",IF(SettingTable[[#This Row],[Score]]<1,\"Universal Need\",IF(SettingTable[[#This Row],[Score]]<4,\"Targeted Need\",IF(SettingTable[[#This Row],[Score]]<12,\"Personalised Need\",\"Intensive Need\"))))","v":""}]
[null,null,null,null,null,null,null,null,null,null,null,null,null,null,null,null,null,null,null,null,null,null,null,null,null,null,null,null,null,null,null,null,"","","",{"$f":"IF(ISBLANK(SettingTable[[#This Row],[Child First Name]]),\"\",SUM(SettingTable[[#This Row],[Total Red]:[Total Yellow]]))","v":""},{"$f":"IF(ISBLANK(SettingTable[[#This Row],[Child First Name]]),\"\",IF(SettingTable[[#This Row],[Score]]<1,\"Universal Need\",IF(SettingTable[[#This Row],[Score]]<4,\"Targeted Need\",IF(SettingTable[[#This Row],[Score]]<12,\"Personalised Need\",\"Intensive Need\"))))","v":""}]
[null,null,null,null,null,null,null,null,null,null,null,null,null,null,null,null,null,null,null,null,null,null,null,null,null,null,null,null,null,null,null,null,"","","",{"$f":"IF(ISBLANK(SettingTable[[#This Row],[Child First Name]]),\"\",SUM(SettingTable[[#This Row],[Total Red]:[Total Yellow]]))","v":""},{"$f":"IF(ISBLANK(SettingTable[[#This Row],[Child First Name]]),\"\",IF(SettingTable[[#This Row],[Score]]<1,\"Universal Need\",IF(SettingTable[[#This Row],[Score]]<4,\"Targeted Need\",IF(SettingTable[[#This Row],[Score]]<12,\"Personalised Need\",\"Intensive Need\"))))","v":""}]
[null,null,null,null,null,null,null,null,null,null,null,null,null,null,null,null,null,null,null,null,null,null,null,null,null,null,null,null,null,null,null,null,"","","",{"$f":"IF(ISBLANK(SettingTable[[#This Row],[Child First Name]]),\"\",SUM(SettingTable[[#This Row],[Total Red]:[Total Yellow]]))","v":""},{"$f":"IF(ISBLANK(SettingTable[[#This Row],[Child First Name]]),\"\",IF(SettingTable[[#This Row],[Score]]<1,\"Universal Need\",IF(SettingTable[[#This Row],[Score]]<4,\"Targeted Need\",IF(SettingTable[[#This Row],[Score]]<12,\"Personalised Need\",\"Intensive Need\"))))","v":""}]
[null,null,null,null,null,null,null,null,null,null,null,null,null,null,null,null,null,null,null,null,null,null,null,null,null,null,null,null,null,null,null,null,"","","",{"$f":"IF(ISBLANK(SettingTable[[#This Row],[Child First Name]]),\"\",SUM(SettingTable[[#This Row],[Total Red]:[Total Yellow]]))","v":""},{"$f":"IF(ISBLANK(SettingTable[[#This Row],[Child First Name]]),\"\",IF(SettingTable[[#This Row],[Score]]<1,\"Universal Need\",IF(SettingTable[[#This Row],[Score]]<4,\"Targeted Need\",IF(SettingTable[[#This Row],[Score]]<12,\"Personalised Need\",\"Intensive Need\"))))","v":""}]
[null,null,null,null,null,null,null,null,null,null,null,null,null,null,null,null,null,null,null,null,null,null,null,null,null,null,null,null,null,null,null,null,"","","",{"$f":"IF(ISBLANK(SettingTable[[#This Row],[Child First Name]]),\"\",SUM(SettingTable[[#This Row],[Total Red]:[Total Yellow]]))","v":""},{"$f":"IF(ISBLANK(SettingTable[[#This Row],[Child First Name]]),\"\",IF(SettingTable[[#This Row],[Score]]<1,\"Universal Need\",IF(SettingTable[[#This Row],[Score]]<4,\"Targeted Need\",IF(SettingTable[[#This Row],[Score]]<12,\"Personalised Need\",\"Intensive Need\"))))","v":""}]
[null,null,null,null,null,null,null,null,null,null,null,null,null,null,null,null,null,null,null,null,null,null,null,null,null,null,null,null,null,null,null,null,"","","",{"$f":"IF(ISBLANK(SettingTable[[#This Row],[Child First Name]]),\"\",SUM(SettingTable[[#This Row],[Total Red]:[Total Yellow]]))","v":""},{"$f":"IF(ISBLANK(SettingTable[[#This Row],[Child First Name]]),\"\",IF(SettingTable[[#This Row],[Score]]<1,\"Universal Need\",IF(SettingTable[[#This Row],[Score]]<4,\"Targeted Need\",IF(SettingTable[[#This Row],[Score]]<12,\"Personalised Need\",\"Intensive Need\"))))","v":""}]
[null,null,null,null,null,null,null,null,null,null,null,null,null,null,null,null,null,null,null,null,null,null,null,null,null,null,null,null,null,null,null,null,"","","",{"$f":"IF(ISBLANK(SettingTable[[#This Row],[Child First Name]]),\"\",SUM(SettingTable[[#This Row],[Total Red]:[Total Yellow]]))","v":""},{"$f":"IF(ISBLANK(SettingTable[[#This Row],[Child First Name]]),\"\",IF(SettingTable[[#This Row],[Score]]<1,\"Universal Need\",IF(SettingTable[[#This Row],[Score]]<4,\"Targeted Need\",IF(SettingTable[[#This Row],[Score]]<12,\"Personalised Need\",\"Intensive Need\"))))","v":""}]
[null,null,null,null,null,null,null,null,null,null,null,null,null,null,null,null,null,null,null,null,null,null,null,null,null,null,null,null,null,null,null,null,{"$f":"IF($D140<>\"\",COUNTIF($I140:$AF140,\"Intensive\")*12,\"\")","v":""},{"$f":"IF($D140<>\"\",COUNTIF($I140:$AF140,\"Personalised\")*4,\"\")","v":""},{"$f":"IF($D140<>\"\",COUNTIF($I140:$AF140,\"Targeted\"),\"\")","v":""},{"$f":"IF(ISBLANK(SettingTable[[#This Row],[Child First Name]]),\"\",SUM(SettingTable[[#This Row],[Total Red]:[Total Yellow]]))","v":""},{"$f":"IF(ISBLANK(SettingTable[[#This Row],[Child First Name]]),\"\",IF(SettingTable[[#This Row],[Score]]<1,\"Universal Need\",IF(SettingTable[[#This Row],[Score]]<4,\"Targeted Need\",IF(SettingTable[[#This Row],[Score]]<12,\"Personalised Need\",\"Intensive Need\"))))","v":""}]
[null,null,null,null,null,null,null,null,null,null,null,null,null,null,null,null,null,null,null,null,null,null,null,null,null,null,null,null,null,null,null,null,"","","",{"$f":"IF(ISBLANK(SettingTable[[#This Row],[Child First Name]]),\"\",SUM(SettingTable[[#This Row],[Total Red]:[Total Yellow]]))","v":""},{"$f":"IF(ISBLANK(SettingTable[[#This Row],[Child First Name]]),\"\",IF(SettingTable[[#This Row],[Score]]<1,\"Universal Need\",IF(SettingTable[[#This Row],[Score]]<4,\"Targeted Need\",IF(SettingTable[[#This Row],[Score]]<12,\"Personalised Need\",\"Intensive Need\"))))","v":""}]
[null,null,null,null,null,null,null,null,null,null,null,null,null,null,null,null,null,null,null,null,null,null,null,null,null,null,null,null,null,null,null,null,"","","",{"$f":"IF(ISBLANK(SettingTable[[#This Row],[Child First Name]]),\"\",SUM(SettingTable[[#This Row],[Total Red]:[Total Yellow]]))","v":""},{"$f":"IF(ISBLANK(SettingTable[[#This Row],[Child First Name]]),\"\",IF(SettingTable[[#This Row],[Score]]<1,\"Universal Need\",IF(SettingTable[[#This Row],[Score]]<4,\"Targeted Need\",IF(SettingTable[[#This Row],[Score]]<12,\"Personalised Need\",\"Intensive Need\"))))","v":""}]
[null,null,null,null,null,null,null,null,null,null,null,null,null,null,null,null,null,null,null,null,null,null,null,null,null,null,null,null,null,null,null,null,"","","",{"$f":"IF(ISBLANK(SettingTable[[#This Row],[Child First Name]]),\"\",SUM(SettingTable[[#This Row],[Total Red]:[Total Yellow]]))","v":""},{"$f":"IF(ISBLANK(SettingTable[[#This Row],[Child First Name]]),\"\",IF(SettingTable[[#This Row],[Score]]<1,\"Universal Need\",IF(SettingTable[[#This Row],[Score]]<4,\"Targeted Need\",IF(SettingTable[[#This Row],[Score]]<12,\"Personalised Need\",\"Intensive Need\"))))","v":""}]
[null,null,null,null,null,null,null,null,null,null,null,null,null,null,null,null,null,null,null,null,null,null,null,null,null,null,null,null,null,null,null,null,"","","",{"$f":"IF(ISBLANK(SettingTable[[#This Row],[Child First Name]]),\"\",SUM(SettingTable[[#This Row],[Total Red]:[Total Yellow]]))","v":""},{"$f":"IF(ISBLANK(SettingTable[[#This Row],[Child First Name]]),\"\",IF(SettingTable[[#This Row],[Score]]<1,\"Universal Need\",IF(SettingTable[[#This Row],[Score]]<4,\"Targeted Need\",IF(SettingTable[[#This Row],[Score]]<12,\"Personalised Need\",\"Intensive Need\"))))","v":""}]
[null,null,null,null,null,null,null,null,null,null,null,null,null,null,null,null,null,null,null,null,null,null,null,null,null,null,null,null,null,null,null,null,"","","",{"$f":"IF(ISBLANK(SettingTable[[#This Row],[Child First Name]]),\"\",SUM(SettingTable[[#This Row],[Total Red]:[Total Yellow]]))","v":""},{"$f":"IF(ISBLANK(SettingTable[[#This Row],[Child First Name]]),\"\",IF(SettingTable[[#This Row],[Score]]<1,\"Universal Need\",IF(SettingTable[[#This Row],[Score]]<4,\"Targeted Need\",IF(SettingTable[[#This Row],[Score]]<12,\"Personalised Need\",\"Intensive Need\"))))","v":""}]
[null,null,null,null,null,null,null,null,null,null,null,null,null,null,null,null,null,null,null,null,null,null,null,null,null,null,null,null,null,null,null,null,"","","",{"$f":"IF(ISBLANK(SettingTable[[#This Row],[Child First Name]]),\"\",SUM(SettingTable[[#This Row],[Total Red]:[Total Yellow]]))","v":""},{"$f":"IF(ISBLANK(SettingTable[[#This Row],[Child First Name]]),\"\",IF(SettingTable[[#This Row],[Score]]<1,\"Universal Need\",IF(SettingTable[[#This Row],[Score]]<4,\"Targeted Need\",IF(SettingTable[[#This Row],[Score]]<12,\"Personalised Need\",\"Intensive Need\"))))","v":""}]
[null,null,null,null,null,null,null,null,null,null,null,null,null,null,null,null,null,null,null,null,null,null,null,null,null,null,null,null,null,null,null,null,"","","",{"$f":"IF(ISBLANK(SettingTable[[#This Row],[Child First Name]]),\"\",SUM(SettingTable[[#This Row],[Total Red]:[Total Yellow]]))","v":""},{"$f":"IF(ISBLANK(SettingTable[[#This Row],[Child First Name]]),\"\",IF(SettingTable[[#This Row],[Score]]<1,\"Universal Need\",IF(SettingTable[[#This Row],[Score]]<4,\"Targeted Need\",IF(SettingTable[[#This Row],[Score]]<12,\"Personalised Need\",\"Intensive Need\"))))","v":""}]
[null,null,null,null,null,null,null,null,null,null,null,null,null,null,null,null,null,null,null,null,null,null,null,null,null,null,null,null,null,null,null,null,"","","",{"$f":"IF(ISBLANK(SettingTable[[#This Row],[Child First Name]]),\"\",SUM(SettingTable[[#This Row],[Total Red]:[Total Yellow]]))","v":""},{"$f":"IF(ISBLANK(SettingTable[[#This Row],[Child First Name]]),\"\",IF(SettingTable[[#This Row],[Score]]<1,\"Universal Need\",IF(SettingTable[[#This Row],[Score]]<4,\"Targeted Need\",IF(SettingTable[[#This Row],[Score]]<12,\"Personalised Need\",\"Intensive Need\"))))","v":""}]
[null,null,null,null,null,null,null,null,null,null,null,null,null,null,null,null,null,null,null,null,null,null,null,null,null,null,null,null,null,null,null,null,"","","",{"$f":"IF(ISBLANK(SettingTable[[#This Row],[Child First Name]]),\"\",SUM(SettingTable[[#This Row],[Total Red]:[Total Yellow]]))","v":""},{"$f":"IF(ISBLANK(SettingTable[[#This Row],[Child First Name]]),\"\",IF(SettingTable[[#This Row],[Score]]<1,\"Universal Need\",IF(SettingTable[[#This Row],[Score]]<4,\"Targeted Need\",IF(SettingTable[[#This Row],[Score]]<12,\"Personalised Need\",\"Intensive Need\"))))","v":""}]
[null,null,null,null,null,null,null,null,null,null,null,null,null,null,null,null,null,null,null,null,null,null,null,null,null,null,null,null,null,null,null,null,"","","",{"$f":"IF(ISBLANK(SettingTable[[#This Row],[Child First Name]]),\"\",SUM(SettingTable[[#This Row],[Total Red]:[Total Yellow]]))","v":""},{"$f":"IF(ISBLANK(SettingTable[[#This Row],[Child First Name]]),\"\",IF(SettingTable[[#This Row],[Score]]<1,\"Universal Need\",IF(SettingTable[[#This Row],[Score]]<4,\"Targeted Need\",IF(SettingTable[[#This Row],[Score]]<12,\"Personalised Need\",\"Intensive Need\"))))","v":""}]
[null,null,null,null,null,null,null,null,null,null,null,null,null,null,null,null,null,null,null,null,null,null,null,null,null,null,null,null,null,null,null,null,"","","",{"$f":"IF(ISBLANK(SettingTable[[#This Row],[Child First Name]]),\"\",SUM(SettingTable[[#This Row],[Total Red]:[Total Yellow]]))","v":""},{"$f":"IF(ISBLANK(SettingTable[[#This Row],[Child First Name]]),\"\",IF(SettingTable[[#This Row],[Score]]<1,\"Universal Need\",IF(SettingTable[[#This Row],[Score]]<4,\"Targeted Need\",IF(SettingTable[[#This Row],[Score]]<12,\"Personalised Need\",\"Intensive Need\"))))","v":""}]
[null,null,null,null,null,null,null,null,null,null,null,null,null,null,null,null,null,null,null,null,null,null,null,null,null,null,null,null,null,null,null,null,"","","",{"$f":"IF(ISBLANK(SettingTable[[#This Row],[Child First Name]]),\"\",SUM(SettingTable[[#This Row],[Total Red]:[Total Yellow]]))","v":""},{"$f":"IF(ISBLANK(SettingTable[[#This Row],[Child First Name]]),\"\",IF(SettingTable[[#This Row],[Score]]<1,\"Universal Need\",IF(SettingTable[[#This Row],[Score]]<4,\"Targeted Need\",IF(SettingTable[[#This Row],[Score]]<12,\"Personalised Need\",\"Intensive Need\"))))","v":""}]
[null,null,null,null,null,null,null,null,null,null,null,null,null,null,null,null,null,null,null,null,null,null,null,null,null,null,null,null,null,null,null,null,"","","",{"$f":"IF(ISBLANK(SettingTable[[#This Row],[Child First Name]]),\"\",SUM(SettingTable[[#This Row],[Total Red]:[Total Yellow]]))","v":""},{"$f":"IF(ISBLANK(SettingTable[[#This Row],[Child First Name]]),\"\",IF(SettingTable[[#This Row],[Score]]<1,\"Universal Need\",IF(SettingTable[[#This Row],[Score]]<4,\"Targeted Need\",IF(SettingTable[[#This Row],[Score]]<12,\"Personalised Need\",\"Intensive Need\"))))","v":""}]
[null,null,null,null,null,null,null,null,null,null,null,null,null,null,null,null,null,null,null,null,null,null,null,null,null,null,null,null,null,null,null,null,"","","",{"$f":"IF(ISBLANK(SettingTable[[#This Row],[Child First Name]]),\"\",SUM(SettingTable[[#This Row],[Total Red]:[Total Yellow]]))","v":""},{"$f":"IF(ISBLANK(SettingTable[[#This Row],[Child First Name]]),\"\",IF(SettingTable[[#This Row],[Score]]<1,\"Universal Need\",IF(SettingTable[[#This Row],[Score]]<4,\"Targeted Need\",IF(SettingTable[[#This Row],[Score]]<12,\"Personalised Need\",\"Intensive Need\"))))","v":""}]
[null,null,null,null,null,null,null,null,null,null,null,null,null,null,null,null,null,null,null,null,null,null,null,null,null,null,null,null,null,null,null,null,"","","",{"$f":"IF(ISBLANK(SettingTable[[#This Row],[Child First Name]]),\"\",SUM(SettingTable[[#This Row],[Total Red]:[Total Yellow]]))","v":""},{"$f":"IF(ISBLANK(SettingTable[[#This Row],[Child First Name]]),\"\",IF(SettingTable[[#This Row],[Score]]<1,\"Universal Need\",IF(SettingTable[[#This Row],[Score]]<4,\"Targeted Need\",IF(SettingTable[[#This Row],[Score]]<12,\"Personalised Need\",\"Intensive Need\"))))","v":""}]
[null,null,null,null,null,null,null,null,null,null,null,null,null,null,null,null,null,null,null,null,null,null,null,null,null,null,null,null,null,null,null,null,"","","",{"$f":"IF(ISBLANK(SettingTable[[#This Row],[Child First Name]]),\"\",SUM(SettingTable[[#This Row],[Total Red]:[Total Yellow]]))","v":""},{"$f":"IF(ISBLANK(SettingTable[[#This Row],[Child First Name]]),\"\",IF(SettingTable[[#This Row],[Score]]<1,\"Universal Need\",IF(SettingTable[[#This Row],[Score]]<4,\"Targeted Need\",IF(SettingTable[[#This Row],[Score]]<12,\"Personalised Need\",\"Intensive Need\"))))","v":""}]
[null,null,null,null,null,null,null,null,null,null,null,null,null,null,null,null,null,null,null,null,null,null,null,null,null,null,null,null,null,null,null,null,"","","",{"$f":"IF(ISBLANK(SettingTable[[#This Row],[Child First Name]]),\"\",SUM(SettingTable[[#This Row],[Total Red]:[Total Yellow]]))","v":""},{"$f":"IF(ISBLANK(SettingTable[[#This Row],[Child First Name]]),\"\",IF(SettingTable[[#This Row],[Score]]<1,\"Universal Need\",IF(SettingTable[[#This Row],[Score]]<4,\"Targeted Need\",IF(SettingTable[[#This Row],[Score]]<12,\"Personalised Need\",\"Intensive Need\"))))","v":""}]
[null,null,null,null,null,null,null,null,null,null,null,null,null,null,null,null,null,null,null,null,null,null,null,null,null,null,null,null,null,null,null,null,"","","",{"$f":"IF(ISBLANK(SettingTable[[#This Row],[Child First Name]]),\"\",SUM(SettingTable[[#This Row],[Total Red]:[Total Yellow]]))","v":""},{"$f":"IF(ISBLANK(SettingTable[[#This Row],[Child First Name]]),\"\",IF(SettingTable[[#This Row],[Score]]<1,\"Universal Need\",IF(SettingTable[[#This Row],[Score]]<4,\"Targeted Need\",IF(SettingTable[[#This Row],[Score]]<12,\"Personalised Need\",\"Intensive Need\"))))","v":""}]
[null,null,null,null,null,null,null,null,null,null,null,null,null,null,null,null,null,null,null,null,null,null,null,null,null,null,null,null,null,null,null,null,"","","",{"$f":"IF(ISBLANK(SettingTable[[#This Row],[Child First Name]]),\"\",SUM(SettingTable[[#This Row],[Total Red]:[Total Yellow]]))","v":""},{"$f":"IF(ISBLANK(SettingTable[[#This Row],[Child First Name]]),\"\",IF(SettingTable[[#This Row],[Score]]<1,\"Universal Need\",IF(SettingTable[[#This Row],[Score]]<4,\"Targeted Need\",IF(SettingTable[[#This Row],[Score]]<12,\"Personalised Need\",\"Intensive Need\"))))","v":""}]
[null,null,null,null,null,null,null,null,null,null,null,null,null,null,null,null,null,null,null,null,null,null,null,null,null,null,null,null,null,null,null,null,"","","",{"$f":"IF(ISBLANK(SettingTable[[#This Row],[Child First Name]]),\"\",SUM(SettingTable[[#This Row],[Total Red]:[Total Yellow]]))","v":""},{"$f":"IF(ISBLANK(SettingTable[[#This Row],[Child First Name]]),\"\",IF(SettingTable[[#This Row],[Score]]<1,\"Universal Need\",IF(SettingTable[[#This Row],[Score]]<4,\"Targeted Need\",IF(SettingTable[[#This Row],[Score]]<12,\"Personalised Need\",\"Intensive Need\"))))","v":""}]
[null,null,null,null,null,null,null,null,null,null,null,null,null,null,null,null,null,null,null,null,null,null,null,null,null,null,null,null,null,null,null,null,"","","",{"$f":"IF(ISBLANK(SettingTable[[#This Row],[Child First Name]]),\"\",SUM(SettingTable[[#This Row],[Total Red]:[Total Yellow]]))","v":""},{"$f":"IF(ISBLANK(SettingTable[[#This Row],[Child First Name]]),\"\",IF(SettingTable[[#This Row],[Score]]<1,\"Universal Need\",IF(SettingTable[[#This Row],[Score]]<4,\"Targeted Need\",IF(SettingTable[[#This Row],[Score]]<12,\"Personalised Need\",\"Intensive Need\"))))","v":""}]
[null,null,null,null,null,null,null,null,null,null,null,null,null,null,null,null,null,null,null,null,null,null,null,null,null,null,null,null,null,null,null,null,"","","",{"$f":"IF(ISBLANK(SettingTable[[#This Row],[Child First Name]]),\"\",SUM(SettingTable[[#This Row],[Total Red]:[Total Yellow]]))","v":""},{"$f":"IF(ISBLANK(SettingTable[[#This Row],[Child First Name]]),\"\",IF(SettingTable[[#This Row],[Score]]<1,\"Universal Need\",IF(SettingTable[[#This Row],[Score]]<4,\"Targeted Need\",IF(SettingTable[[#This Row],[Score]]<12,\"Personalised Need\",\"Intensive Need\"))))","v":""}]
[null,null,null,null,null,null,null,null,null,null,null,null,null,null,null,null,null,null,null,null,null,null,null,null,null,null,null,null,null,null,null,null,"","","",{"$f":"IF(ISBLANK(SettingTable[[#This Row],[Child First Name]]),\"\",SUM(SettingTable[[#This Row],[Total Red]:[Total Yellow]]))","v":""},{"$f":"IF(ISBLANK(SettingTable[[#This Row],[Child First Name]]),\"\",IF(SettingTable[[#This Row],[Score]]<1,\"Universal Need\",IF(SettingTable[[#This Row],[Score]]<4,\"Targeted Need\",IF(SettingTable[[#This Row],[Score]]<12,\"Personalised Need\",\"Intensive Need\"))))","v":""}]
[null,null,null,null,null,null,null,null,null,null,null,null,null,null,null,null,null,null,null,null,null,null,null,null,null,null,null,null,null,null,null,null,"","","",{"$f":"IF(ISBLANK(SettingTable[[#This Row],[Child First Name]]),\"\",SUM(SettingTable[[#This Row],[Total Red]:[Total Yellow]]))","v":""},{"$f":"IF(ISBLANK(SettingTable[[#This Row],[Child First Name]]),\"\",IF(SettingTable[[#This Row],[Score]]<1,\"Universal Need\",IF(SettingTable[[#This Row],[Score]]<4,\"Targeted Need\",IF(SettingTable[[#This Row],[Score]]<12,\"Personalised Need\",\"Intensive Need\"))))","v":""}]
[null,null,null,null,null,null,null,null,null,null,null,null,null,null,null,null,null,null,null,null,null,null,null,null,null,null,null,null,null,null,null,null,"","","",{"$f":"IF(ISBLANK(SettingTable[[#This Row],[Child First Name]]),\"\",SUM(SettingTable[[#This Row],[Total Red]:[Total Yellow]]))","v":""},{"$f":"IF(ISBLANK(SettingTable[[#This Row],[Child First Name]]),\"\",IF(SettingTable[[#This Row],[Score]]<1,\"Universal Need\",IF(SettingTable[[#This Row],[Score]]<4,\"Targeted Need\",IF(SettingTable[[#This Row],[Score]]<12,\"Personalised Need\",\"Intensive Need\"))))","v":""}]
[null,null,null,null,null,null,null,null,null,null,null,null,null,null,null,null,null,null,null,null,null,null,null,null,null,null,null,null,null,null,null,null,"","","",{"$f":"IF(ISBLANK(SettingTable[[#This Row],[Child First Name]]),\"\",SUM(SettingTable[[#This Row],[Total Red]:[Total Yellow]]))","v":""},{"$f":"IF(ISBLANK(SettingTable[[#This Row],[Child First Name]]),\"\",IF(SettingTable[[#This Row],[Score]]<1,\"Universal Need\",IF(SettingTable[[#This Row],[Score]]<4,\"Targeted Need\",IF(SettingTable[[#This Row],[Score]]<12,\"Personalised Need\",\"Intensive Need\"))))","v":""}]
[null,null,null,null,null,null,null,null,null,null,null,null,null,null,null,null,null,null,null,null,null,null,null,null,null,null,null,null,null,null,null,null,"","","",{"$f":"IF(ISBLANK(SettingTable[[#This Row],[Child First Name]]),\"\",SUM(SettingTable[[#This Row],[Total Red]:[Total Yellow]]))","v":""},{"$f":"IF(ISBLANK(SettingTable[[#This Row],[Child First Name]]),\"\",IF(SettingTable[[#This Row],[Score]]<1,\"Universal Need\",IF(SettingTable[[#This Row],[Score]]<4,\"Targeted Need\",IF(SettingTable[[#This Row],[Score]]<12,\"Personalised Need\",\"Intensive Need\"))))","v":""}]
[null,null,null,null,null,null,null,null,null,null,null,null,null,null,null,null,null,null,null,null,null,null,null,null,null,null,null,null,null,null,null,null,"","","",{"$f":"IF(ISBLANK(SettingTable[[#This Row],[Child First Name]]),\"\",SUM(SettingTable[[#This Row],[Total Red]:[Total Yellow]]))","v":""},{"$f":"IF(ISBLANK(SettingTable[[#This Row],[Child First Name]]),\"\",IF(SettingTable[[#This Row],[Score]]<1,\"Universal Need\",IF(SettingTable[[#This Row],[Score]]<4,\"Targeted Need\",IF(SettingTable[[#This Row],[Score]]<12,\"Personalised Need\",\"Intensive Need\"))))","v":""}]
[null,null,null,null,null,null,null,null,null,null,null,null,null,null,null,null,null,null,null,null,null,null,null,null,null,null,null,null,null,null,null,null,"","","",{"$f":"IF(ISBLANK(SettingTable[[#This Row],[Child First Name]]),\"\",SUM(SettingTable[[#This Row],[Total Red]:[Total Yellow]]))","v":""},{"$f":"IF(ISBLANK(SettingTable[[#This Row],[Child First Name]]),\"\",IF(SettingTable[[#This Row],[Score]]<1,\"Universal Need\",IF(SettingTable[[#This Row],[Score]]<4,\"Targeted Need\",IF(SettingTable[[#This Row],[Score]]<12,\"Personalised Need\",\"Intensive Need\"))))","v":""}]
[null,null,null,null,null,null,null,null,null,null,null,null,null,null,null,null,null,null,null,null,null,null,null,null,null,null,null,null,null,null,null,null,"","","",{"$f":"IF(ISBLANK(SettingTable[[#This Row],[Child First Name]]),\"\",SUM(SettingTable[[#This Row],[Total Red]:[Total Yellow]]))","v":""},{"$f":"IF(ISBLANK(SettingTable[[#This Row],[Child First Name]]),\"\",IF(SettingTable[[#This Row],[Score]]<1,\"Universal Need\",IF(SettingTable[[#This Row],[Score]]<4,\"Targeted Need\",IF(SettingTable[[#This Row],[Score]]<12,\"Personalised Need\",\"Intensive Need\"))))","v":""}]
[null,null,null,null,null,null,null,null,null,null,null,null,null,null,null,null,null,null,null,null,null,null,null,null,null,null,null,null,null,null,null,null,"","","",{"$f":"IF(ISBLANK(SettingTable[[#This Row],[Child First Name]]),\"\",SUM(SettingTable[[#This Row],[Total Red]:[Total Yellow]]))","v":""},{"$f":"IF(ISBLANK(SettingTable[[#This Row],[Child First Name]]),\"\",IF(SettingTable[[#This Row],[Score]]<1,\"Universal Need\",IF(SettingTable[[#This Row],[Score]]<4,\"Targeted Need\",IF(SettingTable[[#This Row],[Score]]<12,\"Personalised Need\",\"Intensive Need\"))))","v":""}]
[null,null,null,null,null,null,null,null,null,null,null,null,null,null,null,null,null,null,null,null,null,null,null,null,null,null,null,null,null,null,null,null,"","","",{"$f":"IF(ISBLANK(SettingTable[[#This Row],[Child First Name]]),\"\",SUM(SettingTable[[#This Row],[Total Red]:[Total Yellow]]))","v":""},{"$f":"IF(ISBLANK(SettingTable[[#This Row],[Child First Name]]),\"\",IF(SettingTable[[#This Row],[Score]]<1,\"Universal Need\",IF(SettingTable[[#This Row],[Score]]<4,\"Targeted Need\",IF(SettingTable[[#This Row],[Score]]<12,\"Personalised Need\",\"Intensive Need\"))))","v":""}]
[null,null,null,null,null,null,null,null,null,null,null,null,null,null,null,null,null,null,null,null,null,null,null,null,null,null,null,null,null,null,null,null,"","","",{"$f":"IF(ISBLANK(SettingTable[[#This Row],[Child First Name]]),\"\",SUM(SettingTable[[#This Row],[Total Red]:[Total Yellow]]))","v":""},{"$f":"IF(ISBLANK(SettingTable[[#This Row],[Child First Name]]),\"\",IF(SettingTable[[#This Row],[Score]]<1,\"Universal Need\",IF(SettingTable[[#This Row],[Score]]<4,\"Targeted Need\",IF(SettingTable[[#This Row],[Score]]<12,\"Personalised Need\",\"Intensive Need\"))))","v":""}]
[null,null,null,null,null,null,null,null,null,null,null,null,null,null,null,null,null,null,null,null,null,null,null,null,null,null,null,null,null,null,null,null,"","","",{"$f":"IF(ISBLANK(SettingTable[[#This Row],[Child First Name]]),\"\",SUM(SettingTable[[#This Row],[Total Red]:[Total Yellow]]))","v":""},{"$f":"IF(ISBLANK(SettingTable[[#This Row],[Child First Name]]),\"\",IF(SettingTable[[#This Row],[Score]]<1,\"Universal Need\",IF(SettingTable[[#This Row],[Score]]<4,\"Targeted Need\",IF(SettingTable[[#This Row],[Score]]<12,\"Personalised Need\",\"Intensive Need\"))))","v":""}]
[null,null,null,null,null,null,null,null,null,null,null,null,null,null,null,null,null,null,null,null,null,null,null,null,null,null,null,null,null,null,null,null,"","","",{"$f":"IF(ISBLANK(SettingTable[[#This Row],[Child First Name]]),\"\",SUM(SettingTable[[#This Row],[Total Red]:[Total Yellow]]))","v":""},{"$f":"IF(ISBLANK(SettingTable[[#This Row],[Child First Name]]),\"\",IF(SettingTable[[#This Row],[Score]]<1,\"Universal Need\",IF(SettingTable[[#This Row],[Score]]<4,\"Targeted Need\",IF(SettingTable[[#This Row],[Score]]<12,\"Personalised Need\",\"Intensive Need\"))))","v":""}]
[null,null,null,null,null,null,null,null,null,null,null,null,null,null,null,null,null,null,null,null,null,null,null,null,null,null,null,null,null,null,null,null,"","","",{"$f":"IF(ISBLANK(SettingTable[[#This Row],[Child First Name]]),\"\",SUM(SettingTable[[#This Row],[Total Red]:[Total Yellow]]))","v":""},{"$f":"IF(ISBLANK(SettingTable[[#This Row],[Child First Name]]),\"\",IF(SettingTable[[#This Row],[Score]]<1,\"Universal Need\",IF(SettingTable[[#This Row],[Score]]<4,\"Targeted Need\",IF(SettingTable[[#This Row],[Score]]<12,\"Personalised Need\",\"Intensive Need\"))))","v":""}]
[null,null,null,null,null,null,null,null,null,null,null,null,null,null,null,null,null,null,null,null,null,null,null,null,null,null,null,null,null,null,null,null,"","","",{"$f":"IF(ISBLANK(SettingTable[[#This Row],[Child First Name]]),\"\",SUM(SettingTable[[#This Row],[Total Red]:[Total Yellow]]))","v":""},{"$f":"IF(ISBLANK(SettingTable[[#This Row],[Child First Name]]),\"\",IF(SettingTable[[#This Row],[Score]]<1,\"Universal Need\",IF(SettingTable[[#This Row],[Score]]<4,\"Targeted Need\",IF(SettingTable[[#This Row],[Score]]<12,\"Personalised Need\",\"Intensive Need\"))))","v":""}]
[null,null,null,null,null,null,null,null,null,null,null,null,null,null,null,null,null,null,null,null,null,null,null,null,null,null,null,null,null,null,null,null,"","","",{"$f":"IF(ISBLANK(SettingTable[[#This Row],[Child First Name]]),\"\",SUM(SettingTable[[#This Row],[Total Red]:[Total Yellow]]))","v":""},{"$f":"IF(ISBLANK(SettingTable[[#This Row],[Child First Name]]),\"\",IF(SettingTable[[#This Row],[Score]]<1,\"Universal Need\",IF(SettingTable[[#This Row],[Score]]<4,\"Targeted Need\",IF(SettingTable[[#This Row],[Score]]<12,\"Personalised Need\",\"Intensive Need\"))))","v":""}]
[null,null,null,null,null,null,null,null,null,null,null,null,null,null,null,null,null,null,null,null,null,null,null,null,null,null,null,null,null,null,null,null,"","","",{"$f":"IF(ISBLANK(SettingTable[[#This Row],[Child First Name]]),\"\",SUM(SettingTable[[#This Row],[Total Red]:[Total Yellow]]))","v":""},{"$f":"IF(ISBLANK(SettingTable[[#This Row],[Child First Name]]),\"\",IF(SettingTable[[#This Row],[Score]]<1,\"Universal Need\",IF(SettingTable[[#This Row],[Score]]<4,\"Targeted Need\",IF(SettingTable[[#This Row],[Score]]<12,\"Personalised Need\",\"Intensive Need\"))))","v":""}]
[null,null,null,null,null,null,null,null,null,null,null,null,null,null,null,null,null,null,null,null,null,null,null,null,null,null,null,null,null,null,null,null,"","","",{"$f":"IF(ISBLANK(SettingTable[[#This Row],[Child First Name]]),\"\",SUM(SettingTable[[#This Row],[Total Red]:[Total Yellow]]))","v":""},{"$f":"IF(ISBLANK(SettingTable[[#This Row],[Child First Name]]),\"\",IF(SettingTable[[#This Row],[Score]]<1,\"Universal Need\",IF(SettingTable[[#This Row],[Score]]<4,\"Targeted Need\",IF(SettingTable[[#This Row],[Score]]<12,\"Personalised Need\",\"Intensive Need\"))))","v":""}]
[null,null,null,null,null,null,null,null,null,null,null,null,null,null,null,null,null,null,null,null,null,null,null,null,null,null,null,null,null,null,null,null,"","","",{"$f":"IF(ISBLANK(SettingTable[[#This Row],[Child First Name]]),\"\",SUM(SettingTable[[#This Row],[Total Red]:[Total Yellow]]))","v":""},{"$f":"IF(ISBLANK(SettingTable[[#This Row],[Child First Name]]),\"\",IF(SettingTable[[#This Row],[Score]]<1,\"Universal Need\",IF(SettingTable[[#This Row],[Score]]<4,\"Targeted Need\",IF(SettingTable[[#This Row],[Score]]<12,\"Personalised Need\",\"Intensive Need\"))))","v":""}]
[null,null,null,null,null,null,null,null,null,null,null,null,null,null,null,null,null,null,null,null,null,null,null,null,null,null,null,null,null,null,null,null,"","","",{"$f":"IF(ISBLANK(SettingTable[[#This Row],[Child First Name]]),\"\",SUM(SettingTable[[#This Row],[Total Red]:[Total Yellow]]))","v":""},{"$f":"IF(ISBLANK(SettingTable[[#This Row],[Child First Name]]),\"\",IF(SettingTable[[#This Row],[Score]]<1,\"Universal Need\",IF(SettingTable[[#This Row],[Score]]<4,\"Targeted Need\",IF(SettingTable[[#This Row],[Score]]<12,\"Personalised Need\",\"Intensive Need\"))))","v":""}]
[null,null,null,null,null,null,null,null,null,null,null,null,null,null,null,null,null,null,null,null,null,null,null,null,null,null,null,null,null,null,null,null,"","","",{"$f":"IF(ISBLANK(SettingTable[[#This Row],[Child First Name]]),\"\",SUM(SettingTable[[#This Row],[Total Red]:[Total Yellow]]))","v":""},{"$f":"IF(ISBLANK(SettingTable[[#This Row],[Child First Name]]),\"\",IF(SettingTable[[#This Row],[Score]]<1,\"Universal Need\",IF(SettingTable[[#This Row],[Score]]<4,\"Targeted Need\",IF(SettingTable[[#This Row],[Score]]<12,\"Personalised Need\",\"Intensive Need\"))))","v":""}]
[null,null,null,null,null,null,null,null,null,null,null,null,null,null,null,null,null,null,null,null,null,null,null,null,null,null,null,null,null,null,null,null,"","","",{"$f":"IF(ISBLANK(SettingTable[[#This Row],[Child First Name]]),\"\",SUM(SettingTable[[#This Row],[Total Red]:[Total Yellow]]))","v":""},{"$f":"IF(ISBLANK(SettingTable[[#This Row],[Child First Name]]),\"\",IF(SettingTable[[#This Row],[Score]]<1,\"Universal Need\",IF(SettingTable[[#This Row],[Score]]<4,\"Targeted Need\",IF(SettingTable[[#This Row],[Score]]<12,\"Personalised Need\",\"Intensive Need\"))))","v":""}]
[null,null,null,null,null,null,null,null,null,null,null,null,null,null,null,null,null,null,null,null,null,null,null,null,null,null,null,null,null,null,null,null,"","","",{"$f":"IF(ISBLANK(SettingTable[[#This Row],[Child First Name]]),\"\",SUM(SettingTable[[#This Row],[Total Red]:[Total Yellow]]))","v":""},{"$f":"IF(ISBLANK(SettingTable[[#This Row],[Child First Name]]),\"\",IF(SettingTable[[#This Row],[Score]]<1,\"Universal Need\",IF(SettingTable[[#This Row],[Score]]<4,\"Targeted Need\",IF(SettingTable[[#This Row],[Score]]<12,\"Personalised Need\",\"Intensive Need\"))))","v":""}]
[null,null,null,null,null,null,null,null,null,null,null,null,null,null,null,null,null,null,null,null,null,null,null,null,null,null,null,null,null,null,null,null,"","","",{"$f":"IF(ISBLANK(SettingTable[[#This Row],[Child First Name]]),\"\",SUM(SettingTable[[#This Row],[Total Red]:[Total Yellow]]))","v":""},{"$f":"IF(ISBLANK(SettingTable[[#This Row],[Child First Name]]),\"\",IF(SettingTable[[#This Row],[Score]]<1,\"Universal Need\",IF(SettingTable[[#This Row],[Score]]<4,\"Targeted Need\",IF(SettingTable[[#This Row],[Score]]<12,\"Personalised Need\",\"Intensive Need\"))))","v":""}]
[null,null,null,null,null,null,null,null,null,null,null,null,null,null,null,null,null,null,null,null,null,null,null,null,null,null,null,null,null,null,null,null,"","","",{"$f":"IF(ISBLANK(SettingTable[[#This Row],[Child First Name]]),\"\",SUM(SettingTable[[#This Row],[Total Red]:[Total Yellow]]))","v":""},{"$f":"IF(ISBLANK(SettingTable[[#This Row],[Child First Name]]),\"\",IF(SettingTable[[#This Row],[Score]]<1,\"Universal Need\",IF(SettingTable[[#This Row],[Score]]<4,\"Targeted Need\",IF(SettingTable[[#This Row],[Score]]<12,\"Personalised Need\",\"Intensive Need\"))))","v":""}]
[null,null,null,null,null,null,null,null,null,null,null,null,null,null,null,null,null,null,null,null,null,null,null,null,null,null,null,null,null,null,null,null,"","","",{"$f":"IF(ISBLANK(SettingTable[[#This Row],[Child First Name]]),\"\",SUM(SettingTable[[#This Row],[Total Red]:[Total Yellow]]))","v":""},{"$f":"IF(ISBLANK(SettingTable[[#This Row],[Child First Name]]),\"\",IF(SettingTable[[#This Row],[Score]]<1,\"Universal Need\",IF(SettingTable[[#This Row],[Score]]<4,\"Targeted Need\",IF(SettingTable[[#This Row],[Score]]<12,\"Personalised Need\",\"Intensive Need\"))))","v":""}]
[null,null,null,null,null,null,null,null,null,null,null,null,null,null,null,null,null,null,null,null,null,null,null,null,null,null,null,null,null,null,null,null,"","","",{"$f":"IF(ISBLANK(SettingTable[[#This Row],[Child First Name]]),\"\",SUM(SettingTable[[#This Row],[Total Red]:[Total Yellow]]))","v":""},{"$f":"IF(ISBLANK(SettingTable[[#This Row],[Child First Name]]),\"\",IF(SettingTable[[#This Row],[Score]]<1,\"Universal Need\",IF(SettingTable[[#This Row],[Score]]<4,\"Targeted Need\",IF(SettingTable[[#This Row],[Score]]<12,\"Personalised Need\",\"Intensive Need\"))))","v":""}]
[null,null,null,null,null,null,null,null,null,null,null,null,null,null,null,null,null,null,null,null,null,null,null,null,null,null,null,null,null,null,null,null,"","","",{"$f":"IF(ISBLANK(SettingTable[[#This Row],[Child First Name]]),\"\",SUM(SettingTable[[#This Row],[Total Red]:[Total Yellow]]))","v":""},{"$f":"IF(ISBLANK(SettingTable[[#This Row],[Child First Name]]),\"\",IF(SettingTable[[#This Row],[Score]]<1,\"Universal Need\",IF(SettingTable[[#This Row],[Score]]<4,\"Targeted Need\",IF(SettingTable[[#This Row],[Score]]<12,\"Personalised Need\",\"Intensive Need\"))))","v":""}]
[null,null,null,null,null,null,null,null,null,null,null,null,null,null,null,null,null,null,null,null,null,null,null,null,null,null,null,null,null,null,null,null,"","","",{"$f":"IF(ISBLANK(SettingTable[[#This Row],[Child First Name]]),\"\",SUM(SettingTable[[#This Row],[Total Red]:[Total Yellow]]))","v":""},{"$f":"IF(ISBLANK(SettingTable[[#This Row],[Child First Name]]),\"\",IF(SettingTable[[#This Row],[Score]]<1,\"Universal Need\",IF(SettingTable[[#This Row],[Score]]<4,\"Targeted Need\",IF(SettingTable[[#This Row],[Score]]<12,\"Personalised Need\",\"Intensive Need\"))))","v":""}]
[null,null,null,null,null,null,null,null,null,null,null,null,null,null,null,null,null,null,null,null,null,null,null,null,null,null,null,null,null,null,null,null,"","","",{"$f":"IF(ISBLANK(SettingTable[[#This Row],[Child First Name]]),\"\",SUM(SettingTable[[#This Row],[Total Red]:[Total Yellow]]))","v":""},{"$f":"IF(ISBLANK(SettingTable[[#This Row],[Child First Name]]),\"\",IF(SettingTable[[#This Row],[Score]]<1,\"Universal Need\",IF(SettingTable[[#This Row],[Score]]<4,\"Targeted Need\",IF(SettingTable[[#This Row],[Score]]<12,\"Personalised Need\",\"Intensive Need\"))))","v":""}]
[null,null,null,null,null,null,null,null,null,null,null,null,null,null,null,null,null,null,null,null,null,null,null,null,null,null,null,null,null,null,null,null,"","","",{"$f":"IF(ISBLANK(SettingTable[[#This Row],[Child First Name]]),\"\",SUM(SettingTable[[#This Row],[Total Red]:[Total Yellow]]))","v":""},{"$f":"IF(ISBLANK(SettingTable[[#This Row],[Child First Name]]),\"\",IF(SettingTable[[#This Row],[Score]]<1,\"Universal Need\",IF(SettingTable[[#This Row],[Score]]<4,\"Targeted Need\",IF(SettingTable[[#This Row],[Score]]<12,\"Personalised Need\",\"Intensive Need\"))))","v":""}]
[null,null,null,null,null,null,null,null,null,null,null,null,null,null,null,null,null,null,null,null,null,null,null,null,null,null,null,null,null,null,null,null,"","","",{"$f":"IF(ISBLANK(SettingTable[[#This Row],[Child First Name]]),\"\",SUM(SettingTable[[#This Row],[Total Red]:[Total Yellow]]))","v":""},{"$f":"IF(ISBLANK(SettingTable[[#This Row],[Child First Name]]),\"\",IF(SettingTable[[#This Row],[Score]]<1,\"Universal Need\",IF(SettingTable[[#This Row],[Score]]<4,\"Targeted Need\",IF(SettingTable[[#This Row],[Score]]<12,\"Personalised Need\",\"Intensive Need\"))))","v":""}]
[null,null,null,null,null,null,null,null,null,null,null,null,null,null,null,null,null,null,null,null,null,null,null,null,null,null,null,null,null,null,null,null,"","","",{"$f":"IF(ISBLANK(SettingTable[[#This Row],[Child First Name]]),\"\",SUM(SettingTable[[#This Row],[Total Red]:[Total Yellow]]))","v":""},{"$f":"IF(ISBLANK(SettingTable[[#This Row],[Child First Name]]),\"\",IF(SettingTable[[#This Row],[Score]]<1,\"Universal Need\",IF(SettingTable[[#This Row],[Score]]<4,\"Targeted Need\",IF(SettingTable[[#This Row],[Score]]<12,\"Personalised Need\",\"Intensive Need\"))))","v":""}]
[null,null,null,null,null,null,null,null,null,null,null,null,null,null,null,null,null,null,null,null,null,null,null,null,null,null,null,null,null,null,null,null,"","","",{"$f":"IF(ISBLANK(SettingTable[[#This Row],[Child First Name]]),\"\",SUM(SettingTable[[#This Row],[Total Red]:[Total Yellow]]))","v":""},{"$f":"IF(ISBLANK(SettingTable[[#This Row],[Child First Name]]),\"\",IF(SettingTable[[#This Row],[Score]]<1,\"Universal Need\",IF(SettingTable[[#This Row],[Score]]<4,\"Targeted Need\",IF(SettingTable[[#This Row],[Score]]<12,\"Personalised Need\",\"Intensive Need\"))))","v":""}]
[null,null,null,null,null,null,null,null,null,null,null,null,null,null,null,null,null,null,null,null,null,null,null,null,null,null,null,null,null,null,null,null,"","","",{"$f":"IF(ISBLANK(SettingTable[[#This Row],[Child First Name]]),\"\",SUM(SettingTable[[#This Row],[Total Red]:[Total Yellow]]))","v":""},{"$f":"IF(ISBLANK(SettingTable[[#This Row],[Child First Name]]),\"\",IF(SettingTable[[#This Row],[Score]]<1,\"Universal Need\",IF(SettingTable[[#This Row],[Score]]<4,\"Targeted Need\",IF(SettingTable[[#This Row],[Score]]<12,\"Personalised Need\",\"Intensive Need\"))))","v":""}]
[null,null,null,null,null,null,null,null,null,null,null,null,null,null,null,null,null,null,null,null,null,null,null,null,null,null,null,null,null,null,null,null,"","","",{"$f":"IF(ISBLANK(SettingTable[[#This Row],[Child First Name]]),\"\",SUM(SettingTable[[#This Row],[Total Red]:[Total Yellow]]))","v":""},{"$f":"IF(ISBLANK(SettingTable[[#This Row],[Child First Name]]),\"\",IF(SettingTable[[#This Row],[Score]]<1,\"Universal Need\",IF(SettingTable[[#This Row],[Score]]<4,\"Targeted Need\",IF(SettingTable[[#This Row],[Score]]<12,\"Personalised Need\",\"Intensive Need\"))))","v":""}]
[null,null,null,null,null,null,null,null,null,null,null,null,null,null,null,null,null,null,null,null,null,null,null,null,null,null,null,null,null,null,null,null,"","","",{"$f":"IF(ISBLANK(SettingTable[[#This Row],[Child First Name]]),\"\",SUM(SettingTable[[#This Row],[Total Red]:[Total Yellow]]))","v":""},{"$f":"IF(ISBLANK(SettingTable[[#This Row],[Child First Name]]),\"\",IF(SettingTable[[#This Row],[Score]]<1,\"Universal Need\",IF(SettingTable[[#This Row],[Score]]<4,\"Targeted Need\",IF(SettingTable[[#This Row],[Score]]<12,\"Personalised Need\",\"Intensive Need\"))))","v":""}]
[null,null,null,null,null,null,null,null,null,null,null,null,null,null,null,null,null,null,null,null,null,null,null,null,null,null,null,null,null,null,null,null,"","","",{"$f":"IF(ISBLANK(SettingTable[[#This Row],[Child First Name]]),\"\",SUM(SettingTable[[#This Row],[Total Red]:[Total Yellow]]))","v":""},{"$f":"IF(ISBLANK(SettingTable[[#This Row],[Child First Name]]),\"\",IF(SettingTable[[#This Row],[Score]]<1,\"Universal Need\",IF(SettingTable[[#This Row],[Score]]<4,\"Targeted Need\",IF(SettingTable[[#This Row],[Score]]<12,\"Personalised Need\",\"Intensive Need\"))))","v":""}]
[null,null,null,null,null,null,null,null,null,null,null,null,null,null,null,null,null,null,null,null,null,null,null,null,null,null,null,null,null,null,null,null,"","","",{"$f":"IF(ISBLANK(SettingTable[[#This Row],[Child First Name]]),\"\",SUM(SettingTable[[#This Row],[Total Red]:[Total Yellow]]))","v":""},{"$f":"IF(ISBLANK(SettingTable[[#This Row],[Child First Name]]),\"\",IF(SettingTable[[#This Row],[Score]]<1,\"Universal Need\",IF(SettingTable[[#This Row],[Score]]<4,\"Targeted Need\",IF(SettingTable[[#This Row],[Score]]<12,\"Personalised Need\",\"Intensive Need\"))))","v":""}]
[null,null,null,null,null,null,null,null,null,null,null,null,null,null,null,null,null,null,null,null,null,null,null,null,null,null,null,null,null,null,null,null,"","","",{"$f":"IF(ISBLANK(SettingTable[[#This Row],[Child First Name]]),\"\",SUM(SettingTable[[#This Row],[Total Red]:[Total Yellow]]))","v":""},{"$f":"IF(ISBLANK(SettingTable[[#This Row],[Child First Name]]),\"\",IF(SettingTable[[#This Row],[Score]]<1,\"Universal Need\",IF(SettingTable[[#This Row],[Score]]<4,\"Targeted Need\",IF(SettingTable[[#This Row],[Score]]<12,\"Personalised Need\",\"Intensive Need\"))))","v":""}]
[null,null,null,null,null,null,null,null,null,null,null,null,null,null,null,null,null,null,null,null,null,null,null,null,null,null,null,null,null,null,null,null,"","","",{"$f":"IF(ISBLANK(SettingTable[[#This Row],[Child First Name]]),\"\",SUM(SettingTable[[#This Row],[Total Red]:[Total Yellow]]))","v":""},{"$f":"IF(ISBLANK(SettingTable[[#This Row],[Child First Name]]),\"\",IF(SettingTable[[#This Row],[Score]]<1,\"Universal Need\",IF(SettingTable[[#This Row],[Score]]<4,\"Targeted Need\",IF(SettingTable[[#This Row],[Score]]<12,\"Personalised Need\",\"Intensive Need\"))))","v":""}]
[null,null,null,null,null,null,null,null,null,null,null,null,null,null,null,null,null,null,null,null,null,null,null,null,null,null,null,null,null,null,null,null,{"$f":"IF($D204<>\"\",COUNTIF($I204:$AF204,\"Intensive\")*12,\"\")","v":""},{"$f":"IF($D204<>\"\",COUNTIF($I204:$AF204,\"Personalised\")*4,\"\")","v":""},{"$f":"IF($D204<>\"\",COUNTIF($I204:$AF204,\"Targeted\"),\"\")","v":""},{"$f":"IF(ISBLANK(SettingTable[[#This Row],[Child First Name]]),\"\",SUM(SettingTable[[#This Row],[Total Red]:[Total Yellow]]))","v":""},{"$f":"IF(ISBLANK(SettingTable[[#This Row],[Child First Name]]),\"\",IF(SettingTable[[#This Row],[Score]]<1,\"Universal Need\",IF(SettingTable[[#This Row],[Score]]<4,\"Targeted Need\",IF(SettingTable[[#This Row],[Score]]<12,\"Personalised Need\",\"Intensive Need\"))))","v":""}]
[null,null,null,null,null,null,null,null,null,null,null,null,null,null,null,null,null,null,null,null,null,null,null,null,null,null,null,null,null,null,null,null,"","","",{"$f":"IF(ISBLANK(SettingTable[[#This Row],[Child First Name]]),\"\",SUM(SettingTable[[#This Row],[Total Red]:[Total Yellow]]))","v":""},{"$f":"IF(ISBLANK(SettingTable[[#This Row],[Child First Name]]),\"\",IF(SettingTable[[#This Row],[Score]]<1,\"Universal Need\",IF(SettingTable[[#This Row],[Score]]<4,\"Targeted Need\",IF(SettingTable[[#This Row],[Score]]<12,\"Personalised Need\",\"Intensive Need\"))))","v":""}]
[null,null,null,null,null,null,null,null,null,null,null,null,null,null,null,null,null,null,null,null,null,null,null,null,null,null,null,null,null,null,null,null,"","","",{"$f":"IF(ISBLANK(SettingTable[[#This Row],[Child First Name]]),\"\",SUM(SettingTable[[#This Row],[Total Red]:[Total Yellow]]))","v":""},{"$f":"IF(ISBLANK(SettingTable[[#This Row],[Child First Name]]),\"\",IF(SettingTable[[#This Row],[Score]]<1,\"Universal Need\",IF(SettingTable[[#This Row],[Score]]<4,\"Targeted Need\",IF(SettingTable[[#This Row],[Score]]<12,\"Personalised Need\",\"Intensive Need\"))))","v":""}]
[null,null,null,null,null,null,null,null,null,null,null,null,null,null,null,null,null,null,null,null,null,null,null,null,null,null,null,null,null,null,null,null,"","","",{"$f":"IF(ISBLANK(SettingTable[[#This Row],[Child First Name]]),\"\",SUM(SettingTable[[#This Row],[Total Red]:[Total Yellow]]))","v":""},{"$f":"IF(ISBLANK(SettingTable[[#This Row],[Child First Name]]),\"\",IF(SettingTable[[#This Row],[Score]]<1,\"Universal Need\",IF(SettingTable[[#This Row],[Score]]<4,\"Targeted Need\",IF(SettingTable[[#This Row],[Score]]<12,\"Personalised Need\",\"Intensive Need\"))))","v":""}]
[null,null,null,null,null,null,null,null,null,null,null,null,null,null,null,null,null,null,null,null,null,null,null,null,null,null,null,null,null,null,null,null,"","","",{"$f":"IF(ISBLANK(SettingTable[[#This Row],[Child First Name]]),\"\",SUM(SettingTable[[#This Row],[Total Red]:[Total Yellow]]))","v":""},{"$f":"IF(ISBLANK(SettingTable[[#This Row],[Child First Name]]),\"\",IF(SettingTable[[#This Row],[Score]]<1,\"Universal Need\",IF(SettingTable[[#This Row],[Score]]<4,\"Targeted Need\",IF(SettingTable[[#This Row],[Score]]<12,\"Personalised Need\",\"Intensive Need\"))))","v":""}]
[null,null,null,null,null,null,null,null,null,null,null,null,null,null,null,null,null,null,null,null,null,null,null,null,null,null,null,null,null,null,null,null,"","","",{"$f":"IF(ISBLANK(SettingTable[[#This Row],[Child First Name]]),\"\",SUM(SettingTable[[#This Row],[Total Red]:[Total Yellow]]))","v":""},{"$f":"IF(ISBLANK(SettingTable[[#This Row],[Child First Name]]),\"\",IF(SettingTable[[#This Row],[Score]]<1,\"Universal Need\",IF(SettingTable[[#This Row],[Score]]<4,\"Targeted Need\",IF(SettingTable[[#This Row],[Score]]<12,\"Personalised Need\",\"Intensive Need\"))))","v":""}]
[null,null,null,null,null,null,null,null,null,null,null,null,null,null,null,null,null,null,null,null,null,null,null,null,null,null,null,null,null,null,null,null,"","","",{"$f":"IF(ISBLANK(SettingTable[[#This Row],[Child First Name]]),\"\",SUM(SettingTable[[#This Row],[Total Red]:[Total Yellow]]))","v":""},{"$f":"IF(ISBLANK(SettingTable[[#This Row],[Child First Name]]),\"\",IF(SettingTable[[#This Row],[Score]]<1,\"Universal Need\",IF(SettingTable[[#This Row],[Score]]<4,\"Targeted Need\",IF(SettingTable[[#This Row],[Score]]<12,\"Personalised Need\",\"Intensive Need\"))))","v":""}]
[null,null,null,null,null,null,null,null,null,null,null,null,null,null,null,null,null,null,null,null,null,null,null,null,null,null,null,null,null,null,null,null,"","","",{"$f":"IF(ISBLANK(SettingTable[[#This Row],[Child First Name]]),\"\",SUM(SettingTable[[#This Row],[Total Red]:[Total Yellow]]))","v":""},{"$f":"IF(ISBLANK(SettingTable[[#This Row],[Child First Name]]),\"\",IF(SettingTable[[#This Row],[Score]]<1,\"Universal Need\",IF(SettingTable[[#This Row],[Score]]<4,\"Targeted Need\",IF(SettingTable[[#This Row],[Score]]<12,\"Personalised Need\",\"Intensive Need\"))))","v":""}]
[null,null,null,null,null,null,null,null,null,null,null,null,null,null,null,null,null,null,null,null,null,null,null,null,null,null,null,null,null,null,null,null,"","","",{"$f":"IF(ISBLANK(SettingTable[[#This Row],[Child First Name]]),\"\",SUM(SettingTable[[#This Row],[Total Red]:[Total Yellow]]))","v":""},{"$f":"IF(ISBLANK(SettingTable[[#This Row],[Child First Name]]),\"\",IF(SettingTable[[#This Row],[Score]]<1,\"Universal Need\",IF(SettingTable[[#This Row],[Score]]<4,\"Targeted Need\",IF(SettingTable[[#This Row],[Score]]<12,\"Personalised Need\",\"Intensive Need\"))))","v":""}]
[null,null,null,null,null,null,null,null,null,null,null,null,null,null,null,null,null,null,null,null,null,null,null,null,null,null,null,null,null,null,null,null,"","",{"$f":"IF($D213<>\"\",COUNTIF($I213:$AF213,\"Targeted\"),\"\")","v":""},{"$f":"IF(ISBLANK(SettingTable[[#This Row],[Child First Name]]),\"\",SUM(SettingTable[[#This Row],[Total Red]:[Total Yellow]]))","v":""},{"$f":"IF(ISBLANK(SettingTable[[#This Row],[Child First Name]]),\"\",IF(SettingTable[[#This Row],[Score]]<1,\"Universal Need\",IF(SettingTable[[#This Row],[Score]]<4,\"Targeted Need\",IF(SettingTable[[#This Row],[Score]]<12,\"Personalised Need\",\"Intensive Need\"))))","v":""}]
[null,null,null,null,null,null,null,null,null,null,null,null,null,null,null,null,null,null,null,null,null,null,null,null,null,null,null,null,null,null,null,null,"","","",{"$f":"IF(ISBLANK(SettingTable[[#This Row],[Child First Name]]),\"\",SUM(SettingTable[[#This Row],[Total Red]:[Total Yellow]]))","v":""},{"$f":"IF(ISBLANK(SettingTable[[#This Row],[Child First Name]]),\"\",IF(SettingTable[[#This Row],[Score]]<1,\"Universal Need\",IF(SettingTable[[#This Row],[Score]]<4,\"Targeted Need\",IF(SettingTable[[#This Row],[Score]]<12,\"Personalised Need\",\"Intensive Need\"))))","v":""}]
[null,null,null,null,null,null,null,null,null,null,null,null,null,null,null,null,null,null,null,null,null,null,null,null,null,null,null,null,null,null,null,null,"","","",{"$f":"IF(ISBLANK(SettingTable[[#This Row],[Child First Name]]),\"\",SUM(SettingTable[[#This Row],[Total Red]:[Total Yellow]]))","v":""},{"$f":"IF(ISBLANK(SettingTable[[#This Row],[Child First Name]]),\"\",IF(SettingTable[[#This Row],[Score]]<1,\"Universal Need\",IF(SettingTable[[#This Row],[Score]]<4,\"Targeted Need\",IF(SettingTable[[#This Row],[Score]]<12,\"Personalised Need\",\"Intensive Need\"))))","v":""}]
[null,null,null,null,null,null,null,null,null,null,null,null,null,null,null,null,null,null,null,null,null,null,null,null,null,null,null,null,null,null,null,null,"","","",{"$f":"IF(ISBLANK(SettingTable[[#This Row],[Child First Name]]),\"\",SUM(SettingTable[[#This Row],[Total Red]:[Total Yellow]]))","v":""},{"$f":"IF(ISBLANK(SettingTable[[#This Row],[Child First Name]]),\"\",IF(SettingTable[[#This Row],[Score]]<1,\"Universal Need\",IF(SettingTable[[#This Row],[Score]]<4,\"Targeted Need\",IF(SettingTable[[#This Row],[Score]]<12,\"Personalised Need\",\"Intensive Need\"))))","v":""}]
[null,null,null,null,null,null,null,null,null,null,null,null,null,null,null,null,null,null,null,null,null,null,null,null,null,null,null,null,null,null,null,null,"","","",{"$f":"IF(ISBLANK(SettingTable[[#This Row],[Child First Name]]),\"\",SUM(SettingTable[[#This Row],[Total Red]:[Total Yellow]]))","v":""},{"$f":"IF(ISBLANK(SettingTable[[#This Row],[Child First Name]]),\"\",IF(SettingTable[[#This Row],[Score]]<1,\"Universal Need\",IF(SettingTable[[#This Row],[Score]]<4,\"Targeted Need\",IF(SettingTable[[#This Row],[Score]]<12,\"Personalised Need\",\"Intensive Need\"))))","v":""}]
[null,null,null,null,null,null,null,null,null,null,null,null,null,null,null,null,null,null,null,null,null,null,null,null,null,null,null,null,null,null,null,null,"","","",{"$f":"IF(ISBLANK(SettingTable[[#This Row],[Child First Name]]),\"\",SUM(SettingTable[[#This Row],[Total Red]:[Total Yellow]]))","v":""},{"$f":"IF(ISBLANK(SettingTable[[#This Row],[Child First Name]]),\"\",IF(SettingTable[[#This Row],[Score]]<1,\"Universal Need\",IF(SettingTable[[#This Row],[Score]]<4,\"Targeted Need\",IF(SettingTable[[#This Row],[Score]]<12,\"Personalised Need\",\"Intensive Need\"))))","v":""}]
[null,null,null,null,null,null,null,null,null,null,null,null,null,null,null,null,null,null,null,null,null,null,null,null,null,null,null,null,null,null,null,null,"","","",{"$f":"IF(ISBLANK(SettingTable[[#This Row],[Child First Name]]),\"\",SUM(SettingTable[[#This Row],[Total Red]:[Total Yellow]]))","v":""},{"$f":"IF(ISBLANK(SettingTable[[#This Row],[Child First Name]]),\"\",IF(SettingTable[[#This Row],[Score]]<1,\"Universal Need\",IF(SettingTable[[#This Row],[Score]]<4,\"Targeted Need\",IF(SettingTable[[#This Row],[Score]]<12,\"Personalised Need\",\"Intensive Need\"))))","v":""}]
[null,null,null,null,null,null,null,null,null,null,null,null,null,null,null,null,null,null,null,null,null,null,null,null,null,null,null,null,null,null,null,null,"","","",{"$f":"IF(ISBLANK(SettingTable[[#This Row],[Child First Name]]),\"\",SUM(SettingTable[[#This Row],[Total Red]:[Total Yellow]]))","v":""},{"$f":"IF(ISBLANK(SettingTable[[#This Row],[Child First Name]]),\"\",IF(SettingTable[[#This Row],[Score]]<1,\"Universal Need\",IF(SettingTable[[#This Row],[Score]]<4,\"Targeted Need\",IF(SettingTable[[#This Row],[Score]]<12,\"Personalised Need\",\"Intensive Need\"))))","v":""}]
[null,null,null,null,null,null,null,null,null,null,null,null,null,null,null,null,null,null,null,null,null,null,null,null,null,null,null,null,null,null,null,null,"","","",{"$f":"IF(ISBLANK(SettingTable[[#This Row],[Child First Name]]),\"\",SUM(SettingTable[[#This Row],[Total Red]:[Total Yellow]]))","v":""},{"$f":"IF(ISBLANK(SettingTable[[#This Row],[Child First Name]]),\"\",IF(SettingTable[[#This Row],[Score]]<1,\"Universal Need\",IF(SettingTable[[#This Row],[Score]]<4,\"Targeted Need\",IF(SettingTable[[#This Row],[Score]]<12,\"Personalised Need\",\"Intensive Need\"))))","v":""}]
[null,null,null,null,null,null,null,null,null,null,null,null,null,null,null,null,null,null,null,null,null,null,null,null,null,null,null,null,null,null,null,null,"","","",{"$f":"IF(ISBLANK(SettingTable[[#This Row],[Child First Name]]),\"\",SUM(SettingTable[[#This Row],[Total Red]:[Total Yellow]]))","v":""},{"$f":"IF(ISBLANK(SettingTable[[#This Row],[Child First Name]]),\"\",IF(SettingTable[[#This Row],[Score]]<1,\"Universal Need\",IF(SettingTable[[#This Row],[Score]]<4,\"Targeted Need\",IF(SettingTable[[#This Row],[Score]]<12,\"Personalised Need\",\"Intensive Need\"))))","v":""}]
[null,null,null,null,null,null,null,null,null,null,null,null,null,null,null,null,null,null,null,null,null,null,null,null,null,null,null,null,null,null,null,null,"","","",{"$f":"IF(ISBLANK(SettingTable[[#This Row],[Child First Name]]),\"\",SUM(SettingTable[[#This Row],[Total Red]:[Total Yellow]]))","v":""},{"$f":"IF(ISBLANK(SettingTable[[#This Row],[Child First Name]]),\"\",IF(SettingTable[[#This Row],[Score]]<1,\"Universal Need\",IF(SettingTable[[#This Row],[Score]]<4,\"Targeted Need\",IF(SettingTable[[#This Row],[Score]]<12,\"Personalised Need\",\"Intensive Need\"))))","v":""}]
[null,null,null,null,null,null,null,null,null,null,null,null,null,null,null,null,null,null,null,null,null,null,null,null,null,null,null,null,null,null,null,null,"","","",{"$f":"IF(ISBLANK(SettingTable[[#This Row],[Child First Name]]),\"\",SUM(SettingTable[[#This Row],[Total Red]:[Total Yellow]]))","v":""},{"$f":"IF(ISBLANK(SettingTable[[#This Row],[Child First Name]]),\"\",IF(SettingTable[[#This Row],[Score]]<1,\"Universal Need\",IF(SettingTable[[#This Row],[Score]]<4,\"Targeted Need\",IF(SettingTable[[#This Row],[Score]]<12,\"Personalised Need\",\"Intensive Need\"))))","v":""}]
[null,null,null,null,null,null,null,null,null,null,null,null,null,null,null,null,null,null,null,null,null,null,null,null,null,null,null,null,null,null,null,null,"","","",{"$f":"IF(ISBLANK(SettingTable[[#This Row],[Child First Name]]),\"\",SUM(SettingTable[[#This Row],[Total Red]:[Total Yellow]]))","v":""},{"$f":"IF(ISBLANK(SettingTable[[#This Row],[Child First Name]]),\"\",IF(SettingTable[[#This Row],[Score]]<1,\"Universal Need\",IF(SettingTable[[#This Row],[Score]]<4,\"Targeted Need\",IF(SettingTable[[#This Row],[Score]]<12,\"Personalised Need\",\"Intensive Need\"))))","v":""}]
[null,null,null,null,null,null,null,null,null,null,null,null,null,null,null,null,null,null,null,null,null,null,null,null,null,null,null,null,null,null,null,null,"","","",{"$f":"IF(ISBLANK(SettingTable[[#This Row],[Child First Name]]),\"\",SUM(SettingTable[[#This Row],[Total Red]:[Total Yellow]]))","v":""},{"$f":"IF(ISBLANK(SettingTable[[#This Row],[Child First Name]]),\"\",IF(SettingTable[[#This Row],[Score]]<1,\"Universal Need\",IF(SettingTable[[#This Row],[Score]]<4,\"Targeted Need\",IF(SettingTable[[#This Row],[Score]]<12,\"Personalised Need\",\"Intensive Need\"))))","v":""}]
[null,null,null,null,null,null,null,null,null,null,null,null,null,null,null,null,null,null,null,null,null,null,null,null,null,null,null,null,null,null,null,null,"","","",{"$f":"IF(ISBLANK(SettingTable[[#This Row],[Child First Name]]),\"\",SUM(SettingTable[[#This Row],[Total Red]:[Total Yellow]]))","v":""},{"$f":"IF(ISBLANK(SettingTable[[#This Row],[Child First Name]]),\"\",IF(SettingTable[[#This Row],[Score]]<1,\"Universal Need\",IF(SettingTable[[#This Row],[Score]]<4,\"Targeted Need\",IF(SettingTable[[#This Row],[Score]]<12,\"Personalised Need\",\"Intensive Need\"))))","v":""}]
[null,null,null,null,null,null,null,null,null,null,null,null,null,null,null,null,null,null,null,null,null,null,null,null,null,null,null,null,null,null,null,null,"","","",{"$f":"IF(ISBLANK(SettingTable[[#This Row],[Child First Name]]),\"\",SUM(SettingTable[[#This Row],[Total Red]:[Total Yellow]]))","v":""},{"$f":"IF(ISBLANK(SettingTable[[#This Row],[Child First Name]]),\"\",IF(SettingTable[[#This Row],[Score]]<1,\"Universal Need\",IF(SettingTable[[#This Row],[Score]]<4,\"Targeted Need\",IF(SettingTable[[#This Row],[Score]]<12,\"Personalised Need\",\"Intensive Need\"))))","v":""}]
[null,null,null,null,null,null,null,null,null,null,null,null,null,null,null,null,null,null,null,null,null,null,null,null,null,null,null,null,null,null,null,null,"","","",{"$f":"IF(ISBLANK(SettingTable[[#This Row],[Child First Name]]),\"\",SUM(SettingTable[[#This Row],[Total Red]:[Total Yellow]]))","v":""},{"$f":"IF(ISBLANK(SettingTable[[#This Row],[Child First Name]]),\"\",IF(SettingTable[[#This Row],[Score]]<1,\"Universal Need\",IF(SettingTable[[#This Row],[Score]]<4,\"Targeted Need\",IF(SettingTable[[#This Row],[Score]]<12,\"Personalised Need\",\"Intensive Need\"))))","v":""}]
[null,null,null,null,null,null,null,null,null,null,null,null,null,null,null,null,null,null,null,null,null,null,null,null,null,null,null,null,null,null,null,null,"","","",{"$f":"IF(ISBLANK(SettingTable[[#This Row],[Child First Name]]),\"\",SUM(SettingTable[[#This Row],[Total Red]:[Total Yellow]]))","v":""},{"$f":"IF(ISBLANK(SettingTable[[#This Row],[Child First Name]]),\"\",IF(SettingTable[[#This Row],[Score]]<1,\"Universal Need\",IF(SettingTable[[#This Row],[Score]]<4,\"Targeted Need\",IF(SettingTable[[#This Row],[Score]]<12,\"Personalised Need\",\"Intensive Need\"))))","v":""}]
[null,null,null,null,null,null,null,null,null,null,null,null,null,null,null,null,null,null,null,null,null,null,null,null,null,null,null,null,null,null,null,null,"","","",{"$f":"IF(ISBLANK(SettingTable[[#This Row],[Child First Name]]),\"\",SUM(SettingTable[[#This Row],[Total Red]:[Total Yellow]]))","v":""},{"$f":"IF(ISBLANK(SettingTable[[#This Row],[Child First Name]]),\"\",IF(SettingTable[[#This Row],[Score]]<1,\"Universal Need\",IF(SettingTable[[#This Row],[Score]]<4,\"Targeted Need\",IF(SettingTable[[#This Row],[Score]]<12,\"Personalised Need\",\"Intensive Need\"))))","v":""}]
[null,null,null,null,null,null,null,null,null,null,null,null,null,null,null,null,null,null,null,null,null,null,null,null,null,null,null,null,null,null,null,null,"","","",{"$f":"IF(ISBLANK(SettingTable[[#This Row],[Child First Name]]),\"\",SUM(SettingTable[[#This Row],[Total Red]:[Total Yellow]]))","v":""},{"$f":"IF(ISBLANK(SettingTable[[#This Row],[Child First Name]]),\"\",IF(SettingTable[[#This Row],[Score]]<1,\"Universal Need\",IF(SettingTable[[#This Row],[Score]]<4,\"Targeted Need\",IF(SettingTable[[#This Row],[Score]]<12,\"Personalised Need\",\"Intensive Need\"))))","v":""}]
[null,null,null,null,null,null,null,null,null,null,null,null,null,null,null,null,null,null,null,null,null,null,null,null,null,null,null,null,null,null,null,null,"","","",{"$f":"IF(ISBLANK(SettingTable[[#This Row],[Child First Name]]),\"\",SUM(SettingTable[[#This Row],[Total Red]:[Total Yellow]]))","v":""},{"$f":"IF(ISBLANK(SettingTable[[#This Row],[Child First Name]]),\"\",IF(SettingTable[[#This Row],[Score]]<1,\"Universal Need\",IF(SettingTable[[#This Row],[Score]]<4,\"Targeted Need\",IF(SettingTable[[#This Row],[Score]]<12,\"Personalised Need\",\"Intensive Need\"))))","v":""}]
[null,null,null,null,null,null,null,null,null,null,null,null,null,null,null,null,null,null,null,null,null,null,null,null,null,null,null,null,null,null,null,null,"","","",{"$f":"IF(ISBLANK(SettingTable[[#This Row],[Child First Name]]),\"\",SUM(SettingTable[[#This Row],[Total Red]:[Total Yellow]]))","v":""},{"$f":"IF(ISBLANK(SettingTable[[#This Row],[Child First Name]]),\"\",IF(SettingTable[[#This Row],[Score]]<1,\"Universal Need\",IF(SettingTable[[#This Row],[Score]]<4,\"Targeted Need\",IF(SettingTable[[#This Row],[Score]]<12,\"Personalised Need\",\"Intensive Need\"))))","v":""}]
[null,null,null,null,null,null,null,null,null,null,null,null,null,null,null,null,null,null,null,null,null,null,null,null,null,null,null,null,null,null,null,null,"","","",{"$f":"IF(ISBLANK(SettingTable[[#This Row],[Child First Name]]),\"\",SUM(SettingTable[[#This Row],[Total Red]:[Total Yellow]]))","v":""},{"$f":"IF(ISBLANK(SettingTable[[#This Row],[Child First Name]]),\"\",IF(SettingTable[[#This Row],[Score]]<1,\"Universal Need\",IF(SettingTable[[#This Row],[Score]]<4,\"Targeted Need\",IF(SettingTable[[#This Row],[Score]]<12,\"Personalised Need\",\"Intensive Need\"))))","v":""}]
[null,null,null,null,null,null,null,null,null,null,null,null,null,null,null,null,null,null,null,null,null,null,null,null,null,null,null,null,null,null,null,null,"","","",{"$f":"IF(ISBLANK(SettingTable[[#This Row],[Child First Name]]),\"\",SUM(SettingTable[[#This Row],[Total Red]:[Total Yellow]]))","v":""},{"$f":"IF(ISBLANK(SettingTable[[#This Row],[Child First Name]]),\"\",IF(SettingTable[[#This Row],[Score]]<1,\"Universal Need\",IF(SettingTable[[#This Row],[Score]]<4,\"Targeted Need\",IF(SettingTable[[#This Row],[Score]]<12,\"Personalised Need\",\"Intensive Need\"))))","v":""}]
[null,null,null,null,null,null,null,null,null,null,null,null,null,null,null,null,null,null,null,null,null,null,null,null,null,null,null,null,null,null,null,null,"","","",{"$f":"IF(ISBLANK(SettingTable[[#This Row],[Child First Name]]),\"\",SUM(SettingTable[[#This Row],[Total Red]:[Total Yellow]]))","v":""},{"$f":"IF(ISBLANK(SettingTable[[#This Row],[Child First Name]]),\"\",IF(SettingTable[[#This Row],[Score]]<1,\"Universal Need\",IF(SettingTable[[#This Row],[Score]]<4,\"Targeted Need\",IF(SettingTable[[#This Row],[Score]]<12,\"Personalised Need\",\"Intensive Need\"))))","v":""}]
[null,null,null,null,null,null,null,null,null,null,null,null,null,null,null,null,null,null,null,null,null,null,null,null,null,null,null,null,null,null,null,null,"","","",{"$f":"IF(ISBLANK(SettingTable[[#This Row],[Child First Name]]),\"\",SUM(SettingTable[[#This Row],[Total Red]:[Total Yellow]]))","v":""},{"$f":"IF(ISBLANK(SettingTable[[#This Row],[Child First Name]]),\"\",IF(SettingTable[[#This Row],[Score]]<1,\"Universal Need\",IF(SettingTable[[#This Row],[Score]]<4,\"Targeted Need\",IF(SettingTable[[#This Row],[Score]]<12,\"Personalised Need\",\"Intensive Need\"))))","v":""}]
[null,null,null,null,null,null,null,null,null,null,null,null,null,null,null,null,null,null,null,null,null,null,null,null,null,null,null,null,null,null,null,null,"","","",{"$f":"IF(ISBLANK(SettingTable[[#This Row],[Child First Name]]),\"\",SUM(SettingTable[[#This Row],[Total Red]:[Total Yellow]]))","v":""},{"$f":"IF(ISBLANK(SettingTable[[#This Row],[Child First Name]]),\"\",IF(SettingTable[[#This Row],[Score]]<1,\"Universal Need\",IF(SettingTable[[#This Row],[Score]]<4,\"Targeted Need\",IF(SettingTable[[#This Row],[Score]]<12,\"Personalised Need\",\"Intensive Need\"))))","v":""}]
[null,null,null,null,null,null,null,null,null,null,null,null,null,null,null,null,null,null,null,null,null,null,null,null,null,null,null,null,null,null,null,null,"","","",{"$f":"IF(ISBLANK(SettingTable[[#This Row],[Child First Name]]),\"\",SUM(SettingTable[[#This Row],[Total Red]:[Total Yellow]]))","v":""},{"$f":"IF(ISBLANK(SettingTable[[#This Row],[Child First Name]]),\"\",IF(SettingTable[[#This Row],[Score]]<1,\"Universal Need\",IF(SettingTable[[#This Row],[Score]]<4,\"Targeted Need\",IF(SettingTable[[#This Row],[Score]]<12,\"Personalised Need\",\"Intensive Need\"))))","v":""}]
[null,null,null,null,null,null,null,null,null,null,null,null,null,null,null,null,null,null,null,null,null,null,null,null,null,null,null,null,null,null,null,null,"","","",{"$f":"IF(ISBLANK(SettingTable[[#This Row],[Child First Name]]),\"\",SUM(SettingTable[[#This Row],[Total Red]:[Total Yellow]]))","v":""},{"$f":"IF(ISBLANK(SettingTable[[#This Row],[Child First Name]]),\"\",IF(SettingTable[[#This Row],[Score]]<1,\"Universal Need\",IF(SettingTable[[#This Row],[Score]]<4,\"Targeted Need\",IF(SettingTable[[#This Row],[Score]]<12,\"Personalised Need\",\"Intensive Need\"))))","v":""}]
[null,null,null,null,null,null,null,null,null,null,null,null,null,null,null,null,null,null,null,null,null,null,null,null,null,null,null,null,null,null,null,null,"","","",{"$f":"IF(ISBLANK(SettingTable[[#This Row],[Child First Name]]),\"\",SUM(SettingTable[[#This Row],[Total Red]:[Total Yellow]]))","v":""},{"$f":"IF(ISBLANK(SettingTable[[#This Row],[Child First Name]]),\"\",IF(SettingTable[[#This Row],[Score]]<1,\"Universal Need\",IF(SettingTable[[#This Row],[Score]]<4,\"Targeted Need\",IF(SettingTable[[#This Row],[Score]]<12,\"Personalised Need\",\"Intensive Need\"))))","v":""}]
[null,null,null,null,null,null,null,null,null,null,null,null,null,null,null,null,null,null,null,null,null,null,null,null,null,null,null,null,null,null,null,null,"","","",{"$f":"IF(ISBLANK(SettingTable[[#This Row],[Child First Name]]),\"\",SUM(SettingTable[[#This Row],[Total Red]:[Total Yellow]]))","v":""},{"$f":"IF(ISBLANK(SettingTable[[#This Row],[Child First Name]]),\"\",IF(SettingTable[[#This Row],[Score]]<1,\"Universal Need\",IF(SettingTable[[#This Row],[Score]]<4,\"Targeted Need\",IF(SettingTable[[#This Row],[Score]]<12,\"Personalised Need\",\"Intensive Need\"))))","v":""}]
[null,null,null,null,null,null,null,null,null,null,null,null,null,null,null,null,null,null,null,null,null,null,null,null,null,null,null,null,null,null,null,null,"","","",{"$f":"IF(ISBLANK(SettingTable[[#This Row],[Child First Name]]),\"\",SUM(SettingTable[[#This Row],[Total Red]:[Total Yellow]]))","v":""},{"$f":"IF(ISBLANK(SettingTable[[#This Row],[Child First Name]]),\"\",IF(SettingTable[[#This Row],[Score]]<1,\"Universal Need\",IF(SettingTable[[#This Row],[Score]]<4,\"Targeted Need\",IF(SettingTable[[#This Row],[Score]]<12,\"Personalised Need\",\"Intensive Need\"))))","v":""}]
[null,null,null,null,null,null,null,null,null,null,null,null,null,null,null,null,null,null,null,null,null,null,null,null,null,null,null,null,null,null,null,null,"","",{"$f":"IF($D245<>\"\",COUNTIF($I245:$AF245,\"Targeted\"),\"\")","v":""},{"$f":"IF(ISBLANK(SettingTable[[#This Row],[Child First Name]]),\"\",SUM(SettingTable[[#This Row],[Total Red]:[Total Yellow]]))","v":""},{"$f":"IF(ISBLANK(SettingTable[[#This Row],[Child First Name]]),\"\",IF(SettingTable[[#This Row],[Score]]<1,\"Universal Need\",IF(SettingTable[[#This Row],[Score]]<4,\"Targeted Need\",IF(SettingTable[[#This Row],[Score]]<12,\"Personalised Need\",\"Intensive Need\"))))","v":""}]
[null,null,null,null,null,null,null,null,null,null,null,null,null,null,null,null,null,null,null,null,null,null,null,null,null,null,null,null,null,null,null,null,"","","",{"$f":"IF(ISBLANK(SettingTable[[#This Row],[Child First Name]]),\"\",SUM(SettingTable[[#This Row],[Total Red]:[Total Yellow]]))","v":""},{"$f":"IF(ISBLANK(SettingTable[[#This Row],[Child First Name]]),\"\",IF(SettingTable[[#This Row],[Score]]<1,\"Universal Need\",IF(SettingTable[[#This Row],[Score]]<4,\"Targeted Need\",IF(SettingTable[[#This Row],[Score]]<12,\"Personalised Need\",\"Intensive Need\"))))","v":""}]
[null,null,null,null,null,null,null,null,null,null,null,null,null,null,null,null,null,null,null,null,null,null,null,null,null,null,null,null,null,null,null,null,"","","",{"$f":"IF(ISBLANK(SettingTable[[#This Row],[Child First Name]]),\"\",SUM(SettingTable[[#This Row],[Total Red]:[Total Yellow]]))","v":""},{"$f":"IF(ISBLANK(SettingTable[[#This Row],[Child First Name]]),\"\",IF(SettingTable[[#This Row],[Score]]<1,\"Universal Need\",IF(SettingTable[[#This Row],[Score]]<4,\"Targeted Need\",IF(SettingTable[[#This Row],[Score]]<12,\"Personalised Need\",\"Intensive Need\"))))","v":""}]
[null,null,null,null,null,null,null,null,null,null,null,null,null,null,null,null,null,null,null,null,null,null,null,null,null,null,null,null,null,null,null,null,"","","",{"$f":"IF(ISBLANK(SettingTable[[#This Row],[Child First Name]]),\"\",SUM(SettingTable[[#This Row],[Total Red]:[Total Yellow]]))","v":""},{"$f":"IF(ISBLANK(SettingTable[[#This Row],[Child First Name]]),\"\",IF(SettingTable[[#This Row],[Score]]<1,\"Universal Need\",IF(SettingTable[[#This Row],[Score]]<4,\"Targeted Need\",IF(SettingTable[[#This Row],[Score]]<12,\"Personalised Need\",\"Intensive Need\"))))","v":""}]
[null,null,null,null,null,null,null,null,null,null,null,null,null,null,null,null,null,null,null,null,null,null,null,null,null,null,null,null,null,null,null,null,"","","",{"$f":"IF(ISBLANK(SettingTable[[#This Row],[Child First Name]]),\"\",SUM(SettingTable[[#This Row],[Total Red]:[Total Yellow]]))","v":""},{"$f":"IF(ISBLANK(SettingTable[[#This Row],[Child First Name]]),\"\",IF(SettingTable[[#This Row],[Score]]<1,\"Universal Need\",IF(SettingTable[[#This Row],[Score]]<4,\"Targeted Need\",IF(SettingTable[[#This Row],[Score]]<12,\"Personalised Need\",\"Intensive Need\"))))","v":""}]
[null,null,null,null,null,null,null,null,null,null,null,null,null,null,null,null,null,null,null,null,null,null,null,null,null,null,null,null,null,null,null,null,"","","",{"$f":"IF(ISBLANK(SettingTable[[#This Row],[Child First Name]]),\"\",SUM(SettingTable[[#This Row],[Total Red]:[Total Yellow]]))","v":""},{"$f":"IF(ISBLANK(SettingTable[[#This Row],[Child First Name]]),\"\",IF(SettingTable[[#This Row],[Score]]<1,\"Universal Need\",IF(SettingTable[[#This Row],[Score]]<4,\"Targeted Need\",IF(SettingTable[[#This Row],[Score]]<12,\"Personalised Need\",\"Intensive Need\"))))","v":""}]
[null,null,null,null,null,null,null,null,null,null,null,null,null,null,null,null,null,null,null,null,null,null,null,null,null,null,null,null,null,null,null,null,"","","",{"$f":"IF(ISBLANK(SettingTable[[#This Row],[Child First Name]]),\"\",SUM(SettingTable[[#This Row],[Total Red]:[Total Yellow]]))","v":""},{"$f":"IF(ISBLANK(SettingTable[[#This Row],[Child First Name]]),\"\",IF(SettingTable[[#This Row],[Score]]<1,\"Universal Need\",IF(SettingTable[[#This Row],[Score]]<4,\"Targeted Need\",IF(SettingTable[[#This Row],[Score]]<12,\"Personalised Need\",\"Intensive Need\"))))","v":""}]
[null,null,null,null,null,null,null,null,null,null,null,null,null,null,null,null,null,null,null,null,null,null,null,null,null,null,null,null,null,null,null,null,"","","",{"$f":"IF(ISBLANK(SettingTable[[#This Row],[Child First Name]]),\"\",SUM(SettingTable[[#This Row],[Total Red]:[Total Yellow]]))","v":""},{"$f":"IF(ISBLANK(SettingTable[[#This Row],[Child First Name]]),\"\",IF(SettingTable[[#This Row],[Score]]<1,\"Universal Need\",IF(SettingTable[[#This Row],[Score]]<4,\"Targeted Need\",IF(SettingTable[[#This Row],[Score]]<12,\"Personalised Need\",\"Intensive Need\"))))","v":""}]
[null,null,null,null,null,null,null,null,null,null,null,null,null,null,null,null,null,null,null,null,null,null,null,null,null,null,null,null,null,null,null,null,"","","",{"$f":"IF(ISBLANK(SettingTable[[#This Row],[Child First Name]]),\"\",SUM(SettingTable[[#This Row],[Total Red]:[Total Yellow]]))","v":""},{"$f":"IF(ISBLANK(SettingTable[[#This Row],[Child First Name]]),\"\",IF(SettingTable[[#This Row],[Score]]<1,\"Universal Need\",IF(SettingTable[[#This Row],[Score]]<4,\"Targeted Need\",IF(SettingTable[[#This Row],[Score]]<12,\"Personalised Need\",\"Intensive Need\"))))","v":""}]
[null,null,null,null,null,null,null,null,null,null,null,null,null,null,null,null,null,null,null,null,null,null,null,null,null,null,null,null,null,null,null,null,"","","",{"$f":"IF(ISBLANK(SettingTable[[#This Row],[Child First Name]]),\"\",SUM(SettingTable[[#This Row],[Total Red]:[Total Yellow]]))","v":""},{"$f":"IF(ISBLANK(SettingTable[[#This Row],[Child First Name]]),\"\",IF(SettingTable[[#This Row],[Score]]<1,\"Universal Need\",IF(SettingTable[[#This Row],[Score]]<4,\"Targeted Need\",IF(SettingTable[[#This Row],[Score]]<12,\"Personalised Need\",\"Intensive Need\"))))","v":""}]
[null,null,null,null,null,null,null,null,null,null,null,null,null,null,null,null,null,null,null,null,null,null,null,null,null,null,null,null,null,null,null,null,"","","",{"$f":"IF(ISBLANK(SettingTable[[#This Row],[Child First Name]]),\"\",SUM(SettingTable[[#This Row],[Total Red]:[Total Yellow]]))","v":""},{"$f":"IF(ISBLANK(SettingTable[[#This Row],[Child First Name]]),\"\",IF(SettingTable[[#This Row],[Score]]<1,\"Universal Need\",IF(SettingTable[[#This Row],[Score]]<4,\"Targeted Need\",IF(SettingTable[[#This Row],[Score]]<12,\"Personalised Need\",\"Intensive Need\"))))","v":""}]
[null,null,null,null,null,null,null,null,null,null,null,null,null,null,null,null,null,null,null,null,null,null,null,null,null,null,null,null,null,null,null,null,"","","",{"$f":"IF(ISBLANK(SettingTable[[#This Row],[Child First Name]]),\"\",SUM(SettingTable[[#This Row],[Total Red]:[Total Yellow]]))","v":""},{"$f":"IF(ISBLANK(SettingTable[[#This Row],[Child First Name]]),\"\",IF(SettingTable[[#This Row],[Score]]<1,\"Universal Need\",IF(SettingTable[[#This Row],[Score]]<4,\"Targeted Need\",IF(SettingTable[[#This Row],[Score]]<12,\"Personalised Need\",\"Intensive Need\"))))","v":""}]
[null,null,null,null,null,null,null,null,null,null,null,null,null,null,null,null,null,null,null,null,null,null,null,null,null,null,null,null,null,null,null,null,"","","",{"$f":"IF(ISBLANK(SettingTable[[#This Row],[Child First Name]]),\"\",SUM(SettingTable[[#This Row],[Total Red]:[Total Yellow]]))","v":""},{"$f":"IF(ISBLANK(SettingTable[[#This Row],[Child First Name]]),\"\",IF(SettingTable[[#This Row],[Score]]<1,\"Universal Need\",IF(SettingTable[[#This Row],[Score]]<4,\"Targeted Need\",IF(SettingTable[[#This Row],[Score]]<12,\"Personalised Need\",\"Intensive Need\"))))","v":""}]
[null,null,null,null,null,null,null,null,null,null,null,null,null,null,null,null,null,null,null,null,null,null,null,null,null,null,null,null,null,null,null,null,"","","",{"$f":"IF(ISBLANK(SettingTable[[#This Row],[Child First Name]]),\"\",SUM(SettingTable[[#This Row],[Total Red]:[Total Yellow]]))","v":""},{"$f":"IF(ISBLANK(SettingTable[[#This Row],[Child First Name]]),\"\",IF(SettingTable[[#This Row],[Score]]<1,\"Universal Need\",IF(SettingTable[[#This Row],[Score]]<4,\"Targeted Need\",IF(SettingTable[[#This Row],[Score]]<12,\"Personalised Need\",\"Intensive Need\"))))","v":""}]
[null,null,null,null,null,null,null,null,null,null,null,null,null,null,null,null,null,null,null,null,null,null,null,null,null,null,null,null,null,null,null,null,"","","",{"$f":"IF(ISBLANK(SettingTable[[#This Row],[Child First Name]]),\"\",SUM(SettingTable[[#This Row],[Total Red]:[Total Yellow]]))","v":""},{"$f":"IF(ISBLANK(SettingTable[[#This Row],[Child First Name]]),\"\",IF(SettingTable[[#This Row],[Score]]<1,\"Universal Need\",IF(SettingTable[[#This Row],[Score]]<4,\"Targeted Need\",IF(SettingTable[[#This Row],[Score]]<12,\"Personalised Need\",\"Intensive Need\"))))","v":""}]
[null,null,null,null,null,null,null,null,null,null,null,null,null,null,null,null,null,null,null,null,null,null,null,null,null,null,null,null,null,null,null,null,"","","",{"$f":"IF(ISBLANK(SettingTable[[#This Row],[Child First Name]]),\"\",SUM(SettingTable[[#This Row],[Total Red]:[Total Yellow]]))","v":""},{"$f":"IF(ISBLANK(SettingTable[[#This Row],[Child First Name]]),\"\",IF(SettingTable[[#This Row],[Score]]<1,\"Universal Need\",IF(SettingTable[[#This Row],[Score]]<4,\"Targeted Need\",IF(SettingTable[[#This Row],[Score]]<12,\"Personalised Need\",\"Intensive Need\"))))","v":""}]
[null,null,null,null,null,null,null,null,null,null,null,null,null,null,null,null,null,null,null,null,null,null,null,null,null,null,null,null,null,null,null,null,"","","",{"$f":"IF(ISBLANK(SettingTable[[#This Row],[Child First Name]]),\"\",SUM(SettingTable[[#This Row],[Total Red]:[Total Yellow]]))","v":""},{"$f":"IF(ISBLANK(SettingTable[[#This Row],[Child First Name]]),\"\",IF(SettingTable[[#This Row],[Score]]<1,\"Universal Need\",IF(SettingTable[[#This Row],[Score]]<4,\"Targeted Need\",IF(SettingTable[[#This Row],[Score]]<12,\"Personalised Need\",\"Intensive Need\"))))","v":""}]
[null,null,null,null,null,null,null,null,null,null,null,null,null,null,null,null,null,null,null,null,null,null,null,null,null,null,null,null,null,null,null,null,"","","",{"$f":"IF(ISBLANK(SettingTable[[#This Row],[Child First Name]]),\"\",SUM(SettingTable[[#This Row],[Total Red]:[Total Yellow]]))","v":""},{"$f":"IF(ISBLANK(SettingTable[[#This Row],[Child First Name]]),\"\",IF(SettingTable[[#This Row],[Score]]<1,\"Universal Need\",IF(SettingTable[[#This Row],[Score]]<4,\"Targeted Need\",IF(SettingTable[[#This Row],[Score]]<12,\"Personalised Need\",\"Intensive Need\"))))","v":""}]
[null,null,null,null,null,null,null,null,null,null,null,null,null,null,null,null,null,null,null,null,null,null,null,null,null,null,null,null,null,null,null,null,"","","",{"$f":"IF(ISBLANK(SettingTable[[#This Row],[Child First Name]]),\"\",SUM(SettingTable[[#This Row],[Total Red]:[Total Yellow]]))","v":""},{"$f":"IF(ISBLANK(SettingTable[[#This Row],[Child First Name]]),\"\",IF(SettingTable[[#This Row],[Score]]<1,\"Universal Need\",IF(SettingTable[[#This Row],[Score]]<4,\"Targeted Need\",IF(SettingTable[[#This Row],[Score]]<12,\"Personalised Need\",\"Intensive Need\"))))","v":""}]
[null,null,null,null,null,null,null,null,null,null,null,null,null,null,null,null,null,null,null,null,null,null,null,null,null,null,null,null,null,null,null,null,"","","",{"$f":"IF(ISBLANK(SettingTable[[#This Row],[Child First Name]]),\"\",SUM(SettingTable[[#This Row],[Total Red]:[Total Yellow]]))","v":""},{"$f":"IF(ISBLANK(SettingTable[[#This Row],[Child First Name]]),\"\",IF(SettingTable[[#This Row],[Score]]<1,\"Universal Need\",IF(SettingTable[[#This Row],[Score]]<4,\"Targeted Need\",IF(SettingTable[[#This Row],[Score]]<12,\"Personalised Need\",\"Intensive Need\"))))","v":""}]
[null,null,null,null,null,null,null,null,null,null,null,null,null,null,null,null,null,null,null,null,null,null,null,null,null,null,null,null,null,null,null,null,"","","",{"$f":"IF(ISBLANK(SettingTable[[#This Row],[Child First Name]]),\"\",SUM(SettingTable[[#This Row],[Total Red]:[Total Yellow]]))","v":""},{"$f":"IF(ISBLANK(SettingTable[[#This Row],[Child First Name]]),\"\",IF(SettingTable[[#This Row],[Score]]<1,\"Universal Need\",IF(SettingTable[[#This Row],[Score]]<4,\"Targeted Need\",IF(SettingTable[[#This Row],[Score]]<12,\"Personalised Need\",\"Intensive Need\"))))","v":""}]
[null,null,null,null,null,null,null,null,null,null,null,null,null,null,null,null,null,null,null,null,null,null,null,null,null,null,null,null,null,null,null,null,"","","",{"$f":"IF(ISBLANK(SettingTable[[#This Row],[Child First Name]]),\"\",SUM(SettingTable[[#This Row],[Total Red]:[Total Yellow]]))","v":""},{"$f":"IF(ISBLANK(SettingTable[[#This Row],[Child First Name]]),\"\",IF(SettingTable[[#This Row],[Score]]<1,\"Universal Need\",IF(SettingTable[[#This Row],[Score]]<4,\"Targeted Need\",IF(SettingTable[[#This Row],[Score]]<12,\"Personalised Need\",\"Intensive Need\"))))","v":""}]
[null,null,null,null,null,null,null,null,null,null,null,null,null,null,null,null,null,null,null,null,null,null,null,null,null,null,null,null,null,null,null,null,"","","",{"$f":"IF(ISBLANK(SettingTable[[#This Row],[Child First Name]]),\"\",SUM(SettingTable[[#This Row],[Total Red]:[Total Yellow]]))","v":""},{"$f":"IF(ISBLANK(SettingTable[[#This Row],[Child First Name]]),\"\",IF(SettingTable[[#This Row],[Score]]<1,\"Universal Need\",IF(SettingTable[[#This Row],[Score]]<4,\"Targeted Need\",IF(SettingTable[[#This Row],[Score]]<12,\"Personalised Need\",\"Intensive Need\"))))","v":""}]
[null,null,null,null,null,null,null,null,null,null,null,null,null,null,null,null,null,null,null,null,null,null,null,null,null,null,null,null,null,null,null,null,{"$f":"IF($D268<>\"\",COUNTIF($I268:$AF268,\"Intensive\")*12,\"\")","v":""},{"$f":"IF($D268<>\"\",COUNTIF($I268:$AF268,\"Personalised\")*4,\"\")","v":""},"",{"$f":"IF(ISBLANK(SettingTable[[#This Row],[Child First Name]]),\"\",SUM(SettingTable[[#This Row],[Total Red]:[Total Yellow]]))","v":""},{"$f":"IF(ISBLANK(SettingTable[[#This Row],[Child First Name]]),\"\",IF(SettingTable[[#This Row],[Score]]<1,\"Universal Need\",IF(SettingTable[[#This Row],[Score]]<4,\"Targeted Need\",IF(SettingTable[[#This Row],[Score]]<12,\"Personalised Need\",\"Intensive Need\"))))","v":""}]
[null,null,null,null,null,null,null,null,null,null,null,null,null,null,null,null,null,null,null,null,null,null,null,null,null,null,null,null,null,null,null,null,"","","",{"$f":"IF(ISBLANK(SettingTable[[#This Row],[Child First Name]]),\"\",SUM(SettingTable[[#This Row],[Total Red]:[Total Yellow]]))","v":""},{"$f":"IF(ISBLANK(SettingTable[[#This Row],[Child First Name]]),\"\",IF(SettingTable[[#This Row],[Score]]<1,\"Universal Need\",IF(SettingTable[[#This Row],[Score]]<4,\"Targeted Need\",IF(SettingTable[[#This Row],[Score]]<12,\"Personalised Need\",\"Intensive Need\"))))","v":""}]
[null,null,null,null,null,null,null,null,null,null,null,null,null,null,null,null,null,null,null,null,null,null,null,null,null,null,null,null,null,null,null,null,"","","",{"$f":"IF(ISBLANK(SettingTable[[#This Row],[Child First Name]]),\"\",SUM(SettingTable[[#This Row],[Total Red]:[Total Yellow]]))","v":""},{"$f":"IF(ISBLANK(SettingTable[[#This Row],[Child First Name]]),\"\",IF(SettingTable[[#This Row],[Score]]<1,\"Universal Need\",IF(SettingTable[[#This Row],[Score]]<4,\"Targeted Need\",IF(SettingTable[[#This Row],[Score]]<12,\"Personalised Need\",\"Intensive Need\"))))","v":""}]
[null,null,null,null,null,null,null,null,null,null,null,null,null,null,null,null,null,null,null,null,null,null,null,null,null,null,null,null,null,null,null,null,"","","",{"$f":"IF(ISBLANK(SettingTable[[#This Row],[Child First Name]]),\"\",SUM(SettingTable[[#This Row],[Total Red]:[Total Yellow]]))","v":""},{"$f":"IF(ISBLANK(SettingTable[[#This Row],[Child First Name]]),\"\",IF(SettingTable[[#This Row],[Score]]<1,\"Universal Need\",IF(SettingTable[[#This Row],[Score]]<4,\"Targeted Need\",IF(SettingTable[[#This Row],[Score]]<12,\"Personalised Need\",\"Intensive Need\"))))","v":""}]
[null,null,null,null,null,null,null,null,null,null,null,null,null,null,null,null,null,null,null,null,null,null,null,null,null,null,null,null,null,null,null,null,"","","",{"$f":"IF(ISBLANK(SettingTable[[#This Row],[Child First Name]]),\"\",SUM(SettingTable[[#This Row],[Total Red]:[Total Yellow]]))","v":""},{"$f":"IF(ISBLANK(SettingTable[[#This Row],[Child First Name]]),\"\",IF(SettingTable[[#This Row],[Score]]<1,\"Universal Need\",IF(SettingTable[[#This Row],[Score]]<4,\"Targeted Need\",IF(SettingTable[[#This Row],[Score]]<12,\"Personalised Need\",\"Intensive Need\"))))","v":""}]
[null,null,null,null,null,null,null,null,null,null,null,null,null,null,null,null,null,null,null,null,null,null,null,null,null,null,null,null,null,null,null,null,"","","",{"$f":"IF(ISBLANK(SettingTable[[#This Row],[Child First Name]]),\"\",SUM(SettingTable[[#This Row],[Total Red]:[Total Yellow]]))","v":""},{"$f":"IF(ISBLANK(SettingTable[[#This Row],[Child First Name]]),\"\",IF(SettingTable[[#This Row],[Score]]<1,\"Universal Need\",IF(SettingTable[[#This Row],[Score]]<4,\"Targeted Need\",IF(SettingTable[[#This Row],[Score]]<12,\"Personalised Need\",\"Intensive Need\"))))","v":""}]
[null,null,null,null,null,null,null,null,null,null,null,null,null,null,null,null,null,null,null,null,null,null,null,null,null,null,null,null,null,null,null,null,"","","",{"$f":"IF(ISBLANK(SettingTable[[#This Row],[Child First Name]]),\"\",SUM(SettingTable[[#This Row],[Total Red]:[Total Yellow]]))","v":""},{"$f":"IF(ISBLANK(SettingTable[[#This Row],[Child First Name]]),\"\",IF(SettingTable[[#This Row],[Score]]<1,\"Universal Need\",IF(SettingTable[[#This Row],[Score]]<4,\"Targeted Need\",IF(SettingTable[[#This Row],[Score]]<12,\"Personalised Need\",\"Intensive Need\"))))","v":""}]
[null,null,null,null,null,null,null,null,null,null,null,null,null,null,null,null,null,null,null,null,null,null,null,null,null,null,null,null,null,null,null,null,"","","",{"$f":"IF(ISBLANK(SettingTable[[#This Row],[Child First Name]]),\"\",SUM(SettingTable[[#This Row],[Total Red]:[Total Yellow]]))","v":""},{"$f":"IF(ISBLANK(SettingTable[[#This Row],[Child First Name]]),\"\",IF(SettingTable[[#This Row],[Score]]<1,\"Universal Need\",IF(SettingTable[[#This Row],[Score]]<4,\"Targeted Need\",IF(SettingTable[[#This Row],[Score]]<12,\"Personalised Need\",\"Intensive Need\"))))","v":""}]
[null,null,null,null,null,null,null,null,null,null,null,null,null,null,null,null,null,null,null,null,null,null,null,null,null,null,null,null,null,null,null,null,"","","",{"$f":"IF(ISBLANK(SettingTable[[#This Row],[Child First Name]]),\"\",SUM(SettingTable[[#This Row],[Total Red]:[Total Yellow]]))","v":""},{"$f":"IF(ISBLANK(SettingTable[[#This Row],[Child First Name]]),\"\",IF(SettingTable[[#This Row],[Score]]<1,\"Universal Need\",IF(SettingTable[[#This Row],[Score]]<4,\"Targeted Need\",IF(SettingTable[[#This Row],[Score]]<12,\"Personalised Need\",\"Intensive Need\"))))","v":""}]
[null,null,null,null,null,null,null,null,null,null,null,null,null,null,null,null,null,null,null,null,null,null,null,null,null,null,null,null,null,null,null,null,"","",{"$f":"IF($D277<>\"\",COUNTIF($I277:$AF277,\"Targeted\"),\"\")","v":""},{"$f":"IF(ISBLANK(SettingTable[[#This Row],[Child First Name]]),\"\",SUM(SettingTable[[#This Row],[Total Red]:[Total Yellow]]))","v":""},{"$f":"IF(ISBLANK(SettingTable[[#This Row],[Child First Name]]),\"\",IF(SettingTable[[#This Row],[Score]]<1,\"Universal Need\",IF(SettingTable[[#This Row],[Score]]<4,\"Targeted Need\",IF(SettingTable[[#This Row],[Score]]<12,\"Personalised Need\",\"Intensive Need\"))))","v":""}]
[null,null,null,null,null,null,null,null,null,null,null,null,null,null,null,null,null,null,null,null,null,null,null,null,null,null,null,null,null,null,null,null,"","","",{"$f":"IF(ISBLANK(SettingTable[[#This Row],[Child First Name]]),\"\",SUM(SettingTable[[#This Row],[Total Red]:[Total Yellow]]))","v":""},{"$f":"IF(ISBLANK(SettingTable[[#This Row],[Child First Name]]),\"\",IF(SettingTable[[#This Row],[Score]]<1,\"Universal Need\",IF(SettingTable[[#This Row],[Score]]<4,\"Targeted Need\",IF(SettingTable[[#This Row],[Score]]<12,\"Personalised Need\",\"Intensive Need\"))))","v":""}]
[null,null,null,null,null,null,null,null,null,null,null,null,null,null,null,null,null,null,null,null,null,null,null,null,null,null,null,null,null,null,null,null,"","","",{"$f":"IF(ISBLANK(SettingTable[[#This Row],[Child First Name]]),\"\",SUM(SettingTable[[#This Row],[Total Red]:[Total Yellow]]))","v":""},{"$f":"IF(ISBLANK(SettingTable[[#This Row],[Child First Name]]),\"\",IF(SettingTable[[#This Row],[Score]]<1,\"Universal Need\",IF(SettingTable[[#This Row],[Score]]<4,\"Targeted Need\",IF(SettingTable[[#This Row],[Score]]<12,\"Personalised Need\",\"Intensive Need\"))))","v":""}]
[null,null,null,null,null,null,null,null,null,null,null,null,null,null,null,null,null,null,null,null,null,null,null,null,null,null,null,null,null,null,null,null,"","","",{"$f":"IF(ISBLANK(SettingTable[[#This Row],[Child First Name]]),\"\",SUM(SettingTable[[#This Row],[Total Red]:[Total Yellow]]))","v":""},{"$f":"IF(ISBLANK(SettingTable[[#This Row],[Child First Name]]),\"\",IF(SettingTable[[#This Row],[Score]]<1,\"Universal Need\",IF(SettingTable[[#This Row],[Score]]<4,\"Targeted Need\",IF(SettingTable[[#This Row],[Score]]<12,\"Personalised Need\",\"Intensive Need\"))))","v":""}]
[null,null,null,null,null,null,null,null,null,null,null,null,null,null,null,null,null,null,null,null,null,null,null,null,null,null,null,null,null,null,null,null,"","","",{"$f":"IF(ISBLANK(SettingTable[[#This Row],[Child First Name]]),\"\",SUM(SettingTable[[#This Row],[Total Red]:[Total Yellow]]))","v":""},{"$f":"IF(ISBLANK(SettingTable[[#This Row],[Child First Name]]),\"\",IF(SettingTable[[#This Row],[Score]]<1,\"Universal Need\",IF(SettingTable[[#This Row],[Score]]<4,\"Targeted Need\",IF(SettingTable[[#This Row],[Score]]<12,\"Personalised Need\",\"Intensive Need\"))))","v":""}]
[null,null,null,null,null,null,null,null,null,null,null,null,null,null,null,null,null,null,null,null,null,null,null,null,null,null,null,null,null,null,null,null,"","","",{"$f":"IF(ISBLANK(SettingTable[[#This Row],[Child First Name]]),\"\",SUM(SettingTable[[#This Row],[Total Red]:[Total Yellow]]))","v":""},{"$f":"IF(ISBLANK(SettingTable[[#This Row],[Child First Name]]),\"\",IF(SettingTable[[#This Row],[Score]]<1,\"Universal Need\",IF(SettingTable[[#This Row],[Score]]<4,\"Targeted Need\",IF(SettingTable[[#This Row],[Score]]<12,\"Personalised Need\",\"Intensive Need\"))))","v":""}]
[null,null,null,null,null,null,null,null,null,null,null,null,null,null,null,null,null,null,null,null,null,null,null,null,null,null,null,null,null,null,null,null,"","","",{"$f":"IF(ISBLANK(SettingTable[[#This Row],[Child First Name]]),\"\",SUM(SettingTable[[#This Row],[Total Red]:[Total Yellow]]))","v":""},{"$f":"IF(ISBLANK(SettingTable[[#This Row],[Child First Name]]),\"\",IF(SettingTable[[#This Row],[Score]]<1,\"Universal Need\",IF(SettingTable[[#This Row],[Score]]<4,\"Targeted Need\",IF(SettingTable[[#This Row],[Score]]<12,\"Personalised Need\",\"Intensive Need\"))))","v":""}]
[null,null,null,null,null,null,null,null,null,null,null,null,null,null,null,null,null,null,null,null,null,null,null,null,null,null,null,null,null,null,null,null,"","","",{"$f":"IF(ISBLANK(SettingTable[[#This Row],[Child First Name]]),\"\",SUM(SettingTable[[#This Row],[Total Red]:[Total Yellow]]))","v":""},{"$f":"IF(ISBLANK(SettingTable[[#This Row],[Child First Name]]),\"\",IF(SettingTable[[#This Row],[Score]]<1,\"Universal Need\",IF(SettingTable[[#This Row],[Score]]<4,\"Targeted Need\",IF(SettingTable[[#This Row],[Score]]<12,\"Personalised Need\",\"Intensive Need\"))))","v":""}]
[null,null,null,null,null,null,null,null,null,null,null,null,null,null,null,null,null,null,null,null,null,null,null,null,null,null,null,null,null,null,null,null,"","","",{"$f":"IF(ISBLANK(SettingTable[[#This Row],[Child First Name]]),\"\",SUM(SettingTable[[#This Row],[Total Red]:[Total Yellow]]))","v":""},{"$f":"IF(ISBLANK(SettingTable[[#This Row],[Child First Name]]),\"\",IF(SettingTable[[#This Row],[Score]]<1,\"Universal Need\",IF(SettingTable[[#This Row],[Score]]<4,\"Targeted Need\",IF(SettingTable[[#This Row],[Score]]<12,\"Personalised Need\",\"Intensive Need\"))))","v":""}]
[null,null,null,null,null,null,null,null,null,null,null,null,null,null,null,null,null,null,null,null,null,null,null,null,null,null,null,null,null,null,null,null,"","","",{"$f":"IF(ISBLANK(SettingTable[[#This Row],[Child First Name]]),\"\",SUM(SettingTable[[#This Row],[Total Red]:[Total Yellow]]))","v":""},{"$f":"IF(ISBLANK(SettingTable[[#This Row],[Child First Name]]),\"\",IF(SettingTable[[#This Row],[Score]]<1,\"Universal Need\",IF(SettingTable[[#This Row],[Score]]<4,\"Targeted Need\",IF(SettingTable[[#This Row],[Score]]<12,\"Personalised Need\",\"Intensive Need\"))))","v":""}]
[null,null,null,null,null,null,null,null,null,null,null,null,null,null,null,null,null,null,null,null,null,null,null,null,null,null,null,null,null,null,null,null,"","","",{"$f":"IF(ISBLANK(SettingTable[[#This Row],[Child First Name]]),\"\",SUM(SettingTable[[#This Row],[Total Red]:[Total Yellow]]))","v":""},{"$f":"IF(ISBLANK(SettingTable[[#This Row],[Child First Name]]),\"\",IF(SettingTable[[#This Row],[Score]]<1,\"Universal Need\",IF(SettingTable[[#This Row],[Score]]<4,\"Targeted Need\",IF(SettingTable[[#This Row],[Score]]<12,\"Personalised Need\",\"Intensive Need\"))))","v":""}]
[null,null,null,null,null,null,null,null,null,null,null,null,null,null,null,null,null,null,null,null,null,null,null,null,null,null,null,null,null,null,null,null,"","","",{"$f":"IF(ISBLANK(SettingTable[[#This Row],[Child First Name]]),\"\",SUM(SettingTable[[#This Row],[Total Red]:[Total Yellow]]))","v":""},{"$f":"IF(ISBLANK(SettingTable[[#This Row],[Child First Name]]),\"\",IF(SettingTable[[#This Row],[Score]]<1,\"Universal Need\",IF(SettingTable[[#This Row],[Score]]<4,\"Targeted Need\",IF(SettingTable[[#This Row],[Score]]<12,\"Personalised Need\",\"Intensive Need\"))))","v":""}]
[null,null,null,null,null,null,null,null,null,null,null,null,null,null,null,null,null,null,null,null,null,null,null,null,null,null,null,null,null,null,null,null,"","","",{"$f":"IF(ISBLANK(SettingTable[[#This Row],[Child First Name]]),\"\",SUM(SettingTable[[#This Row],[Total Red]:[Total Yellow]]))","v":""},{"$f":"IF(ISBLANK(SettingTable[[#This Row],[Child First Name]]),\"\",IF(SettingTable[[#This Row],[Score]]<1,\"Universal Need\",IF(SettingTable[[#This Row],[Score]]<4,\"Targeted Need\",IF(SettingTable[[#This Row],[Score]]<12,\"Personalised Need\",\"Intensive Need\"))))","v":""}]
[null,null,null,null,null,null,null,null,null,null,null,null,null,null,null,null,null,null,null,null,null,null,null,null,null,null,null,null,null,null,null,null,"","","",{"$f":"IF(ISBLANK(SettingTable[[#This Row],[Child First Name]]),\"\",SUM(SettingTable[[#This Row],[Total Red]:[Total Yellow]]))","v":""},{"$f":"IF(ISBLANK(SettingTable[[#This Row],[Child First Name]]),\"\",IF(SettingTable[[#This Row],[Score]]<1,\"Universal Need\",IF(SettingTable[[#This Row],[Score]]<4,\"Targeted Need\",IF(SettingTable[[#This Row],[Score]]<12,\"Personalised Need\",\"Intensive Need\"))))","v":""}]
[null,null,null,null,null,null,null,null,null,null,null,null,null,null,null,null,null,null,null,null,null,null,null,null,null,null,null,null,null,null,null,null,"","","",{"$f":"IF(ISBLANK(SettingTable[[#This Row],[Child First Name]]),\"\",SUM(SettingTable[[#This Row],[Total Red]:[Total Yellow]]))","v":""},{"$f":"IF(ISBLANK(SettingTable[[#This Row],[Child First Name]]),\"\",IF(SettingTable[[#This Row],[Score]]<1,\"Universal Need\",IF(SettingTable[[#This Row],[Score]]<4,\"Targeted Need\",IF(SettingTable[[#This Row],[Score]]<12,\"Personalised Need\",\"Intensive Need\"))))","v":""}]
[null,null,null,null,null,null,null,null,null,null,null,null,null,null,null,null,null,null,null,null,null,null,null,null,null,null,null,null,null,null,null,null,"","","",{"$f":"IF(ISBLANK(SettingTable[[#This Row],[Child First Name]]),\"\",SUM(SettingTable[[#This Row],[Total Red]:[Total Yellow]]))","v":""},{"$f":"IF(ISBLANK(SettingTable[[#This Row],[Child First Name]]),\"\",IF(SettingTable[[#This Row],[Score]]<1,\"Universal Need\",IF(SettingTable[[#This Row],[Score]]<4,\"Targeted Need\",IF(SettingTable[[#This Row],[Score]]<12,\"Personalised Need\",\"Intensive Need\"))))","v":""}]
[null,null,null,null,null,null,null,null,null,null,null,null,null,null,null,null,null,null,null,null,null,null,null,null,null,null,null,null,null,null,null,null,"","","",{"$f":"IF(ISBLANK(SettingTable[[#This Row],[Child First Name]]),\"\",SUM(SettingTable[[#This Row],[Total Red]:[Total Yellow]]))","v":""},{"$f":"IF(ISBLANK(SettingTable[[#This Row],[Child First Name]]),\"\",IF(SettingTable[[#This Row],[Score]]<1,\"Universal Need\",IF(SettingTable[[#This Row],[Score]]<4,\"Targeted Need\",IF(SettingTable[[#This Row],[Score]]<12,\"Personalised Need\",\"Intensive Need\"))))","v":""}]
[null,null,null,null,null,null,null,null,null,null,null,null,null,null,null,null,null,null,null,null,null,null,null,null,null,null,null,null,null,null,null,null,"","","",{"$f":"IF(ISBLANK(SettingTable[[#This Row],[Child First Name]]),\"\",SUM(SettingTable[[#This Row],[Total Red]:[Total Yellow]]))","v":""},{"$f":"IF(ISBLANK(SettingTable[[#This Row],[Child First Name]]),\"\",IF(SettingTable[[#This Row],[Score]]<1,\"Universal Need\",IF(SettingTable[[#This Row],[Score]]<4,\"Targeted Need\",IF(SettingTable[[#This Row],[Score]]<12,\"Personalised Need\",\"Intensive Need\"))))","v":""}]
[null,null,null,null,null,null,null,null,null,null,null,null,null,null,null,null,null,null,null,null,null,null,null,null,null,null,null,null,null,null,null,null,"","","",{"$f":"IF(ISBLANK(SettingTable[[#This Row],[Child First Name]]),\"\",SUM(SettingTable[[#This Row],[Total Red]:[Total Yellow]]))","v":""},{"$f":"IF(ISBLANK(SettingTable[[#This Row],[Child First Name]]),\"\",IF(SettingTable[[#This Row],[Score]]<1,\"Universal Need\",IF(SettingTable[[#This Row],[Score]]<4,\"Targeted Need\",IF(SettingTable[[#This Row],[Score]]<12,\"Personalised Need\",\"Intensive Need\"))))","v":""}]
[null,null,null,null,null,null,null,null,null,null,null,null,null,null,null,null,null,null,null,null,null,null,null,null,null,null,null,null,null,null,null,null,"","","",{"$f":"IF(ISBLANK(SettingTable[[#This Row],[Child First Name]]),\"\",SUM(SettingTable[[#This Row],[Total Red]:[Total Yellow]]))","v":""},{"$f":"IF(ISBLANK(SettingTable[[#This Row],[Child First Name]]),\"\",IF(SettingTable[[#This Row],[Score]]<1,\"Universal Need\",IF(SettingTable[[#This Row],[Score]]<4,\"Targeted Need\",IF(SettingTable[[#This Row],[Score]]<12,\"Personalised Need\",\"Intensive Need\"))))","v":""}]
[null,null,null,null,null,null,null,null,null,null,null,null,null,null,null,null,null,null,null,null,null,null,null,null,null,null,null,null,null,null,null,null,"","","",{"$f":"IF(ISBLANK(SettingTable[[#This Row],[Child First Name]]),\"\",SUM(SettingTable[[#This Row],[Total Red]:[Total Yellow]]))","v":""},{"$f":"IF(ISBLANK(SettingTable[[#This Row],[Child First Name]]),\"\",IF(SettingTable[[#This Row],[Score]]<1,\"Universal Need\",IF(SettingTable[[#This Row],[Score]]<4,\"Targeted Need\",IF(SettingTable[[#This Row],[Score]]<12,\"Personalised Need\",\"Intensive Need\"))))","v":""}]
[null,null,null,null,null,null,null,null,null,null,null,null,null,null,null,null,null,null,null,null,null,null,null,null,null,null,null,null,null,null,null,null,"","","",{"$f":"IF(ISBLANK(SettingTable[[#This Row],[Child First Name]]),\"\",SUM(SettingTable[[#This Row],[Total Red]:[Total Yellow]]))","v":""},{"$f":"IF(ISBLANK(SettingTable[[#This Row],[Child First Name]]),\"\",IF(SettingTable[[#This Row],[Score]]<1,\"Universal Need\",IF(SettingTable[[#This Row],[Score]]<4,\"Targeted Need\",IF(SettingTable[[#This Row],[Score]]<12,\"Personalised Need\",\"Intensive Need\"))))","v":""}]
[null,null,null,null,null,null,null,null,null,null,null,null,null,null,null,null,null,null,null,null,null,null,null,null,null,null,null,null,null,null,null,null,"","","",{"$f":"IF(ISBLANK(SettingTable[[#This Row],[Child First Name]]),\"\",SUM(SettingTable[[#This Row],[Total Red]:[Total Yellow]]))","v":""},{"$f":"IF(ISBLANK(SettingTable[[#This Row],[Child First Name]]),\"\",IF(SettingTable[[#This Row],[Score]]<1,\"Universal Need\",IF(SettingTable[[#This Row],[Score]]<4,\"Targeted Need\",IF(SettingTable[[#This Row],[Score]]<12,\"Personalised Need\",\"Intensive Need\"))))","v":""}]
[null,null,null,null,null,null,null,null,null,null,null,null,null,null,null,null,null,null,null,null,null,null,null,null,null,null,null,null,null,null,null,null,"","","",{"$f":"IF(ISBLANK(SettingTable[[#This Row],[Child First Name]]),\"\",SUM(SettingTable[[#This Row],[Total Red]:[Total Yellow]]))","v":""},{"$f":"IF(ISBLANK(SettingTable[[#This Row],[Child First Name]]),\"\",IF(SettingTable[[#This Row],[Score]]<1,\"Universal Need\",IF(SettingTable[[#This Row],[Score]]<4,\"Targeted Need\",IF(SettingTable[[#This Row],[Score]]<12,\"Personalised Need\",\"Intensive Need\"))))","v":""}]
[null,null,null,null,null,null,null,null,null,null,null,null,null,null,null,null,null,null,null,null,null,null,null,null,null,null,null,null,null,null,null,null,"","","",{"$f":"IF(ISBLANK(SettingTable[[#This Row],[Child First Name]]),\"\",SUM(SettingTable[[#This Row],[Total Red]:[Total Yellow]]))","v":""},{"$f":"IF(ISBLANK(SettingTable[[#This Row],[Child First Name]]),\"\",IF(SettingTable[[#This Row],[Score]]<1,\"Universal Need\",IF(SettingTable[[#This Row],[Score]]<4,\"Targeted Need\",IF(SettingTable[[#This Row],[Score]]<12,\"Personalised Need\",\"Intensive Need\"))))","v":""}]
[null,null,null,null,null,null,null,null,null,null,null,null,null,null,null,null,null,null,null,null,null,null,null,null,null,null,null,null,null,null,null,null,"","","",{"$f":"IF(ISBLANK(SettingTable[[#This Row],[Child First Name]]),\"\",SUM(SettingTable[[#This Row],[Total Red]:[Total Yellow]]))","v":""},{"$f":"IF(ISBLANK(SettingTable[[#This Row],[Child First Name]]),\"\",IF(SettingTable[[#This Row],[Score]]<1,\"Universal Need\",IF(SettingTable[[#This Row],[Score]]<4,\"Targeted Need\",IF(SettingTable[[#This Row],[Score]]<12,\"Personalised Need\",\"Intensive Need\"))))","v":""}]
[null,null,null,null,null,null,null,null,null,null,null,null,null,null,null,null,null,null,null,null,null,null,null,null,null,null,null,null,null,null,null,null,"","","",{"$f":"IF(ISBLANK(SettingTable[[#This Row],[Child First Name]]),\"\",SUM(SettingTable[[#This Row],[Total Red]:[Total Yellow]]))","v":""},{"$f":"IF(ISBLANK(SettingTable[[#This Row],[Child First Name]]),\"\",IF(SettingTable[[#This Row],[Score]]<1,\"Universal Need\",IF(SettingTable[[#This Row],[Score]]<4,\"Targeted Need\",IF(SettingTable[[#This Row],[Score]]<12,\"Personalised Need\",\"Intensive Need\"))))","v":""}]
[null,null,null,null,null,null,null,null,null,null,null,null,null,null,null,null,null,null,null,null,null,null,null,null,null,null,null,null,null,null,null,null,"","","",{"$f":"IF(ISBLANK(SettingTable[[#This Row],[Child First Name]]),\"\",SUM(SettingTable[[#This Row],[Total Red]:[Total Yellow]]))","v":""},{"$f":"IF(ISBLANK(SettingTable[[#This Row],[Child First Name]]),\"\",IF(SettingTable[[#This Row],[Score]]<1,\"Universal Need\",IF(SettingTable[[#This Row],[Score]]<4,\"Targeted Need\",IF(SettingTable[[#This Row],[Score]]<12,\"Personalised Need\",\"Intensive Need\"))))","v":""}]
[null,null,null,null,null,null,null,null,null,null,null,null,null,null,null,null,null,null,null,null,null,null,null,null,null,null,null,null,null,null,null,null,"","","",{"$f":"IF(ISBLANK(SettingTable[[#This Row],[Child First Name]]),\"\",SUM(SettingTable[[#This Row],[Total Red]:[Total Yellow]]))","v":""},{"$f":"IF(ISBLANK(SettingTable[[#This Row],[Child First Name]]),\"\",IF(SettingTable[[#This Row],[Score]]<1,\"Universal Need\",IF(SettingTable[[#This Row],[Score]]<4,\"Targeted Need\",IF(SettingTable[[#This Row],[Score]]<12,\"Personalised Need\",\"Intensive Need\"))))","v":""}]
[null,null,null,null,null,null,null,null,null,null,null,null,null,null,null,null,null,null,null,null,null,null,null,null,null,null,null,null,null,null,null,null,"","","",{"$f":"IF(ISBLANK(SettingTable[[#This Row],[Child First Name]]),\"\",SUM(SettingTable[[#This Row],[Total Red]:[Total Yellow]]))","v":""},{"$f":"IF(ISBLANK(SettingTable[[#This Row],[Child First Name]]),\"\",IF(SettingTable[[#This Row],[Score]]<1,\"Universal Need\",IF(SettingTable[[#This Row],[Score]]<4,\"Targeted Need\",IF(SettingTable[[#This Row],[Score]]<12,\"Personalised Need\",\"Intensive Need\"))))","v":""}]
[null,null,null,null,null,null,null,null,null,null,null,null,null,null,null,null,null,null,null,null,null,null,null,null,null,null,null,null,null,null,null,null,"","","",{"$f":"IF(ISBLANK(SettingTable[[#This Row],[Child First Name]]),\"\",SUM(SettingTable[[#This Row],[Total Red]:[Total Yellow]]))","v":""},{"$f":"IF(ISBLANK(SettingTable[[#This Row],[Child First Name]]),\"\",IF(SettingTable[[#This Row],[Score]]<1,\"Universal Need\",IF(SettingTable[[#This Row],[Score]]<4,\"Targeted Need\",IF(SettingTable[[#This Row],[Score]]<12,\"Personalised Need\",\"Intensive Need\"))))","v":""}]
[null,null,null,null,null,null,null,null,null,null,null,null,null,null,null,null,null,null,null,null,null,null,null,null,null,null,null,null,null,null,null,null,"","","",{"$f":"IF(ISBLANK(SettingTable[[#This Row],[Child First Name]]),\"\",SUM(SettingTable[[#This Row],[Total Red]:[Total Yellow]]))","v":""},{"$f":"IF(ISBLANK(SettingTable[[#This Row],[Child First Name]]),\"\",IF(SettingTable[[#This Row],[Score]]<1,\"Universal Need\",IF(SettingTable[[#This Row],[Score]]<4,\"Targeted Need\",IF(SettingTable[[#This Row],[Score]]<12,\"Personalised Need\",\"Intensive Need\"))))","v":""}]
[null,null,null,null,null,null,null,null,null,null,null,null,null,null,null,null,null,null,null,null,null,null,null,null,null,null,null,null,null,null,null,null,"","","",{"$f":"IF(ISBLANK(SettingTable[[#This Row],[Child First Name]]),\"\",SUM(SettingTable[[#This Row],[Total Red]:[Total Yellow]]))","v":""},{"$f":"IF(ISBLANK(SettingTable[[#This Row],[Child First Name]]),\"\",IF(SettingTable[[#This Row],[Score]]<1,\"Universal Need\",IF(SettingTable[[#This Row],[Score]]<4,\"Targeted Need\",IF(SettingTable[[#This Row],[Score]]<12,\"Personalised Need\",\"Intensive Need\"))))","v":""}]
[null,null,null,null,null,null,null,null,null,null,null,null,null,null,null,null,null,null,null,null,null,null,null,null,null,null,null,null,null,null,null,null,"","","",{"$f":"IF(ISBLANK(SettingTable[[#This Row],[Child First Name]]),\"\",SUM(SettingTable[[#This Row],[Total Red]:[Total Yellow]]))","v":""},{"$f":"IF(ISBLANK(SettingTable[[#This Row],[Child First Name]]),\"\",IF(SettingTable[[#This Row],[Score]]<1,\"Universal Need\",IF(SettingTable[[#This Row],[Score]]<4,\"Targeted Need\",IF(SettingTable[[#This Row],[Score]]<12,\"Personalised Need\",\"Intensive Need\"))))","v":""}]
[null,null,null,null,null,null,null,null,null,null,null,null,null,null,null,null,null,null,null,null,null,null,null,null,null,null,null,null,null,null,null,null,"","",{"$f":"IF($D311<>\"\",COUNTIF($I311:$AF311,\"Targeted\"),\"\")","v":""},{"$f":"IF(ISBLANK(SettingTable[[#This Row],[Child First Name]]),\"\",SUM(SettingTable[[#This Row],[Total Red]:[Total Yellow]]))","v":""},{"$f":"IF(ISBLANK(SettingTable[[#This Row],[Child First Name]]),\"\",IF(SettingTable[[#This Row],[Score]]<1,\"Universal Need\",IF(SettingTable[[#This Row],[Score]]<4,\"Targeted Need\",IF(SettingTable[[#This Row],[Score]]<12,\"Personalised Need\",\"Intensive Need\"))))","v":""}]

{"sheet":"Lookup","index":5,"n_rows":4,"n_cols":6,"rows_kept":4,"cut":false,"hidden":true,"merged":[]}
["Colours 1","Colours 2","Colours 3","Colours 4","Colours 5","Colours 6"]
["Personalised","Personalised","Personalised","Intensive","Targeted","Personalised"]
["Targeted","Intensive","Intensive"]
[null,"Targeted"]